Workbook

Sheet Sheet1
A1: Make Model | B1: Type | C1: family | D1: Engine | E1: Range | F1: PAX | G1: Text $ | H1: Price ($M) | J1: Market value | K1: source
A2: BOEING 737-MAX 7 | B2: =TRIM(RIGHT(A2,LEN(A2)-SEARCH(" ",A2))) -> 737-MAX 7 | C2: 737 | F2: 172 | G2: $99.7M | H2: =VALUE(LEFT(G2,LEN(G2)-1)) -> 99.7 | I2: =INDEX(Sheet3!$A$1:$B$21,MATCH(RIGHT(A2,LEN(A2)-SEARCH(" ",A2)),Sheet3!$A$1:$A$21,0),2) ->  | J2: =H2/2 -> 49.85 | K2: http://www.axonaviation.com/commercial-aircraft/aircraft-data/aircraft-pricing | L2: =INDEX('Aircraft Pricing'!$A:$F,MATCH(A2&"^"&D2&"^"&E2&"^"&F2&"^"&G2,'Aircraft Pricing'!$F:$F,0),5) -> 
A3: Airbus A220-100 | B3: =RIGHT(A3,LEN(A3)-SEARCH(" ",A3)) -> A220-100 | C3: A220 | G3: $81.0M | H3: =VALUE(LEFT(G3,LEN(G3)-1)) -> 81 | I3: =INDEX(Sheet3!$A$1:$B$21,MATCH(RIGHT(A3,LEN(A3)-SEARCH(" ",A3)),Sheet3!$A$1:$A$21,0),2) ->  | J3: =H3/2 -> 40.5 | K3: https://simpleflying.com/how-much-do-airbus-aircraft-cost/ | L3: =INDEX('Aircraft Pricing'!$A:$F,MATCH(A3&"^"&D3&"^"&E3&"^"&F3&"^"&G3,'Aircraft Pricing'!$F:$F,0),5) -> 
A4: Airbus A220-300 | B4: A220-300 | C4: A220 | G4: $91.5M | H4: 91.5 | I4: =INDEX(Sheet3!$A$1:$B$21,MATCH(RIGHT(A4,LEN(A4)-SEARCH(" ",A4)),Sheet3!$A$1:$A$21,0),2) ->  | J4: =H4/2 -> 45.75 | K4: https://simpleflying.com/how-much-do-airbus-aircraft-cost/ | L4: =INDEX('Aircraft Pricing'!$A:$F,MATCH(A4&"^"&D4&"^"&E4&"^"&F4&"^"&G4,'Aircraft Pricing'!$F:$F,0),5) -> 
A5: Airbus A318 | B5: A318 | C5: A320 | D5: GE, Pratt & Whitney | E5: 3,100 NM | F5: 107 | G5: $75.1M | H5: 75.1 | I5: =INDEX(Sheet3!$A$1:$B$21,MATCH(RIGHT(A5,LEN(A5)-SEARCH(" ",A5)),Sheet3!$A$1:$A$21,0),2) ->  | J5: =H5/2 -> 37.55 | K5: http://www.axonaviation.com/commercial-aircraft/aircraft-data/aircraft-pricing | L5: =INDEX('Aircraft Pricing'!$A:$F,MATCH(A5&"^"&D5&"^"&E5&"^"&F5&"^"&G5,'Aircraft Pricing'!$F:$F,0),5) -> $75.1M
A6: Airbus A319 | B6: A319 | C6: A320 | D6: GE, International Aero Engines | E6: 3,700 nm | F6: 124 | G6: $89.6M | H6: 89.6 | I6: =INDEX(Sheet3!$A$1:$B$21,MATCH(RIGHT(A6,LEN(A6)-SEARCH(" ",A6)),Sheet3!$A$1:$A$21,0),2) ->  | J6: =H6/2 -> 44.8 | K6: http://www.axonaviation.com/commercial-aircraft/aircraft-data/aircraft-pricing | L6: =INDEX('Aircraft Pricing'!$A:$F,MATCH(A6&"^"&D6&"^"&E6&"^"&F6&"^"&G6,'Aircraft Pricing'!$F:$F,0),5) -> $89.6M
A7: Airbus A319NEO | B7: A319NEO | C7: A320 | G7: $101.5M | H7: 101.5 | I7: =INDEX(Sheet3!$A$1:$B$21,MATCH(RIGHT(A7,LEN(A7)-SEARCH(" ",A7)),Sheet3!$A$1:$A$21,0),2) ->  | J7: 50.75 | K7: https://simpleflying.com/how-much-do-airbus-aircraft-cost/ | L7: =INDEX('Aircraft Pricing'!$A:$F,MATCH(A7&"^"&D7&"^"&E7&"^"&F7&"^"&G7,'Aircraft Pricing'!$F:$F,0),5) -> 
A8: Airbus A320 | B8: A320 | C8: A320 | D8: GE, International Aero Engines | E8: 3,300 NM | F8: 150 | G8: $98M | H8: 98 | I8: =INDEX(Sheet3!$A$1:$B$21,MATCH(RIGHT(A8,LEN(A8)-SEARCH(" ",A8)),Sheet3!$A$1:$A$21,0),2) ->  | J8: 49 | K8: http://www.axonaviation.com/commercial-aircraft/aircraft-data/aircraft-pricing | L8: =INDEX('Aircraft Pricing'!$A:$F,MATCH(A8&"^"&D8&"^"&E8&"^"&F8&"^"&G8,'Aircraft Pricing'!$F:$F,0),5) -> $98M
A9: Airbus A321 | B9: A321 | C9: A320 | D9: GE, International Aero Engines | E9: 3,200 NM | F9: 185 | G9: $114.9M | H9: 114.9 | I9: =INDEX(Sheet3!$A$1:$B$21,MATCH(RIGHT(A9,LEN(A9)-SEARCH(" ",A9)),Sheet3!$A$1:$A$21,0),2) ->  | J9: =H9/2 -> 57.45 | K9: http://www.axonaviation.com/commercial-aircraft/aircraft-data/aircraft-pricing | L9: =INDEX('Aircraft Pricing'!$A:$F,MATCH(A9&"^"&D9&"^"&E9&"^"&F9&"^"&G9,'Aircraft Pricing'!$F:$F,0),5) -> $114.9M
A10: Airbus A321NEO | B10: A321NEO | C10: A320 | G10: $129.5M | H10: 129.5 | I10: =INDEX(Sheet3!$A$1:$B$21,MATCH(RIGHT(A10,LEN(A10)-SEARCH(" ",A10)),Sheet3!$A$1:$A$21,0),2) ->  | J10: 64.75 | K10: https://simpleflying.com/how-much-do-airbus-aircraft-cost/ | L10: =INDEX('Aircraft Pricing'!$A:$F,MATCH(A10&"^"&D10&"^"&E10&"^"&F10&"^"&G10,'Aircraft Pricing'!$F:$F,0),5) -> 
A11: Airbus A330-200 | B11: A330-200 | C11: A330/340 | D11: ROLLS-ROYCE, GE, Pratt & Whitney | E11: 7,250 NM | F11: 247 | G11: $231.5M | H11: 231.5 | I11: =INDEX(Sheet3!$A$1:$B$21,MATCH(RIGHT(A11,LEN(A11)-SEARCH(" ",A11)),Sheet3!$A$1:$A$21,0),2) ->  | J11: 115.75 | K11: http://www.axonaviation.com/commercial-aircraft/aircraft-data/aircraft-pricing | L11: =INDEX('Aircraft Pricing'!$A:$F,MATCH(A11&"^"&D11&"^"&E11&"^"&F11&"^"&G11,'Aircraft Pricing'!$F:$F,0),5) -> $231.5M
A12: Airbus A330-200F | B12: A330-200F | C12: A330/340 | D12: Pratt & Whitney, ROLLS-ROYCE | E12: 4,000 NM | F12: N/A | G12: $234.7M | H12: 234.7 | I12: =INDEX(Sheet3!$A$1:$B$21,MATCH(RIGHT(A12,LEN(A12)-SEARCH(" ",A12)),Sheet3!$A$1:$A$21,0),2) ->  | J12: 117.35 | K12: http://www.axonaviation.com/commercial-aircraft/aircraft-data/aircraft-pricing | L12: =INDEX('Aircraft Pricing'!$A:$F,MATCH(A12&"^"&D12&"^"&E12&"^"&F12&"^"&G12,'Aircraft Pricing'!$F:$F,0),5) -> $234.7M
A13: Airbus A330-300 | B13: A330-300 | C13: A330/340 | D13: ROLLS-ROYCE, GE, Pratt & Whitney | E13: 6,350 NM | F13: 277 | G13: $256.4M | H13: 256.4 | I13: =INDEX(Sheet3!$A$1:$B$21,MATCH(RIGHT(A13,LEN(A13)-SEARCH(" ",A13)),Sheet3!$A$1:$A$21,0),2) ->  | J13: =H13/2 -> 128.2 | K13: http://www.axonaviation.com/commercial-aircraft/aircraft-data/aircraft-pricing | L13: =INDEX('Aircraft Pricing'!$A:$F,MATCH(A13&"^"&D13&"^"&E13&"^"&F13&"^"&G13,'Aircraft Pricing'!$F:$F,0),5) -> $256.4M
A14: Airbus A330-800NEO | B14: A330-800NEO | C14: A330/340 | G14: $259.9M | H14: 259.9 | I14: =INDEX(Sheet3!$A$1:$B$21,MATCH(RIGHT(A14,LEN(A14)-SEARCH(" ",A14)),Sheet3!$A$1:$A$21,0),2) ->  | J14: 129.95 | K14: https://simpleflying.com/how-much-do-airbus-aircraft-cost/ | L14: =INDEX('Aircraft Pricing'!$A:$F,MATCH(A14&"^"&D14&"^"&E14&"^"&F14&"^"&G14,'Aircraft Pricing'!$F:$F,0),5) -> 
A15: Airbus A330-900NEO | B15: A330-900NEO | C15: A330/340 | G15: $296.4M | H15: 296.4 | I15: =INDEX(Sheet3!$A$1:$B$21,MATCH(RIGHT(A15,LEN(A15)-SEARCH(" ",A15)),Sheet3!$A$1:$A$21,0),2) ->  | J15: =H15/2 -> 148.2 | K15: https://simpleflying.com/how-much-do-airbus-aircraft-cost/ | L15: =INDEX('Aircraft Pricing'!$A:$F,MATCH(A15&"^"&D15&"^"&E15&"^"&F15&"^"&G15,'Aircraft Pricing'!$F:$F,0),5) -> 
A16: Airbus A340-300 | B16: A340-300 | C16: A330/340 | D16: CFM International | E16: 7,300 NM | F16: 277 | G16: $219M | H16: 219 | I16: =INDEX(Sheet3!$A$1:$B$21,MATCH(RIGHT(A16,LEN(A16)-SEARCH(" ",A16)),Sheet3!$A$1:$A$21,0),2) ->  | J16: 109.5 | K16: http://www.axonaviation.com/commercial-aircraft/aircraft-data/aircraft-pricing | L16: =INDEX('Aircraft Pricing'!$A:$F,MATCH(A16&"^"&D16&"^"&E16&"^"&F16&"^"&G16,'Aircraft Pricing'!$F:$F,0),5) -> $219M
A17: Airbus A350-900 | B17: A350-900 | C17: A350 | D17: ROLLS-ROYCE | E17: 8,100 NM | F17: 325 | G17: $308.1M | H17: 308.1 | I17: =INDEX(Sheet3!$A$1:$B$21,MATCH(RIGHT(A17,LEN(A17)-SEARCH(" ",A17)),Sheet3!$A$1:$A$21,0),2) ->  | J17: 154.05 | K17: http://www.axonaviation.com/commercial-aircraft/aircraft-data/aircraft-pricing | L17: =INDEX('Aircraft Pricing'!$A:$F,MATCH(A17&"^"&D17&"^"&E17&"^"&F17&"^"&G17,'Aircraft Pricing'!$F:$F,0),5) -> $308.1M
A18: Airbus A350-1000 | B18: A350-1000 | C18: A350 | D18: ROLLS-ROYCE | E18: 7,950 NM | F18: 366 | G18: $355.7M | H18: 355.7 | I18: =INDEX(Sheet3!$A$1:$B$21,MATCH(RIGHT(A18,LEN(A18)-SEARCH(" ",A18)),Sheet3!$A$1:$A$21,0),2) ->  | J18: 177.85 | K18: http://www.axonaviation.com/commercial-aircraft/aircraft-data/aircraft-pricing | L18: =INDEX('Aircraft Pricing'!$A:$F,MATCH(A18&"^"&D18&"^"&E18&"^"&F18&"^"&G18,'Aircraft Pricing'!$F:$F,0),5) -> $355.7M
A19: Airbus A380 | B19: A380 | C19: A380 | D19: ROLLS-ROYCE, Engine Alliance | E19: 8,200 NM | F19: 544 | G19: $350M | H19: 350 | I19: =INDEX(Sheet3!$A$1:$B$21,MATCH(RIGHT(A19,LEN(A19)-SEARCH(" ",A19)),Sheet3!$A$1:$A$21,0),2) ->  | J19: 175 | K19: http://www.axonaviation.com/commercial-aircraft/aircraft-data/aircraft-pricing | L19: =INDEX('Aircraft Pricing'!$A:$F,MATCH(A19&"^"&D19&"^"&E19&"^"&F19&"^"&G19,'Aircraft Pricing'!$F:$F,0),5) -> $350M
A20: Boeing 737-700 | B20: 737-700 | C20: 737 | D20: Pratt & Whitney, GE | E20: 3,440 NM | F20: 126 | G20: $89.1M | H20: 89.1 | I20: =INDEX(Sheet3!$A$1:$B$21,MATCH(RIGHT(A20,LEN(A20)-SEARCH(" ",A20)),Sheet3!$A$1:$A$21,0),2) -> 89.1 | J20: 44.55 | K20: http://www.axonaviation.com/commercial-aircraft/aircraft-data/aircraft-pricing | L20: =INDEX('Aircraft Pricing'!$A:$F,MATCH(A20&"^"&D20&"^"&E20&"^"&F20&"^"&G20,'Aircraft Pricing'!$F:$F,0),5) -> $89.1M
A21: Boeing 737-800 | B21: 737-800 | C21: 737 | D21: Pratt & Whitney, GE, ROLLS-ROYCE | E21: 3,115 NM | F21: 162 | G21: $106.1M | H21: 106.1 | I21: =INDEX(Sheet3!$A$1:$B$21,MATCH(RIGHT(A21,LEN(A21)-SEARCH(" ",A21)),Sheet3!$A$1:$A$21,0),2) -> 106.1 | J21: 53.05 | K21: http://www.axonaviation.com/commercial-aircraft/aircraft-data/aircraft-pricing | L21: =INDEX('Aircraft Pricing'!$A:$F,MATCH(A21&"^"&D21&"^"&E21&"^"&F21&"^"&G21,'Aircraft Pricing'!$F:$F,0),5) -> $106.1M
A22: Boeing 737-900ER | B22: 737-900ER | C22: 737 | D22: Pratt & Whitney, GE | E22: 3,265 NM | F22: 178 | G22: $112.6M | H22: 112.6 | I22: =INDEX(Sheet3!$A$1:$B$21,MATCH(RIGHT(A22,LEN(A22)-SEARCH(" ",A22)),Sheet3!$A$1:$A$21,0),2) -> 112.6 | J22: 56.3 | K22: http://www.axonaviation.com/commercial-aircraft/aircraft-data/aircraft-pricing | L22: =INDEX('Aircraft Pricing'!$A:$F,MATCH(A22&"^"&D22&"^"&E22&"^"&F22&"^"&G22,'Aircraft Pricing'!$F:$F,0),5) -> $112.6M | P22: https://www.iba.aero/insight/aircraft-values-lease-rates-update-february-2024/
A23: Boeing 747-400 | B23: 747-400 | C23: 747 | D23: Pratt & Whitney, GE, ROLLS-ROYCE | E23: 7,260 NM | F23: 410 | I23: =INDEX(Sheet3!$A$1:$B$21,MATCH(RIGHT(A23,LEN(A23)-SEARCH(" ",A23)),Sheet3!$A$1:$A$21,0),2) ->  | J23: 0 | K23: http://www.axonaviation.com/commercial-aircraft/aircraft-data/aircraft-pricing | L23: =INDEX('Aircraft Pricing'!$A:$F,MATCH(A23&"^"&D23&"^"&E23&"^"&F23&"^"&G23,'Aircraft Pricing'!$F:$F,0),5) -> 0
A24: Boeing 747-400F | B24: 747-400F | C24: 747 | D24: Pratt & Whitney, GE, ROLLS-ROYCE | E24: 4,445 NM | F24: N/A | I24: =INDEX(Sheet3!$A$1:$B$21,MATCH(RIGHT(A24,LEN(A24)-SEARCH(" ",A24)),Sheet3!$A$1:$A$21,0),2) ->  | J24: 0 | K24: http://www.axonaviation.com/commercial-aircraft/aircraft-data/aircraft-pricing | L24: =INDEX('Aircraft Pricing'!$A:$F,MATCH(A24&"^"&D24&"^"&E24&"^"&F24&"^"&G24,'Aircraft Pricing'!$F:$F,0),5) -> 0
A25: Boeing 747-8i | B25: 747-8i | C25: 747 | D25: GE | E25: 7,730 NM | F25: 410 | G25: $418.4M | H25: 418.4 | I25: =INDEX(Sheet3!$A$1:$B$21,MATCH(RIGHT(A25,LEN(A25)-SEARCH(" ",A25)),Sheet3!$A$1:$A$21,0),2) ->  | J25: 209.2 | K25: http://www.axonaviation.com/commercial-aircraft/aircraft-data/aircraft-pricing | L25: =INDEX('Aircraft Pricing'!$A:$F,MATCH(A25&"^"&D25&"^"&E25&"^"&F25&"^"&G25,'Aircraft Pricing'!$F:$F,0),5) -> $418.4M
A26: Boeing 757-200 | B26: 757-200 | C26: 757 | D26: ROLLS-ROYCE, Pratt & Whitney | E26: 4,100 NM | F26: 200 | G26: TBC | I26: =INDEX(Sheet3!$A$1:$B$21,MATCH(RIGHT(A26,LEN(A26)-SEARCH(" ",A26)),Sheet3!$A$1:$A$21,0),2) ->  | J26: 0 | K26: http://www.axonaviation.com/commercial-aircraft/aircraft-data/aircraft-pricing | L26: =INDEX('Aircraft Pricing'!$A:$F,MATCH(A26&"^"&D26&"^"&E26&"^"&F26&"^"&G26,'Aircraft Pricing'!$F:$F,0),5) -> TBC
A27: Boeing 757-300 | B27: 757-300 | C27: 757 | D27: ROLLS-ROYCE, Pratt & Whitney | E27: 3,595 NM | F27: 243 | G27: TBC | I27: =INDEX(Sheet3!$A$1:$B$21,MATCH(RIGHT(A27,LEN(A27)-SEARCH(" ",A27)),Sheet3!$A$1:$A$21,0),2) ->  | J27: 0 | K27: http://www.axonaviation.com/commercial-aircraft/aircraft-data/aircraft-pricing | L27: =INDEX('Aircraft Pricing'!$A:$F,MATCH(A27&"^"&D27&"^"&E27&"^"&F27&"^"&G27,'Aircraft Pricing'!$F:$F,0),5) -> TBC
A28: Boeing 767-300ER | B28: 767-300ER | C28: 767 | D28: Pratt & Whitney, GE, ROLLS-ROYCE | E28: 6,310 NM | F28: 269 | G28: $217.9M | H28: 217.9 | I28: =INDEX(Sheet3!$A$1:$B$21,MATCH(RIGHT(A28,LEN(A28)-SEARCH(" ",A28)),Sheet3!$A$1:$A$21,0),2) -> 217.9 | J28: 108.95 | K28: http://www.axonaviation.com/commercial-aircraft/aircraft-data/aircraft-pricing | L28: =INDEX('Aircraft Pricing'!$A:$F,MATCH(A28&"^"&D28&"^"&E28&"^"&F28&"^"&G28,'Aircraft Pricing'!$F:$F,0),5) -> $217.9M
A29: Boeing 767-400ER | B29: 767-400ER | C29: 767 | D29: Pratt & Whitney, GE | E29: 5,625 NM | F29: 304 | G29: TBC | I29: =INDEX(Sheet3!$A$1:$B$21,MATCH(RIGHT(A29,LEN(A29)-SEARCH(" ",A29)),Sheet3!$A$1:$A$21,0),2) ->  | J29: 0 | K29: http://www.axonaviation.com/commercial-aircraft/aircraft-data/aircraft-pricing | L29: =INDEX('Aircraft Pricing'!$A:$F,MATCH(A29&"^"&D29&"^"&E29&"^"&F29&"^"&G29,'Aircraft Pricing'!$F:$F,0),5) -> TBC
A30: Boeing 777-200ER | B30: 777-200ER | C30: 777 | D30: Pratt & Whitney, GE, ROLLS-ROYCE | E30: 7,065 NM | F30: 313 | G30: $306.6M | H30: 306.6 | I30: =INDEX(Sheet3!$A$1:$B$21,MATCH(RIGHT(A30,LEN(A30)-SEARCH(" ",A30)),Sheet3!$A$1:$A$21,0),2) -> 306.6 | J30: 153.3 | K30: http://www.axonaviation.com/commercial-aircraft/aircraft-data/aircraft-pricing | L30: =INDEX('Aircraft Pricing'!$A:$F,MATCH(A30&"^"&D30&"^"&E30&"^"&F30&"^"&G30,'Aircraft Pricing'!$F:$F,0),5) -> $306.6M
A31: Boeing 777-200LR | B31: 777-200LR | C31: 777 | D31: GE | E31: 8,555 NM | F31: 317 | G31: $346.9M | H31: 346.9 | I31: =INDEX(Sheet3!$A$1:$B$21,MATCH(RIGHT(A31,LEN(A31)-SEARCH(" ",A31)),Sheet3!$A$1:$A$21,0),2) -> 346.9 | J31: 173.45 | K31: http://www.axonaviation.com/commercial-aircraft/aircraft-data/aircraft-pricing | L31: =INDEX('Aircraft Pricing'!$A:$F,MATCH(A31&"^"&D31&"^"&E31&"^"&F31&"^"&G31,'Aircraft Pricing'!$F:$F,0),5) -> $346.9M
A32: Boeing 777-300ER | B32: 777-300ER | C32: 777 | D32: GE | E32: 7,370 NM | F32: 396 | G32: $375.5M | H32: 375.5 | I32: =INDEX(Sheet3!$A$1:$B$21,MATCH(RIGHT(A32,LEN(A32)-SEARCH(" ",A32)),Sheet3!$A$1:$A$21,0),2) -> 375.5 | J32: 187.75 | K32: http://www.axonaviation.com/commercial-aircraft/aircraft-data/aircraft-pricing | L32: =INDEX('Aircraft Pricing'!$A:$F,MATCH(A32&"^"&D32&"^"&E32&"^"&F32&"^"&G32,'Aircraft Pricing'!$F:$F,0),5) -> $375.5M
A33: Boeing 777F | B33: 777F | C33: 777 | D33: GE | E33: 4,970 NM | F33: N/A | G33: $352.3M | H33: 352.3 | I33: =INDEX(Sheet3!$A$1:$B$21,MATCH(RIGHT(A33,LEN(A33)-SEARCH(" ",A33)),Sheet3!$A$1:$A$21,0),2) ->  | J33: 176.15 | K33: http://www.axonaviation.com/commercial-aircraft/aircraft-data/aircraft-pricing | L33: =INDEX('Aircraft Pricing'!$A:$F,MATCH(A33&"^"&D33&"^"&E33&"^"&F33&"^"&G33,'Aircraft Pricing'!$F:$F,0),5) -> $352.3M
A34: Boeing 787-8 | B34: 787-8 | C34: 787 | D34: GE, ROLLS-ROYCE | E34: 7,355 NM | F34: 242 | G34: $248.3M | H34: 248.3 | I34: =INDEX(Sheet3!$A$1:$B$21,MATCH(RIGHT(A34,LEN(A34)-SEARCH(" ",A34)),Sheet3!$A$1:$A$21,0),2) -> 248.3 | J34: 124.15 | K34: http://www.axonaviation.com/commercial-aircraft/aircraft-data/aircraft-pricing | L34: =INDEX('Aircraft Pricing'!$A:$F,MATCH(A34&"^"&D34&"^"&E34&"^"&F34&"^"&G34,'Aircraft Pricing'!$F:$F,0),5) -> $248.3M
A35: Boeing 787-9 | B35: 787-9 | C35: 787 | D35: GE, ROLLS-ROYCE | E35: 7,635 NM | F35: 290 | G35: $292.5M | H35: 292.5 | I35: =INDEX(Sheet3!$A$1:$B$21,MATCH(RIGHT(A35,LEN(A35)-SEARCH(" ",A35)),Sheet3!$A$1:$A$21,0),2) -> 292.5 | J35: 146.25 | K35: http://www.axonaviation.com/commercial-aircraft/aircraft-data/aircraft-pricing | L35: =INDEX('Aircraft Pricing'!$A:$F,MATCH(A35&"^"&D35&"^"&E35&"^"&F35&"^"&G35,'Aircraft Pricing'!$F:$F,0),5) -> $292.5M
A36: Boeing 787-10 | B36: 787-10 | C36: 787 | D36: GE , ROLLS-ROYCE | E36: 6,430 NM | F36: 330 | G36: 338.4 | H36: =VALUE(G36) -> 338.4 | I36: =INDEX(Sheet3!$A$1:$B$21,MATCH(RIGHT(A36,LEN(A36)-SEARCH(" ",A36)),Sheet3!$A$1:$A$21,0),2) -> 338.4 | J36: 169.2 | K36: http://www.axonaviation.com/commercial-aircraft/aircraft-data/aircraft-pricing | L36: =INDEX('Aircraft Pricing'!$A:$F,MATCH(A36&"^"&D36&"^"&E36&"^"&F36&"^"&G36,'Aircraft Pricing'!$F:$F,0),5) -> 338.4
A37: Bombardier CRJ100ER/LR | B37: CRJ100ER/LR | C37: CRJ | D37: GE | E37: 1,620 NM / 2,003 NM | F37: 50 | G37: TBC | I37: =INDEX(Sheet3!$A$1:$B$21,MATCH(RIGHT(A37,LEN(A37)-SEARCH(" ",A37)),Sheet3!$A$1:$A$21,0),2) ->  | J37: 0 | K37: http://www.axonaviation.com/commercial-aircraft/aircraft-data/aircraft-pricing | L37: =INDEX('Aircraft Pricing'!$A:$F,MATCH(A37&"^"&D37&"^"&E37&"^"&F37&"^"&G37,'Aircraft Pricing'!$F:$F,0),5) -> TBC
A38: Bombardier CRJ200ER/LR | B38: CRJ200ER/LR | C38: CRJ | D38: GE | E38: 1,644 NM / 2,004 NM | F38: 50 | G38: TBC | I38: =INDEX(Sheet3!$A$1:$B$21,MATCH(RIGHT(A38,LEN(A38)-SEARCH(" ",A38)),Sheet3!$A$1:$A$21,0),2) ->  | J38: 0 | K38: http://www.axonaviation.com/commercial-aircraft/aircraft-data/aircraft-pricing | L38: =INDEX('Aircraft Pricing'!$A:$F,MATCH(A38&"^"&D38&"^"&E38&"^"&F38&"^"&G38,'Aircraft Pricing'!$F:$F,0),5) -> TBC
A39: Bombardier CRJ700ER | B39: CRJ700ER | C39: CRJ | D39: GE | E39: 1,378 NM | F39: 66 | G39: TBC | I39: =INDEX(Sheet3!$A$1:$B$21,MATCH(RIGHT(A39,LEN(A39)-SEARCH(" ",A39)),Sheet3!$A$1:$A$21,0),2) ->  | J39: 0 | K39: http://www.axonaviation.com/commercial-aircraft/aircraft-data/aircraft-pricing | L39: =INDEX('Aircraft Pricing'!$A:$F,MATCH(A39&"^"&D39&"^"&E39&"^"&F39&"^"&G39,'Aircraft Pricing'!$F:$F,0),5) -> TBC
A40: Bombardier CRJ900ER/LR | B40: CRJ900ER/LR | C40: CRJ | D40: GE | E40: 1,317 NM / 1,553 NM | F40: 79 | G40: TBC | I40: =INDEX(Sheet3!$A$1:$B$21,MATCH(RIGHT(A40,LEN(A40)-SEARCH(" ",A40)),Sheet3!$A$1:$A$21,0),2) ->  | J40: 0 | K40: http://www.axonaviation.com/commercial-aircraft/aircraft-data/aircraft-pricing | L40: =INDEX('Aircraft Pricing'!$A:$F,MATCH(A40&"^"&D40&"^"&E40&"^"&F40&"^"&G40,'Aircraft Pricing'!$F:$F,0),5) -> TBC
A41: Bombardier CRJ1000ER | B41: CRJ1000ER | C41: CRJ | D41: GE | E41: 1,622 NM | F41: 50 | G41: TBC | I41: =INDEX(Sheet3!$A$1:$B$21,MATCH(RIGHT(A41,LEN(A41)-SEARCH(" ",A41)),Sheet3!$A$1:$A$21,0),2) ->  | J41: 0 | K41: http://www.axonaviation.com/commercial-aircraft/aircraft-data/aircraft-pricing | L41: =INDEX('Aircraft Pricing'!$A:$F,MATCH(A41&"^"&D41&"^"&E41&"^"&F41&"^"&G41,'Aircraft Pricing'!$F:$F,0),5) -> TBC
A42: Embraer 170LR | B42: 170LR | C42: ERJ170/175/190/195 | D42: GE | E42: 2,100 NM | F42: 70 | G42: $26.5M | H42: 26.5 | I42: =INDEX(Sheet3!$A$1:$B$21,MATCH(RIGHT(A42,LEN(A42)-SEARCH(" ",A42)),Sheet3!$A$1:$A$21,0),2) ->  | J42: 13.25 | K42: http://www.axonaviation.com/commercial-aircraft/aircraft-data/aircraft-pricing | L42: =INDEX('Aircraft Pricing'!$A:$F,MATCH(A42&"^"&D42&"^"&E42&"^"&F42&"^"&G42,'Aircraft Pricing'!$F:$F,0),5) -> $26.5M
A43: Embraer 175 | B43: 175 | C43: ERJ170/175/190/195 | D43: GE | E43: 2,150 NM | F43: 78 | G43: $28M | H43: 28 | I43: =INDEX(Sheet3!$A$1:$B$21,MATCH(RIGHT(A43,LEN(A43)-SEARCH(" ",A43)),Sheet3!$A$1:$A$21,0),2) ->  | J43: 14 | K43: http://www.axonaviation.com/commercial-aircraft/aircraft-data/aircraft-pricing | L43: =INDEX('Aircraft Pricing'!$A:$F,MATCH(A43&"^"&D43&"^"&E43&"^"&F43&"^"&G43,'Aircraft Pricing'!$F:$F,0),5) -> $28M
A44: Embraer 190 | B44: 190 | C44: ERJ170/175/190/195 | D44: GE | E44: 2,400 NM | F44: 94 | G44: $32M | H44: 32 | I44: =INDEX(Sheet3!$A$1:$B$21,MATCH(RIGHT(A44,LEN(A44)-SEARCH(" ",A44)),Sheet3!$A$1:$A$21,0),2) ->  | J44: 16 | K44: http://www.axonaviation.com/commercial-aircraft/aircraft-data/aircraft-pricing | L44: =INDEX('Aircraft Pricing'!$A:$F,MATCH(A44&"^"&D44&"^"&E44&"^"&F44&"^"&G44,'Aircraft Pricing'!$F:$F,0),5) -> $32M
A45: Embraer 195 | B45: 195 | C45: ERJ170/175/190/195 | D45: GE | E45: 2,000 NM | F45: 106 | G45: $40M | H45: 40 | I45: =INDEX(Sheet3!$A$1:$B$21,MATCH(RIGHT(A45,LEN(A45)-SEARCH(" ",A45)),Sheet3!$A$1:$A$21,0),2) ->  | J45: 20 | K45: http://www.axonaviation.com/commercial-aircraft/aircraft-data/aircraft-pricing | L45: =INDEX('Aircraft Pricing'!$A:$F,MATCH(A45&"^"&D45&"^"&E45&"^"&F45&"^"&G45,'Aircraft Pricing'!$F:$F,0),5) -> $40M

Sheet Sheet3
A1: 737-700 | B1: 89.1
A2: 737 MAX 7 | B2: 99.7
A3: 737-800 | B3: 106.1
A4: 737-900ER | B4: 112.6
A5: 737 MAX 8 | B5: 121.6
A6: 737 MAX 200 | B6: 124.8
A7: 737 MAX 9 | B7: 128.9
A8: 737 MAX 10 | B8: 134.9
A9: 767-300ER | B9: 217.9
A10: 767-300 Freighter | B10: 220.3
A11: 787-8 | B11: 248.3
A12: 787-9 | B12: 292.5
A13: 777-200ER | B13: 306.6
A14: 787-10 | B14: 338.4
A15: 777-200LR | B15: 346.9
A16: 777 Freighter | B16: 352.3
A17: 777-300ER | B17: 375.5
A18: 777-8 | B18: 410.2
A19: 747-8 | B19: 418.4
A20: 747-8 Freighter | B20: 419.2
A21: 777-9 | B21: 442.2

Sheet Sheet2
A1: A330/340
A2: A220
A3: A320
A4: A350
A5: A300
A6: A380
A7: ATR 42/72
A8: Do328Jet
A9: Beech 1900
A10: 737
A11: 777
A12: 727
A13: 787
A14: 767
A15: 747
A16: 757
A17: 717
A18: 707/720
A19: DHC-8
A20: CRJ
A21: A220
A22: Jetstream 41
A23: BAe146
A24: Jetstream 31
A25: HS748
A26: ATP
A27: CRJ
A28: ARJ21
A29: C919
A30: DHC-8
A31: DHC-6
A32: DHC-8
A33: DHC-7
A34: Do228
A35: Do328
A36: Do328Jet
A37: DC9/MD80
A38: EMB120
A39: EMB135/140/145
A40: ERJ170/175/190/195
A41: EMB110
A42: Metro
A43: Do328Jet
A44: F27/50
A45: F28/70/100
A46: HS748
A47: Do228
A48: N219
A49: L1011
A50: DC9/MD80
A51: DC8
A52: DC10/MD11
A53: Beech 1900
A54: Do328Jet
A55: Do228
A56: SAAB 340
A57: SAAB 2000
A58: Shorts
A59: Metro
A60: Cessna 408
A61: DHC-6
A62: MA700
A63: ERJ170/175/190/195

Sheet 2020 Data Sheet
D1: MFGR | F1: aircraft_level_3 | G1: aircraft_level_4 | M1: Price ($M) | O1: Source | P1: Avionics Price | Q1: AC value factor | R1: AV value factor | S1: Avionics Percentage
B2: 165 | C2: =INDEX('[1]Pt1-AvionicsComponentCosts'!$A:$B,MATCH(B2,'[1]Pt1-AvionicsComponentCosts'!$A:$A,0),2) -> Fighters and Jet Trainers | D2: Aermacchi | E2: 1 | F2: M-345 | G2: Aermacchi M-345 | H2: =TRIM(SUBSTITUTE(G2,D2,"")) -> M-345 | I2: =TRIM(SUBSTITUTE(SUBSTITUTE(SUBSTITUTE(SUBSTITUTE(SUBSTITUTE(H2,"Family",""),"737 Classic:",""),"737 MAX:",""),"787 Dreamliner:",""),"777:","")) -> M-345 | J2: =MATCH("*"&F2&"*",Sheet1!C:C,0) ->  | K2: =MATCH("*"&H2&"*",Sheet1!C:C,0) ->  | L2: =MATCH("*"&I2&"*",Sheet1!B:B,0) ->  | M2: =338/13 -> 26 | O2: https://www.defensenews.com/digital-show-dailies/paris-air-show/2019/06/13/italy-buys-13-jet-trainers-inks-naval-industry-deal/ | P2: =INDEX('[1]Pt1-AvionicsComponentCosts'!$A:$NE,MATCH(B2,'[1]Pt1-AvionicsComponentCosts'!$A:$A,0),MATCH("END MARKER",'[1]Pt1-AvionicsComponentCosts'!$11:$11,0)) -> 1158497 | Q2: 1 | R2: 1 | S2: =IFERROR(P2/(M2*100000)*R2,"") -> 0.4455757692
B3: 166 | C3: =INDEX('[1]Pt1-AvionicsComponentCosts'!$A:$B,MATCH(B3,'[1]Pt1-AvionicsComponentCosts'!$A:$A,0),2) -> Fighters and Jet Trainers | D3: Aermacchi | E3: 1 | F3: M-346 | G3: Aermacchi M-346 | H3: =TRIM(SUBSTITUTE(G3,D3,"")) -> M-346 | I3: =TRIM(SUBSTITUTE(SUBSTITUTE(SUBSTITUTE(SUBSTITUTE(SUBSTITUTE(H3,"Family",""),"737 Classic:",""),"737 MAX:",""),"787 Dreamliner:",""),"777:","")) -> M-346 | J3: =MATCH("*"&F3&"*",Sheet1!C:C,0) ->  | K3: =MATCH("*"&H3&"*",Sheet1!C:C,0) ->  | L3: =MATCH("*"&I3&"*",Sheet1!B:B,0) ->  | M3: 25 | O3: https://www.defensenews.com/breaking-news/2017/01/26/trainer-price-wars-raytheon-wanted-millions-less-per-plane-than-leonardo/ | P3: =INDEX('[1]Pt1-AvionicsComponentCosts'!$A:$NE,MATCH(B3,'[1]Pt1-AvionicsComponentCosts'!$A:$A,0),MATCH("END MARKER",'[1]Pt1-AvionicsComponentCosts'!$11:$11,0)) -> 1160538 | Q3: 1 | R3: 1 | S3: =IFERROR(P3/(M3*100000)*R3,"") -> 0.4642152
B4: 578 | C4: =INDEX('[1]Pt1-AvionicsComponentCosts'!$A:$B,MATCH(B4,'[1]Pt1-AvionicsComponentCosts'!$A:$A,0),2) -> Fighters and Jet Trainers | D4: Aero Vodochody | E4: 1 | F4: Aero L-39NG | G4: Aero Vodochody L-39NG | H4: L-39NG | I4: L-39NG | J4: =MATCH("*"&F4&"*",Sheet1!C:C,0) ->  | K4: =MATCH("*"&H4&"*",Sheet1!C:C,0) ->  | L4: =MATCH("*"&I4&"*",Sheet1!B:B,0) ->  | M4: 18.5 | O4: https://trends.aeroexpo.online/project-79261.html | P4: =INDEX('[1]Pt1-AvionicsComponentCosts'!$A:$NE,MATCH(B4,'[1]Pt1-AvionicsComponentCosts'!$A:$A,0),MATCH("END MARKER",'[1]Pt1-AvionicsComponentCosts'!$11:$11,0)) -> 1158497 | Q4: 1 | R4: 1 | S4: 0.6262145946
B5: 675 | C5: =INDEX('[1]Pt1-AvionicsComponentCosts'!$A:$B,MATCH(B5,'[1]Pt1-AvionicsComponentCosts'!$A:$A,0),2) -> Fighters and Jet Trainers | D5: AIDC | E5: 1 | F5: AIDC T-5 | G5: AIDC T-5 | H5: T-5 | I5: T-5 | J5: =MATCH("*"&F5&"*",Sheet1!C:C,0) ->  | K5: =MATCH("*"&H5&"*",Sheet1!C:C,0) ->  | L5: =MATCH("*"&I5&"*",Sheet1!B:B,0) ->  | M5: =(2200000000/66)/1000000 -> 33.33333333 | O5: https://www.janes.com/osint-insights/defence-news/defence/aidc-completes-27-t-5a-deliveries-to-rocaf | P5: =INDEX('[1]Pt1-AvionicsComponentCosts'!$A:$NE,MATCH(B5,'[1]Pt1-AvionicsComponentCosts'!$A:$A,0),MATCH("END MARKER",'[1]Pt1-AvionicsComponentCosts'!$11:$11,0)) -> 1160538 | Q5: 1 | R5: 1 | S5: 0.3481614
B6: 544 | C6: =INDEX('[1]Pt1-AvionicsComponentCosts'!$A:$B,MATCH(B6,'[1]Pt1-AvionicsComponentCosts'!$A:$A,0),2) -> Turbine GA | D6: Air | E6: 1 | F6: Air Tractor | G6: Air Tractor | H6: Tractor | I6: Tractor | J6: =MATCH("*"&F6&"*",Sheet1!C:C,0) ->  | K6: =MATCH("*"&H6&"*",Sheet1!C:C,0) ->  | L6: =MATCH("*"&I6&"*",Sheet1!B:B,0) ->  | M6: x | P6: =INDEX('[1]Pt1-AvionicsComponentCosts'!$A:$NE,MATCH(B6,'[1]Pt1-AvionicsComponentCosts'!$A:$A,0),MATCH("END MARKER",'[1]Pt1-AvionicsComponentCosts'!$11:$11,0)) -> 211406 | Q6: 1 | R6: 1
B7: 674 | C7: =INDEX('[1]Pt1-AvionicsComponentCosts'!$A:$B,MATCH(B7,'[1]Pt1-AvionicsComponentCosts'!$A:$A,0),2) -> Business Jet | D7: Airbus | E7: 1 | F7: ACJ | G7: Airbus ACJ TwoTwenty | H7: ACJ TwoTwenty | I7: ACJ TwoTwenty | J7: =MATCH("*"&F7&"*",Sheet1!C:C,0) ->  | K7: =MATCH("*"&H7&"*",Sheet1!C:C,0) ->  | L7: =MATCH("*"&I7&"*",Sheet1!B:B,0) ->  | M7: 100 | O7: https://bjtonline.com/business-jet-news/airbus-acj-twotwenty | P7: =INDEX('[1]Pt1-AvionicsComponentCosts'!$A:$NE,MATCH(B7,'[1]Pt1-AvionicsComponentCosts'!$A:$A,0),MATCH("END MARKER",'[1]Pt1-AvionicsComponentCosts'!$11:$11,0)) -> 1368462 | Q7: 0.75 | R7: 0.75 | S7: 0.10263465
B8: 296 | C8: =INDEX('[1]Pt1-AvionicsComponentCosts'!$A:$B,MATCH(B8,'[1]Pt1-AvionicsComponentCosts'!$A:$A,0),2) -> Business Jet | D8: Airbus | E8: 1 | F8: ACJ | G8: Airbus ACJ320 Family | H8: ACJ320 Family | I8: ACJ320 | J8: =MATCH("*"&F8&"*",Sheet1!C:C,0) ->  | K8: =MATCH("*"&H8&"*",Sheet1!C:C,0) ->  | L8: =MATCH("*"&I8&"*",Sheet1!B:B,0) ->  | M8: 85 | O8: https://www.bjtonline.com/aircraft/airbus-acj320 | P8: =INDEX('[1]Pt1-AvionicsComponentCosts'!$A:$NE,MATCH(B8,'[1]Pt1-AvionicsComponentCosts'!$A:$A,0),MATCH("END MARKER",'[1]Pt1-AvionicsComponentCosts'!$11:$11,0)) -> 1164717 | Q8: 0.75 | R8: 0.75 | S8: 0.1027691471
B9: 528 | C9: =INDEX('[1]Pt1-AvionicsComponentCosts'!$A:$B,MATCH(B9,'[1]Pt1-AvionicsComponentCosts'!$A:$A,0),2) -> Business Jet | D9: Airbus | E9: 1 | F9: ACJ | G9: Airbus ACJ320neo Family | H9: ACJ320neo Family | I9: ACJ320neo | J9: =MATCH("*"&F9&"*",Sheet1!C:C,0) ->  | K9: =MATCH("*"&H9&"*",Sheet1!C:C,0) ->  | L9: =MATCH("*"&I9&"*",Sheet1!B:B,0) ->  | M9: 110 | O9: https://finance.yahoo.com/news/5-priciest-private-jets-2023-185110930.html | P9: =INDEX('[1]Pt1-AvionicsComponentCosts'!$A:$NE,MATCH(B9,'[1]Pt1-AvionicsComponentCosts'!$A:$A,0),MATCH("END MARKER",'[1]Pt1-AvionicsComponentCosts'!$11:$11,0)) -> 1164717 | Q9: 0.75 | R9: 0.75 | S9: 0.07941252273
B10: 678 | C10: =INDEX('[1]Pt1-AvionicsComponentCosts'!$A:$B,MATCH(B10,'[1]Pt1-AvionicsComponentCosts'!$A:$A,0),2) -> Business Jet | D10: Airbus | E10: 1 | F10: Wide body VIP | G10: Airbus ACJ330-200 | H10: ACJ330-200 | I10: ACJ330-200 | J10: =MATCH("*"&F10&"*",Sheet1!C:C,0) ->  | K10: =MATCH("*"&H10&"*",Sheet1!C:C,0) ->  | L10: =MATCH("*"&I10&"*",Sheet1!B:B,0) ->  | M10: 390 | O10: https://www.businessairnews.com/hb_aircraftpage.html?recnum=ACJ330 | P10: =INDEX('[1]Pt1-AvionicsComponentCosts'!$A:$NE,MATCH(B10,'[1]Pt1-AvionicsComponentCosts'!$A:$A,0),MATCH("END MARKER",'[1]Pt1-AvionicsComponentCosts'!$11:$11,0)) -> 1757582 | Q10: 0.75 | R10: 0.75 | S10: 0.03379965385
B11: 565 | C11: =INDEX('[1]Pt1-AvionicsComponentCosts'!$A:$B,MATCH(B11,'[1]Pt1-AvionicsComponentCosts'!$A:$A,0),2) -> Freighter | D11: Airbus | E11: 1 | F11: A330 | G11: Airbus A330-743L Beluga XL | H11: A330-743L Beluga XL | I11: A330-743L Beluga XL | J11: =MATCH("*"&F11&"*",Sheet1!C:C,0) -> 11 | K11: =MATCH("*"&H11&"*",Sheet1!C:C,0) ->  | L11: =MATCH("*"&I11&"*",Sheet1!B:B,0) ->  | M11: x | P11: =INDEX('[1]Pt1-AvionicsComponentCosts'!$A:$NE,MATCH(B11,'[1]Pt1-AvionicsComponentCosts'!$A:$A,0),MATCH("END MARKER",'[1]Pt1-AvionicsComponentCosts'!$11:$11,0)) -> 1768791 | Q11: 0.5 | R11: 0.5
B12: 644 | C12: =INDEX('[1]Pt1-AvionicsComponentCosts'!$A:$B,MATCH(B12,'[1]Pt1-AvionicsComponentCosts'!$A:$A,0),2) -> Freighter | D12: Airbus | E12: 1 | F12: A350 | G12: Airbus A350F | H12: A350F | I12: A350F | J12: =MATCH("*"&F12&"*",Sheet1!C:C,0) -> 17 | K12: =MATCH("*"&H12&"*",Sheet1!C:C,0) ->  | L12: =MATCH("*"&I12&"*",Sheet1!B:B,0) ->  | M12: 172 | O12: https://aircargoeye.com/airline/aircraft/airbus/a350f/ | P12: =INDEX('[1]Pt1-AvionicsComponentCosts'!$A:$NE,MATCH(B12,'[1]Pt1-AvionicsComponentCosts'!$A:$A,0),MATCH("END MARKER",'[1]Pt1-AvionicsComponentCosts'!$11:$11,0)) -> 1768791 | Q12: 0.5 | R12: 0.5 | S12: 0.05141834302
B13: 632 | C13: =INDEX('[1]Pt1-AvionicsComponentCosts'!$A:$B,MATCH(B13,'[1]Pt1-AvionicsComponentCosts'!$A:$A,0),2) -> Freighter | D13: Airbus | E13: 1 | F13: A300 | G13: A300-600F/RF | H13: A300-600F/RF | I13: A300-600F/RF | J13: =MATCH("*"&F13&"*",Sheet1!C:C,0) ->  | K13: =MATCH("*"&H13&"*",Sheet1!C:C,0) ->  | L13: =MATCH("*"&I13&"*",Sheet1!B:B,0) ->  | N13: OOP | P13: =INDEX('[1]Pt1-AvionicsComponentCosts'!$A:$NE,MATCH(B13,'[1]Pt1-AvionicsComponentCosts'!$A:$A,0),MATCH("END MARKER",'[1]Pt1-AvionicsComponentCosts'!$11:$11,0)) -> 1735731 | Q13: 0.5 | R13: 0.5 | S13: =IFERROR(P13/(M13*100000)*R13,"") -> 
B14: 566 | C14: =INDEX('[1]Pt1-AvionicsComponentCosts'!$A:$B,MATCH(B14,'[1]Pt1-AvionicsComponentCosts'!$A:$A,0),2) -> Freighter | D14: Airbus | E14: 1 | F14: A300 | G14: Airbus A300-600ST Beluga | H14: A300-600ST Beluga | I14: A300-600ST Beluga | J14: =MATCH("*"&F14&"*",Sheet1!C:C,0) ->  | K14: =MATCH("*"&H14&"*",Sheet1!C:C,0) ->  | L14: =MATCH("*"&I14&"*",Sheet1!B:B,0) ->  | M14: x | P14: =INDEX('[1]Pt1-AvionicsComponentCosts'!$A:$NE,MATCH(B14,'[1]Pt1-AvionicsComponentCosts'!$A:$A,0),MATCH("END MARKER",'[1]Pt1-AvionicsComponentCosts'!$11:$11,0)) -> 1575117 | Q14: 0.5 | R14: 0.5
B15: 560 | C15: =INDEX('[1]Pt1-AvionicsComponentCosts'!$A:$B,MATCH(B15,'[1]Pt1-AvionicsComponentCosts'!$A:$A,0),2) -> Freighter | D15: Airbus | E15: 1 | F15: A330 | G15: Airbus A330-200F | H15: A330-200F | I15: A330-200F | J15: =MATCH("*"&F15&"*",Sheet1!C:C,0) -> 11 | K15: =MATCH("*"&H15&"*",Sheet1!C:C,0) ->  | L15: =MATCH("*"&I15&"*",Sheet1!B:B,0) -> 12 | M15: =INDEX(Sheet1!$A:$K,MATCH($I15,Sheet1!$B:$B,0),MATCH(M$1,Sheet1!$A$1:$K$1,0)) -> 234.7 | O15: =INDEX(Sheet1!$A:$K,MATCH($I15,Sheet1!$B:$B,0),MATCH(O$1,Sheet1!$A$1:$K$1,0)) -> http://www.axonaviation.com/commercial-aircraft/aircraft-data/aircraft-pricing | P15: =INDEX('[1]Pt1-AvionicsComponentCosts'!$A:$NE,MATCH(B15,'[1]Pt1-AvionicsComponentCosts'!$A:$A,0),MATCH("END MARKER",'[1]Pt1-AvionicsComponentCosts'!$11:$11,0)) -> 1768788 | Q15: 0.5 | R15: 0.5 | S15: 0.03768189178
B16: 562 | C16: =INDEX('[1]Pt1-AvionicsComponentCosts'!$A:$B,MATCH(B16,'[1]Pt1-AvionicsComponentCosts'!$A:$A,0),2) -> Freighter | D16: Airbus | E16: 1 | F16: A330 | G16: Airbus A330-300P2F | H16: A330-300P2F | I16: A330-300P2F | J16: =MATCH("*"&F16&"*",Sheet1!C:C,0) -> 11 | K16: =MATCH("*"&H16&"*",Sheet1!C:C,0) ->  | L16: =MATCH("*"&I16&"*",Sheet1!B:B,0) ->  | M16: 27 | N16: used | O16: https://www.iba.aero/news/sustained-demand-for-passenger-to-freighter-aircraft-conversions-says-iba/ | P16: =INDEX('[1]Pt1-AvionicsComponentCosts'!$A:$NE,MATCH(B16,'[1]Pt1-AvionicsComponentCosts'!$A:$A,0),MATCH("END MARKER",'[1]Pt1-AvionicsComponentCosts'!$11:$11,0)) -> 1768791 | Q16: 0.5 | R16: 0.5 | S16: 0.3275538889
B17: 669 | C17: =INDEX('[1]Pt1-AvionicsComponentCosts'!$A:$B,MATCH(B17,'[1]Pt1-AvionicsComponentCosts'!$A:$A,0),2) -> Freighter | D17: Airbus | E17: 1 | F17: A340 | G17: Airbus A340-600NGF | H17: A340-600NGF | I17: A340-600NGF | J17: =MATCH("*"&F17&"*",Sheet1!C:C,0) ->  | K17: =MATCH("*"&H17&"*",Sheet1!C:C,0) ->  | L17: =MATCH("*"&I17&"*",Sheet1!B:B,0) ->  | M17: x | P17: =INDEX('[1]Pt1-AvionicsComponentCosts'!$A:$NE,MATCH(B17,'[1]Pt1-AvionicsComponentCosts'!$A:$A,0),MATCH("END MARKER",'[1]Pt1-AvionicsComponentCosts'!$11:$11,0)) -> 1768791 | Q17: 0.5 | R17: 0.5
B18: 665 | C18: =INDEX('[1]Pt1-AvionicsComponentCosts'!$A:$B,MATCH(B18,'[1]Pt1-AvionicsComponentCosts'!$A:$A,0),2) -> Freighter | D18: Airbus | E18: 1 | F18: A320ceo | G18: A320-200P2F | H18: A320-200P2F | I18: A320-200P2F | J18: =MATCH("*"&F18&"*",Sheet1!C:C,0) ->  | K18: =MATCH("*"&H18&"*",Sheet1!C:C,0) ->  | L18: =MATCH("*"&I18&"*",Sheet1!B:B,0) ->  | M18: 23.3 | N18: used | O18: https://www.airliners.net/forum/viewtopic.php?t=1439571&start=300 | P18: =INDEX('[1]Pt1-AvionicsComponentCosts'!$A:$NE,MATCH(B18,'[1]Pt1-AvionicsComponentCosts'!$A:$A,0),MATCH("END MARKER",'[1]Pt1-AvionicsComponentCosts'!$11:$11,0)) -> 1164718 | Q18: 0.5 | R18: 0.5 | S18: 0.249939485
B19: 666 | C19: =INDEX('[1]Pt1-AvionicsComponentCosts'!$A:$B,MATCH(B19,'[1]Pt1-AvionicsComponentCosts'!$A:$A,0),2) -> Freighter | D19: Airbus | E19: 1 | F19: A320ceo | G19: A321P2F | H19: A321P2F | I19: A321P2F | J19: =MATCH("*"&F19&"*",Sheet1!C:C,0) ->  | K19: =MATCH("*"&H19&"*",Sheet1!C:C,0) ->  | L19: =MATCH("*"&I19&"*",Sheet1!B:B,0) ->  | M19: 101 | O19: https://www.avdelphi.com/aircraft_type.html?id=12714&recache=1721917906 | P19: =INDEX('[1]Pt1-AvionicsComponentCosts'!$A:$NE,MATCH(B19,'[1]Pt1-AvionicsComponentCosts'!$A:$A,0),MATCH("END MARKER",'[1]Pt1-AvionicsComponentCosts'!$11:$11,0)) -> 1164718 | Q19: 0.5 | R19: 0.5 | S19: 0.05765930693
B20: 104 | C20: =INDEX('[1]Pt1-AvionicsComponentCosts'!$A:$B,MATCH(B20,'[1]Pt1-AvionicsComponentCosts'!$A:$A,0),2) -> Helicopter | D20: Airbus | E20: 1 | F20: Tiger | G20: Airbus Tiger | H20: Tiger | I20: Tiger | J20: =MATCH("*"&F20&"*",Sheet1!C:C,0) ->  | K20: =MATCH("*"&H20&"*",Sheet1!C:C,0) ->  | L20: =MATCH("*"&I20&"*",Sheet1!B:B,0) ->  | M20: 73 | O20: https://simpleflying.com/most-expensive-military-helicopters-guide/ | P20: =INDEX('[1]Pt1-AvionicsComponentCosts'!$A:$NE,MATCH(B20,'[1]Pt1-AvionicsComponentCosts'!$A:$A,0),MATCH("END MARKER",'[1]Pt1-AvionicsComponentCosts'!$11:$11,0)) -> 1457955 | Q20: 0.99 | R20: 0.99 | S20: 0.1977226644
B21: 117 | C21: =INDEX('[1]Pt1-AvionicsComponentCosts'!$A:$B,MATCH(B21,'[1]Pt1-AvionicsComponentCosts'!$A:$A,0),2) -> Helicopter | D21: Airbus | E21: 1 | F21: Airbus UH-72 Lakota | G21: Airbus UH-72 Lakota | H21: UH-72 Lakota | I21: UH-72 Lakota | J21: =MATCH("*"&F21&"*",Sheet1!C:C,0) ->  | K21: =MATCH("*"&H21&"*",Sheet1!C:C,0) ->  | L21: =MATCH("*"&I21&"*",Sheet1!B:B,0) ->  | M21: =122.6/15 -> 8.173333333 | O21: https://verticalmag.com/news/us-army-airbus-lakota-training-helicopters/ | P21: =INDEX('[1]Pt1-AvionicsComponentCosts'!$A:$NE,MATCH(B21,'[1]Pt1-AvionicsComponentCosts'!$A:$A,0),MATCH("END MARKER",'[1]Pt1-AvionicsComponentCosts'!$11:$11,0)) -> 1435124 | Q21: 0.99 | R21: 0.99 | S21: 1.738302724
B22: 112 | C22: =INDEX('[1]Pt1-AvionicsComponentCosts'!$A:$B,MATCH(B22,'[1]Pt1-AvionicsComponentCosts'!$A:$A,0),2) -> Helicopter | D22: Airbus | E22: 1 | F22: H120 Colibri | G22: Airbus H120 Colibri | H22: H120 Colibri | I22: H120 Colibri | J22: =MATCH("*"&F22&"*",Sheet1!C:C,0) ->  | K22: =MATCH("*"&H22&"*",Sheet1!C:C,0) ->  | L22: =MATCH("*"&I22&"*",Sheet1!B:B,0) ->  | M22: 2 | O22: https://bjtonline.com/aircraft/airbus-helicopters-h120 | P22: =INDEX('[1]Pt1-AvionicsComponentCosts'!$A:$NE,MATCH(B22,'[1]Pt1-AvionicsComponentCosts'!$A:$A,0),MATCH("END MARKER",'[1]Pt1-AvionicsComponentCosts'!$11:$11,0)) -> 269100 | Q22: 0.99 | R22: 0.99 | S22: 1.332045
B23: 107 | C23: =INDEX('[1]Pt1-AvionicsComponentCosts'!$A:$B,MATCH(B23,'[1]Pt1-AvionicsComponentCosts'!$A:$A,0),2) -> Helicopter | D23: Airbus | E23: 1 | F23: H125 | G23: Airbus H125 | H23: H125 | I23: H125 | J23: =MATCH("*"&F23&"*",Sheet1!C:C,0) ->  | K23: =MATCH("*"&H23&"*",Sheet1!C:C,0) ->  | L23: =MATCH("*"&I23&"*",Sheet1!B:B,0) ->  | M23: 2.9 | O23: https://www.bjtonline.com/aircraft/airbus-helicopters-h125 | P23: =INDEX('[1]Pt1-AvionicsComponentCosts'!$A:$NE,MATCH(B23,'[1]Pt1-AvionicsComponentCosts'!$A:$A,0),MATCH("END MARKER",'[1]Pt1-AvionicsComponentCosts'!$11:$11,0)) -> 269230 | Q23: 0.99 | R23: 0.99 | S23: 0.9190955172
B24: 108 | C24: =INDEX('[1]Pt1-AvionicsComponentCosts'!$A:$B,MATCH(B24,'[1]Pt1-AvionicsComponentCosts'!$A:$A,0),2) -> Helicopter | D24: Airbus | E24: 1 | F24: H130 | G24: Airbus H130 | H24: H130 | I24: H130 | J24: =MATCH("*"&F24&"*",Sheet1!C:C,0) ->  | K24: =MATCH("*"&H24&"*",Sheet1!C:C,0) ->  | L24: =MATCH("*"&I24&"*",Sheet1!B:B,0) ->  | M24: 3.3 | O24: https://www.bjtonline.com/aircraft/airbus-helicopters-h130 | P24: =INDEX('[1]Pt1-AvionicsComponentCosts'!$A:$NE,MATCH(B24,'[1]Pt1-AvionicsComponentCosts'!$A:$A,0),MATCH("END MARKER",'[1]Pt1-AvionicsComponentCosts'!$11:$11,0)) -> 268326 | Q24: 0.99 | R24: 0.99 | S24: 0.804978
B25: 483 | C25: =INDEX('[1]Pt1-AvionicsComponentCosts'!$A:$B,MATCH(B25,'[1]Pt1-AvionicsComponentCosts'!$A:$A,0),2) -> Helicopter | D25: Airbus | E25: 1 | F25: H135 | G25: Airbus H135 | H25: H135 | I25: H135 | J25: =MATCH("*"&F25&"*",Sheet1!C:C,0) ->  | K25: =MATCH("*"&H25&"*",Sheet1!C:C,0) ->  | L25: =MATCH("*"&I25&"*",Sheet1!B:B,0) ->  | M25: 5.7 | O25: https://www.bjtonline.com/aircraft/airbus-helicopters-h135-p3 | P25: =INDEX('[1]Pt1-AvionicsComponentCosts'!$A:$NE,MATCH(B25,'[1]Pt1-AvionicsComponentCosts'!$A:$A,0),MATCH("END MARKER",'[1]Pt1-AvionicsComponentCosts'!$11:$11,0)) -> 269100 | Q25: 0.99 | R25: 0.99 | S25: 0.4673842105
B26: 113 | C26: =INDEX('[1]Pt1-AvionicsComponentCosts'!$A:$B,MATCH(B26,'[1]Pt1-AvionicsComponentCosts'!$A:$A,0),2) -> Helicopter | D26: Airbus | E26: 1 | F26: H145 | G26: Airbus H145/Kawasaki BK117 | H26: H145/Kawasaki BK117 | I26: H145/Kawasaki BK117 | J26: =MATCH("*"&F26&"*",Sheet1!C:C,0) ->  | K26: =MATCH("*"&H26&"*",Sheet1!C:C,0) ->  | L26: =MATCH("*"&I26&"*",Sheet1!B:B,0) ->  | M26: 9.7 | O26: https://www.bjtonline.com/aircraft/airbus-helicopters-h145 | P26: =INDEX('[1]Pt1-AvionicsComponentCosts'!$A:$NE,MATCH(B26,'[1]Pt1-AvionicsComponentCosts'!$A:$A,0),MATCH("END MARKER",'[1]Pt1-AvionicsComponentCosts'!$11:$11,0)) -> 298535 | Q26: 0.99 | R26: 0.99 | S26: 0.3046903608
B27: 109 | C27: =INDEX('[1]Pt1-AvionicsComponentCosts'!$A:$B,MATCH(B27,'[1]Pt1-AvionicsComponentCosts'!$A:$A,0),2) -> Helicopter | D27: Airbus | E27: 1 | F27: H155 | G27: Airbus H155 | H27: H155 | I27: H155 | J27: =MATCH("*"&F27&"*",Sheet1!C:C,0) ->  | K27: =MATCH("*"&H27&"*",Sheet1!C:C,0) ->  | L27: =MATCH("*"&I27&"*",Sheet1!B:B,0) ->  | M27: 14 | O27: https://www.bjtonline.com/aircraft/airbus-helicopters-h155 | P27: =INDEX('[1]Pt1-AvionicsComponentCosts'!$A:$NE,MATCH(B27,'[1]Pt1-AvionicsComponentCosts'!$A:$A,0),MATCH("END MARKER",'[1]Pt1-AvionicsComponentCosts'!$11:$11,0)) -> 464460 | Q27: 0.99 | R27: 0.99 | S27: 0.3284395714
B28: 110 | C28: =INDEX('[1]Pt1-AvionicsComponentCosts'!$A:$B,MATCH(B28,'[1]Pt1-AvionicsComponentCosts'!$A:$A,0),2) -> Helicopter | D28: Airbus | E28: 1 | F28: H160 | G28: Airbus H160 | H28: H160 | I28: H160 | J28: =MATCH("*"&F28&"*",Sheet1!C:C,0) ->  | K28: =MATCH("*"&H28&"*",Sheet1!C:C,0) ->  | L28: =MATCH("*"&I28&"*",Sheet1!B:B,0) ->  | M28: 14 | O28: https://www.businessinsider.com/airbus-luxury-helicopter-seat-10-people-for-around-14-million-2020-9 | P28: =INDEX('[1]Pt1-AvionicsComponentCosts'!$A:$NE,MATCH(B28,'[1]Pt1-AvionicsComponentCosts'!$A:$A,0),MATCH("END MARKER",'[1]Pt1-AvionicsComponentCosts'!$11:$11,0)) -> 462782 | Q28: 0.99 | R28: 0.99 | S28: 0.3272529857
B29: 102 | C29: =INDEX('[1]Pt1-AvionicsComponentCosts'!$A:$B,MATCH(B29,'[1]Pt1-AvionicsComponentCosts'!$A:$A,0),2) -> Helicopter | D29: Airbus | E29: 1 | F29: H175 | G29: Airbus H175 | H29: H175 | I29: H175 | J29: =MATCH("*"&F29&"*",Sheet1!C:C,0) ->  | K29: =MATCH("*"&H29&"*",Sheet1!C:C,0) ->  | L29: =MATCH("*"&I29&"*",Sheet1!B:B,0) ->  | M29: 17 | O29: https://www.bjtonline.com/aircraft/airbus-helicopters-h175 | P29: =INDEX('[1]Pt1-AvionicsComponentCosts'!$A:$NE,MATCH(B29,'[1]Pt1-AvionicsComponentCosts'!$A:$A,0),MATCH("END MARKER",'[1]Pt1-AvionicsComponentCosts'!$11:$11,0)) -> 597436 | Q29: 0.99 | R29: 0.99 | S29: 0.3479186118
B30: 105 | C30: =INDEX('[1]Pt1-AvionicsComponentCosts'!$A:$B,MATCH(B30,'[1]Pt1-AvionicsComponentCosts'!$A:$A,0),2) -> Helicopter | D30: Airbus | E30: 1 | F30: H215 / H225 | G30: Airbus H215 / H225 | H30: H215 / H225 | I30: H215 / H225 | J30: =MATCH("*"&F30&"*",Sheet1!C:C,0) ->  | K30: =MATCH("*"&H30&"*",Sheet1!C:C,0) ->  | L30: =MATCH("*"&I30&"*",Sheet1!B:B,0) ->  | M30: 18 | O30: https://www.bjtonline.com/aircraft/airbus-helicopters-h215-l1 | P30: =INDEX('[1]Pt1-AvionicsComponentCosts'!$A:$NE,MATCH(B30,'[1]Pt1-AvionicsComponentCosts'!$A:$A,0),MATCH("END MARKER",'[1]Pt1-AvionicsComponentCosts'!$11:$11,0)) -> 603626 | Q30: 0.99 | R30: 0.99 | S30: 0.3319943
B31: 106 | C31: =INDEX('[1]Pt1-AvionicsComponentCosts'!$A:$B,MATCH(B31,'[1]Pt1-AvionicsComponentCosts'!$A:$A,0),2) -> Helicopter | D31: Airbus | E31: 1 | F31: H355 | G31: Airbus H355 | H31: H355 | I31: H355 | J31: =MATCH("*"&F31&"*",Sheet1!C:C,0) ->  | K31: =MATCH("*"&H31&"*",Sheet1!C:C,0) ->  | L31: =MATCH("*"&I31&"*",Sheet1!B:B,0) ->  | M31: 1.9 | O31: https://www.bjtonline.com/aircraft/airbus-helicopters-as355f2-twinstar | P31: =INDEX('[1]Pt1-AvionicsComponentCosts'!$A:$NE,MATCH(B31,'[1]Pt1-AvionicsComponentCosts'!$A:$A,0),MATCH("END MARKER",'[1]Pt1-AvionicsComponentCosts'!$11:$11,0)) -> 304597 | Q31: 0.99 | R31: 0.99 | S31: 1.587110684
B32: 645 | C32: =INDEX('[1]Pt1-AvionicsComponentCosts'!$A:$B,MATCH(B32,'[1]Pt1-AvionicsComponentCosts'!$A:$A,0),2) -> Helicopter | D32: Airbus | E32: 1 | F32: X6 | G32: Airbus X6 | H32: X6 | I32: X6 | J32: =MATCH("*"&F32&"*",Sheet1!C:C,0) ->  | K32: =MATCH("*"&H32&"*",Sheet1!C:C,0) ->  | L32: =MATCH("*"&I32&"*",Sheet1!B:B,0) ->  | M32: x | N32: concept | P32: =INDEX('[1]Pt1-AvionicsComponentCosts'!$A:$NE,MATCH(B32,'[1]Pt1-AvionicsComponentCosts'!$A:$A,0),MATCH("END MARKER",'[1]Pt1-AvionicsComponentCosts'!$11:$11,0)) -> 1466769 | Q32: 0.99 | R32: 0.99
B33: 221 | C33: =INDEX('[1]Pt1-AvionicsComponentCosts'!$A:$B,MATCH(B33,'[1]Pt1-AvionicsComponentCosts'!$A:$A,0),2) -> Large Commercial Aircraft | D33: Airbus | E33: 1 | F33: A220 | G33: Airbus A220-100 | H33: A220-100 | I33: A220-100 | J33: =MATCH("*"&F33&"*",Sheet1!C:C,0) -> 3 | K33: =MATCH("*"&H33&"*",Sheet1!C:C,0) ->  | L33: =MATCH("*"&I33&"*",Sheet1!B:B,0) -> 3 | M33: =INDEX(Sheet1!$A:$K,MATCH($I33,Sheet1!$B:$B,0),MATCH(M$1,Sheet1!$A$1:$K$1,0)) -> 81 | O33: =INDEX(Sheet1!$A:$K,MATCH($I33,Sheet1!$B:$B,0),MATCH(O$1,Sheet1!$A$1:$K$1,0)) -> https://simpleflying.com/how-much-do-airbus-aircraft-cost/ | P33: =INDEX('[1]Pt1-AvionicsComponentCosts'!$A:$NE,MATCH(B33,'[1]Pt1-AvionicsComponentCosts'!$A:$A,0),MATCH("END MARKER",'[1]Pt1-AvionicsComponentCosts'!$11:$11,0)) -> 1368462 | Q33: =50% -> 0.5 | R33: =50% -> 0.5 | S33: 0.08447296296
B34: 222 | C34: =INDEX('[1]Pt1-AvionicsComponentCosts'!$A:$B,MATCH(B34,'[1]Pt1-AvionicsComponentCosts'!$A:$A,0),2) -> Large Commercial Aircraft | D34: Airbus | E34: 1 | F34: A220 | G34: Airbus A220-300 | H34: A220-300 | I34: A220-300 | J34: =MATCH("*"&F34&"*",Sheet1!C:C,0) -> 3 | K34: =MATCH("*"&H34&"*",Sheet1!C:C,0) ->  | L34: =MATCH("*"&I34&"*",Sheet1!B:B,0) -> 4 | M34: =INDEX(Sheet1!$A:$K,MATCH($I34,Sheet1!$B:$B,0),MATCH(M$1,Sheet1!$A$1:$K$1,0)) -> 91.5 | O34: =INDEX(Sheet1!$A:$K,MATCH($I34,Sheet1!$B:$B,0),MATCH(O$1,Sheet1!$A$1:$K$1,0)) -> https://simpleflying.com/how-much-do-airbus-aircraft-cost/ | P34: =INDEX('[1]Pt1-AvionicsComponentCosts'!$A:$NE,MATCH(B34,'[1]Pt1-AvionicsComponentCosts'!$A:$A,0),MATCH("END MARKER",'[1]Pt1-AvionicsComponentCosts'!$11:$11,0)) -> 1368462 | Q34: =50% -> 0.5 | R34: =50% -> 0.5 | S34: 0.07477934426
B35: 653 | C35: =INDEX('[1]Pt1-AvionicsComponentCosts'!$A:$B,MATCH(B35,'[1]Pt1-AvionicsComponentCosts'!$A:$A,0),2) -> Large Commercial Aircraft | D35: Airbus | E35: 1 | F35: A220 | G35: Airbus A220-500 | H35: A220-500 | I35: A220-500 | J35: =MATCH("*"&F35&"*",Sheet1!C:C,0) -> 3 | K35: =MATCH("*"&H35&"*",Sheet1!C:C,0) ->  | L35: =MATCH("*"&I35&"*",Sheet1!B:B,0) ->  | M35: x | N35: concept | P35: =INDEX('[1]Pt1-AvionicsComponentCosts'!$A:$NE,MATCH(B35,'[1]Pt1-AvionicsComponentCosts'!$A:$A,0),MATCH("END MARKER",'[1]Pt1-AvionicsComponentCosts'!$11:$11,0)) -> 1436882 | Q35: =50% -> 0.5 | R35: =50% -> 0.5
B36: 634 | C36: =INDEX('[1]Pt1-AvionicsComponentCosts'!$A:$B,MATCH(B36,'[1]Pt1-AvionicsComponentCosts'!$A:$A,0),2) -> Large Commercial Aircraft | D36: Airbus | E36: 1 | F36: A320ceo | G36: A319-100 | H36: A319-100 | I36: A319-100 | J36: =MATCH("*"&F36&"*",Sheet1!C:C,0) ->  | K36: =MATCH("*"&H36&"*",Sheet1!C:C,0) ->  | L36: =MATCH("*"&I36&"*",Sheet1!B:B,0) ->  | M36: 89 | P36: =INDEX('[1]Pt1-AvionicsComponentCosts'!$A:$NE,MATCH(B36,'[1]Pt1-AvionicsComponentCosts'!$A:$A,0),MATCH("END MARKER",'[1]Pt1-AvionicsComponentCosts'!$11:$11,0)) -> 1212232 | Q36: =50% -> 0.5 | R36: =50% -> 0.5 | S36: 0.06810292135
B37: 633 | C37: =INDEX('[1]Pt1-AvionicsComponentCosts'!$A:$B,MATCH(B37,'[1]Pt1-AvionicsComponentCosts'!$A:$A,0),2) -> Large Commercial Aircraft | D37: Airbus | E37: 1 | F37: A320ceo | G37: A320-200 | H37: A320-200 | I37: A320-200 | J37: =MATCH("*"&F37&"*",Sheet1!C:C,0) ->  | K37: =MATCH("*"&H37&"*",Sheet1!C:C,0) ->  | L37: =MATCH("*"&I37&"*",Sheet1!B:B,0) ->  | M37: 98 | P37: =INDEX('[1]Pt1-AvionicsComponentCosts'!$A:$NE,MATCH(B37,'[1]Pt1-AvionicsComponentCosts'!$A:$A,0),MATCH("END MARKER",'[1]Pt1-AvionicsComponentCosts'!$11:$11,0)) -> 1212232 | Q37: =50% -> 0.5 | R37: =50% -> 0.5 | S37: 0.06184857143
B38: 206 | C38: =INDEX('[1]Pt1-AvionicsComponentCosts'!$A:$B,MATCH(B38,'[1]Pt1-AvionicsComponentCosts'!$A:$A,0),2) -> Large Commercial Aircraft | D38: Airbus | E38: 1 | F38: A320ceo | G38: Airbus A319ceo | H38: A319ceo | I38: A319ceo | J38: =MATCH("*"&F38&"*",Sheet1!C:C,0) ->  | K38: =MATCH("*"&H38&"*",Sheet1!C:C,0) ->  | L38: =MATCH("*"&I38&"*",Sheet1!B:B,0) ->  | M38: 92.3 | O38: https://simpleflying.com/how-much-do-airbus-aircraft-cost/ | P38: =INDEX('[1]Pt1-AvionicsComponentCosts'!$A:$NE,MATCH(B38,'[1]Pt1-AvionicsComponentCosts'!$A:$A,0),MATCH("END MARKER",'[1]Pt1-AvionicsComponentCosts'!$11:$11,0)) -> 1212232 | Q38: =50% -> 0.5 | R38: =50% -> 0.5 | S38: 0.065668039
B39: 207 | C39: =INDEX('[1]Pt1-AvionicsComponentCosts'!$A:$B,MATCH(B39,'[1]Pt1-AvionicsComponentCosts'!$A:$A,0),2) -> Large Commercial Aircraft | D39: Airbus | E39: 1 | F39: A320ceo | G39: Airbus A320ceo | H39: A320ceo | I39: A320ceo | J39: =MATCH("*"&F39&"*",Sheet1!C:C,0) ->  | K39: =MATCH("*"&H39&"*",Sheet1!C:C,0) ->  | L39: =MATCH("*"&I39&"*",Sheet1!B:B,0) ->  | M39: 101 | O39: https://simpleflying.com/how-much-do-airbus-aircraft-cost/ | P39: =INDEX('[1]Pt1-AvionicsComponentCosts'!$A:$NE,MATCH(B39,'[1]Pt1-AvionicsComponentCosts'!$A:$A,0),MATCH("END MARKER",'[1]Pt1-AvionicsComponentCosts'!$11:$11,0)) -> 1212232 | Q39: =50% -> 0.5 | R39: =50% -> 0.5 | S39: 0.06001148515
B40: 208 | C40: =INDEX('[1]Pt1-AvionicsComponentCosts'!$A:$B,MATCH(B40,'[1]Pt1-AvionicsComponentCosts'!$A:$A,0),2) -> Large Commercial Aircraft | D40: Airbus | E40: 1 | F40: A320ceo | G40: Airbus A321ceo | H40: A321ceo | I40: A321ceo | J40: =MATCH("*"&F40&"*",Sheet1!C:C,0) ->  | K40: =MATCH("*"&H40&"*",Sheet1!C:C,0) ->  | L40: =MATCH("*"&I40&"*",Sheet1!B:B,0) ->  | M40: 118.3 | O40: https://simpleflying.com/how-much-do-airbus-aircraft-cost/ | P40: =INDEX('[1]Pt1-AvionicsComponentCosts'!$A:$NE,MATCH(B40,'[1]Pt1-AvionicsComponentCosts'!$A:$A,0),MATCH("END MARKER",'[1]Pt1-AvionicsComponentCosts'!$11:$11,0)) -> 1212232 | Q40: =50% -> 0.5 | R40: =50% -> 0.5 | S40: 0.05123550296
B41: 513 | C41: =INDEX('[1]Pt1-AvionicsComponentCosts'!$A:$B,MATCH(B41,'[1]Pt1-AvionicsComponentCosts'!$A:$A,0),2) -> Large Commercial Aircraft | D41: Airbus | E41: 1 | F41: A320neo | G41: Airbus A319neo | H41: A319neo | I41: A319neo | J41: =MATCH("*"&F41&"*",Sheet1!C:C,0) ->  | K41: =MATCH("*"&H41&"*",Sheet1!C:C,0) ->  | L41: =MATCH("*"&I41&"*",Sheet1!B:B,0) -> 7 | M41: =INDEX(Sheet1!$A:$K,MATCH($I41,Sheet1!$B:$B,0),MATCH(M$1,Sheet1!$A$1:$K$1,0)) -> 101.5 | O41: =INDEX(Sheet1!$A:$K,MATCH($I41,Sheet1!$B:$B,0),MATCH(O$1,Sheet1!$A$1:$K$1,0)) -> https://simpleflying.com/how-much-do-airbus-aircraft-cost/ | P41: =INDEX('[1]Pt1-AvionicsComponentCosts'!$A:$NE,MATCH(B41,'[1]Pt1-AvionicsComponentCosts'!$A:$A,0),MATCH("END MARKER",'[1]Pt1-AvionicsComponentCosts'!$11:$11,0)) -> 1212232 | Q41: =50% -> 0.5 | R41: =50% -> 0.5 | S41: 0.05971586207
B42: 514 | C42: =INDEX('[1]Pt1-AvionicsComponentCosts'!$A:$B,MATCH(B42,'[1]Pt1-AvionicsComponentCosts'!$A:$A,0),2) -> Large Commercial Aircraft | D42: Airbus | E42: 1 | F42: A320neo | G42: Airbus A320neo | H42: A320neo | I42: A320neo | J42: =MATCH("*"&F42&"*",Sheet1!C:C,0) ->  | K42: =MATCH("*"&H42&"*",Sheet1!C:C,0) ->  | L42: =MATCH("*"&I42&"*",Sheet1!B:B,0) ->  | M42: 110.6 | O42: https://simpleflying.com/how-much-do-airbus-aircraft-cost/ | P42: =INDEX('[1]Pt1-AvionicsComponentCosts'!$A:$NE,MATCH(B42,'[1]Pt1-AvionicsComponentCosts'!$A:$A,0),MATCH("END MARKER",'[1]Pt1-AvionicsComponentCosts'!$11:$11,0)) -> 1212232 | Q42: =50% -> 0.5 | R42: =50% -> 0.5 | S42: 0.05480253165
B43: 660 | C43: =INDEX('[1]Pt1-AvionicsComponentCosts'!$A:$B,MATCH(B43,'[1]Pt1-AvionicsComponentCosts'!$A:$A,0),2) -> Large Commercial Aircraft | D43: Airbus | E43: 1 | F43: A320neo | G43: Airbus A321 LR | H43: A321 LR | I43: A321 LR | J43: =MATCH("*"&F43&"*",Sheet1!C:C,0) ->  | K43: =MATCH("*"&H43&"*",Sheet1!C:C,0) ->  | L43: =MATCH("*"&I43&"*",Sheet1!B:B,0) ->  | M43: 129.5 | N43: guess | O43: https://www.forbes.com/sites/michaelgoldstein/2019/12/04/united-airlines-to-buy-50-ultra-long-range-airbus-a321xlr-aircraft-in-estimated-6-billion-deal/ | P43: =INDEX('[1]Pt1-AvionicsComponentCosts'!$A:$NE,MATCH(B43,'[1]Pt1-AvionicsComponentCosts'!$A:$A,0),MATCH("END MARKER",'[1]Pt1-AvionicsComponentCosts'!$11:$11,0)) -> 1272840 | Q43: =50% -> 0.5 | R43: =50% -> 0.5 | S43: 0.04914440154
B44: 662 | C44: =INDEX('[1]Pt1-AvionicsComponentCosts'!$A:$B,MATCH(B44,'[1]Pt1-AvionicsComponentCosts'!$A:$A,0),2) -> Large Commercial Aircraft | D44: Airbus | E44: 1 | F44: A320neo | G44: Airbus A321 XLR | H44: A321 XLR | I44: A321 XLR | J44: =MATCH("*"&F44&"*",Sheet1!C:C,0) ->  | K44: =MATCH("*"&H44&"*",Sheet1!C:C,0) ->  | L44: =MATCH("*"&I44&"*",Sheet1!B:B,0) ->  | M44: 129.5 | N44: guess | O44: https://www.forbes.com/sites/michaelgoldstein/2019/12/04/united-airlines-to-buy-50-ultra-long-range-airbus-a321xlr-aircraft-in-estimated-6-billion-deal/ | P44: =INDEX('[1]Pt1-AvionicsComponentCosts'!$A:$NE,MATCH(B44,'[1]Pt1-AvionicsComponentCosts'!$A:$A,0),MATCH("END MARKER",'[1]Pt1-AvionicsComponentCosts'!$11:$11,0)) -> 1272840 | Q44: =50% -> 0.5 | R44: =50% -> 0.5 | S44: 0.04914440154
B45: 515 | C45: =INDEX('[1]Pt1-AvionicsComponentCosts'!$A:$B,MATCH(B45,'[1]Pt1-AvionicsComponentCosts'!$A:$A,0),2) -> Large Commercial Aircraft | D45: Airbus | E45: 1 | F45: A320neo | G45: Airbus A321neo | H45: A321neo | I45: A321neo | J45: =MATCH("*"&F45&"*",Sheet1!C:C,0) ->  | K45: =MATCH("*"&H45&"*",Sheet1!C:C,0) ->  | L45: =MATCH("*"&I45&"*",Sheet1!B:B,0) -> 10 | M45: =INDEX(Sheet1!$A:$K,MATCH($I45,Sheet1!$B:$B,0),MATCH(M$1,Sheet1!$A$1:$K$1,0)) -> 129.5 | O45: =INDEX(Sheet1!$A:$K,MATCH($I45,Sheet1!$B:$B,0),MATCH(O$1,Sheet1!$A$1:$K$1,0)) -> https://simpleflying.com/how-much-do-airbus-aircraft-cost/ | P45: =INDEX('[1]Pt1-AvionicsComponentCosts'!$A:$NE,MATCH(B45,'[1]Pt1-AvionicsComponentCosts'!$A:$A,0),MATCH("END MARKER",'[1]Pt1-AvionicsComponentCosts'!$11:$11,0)) -> 1212232 | Q45: =50% -> 0.5 | R45: =50% -> 0.5 | S45: 0.04680432432
B46: 654 | C46: =INDEX('[1]Pt1-AvionicsComponentCosts'!$A:$B,MATCH(B46,'[1]Pt1-AvionicsComponentCosts'!$A:$A,0),2) -> Large Commercial Aircraft | D46: Airbus | E46: 1 | F46: A320neo | G46: Airbus A322X | H46: A322X | I46: A322X | J46: =MATCH("*"&F46&"*",Sheet1!C:C,0) ->  | K46: =MATCH("*"&H46&"*",Sheet1!C:C,0) ->  | L46: =MATCH("*"&I46&"*",Sheet1!B:B,0) ->  | M46: x | N46: concept | P46: =INDEX('[1]Pt1-AvionicsComponentCosts'!$A:$NE,MATCH(B46,'[1]Pt1-AvionicsComponentCosts'!$A:$A,0),MATCH("END MARKER",'[1]Pt1-AvionicsComponentCosts'!$11:$11,0)) -> 1436882 | Q46: =50% -> 0.5 | R46: =50% -> 0.5
B47: 212 | C47: =INDEX('[1]Pt1-AvionicsComponentCosts'!$A:$B,MATCH(B47,'[1]Pt1-AvionicsComponentCosts'!$A:$A,0),2) -> Large Commercial Aircraft | D47: Airbus | E47: 1 | F47: A330 | G47: Airbus A330-200 | H47: A330-200 | I47: A330-200 | J47: =MATCH("*"&F47&"*",Sheet1!C:C,0) -> 11 | K47: =MATCH("*"&H47&"*",Sheet1!C:C,0) ->  | L47: =MATCH("*"&I47&"*",Sheet1!B:B,0) -> 11 | M47: =INDEX(Sheet1!$A:$K,MATCH($I47,Sheet1!$B:$B,0),MATCH(M$1,Sheet1!$A$1:$K$1,0)) -> 231.5 | O47: =INDEX(Sheet1!$A:$K,MATCH($I47,Sheet1!$B:$B,0),MATCH(O$1,Sheet1!$A$1:$K$1,0)) -> http://www.axonaviation.com/commercial-aircraft/aircraft-data/aircraft-pricing | P47: =INDEX('[1]Pt1-AvionicsComponentCosts'!$A:$NE,MATCH(B47,'[1]Pt1-AvionicsComponentCosts'!$A:$A,0),MATCH("END MARKER",'[1]Pt1-AvionicsComponentCosts'!$11:$11,0)) -> 1757582 | Q47: =50% -> 0.5 | R47: =50% -> 0.5 | S47: 0.03796073434
B48: 213 | C48: =INDEX('[1]Pt1-AvionicsComponentCosts'!$A:$B,MATCH(B48,'[1]Pt1-AvionicsComponentCosts'!$A:$A,0),2) -> Large Commercial Aircraft | D48: Airbus | E48: 1 | F48: A330 | G48: Airbus A330-300 | H48: A330-300 | I48: A330-300 | J48: =MATCH("*"&F48&"*",Sheet1!C:C,0) -> 11 | K48: =MATCH("*"&H48&"*",Sheet1!C:C,0) ->  | L48: =MATCH("*"&I48&"*",Sheet1!B:B,0) -> 13 | M48: =INDEX(Sheet1!$A:$K,MATCH($I48,Sheet1!$B:$B,0),MATCH(M$1,Sheet1!$A$1:$K$1,0)) -> 256.4 | O48: =INDEX(Sheet1!$A:$K,MATCH($I48,Sheet1!$B:$B,0),MATCH(O$1,Sheet1!$A$1:$K$1,0)) -> http://www.axonaviation.com/commercial-aircraft/aircraft-data/aircraft-pricing | P48: =INDEX('[1]Pt1-AvionicsComponentCosts'!$A:$NE,MATCH(B48,'[1]Pt1-AvionicsComponentCosts'!$A:$A,0),MATCH("END MARKER",'[1]Pt1-AvionicsComponentCosts'!$11:$11,0)) -> 1757582 | Q48: =50% -> 0.5 | R48: =50% -> 0.5 | S48: 0.03427421997
B49: 214 | C49: =INDEX('[1]Pt1-AvionicsComponentCosts'!$A:$B,MATCH(B49,'[1]Pt1-AvionicsComponentCosts'!$A:$A,0),2) -> Large Commercial Aircraft | D49: Airbus | E49: 1 | F49: A330 | G49: Airbus A330-800neo | H49: A330-800neo | I49: A330-800neo | J49: =MATCH("*"&F49&"*",Sheet1!C:C,0) -> 11 | K49: =MATCH("*"&H49&"*",Sheet1!C:C,0) ->  | L49: =MATCH("*"&I49&"*",Sheet1!B:B,0) -> 14 | M49: =INDEX(Sheet1!$A:$K,MATCH($I49,Sheet1!$B:$B,0),MATCH(M$1,Sheet1!$A$1:$K$1,0)) -> 259.9 | O49: =INDEX(Sheet1!$A:$K,MATCH($I49,Sheet1!$B:$B,0),MATCH(O$1,Sheet1!$A$1:$K$1,0)) -> https://simpleflying.com/how-much-do-airbus-aircraft-cost/ | P49: =INDEX('[1]Pt1-AvionicsComponentCosts'!$A:$NE,MATCH(B49,'[1]Pt1-AvionicsComponentCosts'!$A:$A,0),MATCH("END MARKER",'[1]Pt1-AvionicsComponentCosts'!$11:$11,0)) -> 1757582 | Q49: =50% -> 0.5 | R49: =50% -> 0.5 | S49: 0.03381265871
B50: 215 | C50: =INDEX('[1]Pt1-AvionicsComponentCosts'!$A:$B,MATCH(B50,'[1]Pt1-AvionicsComponentCosts'!$A:$A,0),2) -> Large Commercial Aircraft | D50: Airbus | E50: 1 | F50: A330 | G50: Airbus A330-900neo | H50: A330-900neo | I50: A330-900neo | J50: =MATCH("*"&F50&"*",Sheet1!C:C,0) -> 11 | K50: =MATCH("*"&H50&"*",Sheet1!C:C,0) ->  | L50: =MATCH("*"&I50&"*",Sheet1!B:B,0) -> 15 | M50: =INDEX(Sheet1!$A:$K,MATCH($I50,Sheet1!$B:$B,0),MATCH(M$1,Sheet1!$A$1:$K$1,0)) -> 296.4 | O50: =INDEX(Sheet1!$A:$K,MATCH($I50,Sheet1!$B:$B,0),MATCH(O$1,Sheet1!$A$1:$K$1,0)) -> https://simpleflying.com/how-much-do-airbus-aircraft-cost/ | P50: =INDEX('[1]Pt1-AvionicsComponentCosts'!$A:$NE,MATCH(B50,'[1]Pt1-AvionicsComponentCosts'!$A:$A,0),MATCH("END MARKER",'[1]Pt1-AvionicsComponentCosts'!$11:$11,0)) -> 1757582 | Q50: =50% -> 0.5 | R50: =50% -> 0.5 | S50: 0.02964881916
B51: 304 | C51: =INDEX('[1]Pt1-AvionicsComponentCosts'!$A:$B,MATCH(B51,'[1]Pt1-AvionicsComponentCosts'!$A:$A,0),2) -> Large Commercial Aircraft | D51: Airbus | E51: 1 | F51: A340 | G51: Airbus A340-200/300 | H51: A340-200/300 | I51: A340-200/300 | J51: =MATCH("*"&F51&"*",Sheet1!C:C,0) ->  | K51: =MATCH("*"&H51&"*",Sheet1!C:C,0) ->  | L51: =MATCH("*"&I51&"*",Sheet1!B:B,0) ->  | M51: x | N51: OOP | P51: =INDEX('[1]Pt1-AvionicsComponentCosts'!$A:$NE,MATCH(B51,'[1]Pt1-AvionicsComponentCosts'!$A:$A,0),MATCH("END MARKER",'[1]Pt1-AvionicsComponentCosts'!$11:$11,0)) -> 1776818 | Q51: =50% -> 0.5 | R51: =50% -> 0.5
B52: 5 | C52: =INDEX('[1]Pt1-AvionicsComponentCosts'!$A:$B,MATCH(B52,'[1]Pt1-AvionicsComponentCosts'!$A:$A,0),2) -> Large Commercial Aircraft | D52: Airbus | E52: 1 | F52: A340 | G52: Airbus A340-500/600 | H52: A340-500/600 | I52: A340-500/600 | J52: =MATCH("*"&F52&"*",Sheet1!C:C,0) ->  | K52: =MATCH("*"&H52&"*",Sheet1!C:C,0) ->  | L52: =MATCH("*"&I52&"*",Sheet1!B:B,0) ->  | M52: x | N52: OOP | P52: =INDEX('[1]Pt1-AvionicsComponentCosts'!$A:$NE,MATCH(B52,'[1]Pt1-AvionicsComponentCosts'!$A:$A,0),MATCH("END MARKER",'[1]Pt1-AvionicsComponentCosts'!$11:$11,0)) -> 1787566 | Q52: =50% -> 0.5 | R52: =50% -> 0.5
B53: 6 | C53: =INDEX('[1]Pt1-AvionicsComponentCosts'!$A:$B,MATCH(B53,'[1]Pt1-AvionicsComponentCosts'!$A:$A,0),2) -> Large Commercial Aircraft | D53: Airbus | E53: 1 | F53: A350 | G53: Airbus A350 XWB - A350-900 | H53: A350 XWB - A350-900 | I53: A350 XWB - A350-900 | J53: =MATCH("*"&F53&"*",Sheet1!C:C,0) -> 17 | K53: =MATCH("*"&H53&"*",Sheet1!C:C,0) ->  | L53: =MATCH("*"&I53&"*",Sheet1!B:B,0) ->  | M53: 308.1 | O53: http://www.axonaviation.com/commercial-aircraft/aircraft-data/aircraft-pricing | P53: =INDEX('[1]Pt1-AvionicsComponentCosts'!$A:$NE,MATCH(B53,'[1]Pt1-AvionicsComponentCosts'!$A:$A,0),MATCH("END MARKER",'[1]Pt1-AvionicsComponentCosts'!$11:$11,0)) -> 2322085 | Q53: =50% -> 0.5 | R53: =50% -> 0.5 | S53: 0.03768395002
B54: 7 | C54: =INDEX('[1]Pt1-AvionicsComponentCosts'!$A:$B,MATCH(B54,'[1]Pt1-AvionicsComponentCosts'!$A:$A,0),2) -> Large Commercial Aircraft | D54: Airbus | E54: 1 | F54: A350 | G54: Airbus A350-1000 | H54: A350-1000 | I54: A350-1000 | J54: =MATCH("*"&F54&"*",Sheet1!C:C,0) -> 17 | K54: =MATCH("*"&H54&"*",Sheet1!C:C,0) ->  | L54: =MATCH("*"&I54&"*",Sheet1!B:B,0) -> 18 | M54: =INDEX(Sheet1!$A:$K,MATCH($I54,Sheet1!$B:$B,0),MATCH(M$1,Sheet1!$A$1:$K$1,0)) -> 355.7 | O54: =INDEX(Sheet1!$A:$K,MATCH($I54,Sheet1!$B:$B,0),MATCH(O$1,Sheet1!$A$1:$K$1,0)) -> http://www.axonaviation.com/commercial-aircraft/aircraft-data/aircraft-pricing | P54: =INDEX('[1]Pt1-AvionicsComponentCosts'!$A:$NE,MATCH(B54,'[1]Pt1-AvionicsComponentCosts'!$A:$A,0),MATCH("END MARKER",'[1]Pt1-AvionicsComponentCosts'!$11:$11,0)) -> 2322085 | Q54: =50% -> 0.5 | R54: =50% -> 0.5 | S54: 0.03264105988
B55: 657 | C55: =INDEX('[1]Pt1-AvionicsComponentCosts'!$A:$B,MATCH(B55,'[1]Pt1-AvionicsComponentCosts'!$A:$A,0),2) -> Large Commercial Aircraft | D55: Airbus | E55: 1 | F55: A350 | G55: Airbus A350-1000neo | H55: A350-1000neo | I55: A350-1000neo | J55: =MATCH("*"&F55&"*",Sheet1!C:C,0) -> 17 | K55: =MATCH("*"&H55&"*",Sheet1!C:C,0) ->  | L55: =MATCH("*"&I55&"*",Sheet1!B:B,0) ->  | M55: 355 | O55: http://www.axonaviation.com/commercial-aircraft/aircraft-data/aircraft-pricing | P55: =INDEX('[1]Pt1-AvionicsComponentCosts'!$A:$NE,MATCH(B55,'[1]Pt1-AvionicsComponentCosts'!$A:$A,0),MATCH("END MARKER",'[1]Pt1-AvionicsComponentCosts'!$11:$11,0)) -> 2322085 | Q55: =50% -> 0.5 | R55: =50% -> 0.5 | S55: 0.03270542254
B56: 656 | C56: =INDEX('[1]Pt1-AvionicsComponentCosts'!$A:$B,MATCH(B56,'[1]Pt1-AvionicsComponentCosts'!$A:$A,0),2) -> Large Commercial Aircraft | D56: Airbus | E56: 1 | F56: A350 | G56: Airbus A350-900neo | H56: A350-900neo | I56: A350-900neo | J56: =MATCH("*"&F56&"*",Sheet1!C:C,0) -> 17 | K56: =MATCH("*"&H56&"*",Sheet1!C:C,0) ->  | L56: =MATCH("*"&I56&"*",Sheet1!B:B,0) ->  | M56: 308.1 | O56: http://www.axonaviation.com/commercial-aircraft/aircraft-data/aircraft-pricing | P56: =INDEX('[1]Pt1-AvionicsComponentCosts'!$A:$NE,MATCH(B56,'[1]Pt1-AvionicsComponentCosts'!$A:$A,0),MATCH("END MARKER",'[1]Pt1-AvionicsComponentCosts'!$11:$11,0)) -> 2322085 | Q56: =50% -> 0.5 | R56: =50% -> 0.5 | S56: 0.03768395002
B57: 305 | C57: =INDEX('[1]Pt1-AvionicsComponentCosts'!$A:$B,MATCH(B57,'[1]Pt1-AvionicsComponentCosts'!$A:$A,0),2) -> Large Commercial Aircraft | D57: Airbus | E57: 1 | F57: Airbus A300 | G57: Airbus A300 | H57: A300 | I57: A300 | J57: =MATCH("*"&F57&"*",Sheet1!C:C,0) ->  | K57: =MATCH("*"&H57&"*",Sheet1!C:C,0) ->  | L57: =MATCH("*"&I57&"*",Sheet1!B:B,0) ->  | M57: x | N57: OOP | P57: =INDEX('[1]Pt1-AvionicsComponentCosts'!$A:$NE,MATCH(B57,'[1]Pt1-AvionicsComponentCosts'!$A:$A,0),MATCH("END MARKER",'[1]Pt1-AvionicsComponentCosts'!$11:$11,0)) -> 1733068 | Q57: =50% -> 0.5 | R57: =50% -> 0.5
B58: 216 | C58: =INDEX('[1]Pt1-AvionicsComponentCosts'!$A:$B,MATCH(B58,'[1]Pt1-AvionicsComponentCosts'!$A:$A,0),2) -> Large Commercial Aircraft | D58: Airbus | E58: 1 | F58: A380 | G58: Airbus A380 | H58: A380 | I58: A380 | J58: =MATCH("*"&F58&"*",Sheet1!C:C,0) -> 19 | K58: =MATCH("*"&H58&"*",Sheet1!C:C,0) -> 19 | L58: =MATCH("*"&I58&"*",Sheet1!B:B,0) -> 19 | M58: =INDEX(Sheet1!$A:$K,MATCH($I58,Sheet1!$B:$B,0),MATCH(M$1,Sheet1!$A$1:$K$1,0)) -> 350 | O58: =INDEX(Sheet1!$A:$K,MATCH($I58,Sheet1!$B:$B,0),MATCH(O$1,Sheet1!$A$1:$K$1,0)) -> http://www.axonaviation.com/commercial-aircraft/aircraft-data/aircraft-pricing | P58: =INDEX('[1]Pt1-AvionicsComponentCosts'!$A:$NE,MATCH(B58,'[1]Pt1-AvionicsComponentCosts'!$A:$A,0),MATCH("END MARKER",'[1]Pt1-AvionicsComponentCosts'!$11:$11,0)) -> 2586470 | Q58: =50% -> 0.5 | R58: =50% -> 0.5 | S58: 0.03694957143
B59: 551 | C59: =INDEX('[1]Pt1-AvionicsComponentCosts'!$A:$B,MATCH(B59,'[1]Pt1-AvionicsComponentCosts'!$A:$A,0),2) -> Military Transport / Special Mission | D59: Airbus | E59: 1 | F59: A330 MRTT | G59: Airbus A330 MRTT | H59: A330 MRTT | I59: A330 MRTT | J59: =MATCH("*"&F59&"*",Sheet1!C:C,0) ->  | K59: =MATCH("*"&H59&"*",Sheet1!C:C,0) ->  | L59: =MATCH("*"&I59&"*",Sheet1!B:B,0) ->  | M59: 340 | O59: https://simpleflying.com/how-much-do-military-transport-aircraft-cost/ | P59: =INDEX('[1]Pt1-AvionicsComponentCosts'!$A:$NE,MATCH(B59,'[1]Pt1-AvionicsComponentCosts'!$A:$A,0),MATCH("END MARKER",'[1]Pt1-AvionicsComponentCosts'!$11:$11,0)) -> 3104657 | Q59: 1 | R59: 1 | S59: 0.09131344118
B60: 150 | C60: =INDEX('[1]Pt1-AvionicsComponentCosts'!$A:$B,MATCH(B60,'[1]Pt1-AvionicsComponentCosts'!$A:$A,0),2) -> Military Transport / Special Mission | D60: Airbus | E60: 1 | F60: A400M Atlas | G60: Airbus A400M Atlas | H60: A400M Atlas | I60: A400M Atlas | J60: =MATCH("*"&F60&"*",Sheet1!C:C,0) ->  | K60: =MATCH("*"&H60&"*",Sheet1!C:C,0) ->  | L60: =MATCH("*"&I60&"*",Sheet1!B:B,0) ->  | M60: 190 | O60: https://weaponsystems.net/system/673-Airbus+A400M+Atlas | P60: =INDEX('[1]Pt1-AvionicsComponentCosts'!$A:$NE,MATCH(B60,'[1]Pt1-AvionicsComponentCosts'!$A:$A,0),MATCH("END MARKER",'[1]Pt1-AvionicsComponentCosts'!$11:$11,0)) -> 3226806 | Q60: 1 | R60: 1 | S60: 0.1698318947
B61: 155 | C61: =INDEX('[1]Pt1-AvionicsComponentCosts'!$A:$B,MATCH(B61,'[1]Pt1-AvionicsComponentCosts'!$A:$A,0),2) -> Military Transport / Special Mission | D61: Alenia | E61: 1 | F61: Alenia C-27J | G61: Alenia C-27J | H61: C-27J | I61: C-27J | J61: =MATCH("*"&F61&"*",Sheet1!C:C,0) ->  | K61: =MATCH("*"&H61&"*",Sheet1!C:C,0) ->  | L61: =MATCH("*"&I61&"*",Sheet1!B:B,0) ->  | M61: 40 | O61: https://simpleflying.com/how-much-do-military-transport-aircraft-cost/ | P61: =INDEX('[1]Pt1-AvionicsComponentCosts'!$A:$NE,MATCH(B61,'[1]Pt1-AvionicsComponentCosts'!$A:$A,0),MATCH("END MARKER",'[1]Pt1-AvionicsComponentCosts'!$11:$11,0)) -> 3025995 | Q61: 1 | R61: 1 | S61: 0.75649875
B62: 668 | C62: =INDEX('[1]Pt1-AvionicsComponentCosts'!$A:$B,MATCH(B62,'[1]Pt1-AvionicsComponentCosts'!$A:$A,0),2) -> Freighter | D62: ATR | E62: 1 | F62: ATR 42/72 | G62: ATR 72-600F | H62: 72-600F | I62: 72-600F | J62: =MATCH("*"&F62&"*",Sheet1!C:C,0) ->  | K62: =MATCH("*"&H62&"*",Sheet1!C:C,0) ->  | L62: =MATCH("*"&I62&"*",Sheet1!B:B,0) ->  | M62: 26 | O62: https://www.paramountbusinessjets.com/private-jet-charter/aircraft/atr-72-600 | P62: =INDEX('[1]Pt1-AvionicsComponentCosts'!$A:$NE,MATCH(B62,'[1]Pt1-AvionicsComponentCosts'!$A:$A,0),MATCH("END MARKER",'[1]Pt1-AvionicsComponentCosts'!$11:$11,0)) -> 698861 | Q62: 0.5 | R62: 0.5 | S62: 0.1343963462
B63: 667 | C63: =INDEX('[1]Pt1-AvionicsComponentCosts'!$A:$B,MATCH(B63,'[1]Pt1-AvionicsComponentCosts'!$A:$A,0),2) -> Freighter | D63: ATR | E63: 1 | F63: ATR 42/72 | G63: ATR 72/42 Freighter Conversion | H63: 72/42 Freighter Conversion | I63: 72/42 Freighter Conversion | J63: =MATCH("*"&F63&"*",Sheet1!C:C,0) ->  | K63: =MATCH("*"&H63&"*",Sheet1!C:C,0) ->  | L63: =MATCH("*"&I63&"*",Sheet1!B:B,0) ->  | M63: x | P63: =INDEX('[1]Pt1-AvionicsComponentCosts'!$A:$NE,MATCH(B63,'[1]Pt1-AvionicsComponentCosts'!$A:$A,0),MATCH("END MARKER",'[1]Pt1-AvionicsComponentCosts'!$11:$11,0)) -> 698861 | Q63: 0.5 | R63: 0.5
B64: 191 | C64: =INDEX('[1]Pt1-AvionicsComponentCosts'!$A:$B,MATCH(B64,'[1]Pt1-AvionicsComponentCosts'!$A:$A,0),2) -> Regional | D64: ATR | E64: 1 | F64: ATR 42/72 | G64: ATR 42 | H64: 42 | I64: 42 | J64: =MATCH("*"&F64&"*",Sheet1!C:C,0) ->  | K64: =MATCH("*"&H64&"*",Sheet1!C:C,0) ->  | L64: =MATCH("*"&I64&"*",Sheet1!B:B,0) ->  | M64: x | P64: =INDEX('[1]Pt1-AvionicsComponentCosts'!$A:$NE,MATCH(B64,'[1]Pt1-AvionicsComponentCosts'!$A:$A,0),MATCH("END MARKER",'[1]Pt1-AvionicsComponentCosts'!$11:$11,0)) -> 1028924 | Q64: 0.65 | R64: 0.65
B65: 26 | C65: =INDEX('[1]Pt1-AvionicsComponentCosts'!$A:$B,MATCH(B65,'[1]Pt1-AvionicsComponentCosts'!$A:$A,0),2) -> Regional | D65: ATR | E65: 1 | F65: ATR 42/72 | G65: ATR 72 | H65: 72 | I65: 72 | J65: =MATCH("*"&F65&"*",Sheet1!C:C,0) ->  | K65: =MATCH("*"&H65&"*",Sheet1!C:C,0) ->  | L65: =MATCH("*"&I65&"*",Sheet1!B:B,0) ->  | M65: x | P65: =INDEX('[1]Pt1-AvionicsComponentCosts'!$A:$NE,MATCH(B65,'[1]Pt1-AvionicsComponentCosts'!$A:$A,0),MATCH("END MARKER",'[1]Pt1-AvionicsComponentCosts'!$11:$11,0)) -> 1028924 | Q65: 0.65 | R65: 0.65
B66: 647 | C66: =INDEX('[1]Pt1-AvionicsComponentCosts'!$A:$B,MATCH(B66,'[1]Pt1-AvionicsComponentCosts'!$A:$A,0),2) -> Regional | D66: ATR | E66: 1 | F66: ATR 42/72X | G66: ATR 42/72X | H66: 42/72X | I66: 42/72X | J66: =MATCH("*"&F66&"*",Sheet1!C:C,0) ->  | K66: =MATCH("*"&H66&"*",Sheet1!C:C,0) ->  | L66: =MATCH("*"&I66&"*",Sheet1!B:B,0) ->  | M66: x | P66: =INDEX('[1]Pt1-AvionicsComponentCosts'!$A:$NE,MATCH(B66,'[1]Pt1-AvionicsComponentCosts'!$A:$A,0),MATCH("END MARKER",'[1]Pt1-AvionicsComponentCosts'!$11:$11,0)) -> 1028924 | Q66: 0.65 | R66: 0.65
B67: 616 | C67: =INDEX('[1]Pt1-AvionicsComponentCosts'!$A:$B,MATCH(B67,'[1]Pt1-AvionicsComponentCosts'!$A:$A,0),2) -> Regional | D67: AVIC | E67: 1 | F67: AVIC MA700 | G67: AVIC MA700 | H67: =TRIM(SUBSTITUTE(G67,D67,"")) -> MA700 | I67: =TRIM(SUBSTITUTE(SUBSTITUTE(SUBSTITUTE(SUBSTITUTE(SUBSTITUTE(H67,"Family",""),"737 Classic:",""),"737 MAX:",""),"787 Dreamliner:",""),"777:","")) -> MA700 | J67: =MATCH("*"&F67&"*",Sheet1!C:C,0) ->  | K67: =MATCH("*"&H67&"*",Sheet1!C:C,0) ->  | L67: =MATCH("*"&I67&"*",Sheet1!B:B,0) ->  | M67: 25 | O67: https://aerocorner.com/aircraft/xian-ma700/ | P67: =INDEX('[1]Pt1-AvionicsComponentCosts'!$A:$NE,MATCH(B67,'[1]Pt1-AvionicsComponentCosts'!$A:$A,0),MATCH("END MARKER",'[1]Pt1-AvionicsComponentCosts'!$11:$11,0)) -> 919730 | Q67: 0.65 | R67: 0.65 | S67: =IFERROR(P67/(M67*100000)*R67,"") -> 0.2391298
B68: 548 | C68: =INDEX('[1]Pt1-AvionicsComponentCosts'!$A:$B,MATCH(B68,'[1]Pt1-AvionicsComponentCosts'!$A:$A,0),2) -> Turbine GA | D68: Ayres | E68: 1 | F68: Ayres Thrush 510 | G68: Ayres Thrush 510 | H68: Thrush 510 | I68: Thrush 510 | J68: =MATCH("*"&F68&"*",Sheet1!C:C,0) ->  | K68: =MATCH("*"&H68&"*",Sheet1!C:C,0) ->  | L68: =MATCH("*"&I68&"*",Sheet1!B:B,0) ->  | N68: 0.869 | O68: https://www.flyingmag.com/aircraft-turboprops-thrush-510g/ | P68: =INDEX('[1]Pt1-AvionicsComponentCosts'!$A:$NE,MATCH(B68,'[1]Pt1-AvionicsComponentCosts'!$A:$A,0),MATCH("END MARKER",'[1]Pt1-AvionicsComponentCosts'!$11:$11,0)) -> 211406 | Q68: 1 | R68: 1 | S68: =IFERROR(P68/(M68*100000)*R68,"") -> 
B69: 549 | C69: =INDEX('[1]Pt1-AvionicsComponentCosts'!$A:$B,MATCH(B69,'[1]Pt1-AvionicsComponentCosts'!$A:$A,0),2) -> Turbine GA | D69: Ayres | E69: 1 | F69: Ayres Thrush SR2 | G69: Ayres Thrush SR2 | H69: Thrush SR2 | I69: Thrush SR2 | J69: =MATCH("*"&F69&"*",Sheet1!C:C,0) ->  | K69: =MATCH("*"&H69&"*",Sheet1!C:C,0) ->  | L69: =MATCH("*"&I69&"*",Sheet1!B:B,0) ->  | N69: 0.8 | O69: https://janes.migavia.com/usa/thrush/thrush-turbo-thrush-s2r.html | P69: =INDEX('[1]Pt1-AvionicsComponentCosts'!$A:$NE,MATCH(B69,'[1]Pt1-AvionicsComponentCosts'!$A:$A,0),MATCH("END MARKER",'[1]Pt1-AvionicsComponentCosts'!$11:$11,0)) -> 211406 | Q69: 1 | R69: 1 | S69: =IFERROR(P69/(M69*100000)*R69,"") -> 
B70: 167 | C70: =INDEX('[1]Pt1-AvionicsComponentCosts'!$A:$B,MATCH(B70,'[1]Pt1-AvionicsComponentCosts'!$A:$A,0),2) -> Fighters and Jet Trainers | D70: BAE | E70: 1 | F70: Hawk | G70: BAE Systems Hawk | H70: Systems Hawk | I70: Systems Hawk | J70: =MATCH("*"&F70&"*",Sheet1!C:C,0) ->  | K70: =MATCH("*"&H70&"*",Sheet1!C:C,0) ->  | L70: =MATCH("*"&I70&"*",Sheet1!B:B,0) ->  | M70: x | P70: =INDEX('[1]Pt1-AvionicsComponentCosts'!$A:$NE,MATCH(B70,'[1]Pt1-AvionicsComponentCosts'!$A:$A,0),MATCH("END MARKER",'[1]Pt1-AvionicsComponentCosts'!$11:$11,0)) -> 1158497 | Q70: 1 | R70: 1
B71: 643 | C71: =INDEX('[1]Pt1-AvionicsComponentCosts'!$A:$B,MATCH(B71,'[1]Pt1-AvionicsComponentCosts'!$A:$A,0),2) -> Fighters and Jet Trainers | D71: BAES/Leonardo | E71: 1 | F71: BAES/Leonardo Tempest | G71: BAES/Leonardo Tempest | H71: Tempest | I71: Tempest | J71: =MATCH("*"&F71&"*",Sheet1!C:C,0) ->  | K71: =MATCH("*"&H71&"*",Sheet1!C:C,0) ->  | L71: =MATCH("*"&I71&"*",Sheet1!B:B,0) ->  | M71: x | P71: =INDEX('[1]Pt1-AvionicsComponentCosts'!$A:$NE,MATCH(B71,'[1]Pt1-AvionicsComponentCosts'!$A:$A,0),MATCH("END MARKER",'[1]Pt1-AvionicsComponentCosts'!$11:$11,0)) -> 2779270 | Q71: 1 | R71: 1
B72: 901 | C72: =INDEX('[1]Pt1-AvionicsComponentCosts'!$A:$B,MATCH(B72,'[1]Pt1-AvionicsComponentCosts'!$A:$A,0),2) -> UAV | D72: Bayraktar | E72: 1 | F72: Bayraktar TB-2 | G72: Bayraktar TB-2 | H72: TB-2 | I72: TB-2 | J72: =MATCH("*"&F72&"*",Sheet1!C:C,0) ->  | K72: =MATCH("*"&H72&"*",Sheet1!C:C,0) ->  | L72: =MATCH("*"&I72&"*",Sheet1!B:B,0) ->  | M72: 2 | O72: https://www.defensenews.com/unmanned/2023/06/14/kuwait-to-buy-turkish-made-tb2-drones-in-367-million-deal/ | P72: =INDEX('[1]Pt1-AvionicsComponentCosts'!$A:$NE,MATCH(B72,'[1]Pt1-AvionicsComponentCosts'!$A:$A,0),MATCH("END MARKER",'[1]Pt1-AvionicsComponentCosts'!$11:$11,0)) -> 914017 | Q72: 1 | R72: 1 | S72: 4.570085
B73: 80 | C73: =INDEX('[1]Pt1-AvionicsComponentCosts'!$A:$B,MATCH(B73,'[1]Pt1-AvionicsComponentCosts'!$A:$A,0),2) -> Turbine GA | D73: Beechcraft | E73: 1 | F73: Beechcraft King Air | G73: Beechcraft King Air | H73: King Air | I73: King Air | J73: =MATCH("*"&F73&"*",Sheet1!C:C,0) ->  | K73: =MATCH("*"&H73&"*",Sheet1!C:C,0) ->  | L73: =MATCH("*"&I73&"*",Sheet1!B:B,0) ->  | M73: 8 | N73: 350i | O73: https://www.sherpareport.com/aircraft/costs-king-air-350.html | P73: =INDEX('[1]Pt1-AvionicsComponentCosts'!$A:$NE,MATCH(B73,'[1]Pt1-AvionicsComponentCosts'!$A:$A,0),MATCH("END MARKER",'[1]Pt1-AvionicsComponentCosts'!$11:$11,0)) -> 217209 | Q73: 1 | R73: 1 | S73: 0.27151125
B74: 31 | C74: =INDEX('[1]Pt1-AvionicsComponentCosts'!$A:$B,MATCH(B74,'[1]Pt1-AvionicsComponentCosts'!$A:$A,0),2) -> Turbine GA | D74: Beechcraft | E74: 1 | F74: Other light aircraft | G74: Beechcraft Premier I | H74: Premier I | I74: Premier I | J74: =MATCH("*"&F74&"*",Sheet1!C:C,0) ->  | K74: =MATCH("*"&H74&"*",Sheet1!C:C,0) ->  | L74: =MATCH("*"&I74&"*",Sheet1!B:B,0) ->  | N74: used | O74: https://www.libertyjet.com/private_jets_for_sale/Beechcraft%20Corp./Premier%20I | P74: =INDEX('[1]Pt1-AvionicsComponentCosts'!$A:$NE,MATCH(B74,'[1]Pt1-AvionicsComponentCosts'!$A:$A,0),MATCH("END MARKER",'[1]Pt1-AvionicsComponentCosts'!$11:$11,0)) -> 228066 | Q74: 1 | R74: 1
B75: 169 | C75: =INDEX('[1]Pt1-AvionicsComponentCosts'!$A:$B,MATCH(B75,'[1]Pt1-AvionicsComponentCosts'!$A:$A,0),2) -> Turboprop Trainers / Light Attack | D75: Beechcraft | E75: 1 | F75: Beechcraft T-6 Texan II | G75: Beechcraft T-6 Texan II | H75: T-6 Texan II | I75: T-6 Texan II | J75: =MATCH("*"&F75&"*",Sheet1!C:C,0) ->  | K75: =MATCH("*"&H75&"*",Sheet1!C:C,0) ->  | L75: =MATCH("*"&I75&"*",Sheet1!B:B,0) ->  | M75: 4.272 | O75: https://www.af.mil/About-Us/Fact-Sheets/Display/Article/104548/t-6a-texan-ii/ | P75: =INDEX('[1]Pt1-AvionicsComponentCosts'!$A:$NE,MATCH(B75,'[1]Pt1-AvionicsComponentCosts'!$A:$A,0),MATCH("END MARKER",'[1]Pt1-AvionicsComponentCosts'!$11:$11,0)) -> 468525 | Q75: 1 | R75: 1 | S75: 1.096734551
B76: 92 | C76: =INDEX('[1]Pt1-AvionicsComponentCosts'!$A:$B,MATCH(B76,'[1]Pt1-AvionicsComponentCosts'!$A:$A,0),2) -> Helicopter | D76: Bell | E76: 1 | F76: AH-1 | G76: Bell AH-1Z Viper | H76: AH-1Z Viper | I76: AH-1Z Viper | J76: =MATCH("*"&F76&"*",Sheet1!C:C,0) ->  | K76: =MATCH("*"&H76&"*",Sheet1!C:C,0) ->  | L76: =MATCH("*"&I76&"*",Sheet1!B:B,0) ->  | M76: 31 | O76: https://warriorlodge.com/pages/bell-ah-1z-viper | P76: =INDEX('[1]Pt1-AvionicsComponentCosts'!$A:$NE,MATCH(B76,'[1]Pt1-AvionicsComponentCosts'!$A:$A,0),MATCH("END MARKER",'[1]Pt1-AvionicsComponentCosts'!$11:$11,0)) -> 1457955 | Q76: 0.99 | R76: 0.99 | S76: 0.4656049839
B77: 132 | C77: =INDEX('[1]Pt1-AvionicsComponentCosts'!$A:$B,MATCH(B77,'[1]Pt1-AvionicsComponentCosts'!$A:$A,0),2) -> Helicopter | D77: Bell | E77: 1 | F77: Future Attack Reconnaissance Aircraft | G77: Bell V-280 Valor | H77: V-280 Valor | I77: V-280 Valor | J77: =MATCH("*"&F77&"*",Sheet1!C:C,0) ->  | K77: =MATCH("*"&H77&"*",Sheet1!C:C,0) ->  | L77: =MATCH("*"&I77&"*",Sheet1!B:B,0) ->  | M77: 43 | O77: https://simpleflying.com/bell-v280-valor-complete-guide/ | P77: =INDEX('[1]Pt1-AvionicsComponentCosts'!$A:$NE,MATCH(B77,'[1]Pt1-AvionicsComponentCosts'!$A:$A,0),MATCH("END MARKER",'[1]Pt1-AvionicsComponentCosts'!$11:$11,0)) -> 1493963 | Q77: 0.99 | R77: 0.99 | S77: 0.3439589233
B78: 646 | C78: =INDEX('[1]Pt1-AvionicsComponentCosts'!$A:$B,MATCH(B78,'[1]Pt1-AvionicsComponentCosts'!$A:$A,0),2) -> Helicopter | D78: Bell | E78: 1 | F78: 412X | G78: Bell 412X | H78: 412X | I78: 412X | J78: =MATCH("*"&F78&"*",Sheet1!C:C,0) ->  | K78: =MATCH("*"&H78&"*",Sheet1!C:C,0) ->  | L78: =MATCH("*"&I78&"*",Sheet1!B:B,0) ->  | M78: x | P78: =INDEX('[1]Pt1-AvionicsComponentCosts'!$A:$NE,MATCH(B78,'[1]Pt1-AvionicsComponentCosts'!$A:$A,0),MATCH("END MARKER",'[1]Pt1-AvionicsComponentCosts'!$11:$11,0)) -> 434124 | Q78: 0.99 | R78: 0.99
B79: 90 | C79: =INDEX('[1]Pt1-AvionicsComponentCosts'!$A:$B,MATCH(B79,'[1]Pt1-AvionicsComponentCosts'!$A:$A,0),2) -> Helicopter | D79: Bell | E79: 1 | F79: Bell 407 | G79: Bell 407 | H79: 407 | I79: 407 | J79: =MATCH("*"&F79&"*",Sheet1!C:C,0) ->  | K79: =MATCH("*"&H79&"*",Sheet1!C:C,0) ->  | L79: =MATCH("*"&I79&"*",Sheet1!B:B,0) ->  | M79: 3.75 | O79: https://www.businessairnews.com/hb_aircraftpage.html?recnum=B407 | P79: =INDEX('[1]Pt1-AvionicsComponentCosts'!$A:$NE,MATCH(B79,'[1]Pt1-AvionicsComponentCosts'!$A:$A,0),MATCH("END MARKER",'[1]Pt1-AvionicsComponentCosts'!$11:$11,0)) -> 267940 | Q79: 0.99 | R79: 0.99 | S79: 0.7073616
B80: 91 | C80: =INDEX('[1]Pt1-AvionicsComponentCosts'!$A:$B,MATCH(B80,'[1]Pt1-AvionicsComponentCosts'!$A:$A,0),2) -> Helicopter | D80: Bell | E80: 1 | F80: Bell 429 GlobalRanger | G80: Bell 429 GlobalRanger | H80: 429 GlobalRanger | I80: 429 GlobalRanger | J80: =MATCH("*"&F80&"*",Sheet1!C:C,0) ->  | K80: =MATCH("*"&H80&"*",Sheet1!C:C,0) ->  | L80: =MATCH("*"&I80&"*",Sheet1!B:B,0) ->  | M80: 7.5 | O80: https://www.fairlifts.com/helicopters/guide-to-2023-helicopter-prices/ | P80: =INDEX('[1]Pt1-AvionicsComponentCosts'!$A:$NE,MATCH(B80,'[1]Pt1-AvionicsComponentCosts'!$A:$A,0),MATCH("END MARKER",'[1]Pt1-AvionicsComponentCosts'!$11:$11,0)) -> 434124 | Q80: 0.99 | R80: 0.99 | S80: 0.57304368
B81: 89 | C81: =INDEX('[1]Pt1-AvionicsComponentCosts'!$A:$B,MATCH(B81,'[1]Pt1-AvionicsComponentCosts'!$A:$A,0),2) -> Helicopter | D81: Bell | E81: 1 | F81: Bell 505 Jet Ranger X | G81: Bell 505 Jet Ranger X | H81: 505 Jet Ranger X | I81: 505 Jet Ranger X | J81: =MATCH("*"&F81&"*",Sheet1!C:C,0) ->  | K81: =MATCH("*"&H81&"*",Sheet1!C:C,0) ->  | L81: =MATCH("*"&I81&"*",Sheet1!B:B,0) ->  | M81: 1.3 | O81: https://www.fairlifts.com/helicopters/guide-to-2023-helicopter-prices/ | P81: =INDEX('[1]Pt1-AvionicsComponentCosts'!$A:$NE,MATCH(B81,'[1]Pt1-AvionicsComponentCosts'!$A:$A,0),MATCH("END MARKER",'[1]Pt1-AvionicsComponentCosts'!$11:$11,0)) -> 462138 | Q81: 0.99 | R81: 0.99 | S81: 3.519358615
B82: 93 | C82: =INDEX('[1]Pt1-AvionicsComponentCosts'!$A:$B,MATCH(B82,'[1]Pt1-AvionicsComponentCosts'!$A:$A,0),2) -> Helicopter | D82: Bell | E82: 1 | F82: Bell 525 Relentless | G82: Bell 525 Relentless | H82: 525 Relentless | I82: 525 Relentless | J82: =MATCH("*"&F82&"*",Sheet1!C:C,0) ->  | K82: =MATCH("*"&H82&"*",Sheet1!C:C,0) ->  | L82: =MATCH("*"&I82&"*",Sheet1!B:B,0) ->  | M82: 17 | O82: https://www.businessairnews.com/hb_aircraftpage.html?recnum=B525 | P82: =INDEX('[1]Pt1-AvionicsComponentCosts'!$A:$NE,MATCH(B82,'[1]Pt1-AvionicsComponentCosts'!$A:$A,0),MATCH("END MARKER",'[1]Pt1-AvionicsComponentCosts'!$11:$11,0)) -> 462138 | Q82: 0.99 | R82: 0.99 | S82: 0.2691274235
B83: 182 | C83: =INDEX('[1]Pt1-AvionicsComponentCosts'!$A:$B,MATCH(B83,'[1]Pt1-AvionicsComponentCosts'!$A:$A,0),2) -> Helicopter | D83: Bell | E83: 1 | F83: OH-58 | G83: Bell OH-58D Kiowa | H83: OH-58D Kiowa | I83: OH-58D Kiowa | J83: =MATCH("*"&F83&"*",Sheet1!C:C,0) ->  | K83: =MATCH("*"&H83&"*",Sheet1!C:C,0) ->  | L83: =MATCH("*"&I83&"*",Sheet1!B:B,0) ->  | P83: =INDEX('[1]Pt1-AvionicsComponentCosts'!$A:$NE,MATCH(B83,'[1]Pt1-AvionicsComponentCosts'!$A:$A,0),MATCH("END MARKER",'[1]Pt1-AvionicsComponentCosts'!$11:$11,0)) -> 1433447 | Q83: 0.99 | R83: 0.99
B84: 94 | C84: =INDEX('[1]Pt1-AvionicsComponentCosts'!$A:$B,MATCH(B84,'[1]Pt1-AvionicsComponentCosts'!$A:$A,0),2) -> Helicopter | D84: Bell | E84: 1 | F84: UH-1 | G84: Bell UH-1 Iroquois/412 | H84: UH-1 Iroquois/412 | I84: UH-1 Iroquois/412 | J84: =MATCH("*"&F84&"*",Sheet1!C:C,0) ->  | K84: =MATCH("*"&H84&"*",Sheet1!C:C,0) ->  | L84: =MATCH("*"&I84&"*",Sheet1!B:B,0) ->  | P84: =INDEX('[1]Pt1-AvionicsComponentCosts'!$A:$NE,MATCH(B84,'[1]Pt1-AvionicsComponentCosts'!$A:$A,0),MATCH("END MARKER",'[1]Pt1-AvionicsComponentCosts'!$11:$11,0)) -> 481057 | Q84: 0.99 | R84: 0.99
B85: 95 | C85: =INDEX('[1]Pt1-AvionicsComponentCosts'!$A:$B,MATCH(B85,'[1]Pt1-AvionicsComponentCosts'!$A:$A,0),2) -> Helicopter | D85: Bell | E85: 1 | F85: UH-1 | G85: Bell UH-1Y Venom | H85: UH-1Y Venom | I85: UH-1Y Venom | J85: =MATCH("*"&F85&"*",Sheet1!C:C,0) ->  | K85: =MATCH("*"&H85&"*",Sheet1!C:C,0) ->  | L85: =MATCH("*"&I85&"*",Sheet1!B:B,0) ->  | P85: =INDEX('[1]Pt1-AvionicsComponentCosts'!$A:$NE,MATCH(B85,'[1]Pt1-AvionicsComponentCosts'!$A:$A,0),MATCH("END MARKER",'[1]Pt1-AvionicsComponentCosts'!$11:$11,0)) -> 1452366 | Q85: 0.99 | R85: 0.99
B86: 97 | C86: =INDEX('[1]Pt1-AvionicsComponentCosts'!$A:$B,MATCH(B86,'[1]Pt1-AvionicsComponentCosts'!$A:$A,0),2) -> Helicopter | D86: Bell Boeing | E86: 1 | F86: V-22 | G86: Bell Boeing V-22 Osprey | H86: V-22 Osprey | I86: V-22 Osprey | J86: =MATCH("*"&F86&"*",Sheet1!C:C,0) ->  | K86: =MATCH("*"&H86&"*",Sheet1!C:C,0) ->  | L86: =MATCH("*"&I86&"*",Sheet1!B:B,0) ->  | P86: =INDEX('[1]Pt1-AvionicsComponentCosts'!$A:$NE,MATCH(B86,'[1]Pt1-AvionicsComponentCosts'!$A:$A,0),MATCH("END MARKER",'[1]Pt1-AvionicsComponentCosts'!$11:$11,0)) -> 1493963 | Q86: 0.99 | R86: 0.99
B87: 529 | C87: =INDEX('[1]Pt1-AvionicsComponentCosts'!$A:$B,MATCH(B87,'[1]Pt1-AvionicsComponentCosts'!$A:$A,0),2) -> Business Jet | D87: Boeing | E87: 1 | F87: BBJ | G87: Boeing BBJ MAX | H87: BBJ MAX | I87: BBJ MAX | J87: =MATCH("*"&F87&"*",Sheet1!C:C,0) ->  | K87: =MATCH("*"&H87&"*",Sheet1!C:C,0) ->  | L87: =MATCH("*"&I87&"*",Sheet1!B:B,0) ->  | M87: =AVERAGE(101.5,110.5,118.5) -> 110.1666667 | P87: =INDEX('[1]Pt1-AvionicsComponentCosts'!$A:$NE,MATCH(B87,'[1]Pt1-AvionicsComponentCosts'!$A:$A,0),MATCH("END MARKER",'[1]Pt1-AvionicsComponentCosts'!$11:$11,0)) -> 1157247 | Q87: 0.75 | R87: 0.75 | S87: 0.0787838351
B88: 297 | C88: =INDEX('[1]Pt1-AvionicsComponentCosts'!$A:$B,MATCH(B88,'[1]Pt1-AvionicsComponentCosts'!$A:$A,0),2) -> Business Jet | D88: Boeing | E88: 1 | F88: BBJ | G88: Boeing BBJ/BBJ2/BBJ3 | H88: BBJ/BBJ2/BBJ3 | I88: BBJ/BBJ2/BBJ3 | J88: =MATCH("*"&F88&"*",Sheet1!C:C,0) ->  | K88: =MATCH("*"&H88&"*",Sheet1!C:C,0) ->  | L88: =MATCH("*"&I88&"*",Sheet1!B:B,0) ->  | M88: 71 | O88: https://www.bjtonline.com/business-jet-news/boeings-bbj-3 | P88: =INDEX('[1]Pt1-AvionicsComponentCosts'!$A:$NE,MATCH(B88,'[1]Pt1-AvionicsComponentCosts'!$A:$A,0),MATCH("END MARKER",'[1]Pt1-AvionicsComponentCosts'!$11:$11,0)) -> 1157247 | Q88: 0.75 | R88: 0.75 | S88: 0.1222444014
B89: 594 | C89: =INDEX('[1]Pt1-AvionicsComponentCosts'!$A:$B,MATCH(B89,'[1]Pt1-AvionicsComponentCosts'!$A:$A,0),2) -> Business Jet | D89: Boeing | E89: 1 | F89: Boeing 747 | G89: Boeing 747-8 VIP | H89: 747-8 VIP | I89: 747-8 VIP | J89: =MATCH("*"&F89&"*",Sheet1!C:C,0) ->  | K89: =MATCH("*"&H89&"*",Sheet1!C:C,0) ->  | L89: =MATCH("*"&I89&"*",Sheet1!B:B,0) ->  | M89: 418.4 | O89: https://finance.yahoo.com/news/5-priciest-private-jets-2023-185110930.html | P89: =INDEX('[1]Pt1-AvionicsComponentCosts'!$A:$NE,MATCH(B89,'[1]Pt1-AvionicsComponentCosts'!$A:$A,0),MATCH("END MARKER",'[1]Pt1-AvionicsComponentCosts'!$11:$11,0)) -> 2376181 | Q89: 0.75 | R89: 0.75 | S89: 0.04259406668
B90: 298 | C90: =INDEX('[1]Pt1-AvionicsComponentCosts'!$A:$B,MATCH(B90,'[1]Pt1-AvionicsComponentCosts'!$A:$A,0),2) -> Business Jet | D90: Boeing | E90: 1 | F90: Wide body VIP | G90: Boeing BBJ 777 | H90: BBJ 777 | I90: BBJ 777 | J90: =MATCH("*"&F90&"*",Sheet1!C:C,0) ->  | K90: =MATCH("*"&H90&"*",Sheet1!C:C,0) ->  | L90: =MATCH("*"&I90&"*",Sheet1!B:B,0) ->  | M90: 400 | O90: https://www.lunajets.com/en/news/new-boeing-business-jet-777x-can-fly-across-the-globe-non-stop | P90: =INDEX('[1]Pt1-AvionicsComponentCosts'!$A:$NE,MATCH(B90,'[1]Pt1-AvionicsComponentCosts'!$A:$A,0),MATCH("END MARKER",'[1]Pt1-AvionicsComponentCosts'!$11:$11,0)) -> 2329960 | Q90: 0.75 | R90: 0.75 | S90: 0.04368675
B91: 553 | C91: =INDEX('[1]Pt1-AvionicsComponentCosts'!$A:$B,MATCH(B91,'[1]Pt1-AvionicsComponentCosts'!$A:$A,0),2) -> Business Jet | D91: Boeing | E91: 1 | F91: Wide body VIP | G91: Boeing BBJ 777X | H91: BBJ 777X | I91: BBJ 777X | J91: =MATCH("*"&F91&"*",Sheet1!C:C,0) ->  | K91: =MATCH("*"&H91&"*",Sheet1!C:C,0) ->  | L91: =MATCH("*"&I91&"*",Sheet1!B:B,0) ->  | M91: 400 | O91: https://www.lunajets.com/en/news/new-boeing-business-jet-777x-can-fly-across-the-globe-non-stop | P91: =INDEX('[1]Pt1-AvionicsComponentCosts'!$A:$NE,MATCH(B91,'[1]Pt1-AvionicsComponentCosts'!$A:$A,0),MATCH("END MARKER",'[1]Pt1-AvionicsComponentCosts'!$11:$11,0)) -> 1766100 | Q91: 0.75 | R91: 0.75 | S91: 0.033114375
B92: 554 | C92: =INDEX('[1]Pt1-AvionicsComponentCosts'!$A:$B,MATCH(B92,'[1]Pt1-AvionicsComponentCosts'!$A:$A,0),2) -> Business Jet | D92: Boeing | E92: 1 | F92: Wide body VIP | G92: Boeing BBJ 787 | H92: BBJ 787 | I92: BBJ 787 | J92: =MATCH("*"&F92&"*",Sheet1!C:C,0) ->  | K92: =MATCH("*"&H92&"*",Sheet1!C:C,0) ->  | L92: =MATCH("*"&I92&"*",Sheet1!B:B,0) ->  | M92: 200 | O92: https://finance.yahoo.com/news/5-priciest-private-jets-2023-185110930.html | P92: =INDEX('[1]Pt1-AvionicsComponentCosts'!$A:$NE,MATCH(B92,'[1]Pt1-AvionicsComponentCosts'!$A:$A,0),MATCH("END MARKER",'[1]Pt1-AvionicsComponentCosts'!$11:$11,0)) -> 2358982 | Q92: 0.75 | R92: 0.75 | S92: 0.088461825
B93: 179 | C93: =INDEX('[1]Pt1-AvionicsComponentCosts'!$A:$B,MATCH(B93,'[1]Pt1-AvionicsComponentCosts'!$A:$A,0),2) -> Fighters and Jet Trainers | D93: Boeing | E93: 1 | F93: Boeing/Saab T-X program | G93: Boeing T-7 | H93: T-7 | I93: T-7 | J93: =MATCH("*"&F93&"*",Sheet1!C:C,0) ->  | K93: =MATCH("*"&H93&"*",Sheet1!C:C,0) ->  | L93: =MATCH("*"&I93&"*",Sheet1!B:B,0) ->  | P93: =INDEX('[1]Pt1-AvionicsComponentCosts'!$A:$NE,MATCH(B93,'[1]Pt1-AvionicsComponentCosts'!$A:$A,0),MATCH("END MARKER",'[1]Pt1-AvionicsComponentCosts'!$11:$11,0)) -> 2685632 | Q93: 1 | R93: 1
B94: 637 | C94: =INDEX('[1]Pt1-AvionicsComponentCosts'!$A:$B,MATCH(B94,'[1]Pt1-AvionicsComponentCosts'!$A:$A,0),2) -> Fighters and Jet Trainers | D94: Boeing | E94: 1 | F94: F-18 | G94: F-18 A/D | H94: F-18 A/D | I94: F-18 A/D | J94: =MATCH("*"&F94&"*",Sheet1!C:C,0) ->  | K94: =MATCH("*"&H94&"*",Sheet1!C:C,0) ->  | L94: =MATCH("*"&I94&"*",Sheet1!B:B,0) ->  | P94: =INDEX('[1]Pt1-AvionicsComponentCosts'!$A:$NE,MATCH(B94,'[1]Pt1-AvionicsComponentCosts'!$A:$A,0),MATCH("END MARKER",'[1]Pt1-AvionicsComponentCosts'!$11:$11,0)) -> 2728198 | Q94: 1 | R94: 1
B95: 140 | C95: =INDEX('[1]Pt1-AvionicsComponentCosts'!$A:$B,MATCH(B95,'[1]Pt1-AvionicsComponentCosts'!$A:$A,0),2) -> Fighters and Jet Trainers | D95: Boeing | E95: 1 | F95: F-18 | G95: F-18 Super Hornet | H95: F-18 Super Hornet | I95: F-18 Super Hornet | J95: =MATCH("*"&F95&"*",Sheet1!C:C,0) ->  | K95: =MATCH("*"&H95&"*",Sheet1!C:C,0) ->  | L95: =MATCH("*"&I95&"*",Sheet1!B:B,0) ->  | P95: =INDEX('[1]Pt1-AvionicsComponentCosts'!$A:$NE,MATCH(B95,'[1]Pt1-AvionicsComponentCosts'!$A:$A,0),MATCH("END MARKER",'[1]Pt1-AvionicsComponentCosts'!$11:$11,0)) -> 2728198 | Q95: 1 | R95: 1
B96: 592 | C96: =INDEX('[1]Pt1-AvionicsComponentCosts'!$A:$B,MATCH(B96,'[1]Pt1-AvionicsComponentCosts'!$A:$A,0),2) -> Freighter | D96: Boeing | E96: 1 | F96: Boeing 747 | G96: Boeing 747-400CF | H96: 747-400CF | I96: 747-400CF | J96: =MATCH("*"&F96&"*",Sheet1!C:C,0) ->  | K96: =MATCH("*"&H96&"*",Sheet1!C:C,0) ->  | L96: =MATCH("*"&I96&"*",Sheet1!B:B,0) ->  | P96: =INDEX('[1]Pt1-AvionicsComponentCosts'!$A:$NE,MATCH(B96,'[1]Pt1-AvionicsComponentCosts'!$A:$A,0),MATCH("END MARKER",'[1]Pt1-AvionicsComponentCosts'!$11:$11,0)) -> 1813123 | Q96: 0.5 | R96: 0.5
B97: 629 | C97: =INDEX('[1]Pt1-AvionicsComponentCosts'!$A:$B,MATCH(B97,'[1]Pt1-AvionicsComponentCosts'!$A:$A,0),2) -> Freighter | D97: Boeing | E97: 1 | F97: Boeing 747 | G97: Boeing 747-400F/ERF | H97: 747-400F/ERF | I97: 747-400F/ERF | J97: =MATCH("*"&F97&"*",Sheet1!C:C,0) ->  | K97: =MATCH("*"&H97&"*",Sheet1!C:C,0) ->  | L97: =MATCH("*"&I97&"*",Sheet1!B:B,0) ->  | P97: =INDEX('[1]Pt1-AvionicsComponentCosts'!$A:$NE,MATCH(B97,'[1]Pt1-AvionicsComponentCosts'!$A:$A,0),MATCH("END MARKER",'[1]Pt1-AvionicsComponentCosts'!$11:$11,0)) -> 1813123 | Q97: 0.5 | R97: 0.5
B98: 567 | C98: =INDEX('[1]Pt1-AvionicsComponentCosts'!$A:$B,MATCH(B98,'[1]Pt1-AvionicsComponentCosts'!$A:$A,0),2) -> Freighter | D98: Boeing | E98: 1 | F98: Boeing 747 | G98: Boeing 747-8F | H98: 747-8F | I98: 747-8F | J98: =MATCH("*"&F98&"*",Sheet1!C:C,0) ->  | K98: =MATCH("*"&H98&"*",Sheet1!C:C,0) ->  | L98: =MATCH("*"&I98&"*",Sheet1!B:B,0) ->  | M98: 419.2 | O98: https://www.statista.com/statistics/273941/prices-of-boeing-aircraft-by-type/ | P98: =INDEX('[1]Pt1-AvionicsComponentCosts'!$A:$NE,MATCH(B98,'[1]Pt1-AvionicsComponentCosts'!$A:$A,0),MATCH("END MARKER",'[1]Pt1-AvionicsComponentCosts'!$11:$11,0)) -> 2375378 | Q98: 0.5 | R98: 0.5 | S98: 0.02833227576
B99: 664 | C99: =INDEX('[1]Pt1-AvionicsComponentCosts'!$A:$B,MATCH(B99,'[1]Pt1-AvionicsComponentCosts'!$A:$A,0),2) -> Freighter | D99: Boeing | E99: 1 | F99: Boeing 777 | G99: Boeing 777-300 ERSF | H99: 777-300 ERSF | I99: 777-300 ERSF | J99: =MATCH("*"&F99&"*",Sheet1!C:C,0) ->  | K99: =MATCH("*"&H99&"*",Sheet1!C:C,0) ->  | L99: =MATCH("*"&I99&"*",Sheet1!B:B,0) ->  | M99: 352.3 | O99: https://www.statista.com/statistics/273941/prices-of-boeing-aircraft-by-type/ | P99: =INDEX('[1]Pt1-AvionicsComponentCosts'!$A:$NE,MATCH(B99,'[1]Pt1-AvionicsComponentCosts'!$A:$A,0),MATCH("END MARKER",'[1]Pt1-AvionicsComponentCosts'!$11:$11,0)) -> 2378140 | Q99: 0.5 | R99: 0.5 | S99: 0.03375163213
B100: 568 | C100: =INDEX('[1]Pt1-AvionicsComponentCosts'!$A:$B,MATCH(B100,'[1]Pt1-AvionicsComponentCosts'!$A:$A,0),2) -> Freighter | D100: Boeing | E100: 1 | F100: Boeing 777 | G100: Boeing 777F | H100: 777F | I100: 777F | J100: =MATCH("*"&F100&"*",Sheet1!C:C,0) ->  | K100: =MATCH("*"&H100&"*",Sheet1!C:C,0) ->  | L100: =MATCH("*"&I100&"*",Sheet1!B:B,0) -> 33 | M100: =INDEX(Sheet1!$A:$K,MATCH($I100,Sheet1!$B:$B,0),MATCH(M$1,Sheet1!$A$1:$K$1,0)) -> 352.3 | O100: =INDEX(Sheet1!$A:$K,MATCH($I100,Sheet1!$B:$B,0),MATCH(O$1,Sheet1!$A$1:$K$1,0)) -> http://www.axonaviation.com/commercial-aircraft/aircraft-data/aircraft-pricing | P100: =INDEX('[1]Pt1-AvionicsComponentCosts'!$A:$NE,MATCH(B100,'[1]Pt1-AvionicsComponentCosts'!$A:$A,0),MATCH("END MARKER",'[1]Pt1-AvionicsComponentCosts'!$11:$11,0)) -> 2378140 | Q100: 0.5 | R100: 0.5 | S100: 0.03375163213
B101: 659 | C101: =INDEX('[1]Pt1-AvionicsComponentCosts'!$A:$B,MATCH(B101,'[1]Pt1-AvionicsComponentCosts'!$A:$A,0),2) -> Freighter | D101: Boeing | E101: 1 | F101: Boeing 777X | G101: Boeing 777XF: 777-9 | H101: 777XF: 777-9 | I101: 777XF: 777-9 | J101: =MATCH("*"&F101&"*",Sheet1!C:C,0) ->  | K101: =MATCH("*"&H101&"*",Sheet1!C:C,0) ->  | L101: =MATCH("*"&I101&"*",Sheet1!B:B,0) ->  | M101: 442.2 | O101: https://www.statista.com/statistics/273941/prices-of-boeing-aircraft-by-type/ | P101: =INDEX('[1]Pt1-AvionicsComponentCosts'!$A:$NE,MATCH(B101,'[1]Pt1-AvionicsComponentCosts'!$A:$A,0),MATCH("END MARKER",'[1]Pt1-AvionicsComponentCosts'!$11:$11,0)) -> 1768791 | Q101: 0.5 | R101: 0.5 | S101: 0.01999989824
B102: 570 | C102: =INDEX('[1]Pt1-AvionicsComponentCosts'!$A:$B,MATCH(B102,'[1]Pt1-AvionicsComponentCosts'!$A:$A,0),2) -> Freighter | D102: Boeing | E102: 1 | F102: Boeing 767 | G102: Boeing 767-300BCF | H102: 767-300BCF | I102: 767-300BCF | J102: =MATCH("*"&F102&"*",Sheet1!C:C,0) ->  | K102: =MATCH("*"&H102&"*",Sheet1!C:C,0) ->  | L102: =MATCH("*"&I102&"*",Sheet1!B:B,0) ->  | P102: =INDEX('[1]Pt1-AvionicsComponentCosts'!$A:$NE,MATCH(B102,'[1]Pt1-AvionicsComponentCosts'!$A:$A,0),MATCH("END MARKER",'[1]Pt1-AvionicsComponentCosts'!$11:$11,0)) -> 1740030 | Q102: 0.5 | R102: 0.5
B103: 569 | C103: =INDEX('[1]Pt1-AvionicsComponentCosts'!$A:$B,MATCH(B103,'[1]Pt1-AvionicsComponentCosts'!$A:$A,0),2) -> Freighter | D103: Boeing | E103: 1 | F103: Boeing 767 | G103: Boeing 767-300F | H103: 767-300F | I103: 767-300F | J103: =MATCH("*"&F103&"*",Sheet1!C:C,0) ->  | K103: =MATCH("*"&H103&"*",Sheet1!C:C,0) ->  | L103: =MATCH("*"&I103&"*",Sheet1!B:B,0) ->  | M103: 220.3 | O103: https://www.statista.com/statistics/273941/prices-of-boeing-aircraft-by-type/ | P103: =INDEX('[1]Pt1-AvionicsComponentCosts'!$A:$NE,MATCH(B103,'[1]Pt1-AvionicsComponentCosts'!$A:$A,0),MATCH("END MARKER",'[1]Pt1-AvionicsComponentCosts'!$11:$11,0)) -> 1740030 | Q103: 0.5 | R103: 0.5 | S103: 0.03949228325
B104: 573 | C104: =INDEX('[1]Pt1-AvionicsComponentCosts'!$A:$B,MATCH(B104,'[1]Pt1-AvionicsComponentCosts'!$A:$A,0),2) -> Freighter | D104: Boeing | E104: 1 | F104: Boeing 737 | G104: Boeing 737-300SF | H104: 737-300SF | I104: 737-300SF | J104: =MATCH("*"&F104&"*",Sheet1!C:C,0) ->  | K104: =MATCH("*"&H104&"*",Sheet1!C:C,0) ->  | L104: =MATCH("*"&I104&"*",Sheet1!B:B,0) ->  | P104: =INDEX('[1]Pt1-AvionicsComponentCosts'!$A:$NE,MATCH(B104,'[1]Pt1-AvionicsComponentCosts'!$A:$A,0),MATCH("END MARKER",'[1]Pt1-AvionicsComponentCosts'!$11:$11,0)) -> 1164718 | Q104: 0.5 | R104: 0.5
B105: 572 | C105: =INDEX('[1]Pt1-AvionicsComponentCosts'!$A:$B,MATCH(B105,'[1]Pt1-AvionicsComponentCosts'!$A:$A,0),2) -> Freighter | D105: Boeing | E105: 1 | F105: Boeing 737 | G105: Boeing 737-400SF | H105: 737-400SF | I105: 737-400SF | J105: =MATCH("*"&F105&"*",Sheet1!C:C,0) ->  | K105: =MATCH("*"&H105&"*",Sheet1!C:C,0) ->  | L105: =MATCH("*"&I105&"*",Sheet1!B:B,0) ->  | P105: =INDEX('[1]Pt1-AvionicsComponentCosts'!$A:$NE,MATCH(B105,'[1]Pt1-AvionicsComponentCosts'!$A:$A,0),MATCH("END MARKER",'[1]Pt1-AvionicsComponentCosts'!$11:$11,0)) -> 1164718 | Q105: 0.5 | R105: 0.5
B106: 591 | C106: =INDEX('[1]Pt1-AvionicsComponentCosts'!$A:$B,MATCH(B106,'[1]Pt1-AvionicsComponentCosts'!$A:$A,0),2) -> Freighter | D106: Boeing | E106: 1 | F106: Boeing 737 | G106: Boeing 737-700C | H106: 737-700C | I106: 737-700C | J106: =MATCH("*"&F106&"*",Sheet1!C:C,0) ->  | K106: =MATCH("*"&H106&"*",Sheet1!C:C,0) ->  | L106: =MATCH("*"&I106&"*",Sheet1!B:B,0) ->  | M106: 89.1 | O106: https://www.statista.com/statistics/273941/prices-of-boeing-aircraft-by-type/ | P106: =INDEX('[1]Pt1-AvionicsComponentCosts'!$A:$NE,MATCH(B106,'[1]Pt1-AvionicsComponentCosts'!$A:$A,0),MATCH("END MARKER",'[1]Pt1-AvionicsComponentCosts'!$11:$11,0)) -> 1164718 | Q106: 0.5 | R106: 0.5 | S106: 0.06536015713
B107: 571 | C107: =INDEX('[1]Pt1-AvionicsComponentCosts'!$A:$B,MATCH(B107,'[1]Pt1-AvionicsComponentCosts'!$A:$A,0),2) -> Freighter | D107: Boeing | E107: 1 | F107: Boeing 737NG | G107: Boeing 737-700/-800CF | H107: 737-700/-800CF | I107: 737-700/-800CF | J107: =MATCH("*"&F107&"*",Sheet1!C:C,0) ->  | K107: =MATCH("*"&H107&"*",Sheet1!C:C,0) ->  | L107: =MATCH("*"&I107&"*",Sheet1!B:B,0) ->  | M107: 89.1 | O107: https://www.statista.com/statistics/273941/prices-of-boeing-aircraft-by-type/ | P107: =INDEX('[1]Pt1-AvionicsComponentCosts'!$A:$NE,MATCH(B107,'[1]Pt1-AvionicsComponentCosts'!$A:$A,0),MATCH("END MARKER",'[1]Pt1-AvionicsComponentCosts'!$11:$11,0)) -> 1164718 | Q107: 0.5 | R107: 0.5 | S107: 0.06536015713
B108: 596 | C108: =INDEX('[1]Pt1-AvionicsComponentCosts'!$A:$B,MATCH(B108,'[1]Pt1-AvionicsComponentCosts'!$A:$A,0),2) -> Freighter | D108: Boeing | E108: 1 | F108: Boeing 757 | G108: Boeing 757-200 PF/SF | H108: 757-200 PF/SF | I108: 757-200 PF/SF | J108: =MATCH("*"&F108&"*",Sheet1!C:C,0) ->  | K108: =MATCH("*"&H108&"*",Sheet1!C:C,0) ->  | L108: =MATCH("*"&I108&"*",Sheet1!B:B,0) ->  | P108: =INDEX('[1]Pt1-AvionicsComponentCosts'!$A:$NE,MATCH(B108,'[1]Pt1-AvionicsComponentCosts'!$A:$A,0),MATCH("END MARKER",'[1]Pt1-AvionicsComponentCosts'!$11:$11,0)) -> 1164718 | Q108: 0.5 | R108: 0.5
B109: 98 | C109: =INDEX('[1]Pt1-AvionicsComponentCosts'!$A:$B,MATCH(B109,'[1]Pt1-AvionicsComponentCosts'!$A:$A,0),2) -> Helicopter | D109: Boeing | E109: 1 | F109: AH-64 | G109: Boeing AH-64 Apache | H109: AH-64 Apache | I109: AH-64 Apache | J109: =MATCH("*"&F109&"*",Sheet1!C:C,0) ->  | K109: =MATCH("*"&H109&"*",Sheet1!C:C,0) ->  | L109: =MATCH("*"&I109&"*",Sheet1!B:B,0) ->  | P109: =INDEX('[1]Pt1-AvionicsComponentCosts'!$A:$NE,MATCH(B109,'[1]Pt1-AvionicsComponentCosts'!$A:$A,0),MATCH("END MARKER",'[1]Pt1-AvionicsComponentCosts'!$11:$11,0)) -> 1614184 | Q109: 0.99 | R109: 0.99
B110: 99 | C110: =INDEX('[1]Pt1-AvionicsComponentCosts'!$A:$B,MATCH(B110,'[1]Pt1-AvionicsComponentCosts'!$A:$A,0),2) -> Helicopter | D110: Boeing | E110: 1 | F110: AH-64 | G110: Boeing AH-64 Apache (reman) | H110: AH-64 Apache (reman) | I110: AH-64 Apache (reman) | J110: =MATCH("*"&F110&"*",Sheet1!C:C,0) ->  | K110: =MATCH("*"&H110&"*",Sheet1!C:C,0) ->  | L110: =MATCH("*"&I110&"*",Sheet1!B:B,0) ->  | P110: =INDEX('[1]Pt1-AvionicsComponentCosts'!$A:$NE,MATCH(B110,'[1]Pt1-AvionicsComponentCosts'!$A:$A,0),MATCH("END MARKER",'[1]Pt1-AvionicsComponentCosts'!$11:$11,0)) -> 1614184 | Q110: 0.99 | R110: 0.99
B111: 100 | C111: =INDEX('[1]Pt1-AvionicsComponentCosts'!$A:$B,MATCH(B111,'[1]Pt1-AvionicsComponentCosts'!$A:$A,0),2) -> Helicopter | D111: Boeing | E111: 1 | F111: CH-47 | G111: Boeing CH-47 Chinook | H111: CH-47 Chinook | I111: CH-47 Chinook | J111: =MATCH("*"&F111&"*",Sheet1!C:C,0) ->  | K111: =MATCH("*"&H111&"*",Sheet1!C:C,0) ->  | L111: =MATCH("*"&I111&"*",Sheet1!B:B,0) ->  | P111: =INDEX('[1]Pt1-AvionicsComponentCosts'!$A:$NE,MATCH(B111,'[1]Pt1-AvionicsComponentCosts'!$A:$A,0),MATCH("END MARKER",'[1]Pt1-AvionicsComponentCosts'!$11:$11,0)) -> 1611862 | Q111: 0.99 | R111: 0.99
B112: 101 | C112: =INDEX('[1]Pt1-AvionicsComponentCosts'!$A:$B,MATCH(B112,'[1]Pt1-AvionicsComponentCosts'!$A:$A,0),2) -> Helicopter | D112: Boeing | E112: 1 | F112: CH-47 | G112: Boeing CH-47 Chinook (reman) | H112: CH-47 Chinook (reman) | I112: CH-47 Chinook (reman) | J112: =MATCH("*"&F112&"*",Sheet1!C:C,0) ->  | K112: =MATCH("*"&H112&"*",Sheet1!C:C,0) ->  | L112: =MATCH("*"&I112&"*",Sheet1!B:B,0) ->  | P112: =INDEX('[1]Pt1-AvionicsComponentCosts'!$A:$NE,MATCH(B112,'[1]Pt1-AvionicsComponentCosts'!$A:$A,0),MATCH("END MARKER",'[1]Pt1-AvionicsComponentCosts'!$11:$11,0)) -> 1611862 | Q112: 0.99 | R112: 0.99
B113: 299 | C113: =INDEX('[1]Pt1-AvionicsComponentCosts'!$A:$B,MATCH(B113,'[1]Pt1-AvionicsComponentCosts'!$A:$A,0),2) -> Large Commercial Aircraft | D113: Boeing | E113: 1 | F113: Boeing 717 | G113: Boeing 717 | H113: 717 | I113: 717 | J113: =MATCH("*"&F113&"*",Sheet1!C:C,0) ->  | K113: =MATCH("*"&H113&"*",Sheet1!C:C,0) ->  | L113: =MATCH("*"&I113&"*",Sheet1!B:B,0) ->  | P113: =INDEX('[1]Pt1-AvionicsComponentCosts'!$A:$NE,MATCH(B113,'[1]Pt1-AvionicsComponentCosts'!$A:$A,0),MATCH("END MARKER",'[1]Pt1-AvionicsComponentCosts'!$11:$11,0)) -> 1178752 | Q113: =50% -> 0.5 | R113: =50% -> 0.5
B114: 534 | C114: =INDEX('[1]Pt1-AvionicsComponentCosts'!$A:$B,MATCH(B114,'[1]Pt1-AvionicsComponentCosts'!$A:$A,0),2) -> Large Commercial Aircraft | D114: Boeing | E114: 1 | F114: Boeing 737 Classic | G114: Boeing 737 Classic: 737-300 | H114: =TRIM(SUBSTITUTE(G114,D114,"")) -> 737 Classic: 737-300 | I114: 737-300 | J114: =MATCH("*"&F114&"*",Sheet1!C:C,0) ->  | K114: =MATCH("*"&H114&"*",Sheet1!C:C,0) ->  | L114: =MATCH("*"&I114&"*",Sheet1!B:B,0) ->  | N114: OOP | P114: =INDEX('[1]Pt1-AvionicsComponentCosts'!$A:$NE,MATCH(B114,'[1]Pt1-AvionicsComponentCosts'!$A:$A,0),MATCH("END MARKER",'[1]Pt1-AvionicsComponentCosts'!$11:$11,0)) -> 1212232 | Q114: =50% -> 0.5 | R114: =50% -> 0.5
B115: 535 | C115: =INDEX('[1]Pt1-AvionicsComponentCosts'!$A:$B,MATCH(B115,'[1]Pt1-AvionicsComponentCosts'!$A:$A,0),2) -> Large Commercial Aircraft | D115: Boeing | E115: 1 | F115: Boeing 737 Classic | G115: Boeing 737 Classic: 737-400 | H115: 737 Classic: 737-400 | I115: 737-400 | J115: =MATCH("*"&F115&"*",Sheet1!C:C,0) ->  | K115: =MATCH("*"&H115&"*",Sheet1!C:C,0) ->  | L115: =MATCH("*"&I115&"*",Sheet1!B:B,0) ->  | N115: OOP | P115: =INDEX('[1]Pt1-AvionicsComponentCosts'!$A:$NE,MATCH(B115,'[1]Pt1-AvionicsComponentCosts'!$A:$A,0),MATCH("END MARKER",'[1]Pt1-AvionicsComponentCosts'!$11:$11,0)) -> 1212232 | Q115: =50% -> 0.5 | R115: =50% -> 0.5
B116: 536 | C116: =INDEX('[1]Pt1-AvionicsComponentCosts'!$A:$B,MATCH(B116,'[1]Pt1-AvionicsComponentCosts'!$A:$A,0),2) -> Large Commercial Aircraft | D116: Boeing | E116: 1 | F116: Boeing 737 Classic | G116: Boeing 737 Classic: 737-500 | H116: 737 Classic: 737-500 | I116: 737-500 | J116: =MATCH("*"&F116&"*",Sheet1!C:C,0) ->  | K116: =MATCH("*"&H116&"*",Sheet1!C:C,0) ->  | L116: =MATCH("*"&I116&"*",Sheet1!B:B,0) ->  | N116: OOP | P116: =INDEX('[1]Pt1-AvionicsComponentCosts'!$A:$NE,MATCH(B116,'[1]Pt1-AvionicsComponentCosts'!$A:$A,0),MATCH("END MARKER",'[1]Pt1-AvionicsComponentCosts'!$11:$11,0)) -> 1212232 | Q116: =50% -> 0.5 | R116: =50% -> 0.5
B117: 309 | C117: =INDEX('[1]Pt1-AvionicsComponentCosts'!$A:$B,MATCH(B117,'[1]Pt1-AvionicsComponentCosts'!$A:$A,0),2) -> Large Commercial Aircraft | D117: Boeing | E117: 1 | F117: Boeing 737MAX | G117: Boeing 737 MAX: 737 MAX 10 | H117: 737 MAX: 737 MAX 10 | I117: 737 MAX 10 | J117: =MATCH("*"&F117&"*",Sheet1!C:C,0) ->  | K117: =MATCH("*"&H117&"*",Sheet1!C:C,0) ->  | L117: =MATCH("*"&I117&"*",Sheet1!B:B,0) ->  | M117: 134.9 | O117: https://www.statista.com/statistics/273941/prices-of-boeing-aircraft-by-type/ | P117: =INDEX('[1]Pt1-AvionicsComponentCosts'!$A:$NE,MATCH(B117,'[1]Pt1-AvionicsComponentCosts'!$A:$A,0),MATCH("END MARKER",'[1]Pt1-AvionicsComponentCosts'!$11:$11,0)) -> 1212232 | Q117: =50% -> 0.5 | R117: =50% -> 0.5 | S117: 0.04493076353
B118: 195 | C118: =INDEX('[1]Pt1-AvionicsComponentCosts'!$A:$B,MATCH(B118,'[1]Pt1-AvionicsComponentCosts'!$A:$A,0),2) -> Large Commercial Aircraft | D118: Boeing | E118: 1 | F118: Boeing 737MAX | G118: Boeing 737 MAX: 737 MAX 7 | H118: 737 MAX: 737 MAX 7 | I118: 737-MAX 7 | J118: =MATCH("*"&F118&"*",Sheet1!C:C,0) ->  | K118: =MATCH("*"&H118&"*",Sheet1!C:C,0) ->  | L118: =MATCH("*"&I118&"*",Sheet1!B:B,0) -> 2 | M118: =INDEX(Sheet1!$A:$K,MATCH($I118,Sheet1!$B:$B,0),MATCH(M$1,Sheet1!$A$1:$K$1,0)) -> 99.7 | O118: =INDEX(Sheet1!$A:$K,MATCH($I118,Sheet1!$B:$B,0),MATCH(O$1,Sheet1!$A$1:$K$1,0)) -> http://www.axonaviation.com/commercial-aircraft/aircraft-data/aircraft-pricing | P118: =INDEX('[1]Pt1-AvionicsComponentCosts'!$A:$NE,MATCH(B118,'[1]Pt1-AvionicsComponentCosts'!$A:$A,0),MATCH("END MARKER",'[1]Pt1-AvionicsComponentCosts'!$11:$11,0)) -> 1212232 | Q118: =50% -> 0.5 | R118: =50% -> 0.5 | S118: 0.06079398195
B119: 196 | C119: =INDEX('[1]Pt1-AvionicsComponentCosts'!$A:$B,MATCH(B119,'[1]Pt1-AvionicsComponentCosts'!$A:$A,0),2) -> Large Commercial Aircraft | D119: Boeing | E119: 1 | F119: Boeing 737MAX | G119: Boeing 737 MAX: 737 MAX 8 | H119: 737 MAX: 737 MAX 8 | I119: 737 MAX 8 | J119: =MATCH("*"&F119&"*",Sheet1!C:C,0) ->  | K119: =MATCH("*"&H119&"*",Sheet1!C:C,0) ->  | L119: =MATCH("*"&I119&"*",Sheet1!B:B,0) ->  | M119: 121.6 | O119: https://www.statista.com/statistics/273941/prices-of-boeing-aircraft-by-type/ | P119: =INDEX('[1]Pt1-AvionicsComponentCosts'!$A:$NE,MATCH(B119,'[1]Pt1-AvionicsComponentCosts'!$A:$A,0),MATCH("END MARKER",'[1]Pt1-AvionicsComponentCosts'!$11:$11,0)) -> 1212232 | Q119: =50% -> 0.5 | R119: =50% -> 0.5 | S119: 0.04984506579
B120: 197 | C120: =INDEX('[1]Pt1-AvionicsComponentCosts'!$A:$B,MATCH(B120,'[1]Pt1-AvionicsComponentCosts'!$A:$A,0),2) -> Large Commercial Aircraft | D120: Boeing | E120: 1 | F120: Boeing 737MAX | G120: Boeing 737 MAX: 737 MAX 9 | H120: 737 MAX: 737 MAX 9 | I120: 737 MAX 9 | J120: =MATCH("*"&F120&"*",Sheet1!C:C,0) ->  | K120: =MATCH("*"&H120&"*",Sheet1!C:C,0) ->  | L120: =MATCH("*"&I120&"*",Sheet1!B:B,0) ->  | M120: 128.9 | O120: https://www.statista.com/statistics/273941/prices-of-boeing-aircraft-by-type/ | P120: =INDEX('[1]Pt1-AvionicsComponentCosts'!$A:$NE,MATCH(B120,'[1]Pt1-AvionicsComponentCosts'!$A:$A,0),MATCH("END MARKER",'[1]Pt1-AvionicsComponentCosts'!$11:$11,0)) -> 1212232 | Q120: =50% -> 0.5 | R120: =50% -> 0.5 | S120: 0.04702218774
B121: 300 | C121: =INDEX('[1]Pt1-AvionicsComponentCosts'!$A:$B,MATCH(B121,'[1]Pt1-AvionicsComponentCosts'!$A:$A,0),2) -> Large Commercial Aircraft | D121: Boeing | E121: 1 | F121: Boeing 737NG | G121: Boeing 737-600 | H121: 737-600 | I121: 737-600 | J121: =MATCH("*"&F121&"*",Sheet1!C:C,0) ->  | K121: =MATCH("*"&H121&"*",Sheet1!C:C,0) ->  | L121: =MATCH("*"&I121&"*",Sheet1!B:B,0) ->  | P121: =INDEX('[1]Pt1-AvionicsComponentCosts'!$A:$NE,MATCH(B121,'[1]Pt1-AvionicsComponentCosts'!$A:$A,0),MATCH("END MARKER",'[1]Pt1-AvionicsComponentCosts'!$11:$11,0)) -> 1212232 | Q121: =50% -> 0.5 | R121: =50% -> 0.5
B122: 192 | C122: =INDEX('[1]Pt1-AvionicsComponentCosts'!$A:$B,MATCH(B122,'[1]Pt1-AvionicsComponentCosts'!$A:$A,0),2) -> Large Commercial Aircraft | D122: Boeing | E122: 1 | F122: Boeing 737NG | G122: Boeing 737-700 | H122: 737-700 | I122: 737-700 | J122: =MATCH("*"&F122&"*",Sheet1!C:C,0) ->  | K122: =MATCH("*"&H122&"*",Sheet1!C:C,0) ->  | L122: =MATCH("*"&I122&"*",Sheet1!B:B,0) -> 20 | M122: =INDEX(Sheet1!$A:$K,MATCH($I122,Sheet1!$B:$B,0),MATCH(M$1,Sheet1!$A$1:$K$1,0)) -> 89.1 | O122: =INDEX(Sheet1!$A:$K,MATCH($I122,Sheet1!$B:$B,0),MATCH(O$1,Sheet1!$A$1:$K$1,0)) -> http://www.axonaviation.com/commercial-aircraft/aircraft-data/aircraft-pricing | P122: =INDEX('[1]Pt1-AvionicsComponentCosts'!$A:$NE,MATCH(B122,'[1]Pt1-AvionicsComponentCosts'!$A:$A,0),MATCH("END MARKER",'[1]Pt1-AvionicsComponentCosts'!$11:$11,0)) -> 1212232 | Q122: =50% -> 0.5 | R122: =50% -> 0.5 | S122: 0.06802648709
B123: 193 | C123: =INDEX('[1]Pt1-AvionicsComponentCosts'!$A:$B,MATCH(B123,'[1]Pt1-AvionicsComponentCosts'!$A:$A,0),2) -> Large Commercial Aircraft | D123: Boeing | E123: 1 | F123: Boeing 737NG | G123: Boeing 737-800 | H123: 737-800 | I123: 737-800 | J123: =MATCH("*"&F123&"*",Sheet1!C:C,0) ->  | K123: =MATCH("*"&H123&"*",Sheet1!C:C,0) ->  | L123: =MATCH("*"&I123&"*",Sheet1!B:B,0) -> 21 | M123: =INDEX(Sheet1!$A:$K,MATCH($I123,Sheet1!$B:$B,0),MATCH(M$1,Sheet1!$A$1:$K$1,0)) -> 106.1 | O123: =INDEX(Sheet1!$A:$K,MATCH($I123,Sheet1!$B:$B,0),MATCH(O$1,Sheet1!$A$1:$K$1,0)) -> http://www.axonaviation.com/commercial-aircraft/aircraft-data/aircraft-pricing | P123: =INDEX('[1]Pt1-AvionicsComponentCosts'!$A:$NE,MATCH(B123,'[1]Pt1-AvionicsComponentCosts'!$A:$A,0),MATCH("END MARKER",'[1]Pt1-AvionicsComponentCosts'!$11:$11,0)) -> 1212232 | Q123: =50% -> 0.5 | R123: =50% -> 0.5 | S123: 0.05712686145
B124: 194 | C124: =INDEX('[1]Pt1-AvionicsComponentCosts'!$A:$B,MATCH(B124,'[1]Pt1-AvionicsComponentCosts'!$A:$A,0),2) -> Large Commercial Aircraft | D124: Boeing | E124: 1 | F124: Boeing 737NG | G124: Boeing 737-900 | H124: 737-900 | I124: 737-900 | J124: =MATCH("*"&F124&"*",Sheet1!C:C,0) ->  | K124: =MATCH("*"&H124&"*",Sheet1!C:C,0) ->  | L124: =MATCH("*"&I124&"*",Sheet1!B:B,0) -> 22 | M124: 112.6 | O124: https://www.statista.com/statistics/273941/prices-of-boeing-aircraft-by-type/ | P124: =INDEX('[1]Pt1-AvionicsComponentCosts'!$A:$NE,MATCH(B124,'[1]Pt1-AvionicsComponentCosts'!$A:$A,0),MATCH("END MARKER",'[1]Pt1-AvionicsComponentCosts'!$11:$11,0)) -> 1212232 | Q124: =50% -> 0.5 | R124: =50% -> 0.5 | S124: 0.05382912966
B125: 522 | C125: =INDEX('[1]Pt1-AvionicsComponentCosts'!$A:$B,MATCH(B125,'[1]Pt1-AvionicsComponentCosts'!$A:$A,0),2) -> Large Commercial Aircraft | D125: Boeing | E125: 1 | F125: Boeing 757 | G125: Boeing 757 | H125: 757 | I125: 757 | J125: =MATCH("*"&F125&"*",Sheet1!C:C,0) ->  | K125: =MATCH("*"&H125&"*",Sheet1!C:C,0) -> 26 | L125: =MATCH("*"&I125&"*",Sheet1!B:B,0) -> 26 | P125: =INDEX('[1]Pt1-AvionicsComponentCosts'!$A:$NE,MATCH(B125,'[1]Pt1-AvionicsComponentCosts'!$A:$A,0),MATCH("END MARKER",'[1]Pt1-AvionicsComponentCosts'!$11:$11,0)) -> 1212233 | Q125: =50% -> 0.5 | R125: =50% -> 0.5
B126: 612 | C126: =INDEX('[1]Pt1-AvionicsComponentCosts'!$A:$B,MATCH(B126,'[1]Pt1-AvionicsComponentCosts'!$A:$A,0),2) -> Large Commercial Aircraft | D126: Boeing | E126: 1 | F126: Boeing New Single Aisle (NSA) | G126: Boeing New Single Aisle (NSA) | H126: New Single Aisle (NSA) | I126: New Single Aisle (NSA) | J126: =MATCH("*"&F126&"*",Sheet1!C:C,0) ->  | K126: =MATCH("*"&H126&"*",Sheet1!C:C,0) ->  | L126: =MATCH("*"&I126&"*",Sheet1!B:B,0) ->  | P126: =INDEX('[1]Pt1-AvionicsComponentCosts'!$A:$NE,MATCH(B126,'[1]Pt1-AvionicsComponentCosts'!$A:$A,0),MATCH("END MARKER",'[1]Pt1-AvionicsComponentCosts'!$11:$11,0)) -> 1389709 | Q126: =50% -> 0.5 | R126: =50% -> 0.5
B127: 12 | C127: =INDEX('[1]Pt1-AvionicsComponentCosts'!$A:$B,MATCH(B127,'[1]Pt1-AvionicsComponentCosts'!$A:$A,0),2) -> Large Commercial Aircraft | D127: Boeing | E127: 1 | F127: Boeing 767 | G127: Boeing 767 | H127: 767 | I127: 767 | J127: =MATCH("*"&F127&"*",Sheet1!C:C,0) ->  | K127: =MATCH("*"&H127&"*",Sheet1!C:C,0) -> 28 | L127: =MATCH("*"&I127&"*",Sheet1!B:B,0) -> 28 | P127: =INDEX('[1]Pt1-AvionicsComponentCosts'!$A:$NE,MATCH(B127,'[1]Pt1-AvionicsComponentCosts'!$A:$A,0),MATCH("END MARKER",'[1]Pt1-AvionicsComponentCosts'!$11:$11,0)) -> 1737367 | Q127: =50% -> 0.5 | R127: =50% -> 0.5
B128: 539 | C128: =INDEX('[1]Pt1-AvionicsComponentCosts'!$A:$B,MATCH(B128,'[1]Pt1-AvionicsComponentCosts'!$A:$A,0),2) -> Large Commercial Aircraft | D128: Boeing | E128: 1 | F128: Boeing 777 | G128: Boeing 777: 777-200ER | H128: 777: 777-200ER | I128: 777-200ER | J128: =MATCH("*"&F128&"*",Sheet1!C:C,0) ->  | K128: =MATCH("*"&H128&"*",Sheet1!C:C,0) ->  | L128: =MATCH("*"&I128&"*",Sheet1!B:B,0) -> 30 | M128: =INDEX(Sheet1!$A:$K,MATCH($I128,Sheet1!$B:$B,0),MATCH(M$1,Sheet1!$A$1:$K$1,0)) -> 306.6 | O128: =INDEX(Sheet1!$A:$K,MATCH($I128,Sheet1!$B:$B,0),MATCH(O$1,Sheet1!$A$1:$K$1,0)) -> http://www.axonaviation.com/commercial-aircraft/aircraft-data/aircraft-pricing | P128: =INDEX('[1]Pt1-AvionicsComponentCosts'!$A:$NE,MATCH(B128,'[1]Pt1-AvionicsComponentCosts'!$A:$A,0),MATCH("END MARKER",'[1]Pt1-AvionicsComponentCosts'!$11:$11,0)) -> 1779536 | Q128: =50% -> 0.5 | R128: =50% -> 0.5 | S128: 0.02902048271
B129: 201 | C129: =INDEX('[1]Pt1-AvionicsComponentCosts'!$A:$B,MATCH(B129,'[1]Pt1-AvionicsComponentCosts'!$A:$A,0),2) -> Large Commercial Aircraft | D129: Boeing | E129: 1 | F129: Boeing 777 | G129: Boeing 777: 777-200LR | H129: 777: 777-200LR | I129: 777-200LR | J129: =MATCH("*"&F129&"*",Sheet1!C:C,0) ->  | K129: =MATCH("*"&H129&"*",Sheet1!C:C,0) ->  | L129: =MATCH("*"&I129&"*",Sheet1!B:B,0) -> 31 | M129: =INDEX(Sheet1!$A:$K,MATCH($I129,Sheet1!$B:$B,0),MATCH(M$1,Sheet1!$A$1:$K$1,0)) -> 346.9 | O129: =INDEX(Sheet1!$A:$K,MATCH($I129,Sheet1!$B:$B,0),MATCH(O$1,Sheet1!$A$1:$K$1,0)) -> http://www.axonaviation.com/commercial-aircraft/aircraft-data/aircraft-pricing | P129: =INDEX('[1]Pt1-AvionicsComponentCosts'!$A:$NE,MATCH(B129,'[1]Pt1-AvionicsComponentCosts'!$A:$A,0),MATCH("END MARKER",'[1]Pt1-AvionicsComponentCosts'!$11:$11,0)) -> 2297363 | Q129: =50% -> 0.5 | R129: =50% -> 0.5 | S129: 0.03311275584
B130: 303 | C130: =INDEX('[1]Pt1-AvionicsComponentCosts'!$A:$B,MATCH(B130,'[1]Pt1-AvionicsComponentCosts'!$A:$A,0),2) -> Large Commercial Aircraft | D130: Boeing | E130: 1 | F130: Boeing 777 | G130: Boeing 777: 777-300 | H130: 777: 777-300 | I130: 777-300 | J130: =MATCH("*"&F130&"*",Sheet1!C:C,0) ->  | K130: =MATCH("*"&H130&"*",Sheet1!C:C,0) ->  | L130: =MATCH("*"&I130&"*",Sheet1!B:B,0) -> 32 | M130: 217.9 | O130: https://www.statista.com/statistics/273941/prices-of-boeing-aircraft-by-type/ | P130: =INDEX('[1]Pt1-AvionicsComponentCosts'!$A:$NE,MATCH(B130,'[1]Pt1-AvionicsComponentCosts'!$A:$A,0),MATCH("END MARKER",'[1]Pt1-AvionicsComponentCosts'!$11:$11,0)) -> 1779536 | Q130: =50% -> 0.5 | R130: =50% -> 0.5 | S130: 0.04083377696
B131: 202 | C131: =INDEX('[1]Pt1-AvionicsComponentCosts'!$A:$B,MATCH(B131,'[1]Pt1-AvionicsComponentCosts'!$A:$A,0),2) -> Large Commercial Aircraft | D131: Boeing | E131: 1 | F131: Boeing 777 | G131: Boeing 777: 777-300ER | H131: =TRIM(SUBSTITUTE(G131,D131,"")) -> 777: 777-300ER | I131: =TRIM(SUBSTITUTE(SUBSTITUTE(SUBSTITUTE(SUBSTITUTE(SUBSTITUTE(H131,"Family",""),"737 Classic:",""),"737 MAX:",""),"787 Dreamliner:",""),"777:","")) -> 777-300ER | J131: =MATCH("*"&F131&"*",Sheet1!C:C,0) ->  | K131: =MATCH("*"&H131&"*",Sheet1!C:C,0) ->  | L131: =MATCH("*"&I131&"*",Sheet1!B:B,0) -> 32 | M131: =INDEX(Sheet1!$A:$K,MATCH($I131,Sheet1!$B:$B,0),MATCH(M$1,Sheet1!$A$1:$K$1,0)) -> 375.5 | O131: =INDEX(Sheet1!$A:$K,MATCH($I131,Sheet1!$B:$B,0),MATCH(O$1,Sheet1!$A$1:$K$1,0)) -> http://www.axonaviation.com/commercial-aircraft/aircraft-data/aircraft-pricing | P131: =INDEX('[1]Pt1-AvionicsComponentCosts'!$A:$NE,MATCH(B131,'[1]Pt1-AvionicsComponentCosts'!$A:$A,0),MATCH("END MARKER",'[1]Pt1-AvionicsComponentCosts'!$11:$11,0)) -> 2297363 | Q131: =50% -> 0.5 | R131: =50% -> 0.5 | S131: =IFERROR(P131/(M131*100000)*R131,"") -> 0.03059071904
B132: 203 | C132: =INDEX('[1]Pt1-AvionicsComponentCosts'!$A:$B,MATCH(B132,'[1]Pt1-AvionicsComponentCosts'!$A:$A,0),2) -> Large Commercial Aircraft | D132: Boeing | E132: 1 | F132: Boeing 777X | G132: Boeing 777X: 777-8 | H132: 777X: 777-8 | I132: 777X: 777-8 | J132: =MATCH("*"&F132&"*",Sheet1!C:C,0) ->  | K132: =MATCH("*"&H132&"*",Sheet1!C:C,0) ->  | L132: =MATCH("*"&I132&"*",Sheet1!B:B,0) ->  | M132: 410.2 | O132: https://www.statista.com/statistics/273941/prices-of-boeing-aircraft-by-type/ | P132: =INDEX('[1]Pt1-AvionicsComponentCosts'!$A:$NE,MATCH(B132,'[1]Pt1-AvionicsComponentCosts'!$A:$A,0),MATCH("END MARKER",'[1]Pt1-AvionicsComponentCosts'!$11:$11,0)) -> 2283877 | Q132: =50% -> 0.5 | R132: =50% -> 0.5 | S132: 0.02783857874
B133: 204 | C133: =INDEX('[1]Pt1-AvionicsComponentCosts'!$A:$B,MATCH(B133,'[1]Pt1-AvionicsComponentCosts'!$A:$A,0),2) -> Large Commercial Aircraft | D133: Boeing | E133: 1 | F133: Boeing 777X | G133: Boeing 777X: 777-9 | H133: 777X: 777-9 | I133: 777X: 777-9 | J133: =MATCH("*"&F133&"*",Sheet1!C:C,0) ->  | K133: =MATCH("*"&H133&"*",Sheet1!C:C,0) ->  | L133: =MATCH("*"&I133&"*",Sheet1!B:B,0) ->  | M133: 442.2 | O133: https://www.statista.com/statistics/273941/prices-of-boeing-aircraft-by-type/ | P133: =INDEX('[1]Pt1-AvionicsComponentCosts'!$A:$NE,MATCH(B133,'[1]Pt1-AvionicsComponentCosts'!$A:$A,0),MATCH("END MARKER",'[1]Pt1-AvionicsComponentCosts'!$11:$11,0)) -> 2261035 | Q133: =50% -> 0.5 | R133: =50% -> 0.5 | S133: 0.02556575079
B134: 200 | C134: =INDEX('[1]Pt1-AvionicsComponentCosts'!$A:$B,MATCH(B134,'[1]Pt1-AvionicsComponentCosts'!$A:$A,0),2) -> Large Commercial Aircraft | D134: Boeing | E134: 1 | F134: Boeing 787 | G134: Boeing 787 Dreamliner: 787-10 | H134: 787 Dreamliner: 787-10 | I134: 787-10 | J134: =MATCH("*"&F134&"*",Sheet1!C:C,0) ->  | K134: =MATCH("*"&H134&"*",Sheet1!C:C,0) ->  | L134: =MATCH("*"&I134&"*",Sheet1!B:B,0) -> 36 | M134: =INDEX(Sheet1!$A:$K,MATCH($I134,Sheet1!$B:$B,0),MATCH(M$1,Sheet1!$A$1:$K$1,0)) -> 338.4 | O134: =INDEX(Sheet1!$A:$K,MATCH($I134,Sheet1!$B:$B,0),MATCH(O$1,Sheet1!$A$1:$K$1,0)) -> http://www.axonaviation.com/commercial-aircraft/aircraft-data/aircraft-pricing | P134: =INDEX('[1]Pt1-AvionicsComponentCosts'!$A:$NE,MATCH(B134,'[1]Pt1-AvionicsComponentCosts'!$A:$A,0),MATCH("END MARKER",'[1]Pt1-AvionicsComponentCosts'!$11:$11,0)) -> 2326385 | Q134: =50% -> 0.5 | R134: =50% -> 0.5 | S134: 0.03437330083
B135: 198 | C135: =INDEX('[1]Pt1-AvionicsComponentCosts'!$A:$B,MATCH(B135,'[1]Pt1-AvionicsComponentCosts'!$A:$A,0),2) -> Large Commercial Aircraft | D135: Boeing | E135: 1 | F135: Boeing 787 | G135: Boeing 787 Dreamliner: 787-8 | H135: 787 Dreamliner: 787-8 | I135: 787-8 | J135: =MATCH("*"&F135&"*",Sheet1!C:C,0) ->  | K135: =MATCH("*"&H135&"*",Sheet1!C:C,0) ->  | L135: =MATCH("*"&I135&"*",Sheet1!B:B,0) -> 34 | M135: =INDEX(Sheet1!$A:$K,MATCH($I135,Sheet1!$B:$B,0),MATCH(M$1,Sheet1!$A$1:$K$1,0)) -> 248.3 | O135: =INDEX(Sheet1!$A:$K,MATCH($I135,Sheet1!$B:$B,0),MATCH(O$1,Sheet1!$A$1:$K$1,0)) -> http://www.axonaviation.com/commercial-aircraft/aircraft-data/aircraft-pricing | P135: =INDEX('[1]Pt1-AvionicsComponentCosts'!$A:$NE,MATCH(B135,'[1]Pt1-AvionicsComponentCosts'!$A:$A,0),MATCH("END MARKER",'[1]Pt1-AvionicsComponentCosts'!$11:$11,0)) -> 2326385 | Q135: =50% -> 0.5 | R135: =50% -> 0.5 | S135: 0.04684625453
B136: 199 | C136: =INDEX('[1]Pt1-AvionicsComponentCosts'!$A:$B,MATCH(B136,'[1]Pt1-AvionicsComponentCosts'!$A:$A,0),2) -> Large Commercial Aircraft | D136: Boeing | E136: 1 | F136: Boeing 787 | G136: Boeing 787 Dreamliner: 787-9 | H136: 787 Dreamliner: 787-9 | I136: 787-9 | J136: =MATCH("*"&F136&"*",Sheet1!C:C,0) ->  | K136: =MATCH("*"&H136&"*",Sheet1!C:C,0) ->  | L136: =MATCH("*"&I136&"*",Sheet1!B:B,0) -> 35 | M136: =INDEX(Sheet1!$A:$K,MATCH($I136,Sheet1!$B:$B,0),MATCH(M$1,Sheet1!$A$1:$K$1,0)) -> 292.5 | O136: =INDEX(Sheet1!$A:$K,MATCH($I136,Sheet1!$B:$B,0),MATCH(O$1,Sheet1!$A$1:$K$1,0)) -> http://www.axonaviation.com/commercial-aircraft/aircraft-data/aircraft-pricing | P136: =INDEX('[1]Pt1-AvionicsComponentCosts'!$A:$NE,MATCH(B136,'[1]Pt1-AvionicsComponentCosts'!$A:$A,0),MATCH("END MARKER",'[1]Pt1-AvionicsComponentCosts'!$11:$11,0)) -> 2326385 | Q136: =50% -> 0.5 | R136: =50% -> 0.5 | S136: 0.03976726496
B137: 530 | C137: =INDEX('[1]Pt1-AvionicsComponentCosts'!$A:$B,MATCH(B137,'[1]Pt1-AvionicsComponentCosts'!$A:$A,0),2) -> Large Commercial Aircraft | D137: Boeing | E137: 1 | F137: Boeing 747 | G137: Boeing 747-400 | H137: 747-400 | I137: 747-400 | J137: =MATCH("*"&F137&"*",Sheet1!C:C,0) ->  | K137: =MATCH("*"&H137&"*",Sheet1!C:C,0) ->  | L137: =MATCH("*"&I137&"*",Sheet1!B:B,0) -> 23 | M137: =INDEX(Sheet1!$A:$K,MATCH($I137,Sheet1!$B:$B,0),MATCH(M$1,Sheet1!$A$1:$K$1,0)) -> 0 | N137: OOP | O137: =INDEX(Sheet1!$A:$K,MATCH($I137,Sheet1!$B:$B,0),MATCH(O$1,Sheet1!$A$1:$K$1,0)) -> http://www.axonaviation.com/commercial-aircraft/aircraft-data/aircraft-pricing | P137: =INDEX('[1]Pt1-AvionicsComponentCosts'!$A:$NE,MATCH(B137,'[1]Pt1-AvionicsComponentCosts'!$A:$A,0),MATCH("END MARKER",'[1]Pt1-AvionicsComponentCosts'!$11:$11,0)) -> 1844993 | Q137: =50% -> 0.5 | R137: =50% -> 0.5
B138: 16 | C138: =INDEX('[1]Pt1-AvionicsComponentCosts'!$A:$B,MATCH(B138,'[1]Pt1-AvionicsComponentCosts'!$A:$A,0),2) -> Large Commercial Aircraft | D138: Boeing | E138: 1 | F138: Boeing 747 | G138: Boeing 747-8I | H138: 747-8I | I138: 747-8I | J138: =MATCH("*"&F138&"*",Sheet1!C:C,0) ->  | K138: =MATCH("*"&H138&"*",Sheet1!C:C,0) ->  | L138: =MATCH("*"&I138&"*",Sheet1!B:B,0) -> 25 | M138: =INDEX(Sheet1!$A:$K,MATCH($I138,Sheet1!$B:$B,0),MATCH(M$1,Sheet1!$A$1:$K$1,0)) -> 418.4 | O138: =INDEX(Sheet1!$A:$K,MATCH($I138,Sheet1!$B:$B,0),MATCH(O$1,Sheet1!$A$1:$K$1,0)) -> http://www.axonaviation.com/commercial-aircraft/aircraft-data/aircraft-pricing | P138: =INDEX('[1]Pt1-AvionicsComponentCosts'!$A:$NE,MATCH(B138,'[1]Pt1-AvionicsComponentCosts'!$A:$A,0),MATCH("END MARKER",'[1]Pt1-AvionicsComponentCosts'!$11:$11,0)) -> 2432906 | Q138: =50% -> 0.5 | R138: =50% -> 0.5 | S138: 0.02907392447
B139: 636 | C139: =INDEX('[1]Pt1-AvionicsComponentCosts'!$A:$B,MATCH(B139,'[1]Pt1-AvionicsComponentCosts'!$A:$A,0),2) -> Military Transport / Special Mission | D139: Boeing | E139: 1 | F139: B-52 Stratofortress | G139: Boeing B-52 Stratofortress | H139: B-52 Stratofortress | I139: B-52 Stratofortress | J139: =MATCH("*"&F139&"*",Sheet1!C:C,0) ->  | K139: =MATCH("*"&H139&"*",Sheet1!C:C,0) ->  | L139: =MATCH("*"&I139&"*",Sheet1!B:B,0) ->  | P139: =INDEX('[1]Pt1-AvionicsComponentCosts'!$A:$NE,MATCH(B139,'[1]Pt1-AvionicsComponentCosts'!$A:$A,0),MATCH("END MARKER",'[1]Pt1-AvionicsComponentCosts'!$11:$11,0)) -> 2713300 | Q139: 1 | R139: 1
B140: 676 | C140: =INDEX('[1]Pt1-AvionicsComponentCosts'!$A:$B,MATCH(B140,'[1]Pt1-AvionicsComponentCosts'!$A:$A,0),2) -> Military Transport / Special Mission | D140: Boeing | E140: 1 | F140: B-52 Stratofortress | G140: Boeing B-52 Stratofortress re-engine | H140: B-52 Stratofortress re-engine | I140: B-52 Stratofortress re-engine | J140: =MATCH("*"&F140&"*",Sheet1!C:C,0) ->  | K140: =MATCH("*"&H140&"*",Sheet1!C:C,0) ->  | L140: =MATCH("*"&I140&"*",Sheet1!B:B,0) ->  | P140: =INDEX('[1]Pt1-AvionicsComponentCosts'!$A:$NE,MATCH(B140,'[1]Pt1-AvionicsComponentCosts'!$A:$A,0),MATCH("END MARKER",'[1]Pt1-AvionicsComponentCosts'!$11:$11,0)) -> 2713300 | Q140: 1 | R140: 1
B141: 157 | C141: =INDEX('[1]Pt1-AvionicsComponentCosts'!$A:$B,MATCH(B141,'[1]Pt1-AvionicsComponentCosts'!$A:$A,0),2) -> Military Transport / Special Mission | D141: Boeing | E141: 1 | F141: Boeing KC-46 Pegasus | G141: Boeing KC-46 Pegasus | H141: KC-46 Pegasus | I141: KC-46 Pegasus | J141: =MATCH("*"&F141&"*",Sheet1!C:C,0) ->  | K141: =MATCH("*"&H141&"*",Sheet1!C:C,0) ->  | L141: =MATCH("*"&I141&"*",Sheet1!B:B,0) ->  | M141: 220 | O141: https://simpleflying.com/how-much-do-military-transport-aircraft-cost/ | P141: =INDEX('[1]Pt1-AvionicsComponentCosts'!$A:$NE,MATCH(B141,'[1]Pt1-AvionicsComponentCosts'!$A:$A,0),MATCH("END MARKER",'[1]Pt1-AvionicsComponentCosts'!$11:$11,0)) -> 3107955 | Q141: 1 | R141: 1 | S141: 0.1412706818
B142: 156 | C142: =INDEX('[1]Pt1-AvionicsComponentCosts'!$A:$B,MATCH(B142,'[1]Pt1-AvionicsComponentCosts'!$A:$A,0),2) -> Military Transport / Special Mission | D142: Boeing | E142: 1 | F142: Boeing P-8 Poseidon | G142: Boeing P-8 Poseidon | H142: P-8 Poseidon | I142: P-8 Poseidon | J142: =MATCH("*"&F142&"*",Sheet1!C:C,0) ->  | K142: =MATCH("*"&H142&"*",Sheet1!C:C,0) ->  | L142: =MATCH("*"&I142&"*",Sheet1!B:B,0) ->  | P142: =INDEX('[1]Pt1-AvionicsComponentCosts'!$A:$NE,MATCH(B142,'[1]Pt1-AvionicsComponentCosts'!$A:$A,0),MATCH("END MARKER",'[1]Pt1-AvionicsComponentCosts'!$11:$11,0)) -> 2713300 | Q142: 1 | R142: 1
B143: 158 | C143: =INDEX('[1]Pt1-AvionicsComponentCosts'!$A:$B,MATCH(B143,'[1]Pt1-AvionicsComponentCosts'!$A:$A,0),2) -> Military Transport / Special Mission | D143: Boeing | E143: 1 | F143: C-17 | G143: Boeing C-17 Globemaster III | H143: C-17 Globemaster III | I143: C-17 Globemaster III | J143: =MATCH("*"&F143&"*",Sheet1!C:C,0) ->  | K143: =MATCH("*"&H143&"*",Sheet1!C:C,0) ->  | L143: =MATCH("*"&I143&"*",Sheet1!B:B,0) ->  | P143: =INDEX('[1]Pt1-AvionicsComponentCosts'!$A:$NE,MATCH(B143,'[1]Pt1-AvionicsComponentCosts'!$A:$A,0),MATCH("END MARKER",'[1]Pt1-AvionicsComponentCosts'!$11:$11,0)) -> 3098550 | Q143: 1 | R143: 1
B144: 574 | C144: =INDEX('[1]Pt1-AvionicsComponentCosts'!$A:$B,MATCH(B144,'[1]Pt1-AvionicsComponentCosts'!$A:$A,0),2) -> Military Transport / Special Mission | D144: Boeing | E144: 1 | F144: Boeing C-40 Clipper | G144: Boeing C-40 Clipper | H144: C-40 Clipper | I144: C-40 Clipper | J144: =MATCH("*"&F144&"*",Sheet1!C:C,0) ->  | K144: =MATCH("*"&H144&"*",Sheet1!C:C,0) ->  | L144: =MATCH("*"&I144&"*",Sheet1!B:B,0) ->  | P144: =INDEX('[1]Pt1-AvionicsComponentCosts'!$A:$NE,MATCH(B144,'[1]Pt1-AvionicsComponentCosts'!$A:$A,0),MATCH("END MARKER",'[1]Pt1-AvionicsComponentCosts'!$11:$11,0)) -> 2713300 | Q144: 1 | R144: 1
B145: 620 | C145: =INDEX('[1]Pt1-AvionicsComponentCosts'!$A:$B,MATCH(B145,'[1]Pt1-AvionicsComponentCosts'!$A:$A,0),2) -> Military Transport / Special Mission | D145: Boeing | E145: 1 | F145: Boeing KC-135 Stratotanker | G145: Boeing KC-135 Stratotanker | H145: KC-135 Stratotanker | I145: KC-135 Stratotanker | J145: =MATCH("*"&F145&"*",Sheet1!C:C,0) ->  | K145: =MATCH("*"&H145&"*",Sheet1!C:C,0) ->  | L145: =MATCH("*"&I145&"*",Sheet1!B:B,0) ->  | P145: =INDEX('[1]Pt1-AvionicsComponentCosts'!$A:$NE,MATCH(B145,'[1]Pt1-AvionicsComponentCosts'!$A:$A,0),MATCH("END MARKER",'[1]Pt1-AvionicsComponentCosts'!$11:$11,0)) -> 3098550 | Q145: 1 | R145: 1
B146: 582 | C146: =INDEX('[1]Pt1-AvionicsComponentCosts'!$A:$B,MATCH(B146,'[1]Pt1-AvionicsComponentCosts'!$A:$A,0),2) -> Helicopter | D146: Boeing/Leonardo | E146: 1 | F146: MH139 | G146: Boeing/Leonardo MH139 | H146: MH139 | I146: MH139 | J146: =MATCH("*"&F146&"*",Sheet1!C:C,0) ->  | K146: =MATCH("*"&H146&"*",Sheet1!C:C,0) ->  | L146: =MATCH("*"&I146&"*",Sheet1!B:B,0) ->  | P146: =INDEX('[1]Pt1-AvionicsComponentCosts'!$A:$NE,MATCH(B146,'[1]Pt1-AvionicsComponentCosts'!$A:$A,0),MATCH("END MARKER",'[1]Pt1-AvionicsComponentCosts'!$11:$11,0)) -> 1267554 | Q146: 0.99 | R146: 0.99
B147: 35 | C147: =INDEX('[1]Pt1-AvionicsComponentCosts'!$A:$B,MATCH(B147,'[1]Pt1-AvionicsComponentCosts'!$A:$A,0),2) -> Business Jet | D147: Bombardier | E147: 1 | F147: Challenger 600 series | G147: Bombardier Challenger 600 series | H147: Challenger 600 series | I147: Challenger 600 series | J147: =MATCH("*"&F147&"*",Sheet1!C:C,0) ->  | K147: =MATCH("*"&H147&"*",Sheet1!C:C,0) ->  | L147: =MATCH("*"&I147&"*",Sheet1!B:B,0) ->  | M147: =INDEX('Bombardier Prices'!A:D,MATCH(I147,'Bombardier Prices'!D:D,0),2) -> 31.9 | O147: https://www.wijet.com/bombardier-private-jet-price-list/#google_vignette | P147: =INDEX('[1]Pt1-AvionicsComponentCosts'!$A:$NE,MATCH(B147,'[1]Pt1-AvionicsComponentCosts'!$A:$A,0),MATCH("END MARKER",'[1]Pt1-AvionicsComponentCosts'!$11:$11,0)) -> 971537 | Q147: 0.75 | R147: 0.75 | S147: 0.22841779
B148: 635 | C148: =INDEX('[1]Pt1-AvionicsComponentCosts'!$A:$B,MATCH(B148,'[1]Pt1-AvionicsComponentCosts'!$A:$A,0),2) -> Business Jet | D148: Bombardier | E148: 1 | F148: Challenger 600 series | G148: Bombardier Challenger 6XX series | H148: Challenger 6XX series | I148: Challenger 6XX series | J148: =MATCH("*"&F148&"*",Sheet1!C:C,0) ->  | K148: =MATCH("*"&H148&"*",Sheet1!C:C,0) ->  | L148: =MATCH("*"&I148&"*",Sheet1!B:B,0) ->  | M148: =INDEX('Bombardier Prices'!A:D,MATCH(I148,'Bombardier Prices'!D:D,0),2) -> 31.9 | O148: https://www.wijet.com/bombardier-private-jet-price-list/#google_vignette | P148: =INDEX('[1]Pt1-AvionicsComponentCosts'!$A:$NE,MATCH(B148,'[1]Pt1-AvionicsComponentCosts'!$A:$A,0),MATCH("END MARKER",'[1]Pt1-AvionicsComponentCosts'!$11:$11,0)) -> 981344 | Q148: 0.75 | R148: 0.75 | S148: 0.230723511
B149: 72 | C149: =INDEX('[1]Pt1-AvionicsComponentCosts'!$A:$B,MATCH(B149,'[1]Pt1-AvionicsComponentCosts'!$A:$A,0),2) -> Business Jet | D149: Bombardier | E149: 1 | F149: Challenger 850 | G149: Bombardier Challenger 850 | H149: Challenger 850 | I149: Challenger 850 | J149: =MATCH("*"&F149&"*",Sheet1!C:C,0) ->  | K149: =MATCH("*"&H149&"*",Sheet1!C:C,0) ->  | L149: =MATCH("*"&I149&"*",Sheet1!B:B,0) ->  | M149: =INDEX('Bombardier Prices'!A:D,MATCH(I149,'Bombardier Prices'!D:D,0),2) -> 39.9 | O149: https://www.wijet.com/bombardier-private-jet-price-list/#google_vignette | P149: =INDEX('[1]Pt1-AvionicsComponentCosts'!$A:$NE,MATCH(B149,'[1]Pt1-AvionicsComponentCosts'!$A:$A,0),MATCH("END MARKER",'[1]Pt1-AvionicsComponentCosts'!$11:$11,0)) -> 971537 | Q149: 0.75 | R149: 0.75 | S149: 0.1826197368
B150: 38 | C150: =INDEX('[1]Pt1-AvionicsComponentCosts'!$A:$B,MATCH(B150,'[1]Pt1-AvionicsComponentCosts'!$A:$A,0),2) -> Business Jet | D150: Bombardier | E150: 1 | F150: Global 7000 | G150: Bombardier Global 7500/8000 | H150: Global 7500/8000 | I150: Global 7500/8000 | J150: =MATCH("*"&F150&"*",Sheet1!C:C,0) ->  | K150: =MATCH("*"&H150&"*",Sheet1!C:C,0) ->  | L150: =MATCH("*"&I150&"*",Sheet1!B:B,0) ->  | M150: 80 | O150: https://infogram.com/bca-table-2023-jets-ultra-long-range-1ho16vorwrqkx4n | P150: =INDEX('[1]Pt1-AvionicsComponentCosts'!$A:$NE,MATCH(B150,'[1]Pt1-AvionicsComponentCosts'!$A:$A,0),MATCH("END MARKER",'[1]Pt1-AvionicsComponentCosts'!$11:$11,0)) -> 1086106 | Q150: 0.75 | R150: 0.75 | S150: 0.1018224375
B151: 36 | C151: =INDEX('[1]Pt1-AvionicsComponentCosts'!$A:$B,MATCH(B151,'[1]Pt1-AvionicsComponentCosts'!$A:$A,0),2) -> Business Jet | D151: Bombardier | E151: 1 | F151: Global Express - 5000/6000 | G151: Bombardier Global 5000 | H151: Global 5000 | I151: Global 5000 | J151: =MATCH("*"&F151&"*",Sheet1!C:C,0) ->  | K151: =MATCH("*"&H151&"*",Sheet1!C:C,0) ->  | L151: =MATCH("*"&I151&"*",Sheet1!B:B,0) ->  | M151: =INDEX('Bombardier Prices'!A:D,MATCH(I151,'Bombardier Prices'!D:D,0),2) -> 46 | O151: https://www.wijet.com/bombardier-private-jet-price-list/#google_vignette | P151: =INDEX('[1]Pt1-AvionicsComponentCosts'!$A:$NE,MATCH(B151,'[1]Pt1-AvionicsComponentCosts'!$A:$A,0),MATCH("END MARKER",'[1]Pt1-AvionicsComponentCosts'!$11:$11,0)) -> 1086106 | Q151: 0.75 | R151: 0.75 | S151: 0.1770825
B152: 576 | C152: =INDEX('[1]Pt1-AvionicsComponentCosts'!$A:$B,MATCH(B152,'[1]Pt1-AvionicsComponentCosts'!$A:$A,0),2) -> Business Jet | D152: Bombardier | E152: 1 | F152: Global Express - 5000/6000 | G152: Bombardier Global 5500 | H152: Global 5500 | I152: Global 5500 | J152: =MATCH("*"&F152&"*",Sheet1!C:C,0) ->  | K152: =MATCH("*"&H152&"*",Sheet1!C:C,0) ->  | L152: =MATCH("*"&I152&"*",Sheet1!B:B,0) ->  | M152: =INDEX('Bombardier Prices'!A:D,MATCH(I152,'Bombardier Prices'!D:D,0),2) -> 46 | O152: https://www.wijet.com/bombardier-private-jet-price-list/#google_vignette | P152: =INDEX('[1]Pt1-AvionicsComponentCosts'!$A:$NE,MATCH(B152,'[1]Pt1-AvionicsComponentCosts'!$A:$A,0),MATCH("END MARKER",'[1]Pt1-AvionicsComponentCosts'!$11:$11,0)) -> 1086106 | Q152: 0.75 | R152: 0.75 | S152: 0.1770825
B153: 37 | C153: =INDEX('[1]Pt1-AvionicsComponentCosts'!$A:$B,MATCH(B153,'[1]Pt1-AvionicsComponentCosts'!$A:$A,0),2) -> Business Jet | D153: Bombardier | E153: 1 | F153: Global Express - 5000/6000 | G153: Bombardier Global 6000 | H153: Global 6000 | I153: Global 6000 | J153: =MATCH("*"&F153&"*",Sheet1!C:C,0) ->  | K153: =MATCH("*"&H153&"*",Sheet1!C:C,0) ->  | L153: =MATCH("*"&I153&"*",Sheet1!B:B,0) ->  | M153: =INDEX('Bombardier Prices'!A:D,MATCH(I153,'Bombardier Prices'!D:D,0),2) -> 55.8 | O153: https://www.wijet.com/bombardier-private-jet-price-list/#google_vignette | P153: =INDEX('[1]Pt1-AvionicsComponentCosts'!$A:$NE,MATCH(B153,'[1]Pt1-AvionicsComponentCosts'!$A:$A,0),MATCH("END MARKER",'[1]Pt1-AvionicsComponentCosts'!$11:$11,0)) -> 1086106 | Q153: 0.75 | R153: 0.75 | S153: 0.1459819892
B154: 577 | C154: =INDEX('[1]Pt1-AvionicsComponentCosts'!$A:$B,MATCH(B154,'[1]Pt1-AvionicsComponentCosts'!$A:$A,0),2) -> Business Jet | D154: Bombardier | E154: 1 | F154: Global Express - 5000/6000 | G154: Bombardier Global 6500 | H154: Global 6500 | I154: Global 6500 | J154: =MATCH("*"&F154&"*",Sheet1!C:C,0) ->  | K154: =MATCH("*"&H154&"*",Sheet1!C:C,0) ->  | L154: =MATCH("*"&I154&"*",Sheet1!B:B,0) ->  | M154: 58 | O154: https://infogram.com/bca-table-2023-jets-ultra-long-range-1ho16vorwrqkx4n | P154: =INDEX('[1]Pt1-AvionicsComponentCosts'!$A:$NE,MATCH(B154,'[1]Pt1-AvionicsComponentCosts'!$A:$A,0),MATCH("END MARKER",'[1]Pt1-AvionicsComponentCosts'!$11:$11,0)) -> 1086106 | Q154: 0.75 | R154: 0.75 | S154: 0.1404447414
B155: 34 | C155: =INDEX('[1]Pt1-AvionicsComponentCosts'!$A:$B,MATCH(B155,'[1]Pt1-AvionicsComponentCosts'!$A:$A,0),2) -> Business Jet | D155: Bombardier | E155: 1 | F155: Bombardier Challenger 300/350 | G155: Bombardier Challenger 300/350 | H155: Challenger 300/350 | I155: Challenger 300/350 | J155: =MATCH("*"&F155&"*",Sheet1!C:C,0) ->  | K155: =MATCH("*"&H155&"*",Sheet1!C:C,0) ->  | L155: =MATCH("*"&I155&"*",Sheet1!B:B,0) ->  | M155: =INDEX('Bombardier Prices'!A:D,MATCH(I155,'Bombardier Prices'!D:D,0),2) -> 14 | O155: https://www.wijet.com/bombardier-private-jet-price-list/#google_vignette | P155: =INDEX('[1]Pt1-AvionicsComponentCosts'!$A:$NE,MATCH(B155,'[1]Pt1-AvionicsComponentCosts'!$A:$A,0),MATCH("END MARKER",'[1]Pt1-AvionicsComponentCosts'!$11:$11,0)) -> 732140 | Q155: 0.75 | R155: 0.75 | S155: 0.3922178571
B156: 649 | C156: =INDEX('[1]Pt1-AvionicsComponentCosts'!$A:$B,MATCH(B156,'[1]Pt1-AvionicsComponentCosts'!$A:$A,0),2) -> Business Jet | D156: Bombardier | E156: 1 | F156: Bombardier Challenger 3500 | G156: Bombardier Challenger 3500 | H156: Challenger 3500 | I156: Challenger 3500 | J156: =MATCH("*"&F156&"*",Sheet1!C:C,0) ->  | K156: =MATCH("*"&H156&"*",Sheet1!C:C,0) ->  | L156: =MATCH("*"&I156&"*",Sheet1!B:B,0) ->  | M156: =INDEX('Bombardier Prices'!A:D,MATCH(I156,'Bombardier Prices'!D:D,0),2) -> 14.9 | O156: https://www.wijet.com/bombardier-private-jet-price-list/#google_vignette | P156: =INDEX('[1]Pt1-AvionicsComponentCosts'!$A:$NE,MATCH(B156,'[1]Pt1-AvionicsComponentCosts'!$A:$A,0),MATCH("END MARKER",'[1]Pt1-AvionicsComponentCosts'!$11:$11,0)) -> 732140 | Q156: 0.75 | R156: 0.75 | S156: 0.3685268456
B157: 618 | C157: =INDEX('[1]Pt1-AvionicsComponentCosts'!$A:$B,MATCH(B157,'[1]Pt1-AvionicsComponentCosts'!$A:$A,0),2) -> Regional | D157: Bombardier | E157: 1 | F157: Bombardier CRJ | G157: Bombardier CRJ200 | H157: CRJ200 | I157: CRJ200 | J157: =MATCH("*"&F157&"*",Sheet1!C:C,0) ->  | K157: =MATCH("*"&H157&"*",Sheet1!C:C,0) ->  | L157: =MATCH("*"&I157&"*",Sheet1!B:B,0) -> 38 | P157: =INDEX('[1]Pt1-AvionicsComponentCosts'!$A:$NE,MATCH(B157,'[1]Pt1-AvionicsComponentCosts'!$A:$A,0),MATCH("END MARKER",'[1]Pt1-AvionicsComponentCosts'!$11:$11,0)) -> 925102 | Q157: 0.65 | R157: 0.65
B158: 220 | C158: =INDEX('[1]Pt1-AvionicsComponentCosts'!$A:$B,MATCH(B158,'[1]Pt1-AvionicsComponentCosts'!$A:$A,0),2) -> Regional | D158: Bombardier | E158: 1 | F158: Bombardier CRJ | G158: Bombardier CRJ700-1000 | H158: CRJ700-1000 | I158: CRJ700-1000 | J158: =MATCH("*"&F158&"*",Sheet1!C:C,0) ->  | K158: =MATCH("*"&H158&"*",Sheet1!C:C,0) ->  | L158: =MATCH("*"&I158&"*",Sheet1!B:B,0) ->  | P158: =INDEX('[1]Pt1-AvionicsComponentCosts'!$A:$NE,MATCH(B158,'[1]Pt1-AvionicsComponentCosts'!$A:$A,0),MATCH("END MARKER",'[1]Pt1-AvionicsComponentCosts'!$11:$11,0)) -> 925102 | Q158: 0.65 | R158: 0.65
B159: 218 | C159: =INDEX('[1]Pt1-AvionicsComponentCosts'!$A:$B,MATCH(B159,'[1]Pt1-AvionicsComponentCosts'!$A:$A,0),2) -> Regional | D159: Bombardier | E159: 1 | F159: Bombardier CRJ | G159: Bombardier CRJ700-700 | H159: CRJ700-700 | I159: CRJ700-700 | J159: =MATCH("*"&F159&"*",Sheet1!C:C,0) ->  | K159: =MATCH("*"&H159&"*",Sheet1!C:C,0) ->  | L159: =MATCH("*"&I159&"*",Sheet1!B:B,0) ->  | P159: =INDEX('[1]Pt1-AvionicsComponentCosts'!$A:$NE,MATCH(B159,'[1]Pt1-AvionicsComponentCosts'!$A:$A,0),MATCH("END MARKER",'[1]Pt1-AvionicsComponentCosts'!$11:$11,0)) -> 925102 | Q159: 0.65 | R159: 0.65
B160: 219 | C160: =INDEX('[1]Pt1-AvionicsComponentCosts'!$A:$B,MATCH(B160,'[1]Pt1-AvionicsComponentCosts'!$A:$A,0),2) -> Regional | D160: Bombardier | E160: 1 | F160: Bombardier CRJ | G160: Bombardier CRJ700-900 | H160: CRJ700-900 | I160: CRJ700-900 | J160: =MATCH("*"&F160&"*",Sheet1!C:C,0) ->  | K160: =MATCH("*"&H160&"*",Sheet1!C:C,0) ->  | L160: =MATCH("*"&I160&"*",Sheet1!B:B,0) ->  | P160: =INDEX('[1]Pt1-AvionicsComponentCosts'!$A:$NE,MATCH(B160,'[1]Pt1-AvionicsComponentCosts'!$A:$A,0),MATCH("END MARKER",'[1]Pt1-AvionicsComponentCosts'!$11:$11,0)) -> 925102 | Q160: 0.65 | R160: 0.65
B161: 226 | C161: =INDEX('[1]Pt1-AvionicsComponentCosts'!$A:$B,MATCH(B161,'[1]Pt1-AvionicsComponentCosts'!$A:$A,0),2) -> Turbine GA | D161: Canadair | E161: 1 | F161: Canadair CL-415 | G161: Canadair CL-415 | H161: CL-415 | I161: CL-415 | J161: =MATCH("*"&F161&"*",Sheet1!C:C,0) ->  | K161: =MATCH("*"&H161&"*",Sheet1!C:C,0) ->  | L161: =MATCH("*"&I161&"*",Sheet1!B:B,0) ->  | M161: 36.9 | N161: in 2014 | O161: https://en.wikipedia.org/wiki/Canadair_CL-415 | P161: =INDEX('[1]Pt1-AvionicsComponentCosts'!$A:$NE,MATCH(B161,'[1]Pt1-AvionicsComponentCosts'!$A:$A,0),MATCH("END MARKER",'[1]Pt1-AvionicsComponentCosts'!$11:$11,0)) -> 903607 | Q161: 1 | R161: 1 | S161: 0.2448799458
B162: 152 | C162: =INDEX('[1]Pt1-AvionicsComponentCosts'!$A:$B,MATCH(B162,'[1]Pt1-AvionicsComponentCosts'!$A:$A,0),2) -> Military Transport / Special Mission | D162: CASA | E162: 1 | F162: CASA C-212 Aviocar | G162: CASA C-212 Aviocar | H162: C-212 Aviocar | I162: C-212 Aviocar | J162: =MATCH("*"&F162&"*",Sheet1!C:C,0) ->  | K162: =MATCH("*"&H162&"*",Sheet1!C:C,0) ->  | L162: =MATCH("*"&I162&"*",Sheet1!B:B,0) ->  | P162: =INDEX('[1]Pt1-AvionicsComponentCosts'!$A:$NE,MATCH(B162,'[1]Pt1-AvionicsComponentCosts'!$A:$A,0),MATCH("END MARKER",'[1]Pt1-AvionicsComponentCosts'!$11:$11,0)) -> 2984826 | Q162: 1 | R162: 1
B163: 153 | C163: =INDEX('[1]Pt1-AvionicsComponentCosts'!$A:$B,MATCH(B163,'[1]Pt1-AvionicsComponentCosts'!$A:$A,0),2) -> Military Transport / Special Mission | D163: CASA/IPTN | E163: 1 | F163: CASA/IPTN CN-235 | G163: CASA/IPTN CN-235 | H163: CN-235 | I163: CN-235 | J163: =MATCH("*"&F163&"*",Sheet1!C:C,0) ->  | K163: =MATCH("*"&H163&"*",Sheet1!C:C,0) ->  | L163: =MATCH("*"&I163&"*",Sheet1!B:B,0) ->  | P163: =INDEX('[1]Pt1-AvionicsComponentCosts'!$A:$NE,MATCH(B163,'[1]Pt1-AvionicsComponentCosts'!$A:$A,0),MATCH("END MARKER",'[1]Pt1-AvionicsComponentCosts'!$11:$11,0)) -> 3024812 | Q163: 1 | R163: 1
B164: 48 | C164: =INDEX('[1]Pt1-AvionicsComponentCosts'!$A:$B,MATCH(B164,'[1]Pt1-AvionicsComponentCosts'!$A:$A,0),2) -> Business Jet | D164: Cessna | E164: 1 | F164: Citation Hemisphere | G164: Cessna Citation Hemisphere | H164: Citation Hemisphere | I164: Citation Hemisphere | J164: =MATCH("*"&F164&"*",Sheet1!C:C,0) ->  | K164: =MATCH("*"&H164&"*",Sheet1!C:C,0) ->  | L164: =MATCH("*"&I164&"*",Sheet1!B:B,0) ->  | P164: =INDEX('[1]Pt1-AvionicsComponentCosts'!$A:$NE,MATCH(B164,'[1]Pt1-AvionicsComponentCosts'!$A:$A,0),MATCH("END MARKER",'[1]Pt1-AvionicsComponentCosts'!$11:$11,0)) -> 971537 | Q164: 0.75 | R164: 0.75
B165: 47 | C165: =INDEX('[1]Pt1-AvionicsComponentCosts'!$A:$B,MATCH(B165,'[1]Pt1-AvionicsComponentCosts'!$A:$A,0),2) -> Business Jet | D165: Cessna | E165: 1 | F165: Citation Longitude | G165: Cessna Citation Longitude | H165: Citation Longitude | I165: Citation Longitude | J165: =MATCH("*"&F165&"*",Sheet1!C:C,0) ->  | K165: =MATCH("*"&H165&"*",Sheet1!C:C,0) ->  | L165: =MATCH("*"&I165&"*",Sheet1!B:B,0) ->  | M165: 29.9 | O165: https://aviationweek.com/business-aviation/aircraft-propulsion/20twenty-longitude-cessnas-super-mid-flagship | P165: =INDEX('[1]Pt1-AvionicsComponentCosts'!$A:$NE,MATCH(B165,'[1]Pt1-AvionicsComponentCosts'!$A:$A,0),MATCH("END MARKER",'[1]Pt1-AvionicsComponentCosts'!$11:$11,0)) -> 971537 | Q165: 0.75 | R165: 0.75 | S165: 0.2436965719
B166: 42 | C166: =INDEX('[1]Pt1-AvionicsComponentCosts'!$A:$B,MATCH(B166,'[1]Pt1-AvionicsComponentCosts'!$A:$A,0),2) -> Business Jet | D166: Cessna | E166: 1 | F166: Citation CJ3 | G166: Cessna Citation CJ3 | H166: Citation CJ3 | I166: Citation CJ3 | J166: =MATCH("*"&F166&"*",Sheet1!C:C,0) ->  | K166: =MATCH("*"&H166&"*",Sheet1!C:C,0) ->  | L166: =MATCH("*"&I166&"*",Sheet1!B:B,0) ->  | P166: =INDEX('[1]Pt1-AvionicsComponentCosts'!$A:$NE,MATCH(B166,'[1]Pt1-AvionicsComponentCosts'!$A:$A,0),MATCH("END MARKER",'[1]Pt1-AvionicsComponentCosts'!$11:$11,0)) -> 452749 | Q166: 0.75 | R166: 0.75
B167: 43 | C167: =INDEX('[1]Pt1-AvionicsComponentCosts'!$A:$B,MATCH(B167,'[1]Pt1-AvionicsComponentCosts'!$A:$A,0),2) -> Business Jet | D167: Cessna | E167: 1 | F167: Citation CJ4 | G167: Cessna Citation CJ4 | H167: Citation CJ4 | I167: Citation CJ4 | J167: =MATCH("*"&F167&"*",Sheet1!C:C,0) ->  | K167: =MATCH("*"&H167&"*",Sheet1!C:C,0) ->  | L167: =MATCH("*"&I167&"*",Sheet1!B:B,0) ->  | M167: 9.2 | O167: https://www.bjtonline.com/aircraft/cessna-citation-cj4 | P167: =INDEX('[1]Pt1-AvionicsComponentCosts'!$A:$NE,MATCH(B167,'[1]Pt1-AvionicsComponentCosts'!$A:$A,0),MATCH("END MARKER",'[1]Pt1-AvionicsComponentCosts'!$11:$11,0)) -> 452749 | Q167: 0.75 | R167: 0.75 | S167: 0.3690888587
B168: 39 | C168: =INDEX('[1]Pt1-AvionicsComponentCosts'!$A:$B,MATCH(B168,'[1]Pt1-AvionicsComponentCosts'!$A:$A,0),2) -> Business Jet | D168: Cessna | E168: 1 | F168: Citation V | G168: Cessna Citation Encore | H168: Citation Encore | I168: Citation Encore | J168: =MATCH("*"&F168&"*",Sheet1!C:C,0) ->  | K168: =MATCH("*"&H168&"*",Sheet1!C:C,0) ->  | L168: =MATCH("*"&I168&"*",Sheet1!B:B,0) ->  | P168: =INDEX('[1]Pt1-AvionicsComponentCosts'!$A:$NE,MATCH(B168,'[1]Pt1-AvionicsComponentCosts'!$A:$A,0),MATCH("END MARKER",'[1]Pt1-AvionicsComponentCosts'!$11:$11,0)) -> 452749 | Q168: 0.75 | R168: 0.75
B169: 46 | C169: =INDEX('[1]Pt1-AvionicsComponentCosts'!$A:$B,MATCH(B169,'[1]Pt1-AvionicsComponentCosts'!$A:$A,0),2) -> Business Jet | D169: Cessna | E169: 1 | F169: Citation Latitude | G169: Cessna Citation Latitude | H169: Citation Latitude | I169: Citation Latitude | J169: =MATCH("*"&F169&"*",Sheet1!C:C,0) ->  | K169: =MATCH("*"&H169&"*",Sheet1!C:C,0) ->  | L169: =MATCH("*"&I169&"*",Sheet1!B:B,0) ->  | M169: 20 | O169: https://www.avbuyer.com/articles/private-jet-price-guides/cessna-citation-latitude-price-guide-112581#price-guide-full-dtl | P169: =INDEX('[1]Pt1-AvionicsComponentCosts'!$A:$NE,MATCH(B169,'[1]Pt1-AvionicsComponentCosts'!$A:$A,0),MATCH("END MARKER",'[1]Pt1-AvionicsComponentCosts'!$11:$11,0)) -> 725690 | Q169: 0.75 | R169: 0.75 | S169: 0.27213375
B170: 45 | C170: =INDEX('[1]Pt1-AvionicsComponentCosts'!$A:$B,MATCH(B170,'[1]Pt1-AvionicsComponentCosts'!$A:$A,0),2) -> Business Jet | D170: Cessna | E170: 1 | F170: Citation Sovereign | G170: Cessna Citation Sovereign | H170: Citation Sovereign | I170: Citation Sovereign | J170: =MATCH("*"&F170&"*",Sheet1!C:C,0) ->  | K170: =MATCH("*"&H170&"*",Sheet1!C:C,0) ->  | L170: =MATCH("*"&I170&"*",Sheet1!B:B,0) ->  | P170: =INDEX('[1]Pt1-AvionicsComponentCosts'!$A:$NE,MATCH(B170,'[1]Pt1-AvionicsComponentCosts'!$A:$A,0),MATCH("END MARKER",'[1]Pt1-AvionicsComponentCosts'!$11:$11,0)) -> 725690 | Q170: 0.75 | R170: 0.75
B171: 49 | C171: =INDEX('[1]Pt1-AvionicsComponentCosts'!$A:$B,MATCH(B171,'[1]Pt1-AvionicsComponentCosts'!$A:$A,0),2) -> Business Jet | D171: Cessna | E171: 1 | F171: Citation X | G171: Cessna Citation X | H171: Citation X | I171: Citation X | J171: =MATCH("*"&F171&"*",Sheet1!C:C,0) ->  | K171: =MATCH("*"&H171&"*",Sheet1!C:C,0) ->  | L171: =MATCH("*"&I171&"*",Sheet1!B:B,0) ->  | P171: =INDEX('[1]Pt1-AvionicsComponentCosts'!$A:$NE,MATCH(B171,'[1]Pt1-AvionicsComponentCosts'!$A:$A,0),MATCH("END MARKER",'[1]Pt1-AvionicsComponentCosts'!$11:$11,0)) -> 725690 | Q171: 0.75 | R171: 0.75
B172: 40 | C172: =INDEX('[1]Pt1-AvionicsComponentCosts'!$A:$B,MATCH(B172,'[1]Pt1-AvionicsComponentCosts'!$A:$A,0),2) -> Business Jet | D172: Cessna | E172: 1 | F172: Citation XLS | G172: Cessna Citation XLS | H172: Citation XLS | I172: Citation XLS | J172: =MATCH("*"&F172&"*",Sheet1!C:C,0) ->  | K172: =MATCH("*"&H172&"*",Sheet1!C:C,0) ->  | L172: =MATCH("*"&I172&"*",Sheet1!B:B,0) ->  | P172: =INDEX('[1]Pt1-AvionicsComponentCosts'!$A:$NE,MATCH(B172,'[1]Pt1-AvionicsComponentCosts'!$A:$A,0),MATCH("END MARKER",'[1]Pt1-AvionicsComponentCosts'!$11:$11,0)) -> 725690 | Q172: 0.75 | R172: 0.75
B173: 41 | C173: =INDEX('[1]Pt1-AvionicsComponentCosts'!$A:$B,MATCH(B173,'[1]Pt1-AvionicsComponentCosts'!$A:$A,0),2) -> Business Jet | D173: Cessna | E173: 1 | F173: Citation M2 | G173: Cessna Citation M2 | H173: Citation M2 | I173: Citation M2 | J173: =MATCH("*"&F173&"*",Sheet1!C:C,0) ->  | K173: =MATCH("*"&H173&"*",Sheet1!C:C,0) ->  | L173: =MATCH("*"&I173&"*",Sheet1!B:B,0) ->  | M173: 4.7 | O173: https://www.bjtonline.com/aircraft/cessna-citation-m2 | P173: =INDEX('[1]Pt1-AvionicsComponentCosts'!$A:$NE,MATCH(B173,'[1]Pt1-AvionicsComponentCosts'!$A:$A,0),MATCH("END MARKER",'[1]Pt1-AvionicsComponentCosts'!$11:$11,0)) -> 206293 | Q173: 0.75 | R173: 0.75 | S173: 0.3291909574
B174: 44 | C174: =INDEX('[1]Pt1-AvionicsComponentCosts'!$A:$B,MATCH(B174,'[1]Pt1-AvionicsComponentCosts'!$A:$A,0),2) -> Business Jet | D174: Cessna | E174: 1 | F174: Citation Mustang | G174: Cessna Citation Mustang | H174: Citation Mustang | I174: Citation Mustang | J174: =MATCH("*"&F174&"*",Sheet1!C:C,0) ->  | K174: =MATCH("*"&H174&"*",Sheet1!C:C,0) ->  | L174: =MATCH("*"&I174&"*",Sheet1!B:B,0) ->  | P174: =INDEX('[1]Pt1-AvionicsComponentCosts'!$A:$NE,MATCH(B174,'[1]Pt1-AvionicsComponentCosts'!$A:$A,0),MATCH("END MARKER",'[1]Pt1-AvionicsComponentCosts'!$11:$11,0)) -> 206293 | Q174: 0.75 | R174: 0.75
B175: 82 | C175: =INDEX('[1]Pt1-AvionicsComponentCosts'!$A:$B,MATCH(B175,'[1]Pt1-AvionicsComponentCosts'!$A:$A,0),2) -> Turbine GA | D175: Cessna | E175: 1 | F175: Cessna 208 Caravan | G175: Cessna 208 Caravan | H175: 208 Caravan | I175: 208 Caravan | J175: =MATCH("*"&F175&"*",Sheet1!C:C,0) ->  | K175: =MATCH("*"&H175&"*",Sheet1!C:C,0) ->  | L175: =MATCH("*"&I175&"*",Sheet1!B:B,0) ->  | M175: 2.6 | O175: https://www.bjtonline.com/aircraft/cessna-208b-grand-caravan-ex | P175: =INDEX('[1]Pt1-AvionicsComponentCosts'!$A:$NE,MATCH(B175,'[1]Pt1-AvionicsComponentCosts'!$A:$A,0),MATCH("END MARKER",'[1]Pt1-AvionicsComponentCosts'!$11:$11,0)) -> 214523 | Q175: 1 | R175: 1 | S175: 0.8250884615
B176: 308 | C176: =INDEX('[1]Pt1-AvionicsComponentCosts'!$A:$B,MATCH(B176,'[1]Pt1-AvionicsComponentCosts'!$A:$A,0),2) -> Turbine GA | D176: Cessna | E176: 1 | F176: Cessna 408 SkyCourier | G176: Cessna 408 SkyCourier | H176: 408 SkyCourier | I176: 408 SkyCourier | J176: =MATCH("*"&F176&"*",Sheet1!C:C,0) ->  | K176: =MATCH("*"&H176&"*",Sheet1!C:C,0) ->  | L176: =MATCH("*"&I176&"*",Sheet1!B:B,0) ->  | M176: 5.5 | O176: https://www.bjtonline.com/business-jet-news/cessna-408-skycourier | P176: =INDEX('[1]Pt1-AvionicsComponentCosts'!$A:$NE,MATCH(B176,'[1]Pt1-AvionicsComponentCosts'!$A:$A,0),MATCH("END MARKER",'[1]Pt1-AvionicsComponentCosts'!$11:$11,0)) -> 217209 | Q176: 1 | R176: 1 | S176: 0.3949254545
B177: 81 | C177: =INDEX('[1]Pt1-AvionicsComponentCosts'!$A:$B,MATCH(B177,'[1]Pt1-AvionicsComponentCosts'!$A:$A,0),2) -> Turbine GA | D177: Cessna | E177: 1 | F177: Cessna Denali | G177: Cessna Denali | H177: Denali | I177: Denali | J177: =MATCH("*"&F177&"*",Sheet1!C:C,0) ->  | K177: =MATCH("*"&H177&"*",Sheet1!C:C,0) ->  | L177: =MATCH("*"&I177&"*",Sheet1!B:B,0) ->  | M177: 6.4 | O177: https://www.aircharteradvisors.com/beechcraft-denali/ | P177: =INDEX('[1]Pt1-AvionicsComponentCosts'!$A:$NE,MATCH(B177,'[1]Pt1-AvionicsComponentCosts'!$A:$A,0),MATCH("END MARKER",'[1]Pt1-AvionicsComponentCosts'!$11:$11,0)) -> 228066 | Q177: 1 | R177: 1 | S177: 0.356353125
B178: 550 | C178: =INDEX('[1]Pt1-AvionicsComponentCosts'!$A:$B,MATCH(B178,'[1]Pt1-AvionicsComponentCosts'!$A:$A,0),2) -> Business Jet | D178: Cirrus | E178: 1 | F178: Cirrus Vision Jet SF50 | G178: Cirrus Vision Jet SF50 | H178: Vision Jet SF50 | I178: Vision Jet SF50 | J178: =MATCH("*"&F178&"*",Sheet1!C:C,0) ->  | K178: =MATCH("*"&H178&"*",Sheet1!C:C,0) ->  | L178: =MATCH("*"&I178&"*",Sheet1!B:B,0) ->  | P178: =INDEX('[1]Pt1-AvionicsComponentCosts'!$A:$NE,MATCH(B178,'[1]Pt1-AvionicsComponentCosts'!$A:$A,0),MATCH("END MARKER",'[1]Pt1-AvionicsComponentCosts'!$11:$11,0)) -> 206293 | Q178: 0.75 | R178: 0.75
B179: 18 | C179: =INDEX('[1]Pt1-AvionicsComponentCosts'!$A:$B,MATCH(B179,'[1]Pt1-AvionicsComponentCosts'!$A:$A,0),2) -> Large Commercial Aircraft | D179: Comac | E179: 1 | F179: Comac C919 | G179: Comac C919 | H179: C919 | I179: C919 | J179: =MATCH("*"&F179&"*",Sheet1!C:C,0) ->  | K179: =MATCH("*"&H179&"*",Sheet1!C:C,0) ->  | L179: =MATCH("*"&I179&"*",Sheet1!B:B,0) ->  | P179: =INDEX('[1]Pt1-AvionicsComponentCosts'!$A:$NE,MATCH(B179,'[1]Pt1-AvionicsComponentCosts'!$A:$A,0),MATCH("END MARKER",'[1]Pt1-AvionicsComponentCosts'!$11:$11,0)) -> 1368462 | Q179: =50% -> 0.5 | R179: =50% -> 0.5
B180: 27 | C180: =INDEX('[1]Pt1-AvionicsComponentCosts'!$A:$B,MATCH(B180,'[1]Pt1-AvionicsComponentCosts'!$A:$A,0),2) -> Regional | D180: Comac | E180: 1 | F180: Comac ARJ21 | G180: Comac ARJ21 | H180: ARJ21 | I180: ARJ21 | J180: =MATCH("*"&F180&"*",Sheet1!C:C,0) ->  | K180: =MATCH("*"&H180&"*",Sheet1!C:C,0) ->  | L180: =MATCH("*"&I180&"*",Sheet1!B:B,0) ->  | P180: =INDEX('[1]Pt1-AvionicsComponentCosts'!$A:$NE,MATCH(B180,'[1]Pt1-AvionicsComponentCosts'!$A:$A,0),MATCH("END MARKER",'[1]Pt1-AvionicsComponentCosts'!$11:$11,0)) -> 977179 | Q180: 0.65 | R180: 0.65
B181: 587 | C181: =INDEX('[1]Pt1-AvionicsComponentCosts'!$A:$B,MATCH(B181,'[1]Pt1-AvionicsComponentCosts'!$A:$A,0),2) -> Business Jet | D181: Dassault | E181: 1 | F181: Falcon 10X | G181: Dassault Falcon 10X | H181: Falcon 10X | I181: Falcon 10X | J181: =MATCH("*"&F181&"*",Sheet1!C:C,0) ->  | K181: =MATCH("*"&H181&"*",Sheet1!C:C,0) ->  | L181: =MATCH("*"&I181&"*",Sheet1!B:B,0) ->  | P181: =INDEX('[1]Pt1-AvionicsComponentCosts'!$A:$NE,MATCH(B181,'[1]Pt1-AvionicsComponentCosts'!$A:$A,0),MATCH("END MARKER",'[1]Pt1-AvionicsComponentCosts'!$11:$11,0)) -> 1095913 | Q181: 0.75 | R181: 0.75
B182: 51 | C182: =INDEX('[1]Pt1-AvionicsComponentCosts'!$A:$B,MATCH(B182,'[1]Pt1-AvionicsComponentCosts'!$A:$A,0),2) -> Business Jet | D182: Dassault | E182: 1 | F182: Falcon 6X | G182: Dassault Falcon 6X | H182: Falcon 6X | I182: Falcon 6X | J182: =MATCH("*"&F182&"*",Sheet1!C:C,0) ->  | K182: =MATCH("*"&H182&"*",Sheet1!C:C,0) ->  | L182: =MATCH("*"&I182&"*",Sheet1!B:B,0) ->  | P182: =INDEX('[1]Pt1-AvionicsComponentCosts'!$A:$NE,MATCH(B182,'[1]Pt1-AvionicsComponentCosts'!$A:$A,0),MATCH("END MARKER",'[1]Pt1-AvionicsComponentCosts'!$11:$11,0)) -> 1086106 | Q182: 0.75 | R182: 0.75
B183: 54 | C183: =INDEX('[1]Pt1-AvionicsComponentCosts'!$A:$B,MATCH(B183,'[1]Pt1-AvionicsComponentCosts'!$A:$A,0),2) -> Business Jet | D183: Dassault | E183: 1 | F183: Falcon 7X/8X | G183: Dassault Falcon 7X/8X | H183: Falcon 7X/8X | I183: Falcon 7X/8X | J183: =MATCH("*"&F183&"*",Sheet1!C:C,0) ->  | K183: =MATCH("*"&H183&"*",Sheet1!C:C,0) ->  | L183: =MATCH("*"&I183&"*",Sheet1!B:B,0) ->  | M183: 63.8 | O183: https://infogram.com/bca-table-2023-jets-ultra-long-range-1ho16vorwrqkx4n | P183: =INDEX('[1]Pt1-AvionicsComponentCosts'!$A:$NE,MATCH(B183,'[1]Pt1-AvionicsComponentCosts'!$A:$A,0),MATCH("END MARKER",'[1]Pt1-AvionicsComponentCosts'!$11:$11,0)) -> 1086106 | Q183: 0.75 | R183: 0.75 | S183: 0.1276770376
B184: 50 | C184: =INDEX('[1]Pt1-AvionicsComponentCosts'!$A:$B,MATCH(B184,'[1]Pt1-AvionicsComponentCosts'!$A:$A,0),2) -> Business Jet | D184: Dassault | E184: 1 | F184: Falcon 900 | G184: Dassault Falcon 900 | H184: Falcon 900 | I184: Falcon 900 | J184: =MATCH("*"&F184&"*",Sheet1!C:C,0) ->  | K184: =MATCH("*"&H184&"*",Sheet1!C:C,0) ->  | L184: =MATCH("*"&I184&"*",Sheet1!B:B,0) ->  | P184: =INDEX('[1]Pt1-AvionicsComponentCosts'!$A:$NE,MATCH(B184,'[1]Pt1-AvionicsComponentCosts'!$A:$A,0),MATCH("END MARKER",'[1]Pt1-AvionicsComponentCosts'!$11:$11,0)) -> 1086106 | Q184: 0.75 | R184: 0.75
B185: 53 | C185: =INDEX('[1]Pt1-AvionicsComponentCosts'!$A:$B,MATCH(B185,'[1]Pt1-AvionicsComponentCosts'!$A:$A,0),2) -> Business Jet | D185: Dassault | E185: 1 | F185: Falcon 2000 | G185: Dassault Falcon 2000 | H185: Falcon 2000 | I185: Falcon 2000 | J185: =MATCH("*"&F185&"*",Sheet1!C:C,0) ->  | K185: =MATCH("*"&H185&"*",Sheet1!C:C,0) ->  | L185: =MATCH("*"&I185&"*",Sheet1!B:B,0) ->  | P185: =INDEX('[1]Pt1-AvionicsComponentCosts'!$A:$NE,MATCH(B185,'[1]Pt1-AvionicsComponentCosts'!$A:$A,0),MATCH("END MARKER",'[1]Pt1-AvionicsComponentCosts'!$11:$11,0)) -> 846709 | Q185: 0.75 | R185: 0.75
B186: 640 | C186: =INDEX('[1]Pt1-AvionicsComponentCosts'!$A:$B,MATCH(B186,'[1]Pt1-AvionicsComponentCosts'!$A:$A,0),2) -> Business Jet | D186: Dassault | E186: 1 | F186: Falcon 2X | G186: Dassault Falcon 2X | H186: Falcon 2X | I186: Falcon 2X | J186: =MATCH("*"&F186&"*",Sheet1!C:C,0) ->  | K186: =MATCH("*"&H186&"*",Sheet1!C:C,0) ->  | L186: =MATCH("*"&I186&"*",Sheet1!B:B,0) ->  | P186: =INDEX('[1]Pt1-AvionicsComponentCosts'!$A:$NE,MATCH(B186,'[1]Pt1-AvionicsComponentCosts'!$A:$A,0),MATCH("END MARKER",'[1]Pt1-AvionicsComponentCosts'!$11:$11,0)) -> 732140 | Q186: 0.75 | R186: 0.75
B187: 141 | C187: =INDEX('[1]Pt1-AvionicsComponentCosts'!$A:$B,MATCH(B187,'[1]Pt1-AvionicsComponentCosts'!$A:$A,0),2) -> Fighters and Jet Trainers | D187: Dassault | E187: 1 | F187: Dassault Rafale | G187: Dassault Rafale | H187: Rafale | I187: Rafale | J187: =MATCH("*"&F187&"*",Sheet1!C:C,0) ->  | K187: =MATCH("*"&H187&"*",Sheet1!C:C,0) ->  | L187: =MATCH("*"&I187&"*",Sheet1!B:B,0) ->  | P187: =INDEX('[1]Pt1-AvionicsComponentCosts'!$A:$NE,MATCH(B187,'[1]Pt1-AvionicsComponentCosts'!$A:$A,0),MATCH("END MARKER",'[1]Pt1-AvionicsComponentCosts'!$11:$11,0)) -> 2711860 | Q187: 1 | R187: 1
B188: 621 | C188: =INDEX('[1]Pt1-AvionicsComponentCosts'!$A:$B,MATCH(B188,'[1]Pt1-AvionicsComponentCosts'!$A:$A,0),2) -> Regional | D188: De Havilland Canada | E188: 1 | F188: De Havilland Canada DHC-8 | G188: De Havilland Canada DHC-8-100 | H188: DHC-8-100 | I188: DHC-8-100 | J188: =MATCH("*"&F188&"*",Sheet1!C:C,0) ->  | K188: =MATCH("*"&H188&"*",Sheet1!C:C,0) ->  | L188: =MATCH("*"&I188&"*",Sheet1!B:B,0) ->  | M188: 12.5 | O188: https://www.modernairliners.com/bombardier-dhc-dash-8 | P188: =INDEX('[1]Pt1-AvionicsComponentCosts'!$A:$NE,MATCH(B188,'[1]Pt1-AvionicsComponentCosts'!$A:$A,0),MATCH("END MARKER",'[1]Pt1-AvionicsComponentCosts'!$11:$11,0)) -> 919730 | Q188: 0.65 | R188: 0.65 | S188: 0.4782596
B189: 622 | C189: =INDEX('[1]Pt1-AvionicsComponentCosts'!$A:$B,MATCH(B189,'[1]Pt1-AvionicsComponentCosts'!$A:$A,0),2) -> Regional | D189: De Havilland Canada | E189: 1 | F189: De Havilland Canada DHC-8 | G189: De Havilland Canada DHC-8-200 | H189: DHC-8-200 | I189: DHC-8-200 | J189: =MATCH("*"&F189&"*",Sheet1!C:C,0) ->  | K189: =MATCH("*"&H189&"*",Sheet1!C:C,0) ->  | L189: =MATCH("*"&I189&"*",Sheet1!B:B,0) ->  | M189: 13 | O189: https://www.modernairliners.com/bombardier-dhc-dash-8 | P189: =INDEX('[1]Pt1-AvionicsComponentCosts'!$A:$NE,MATCH(B189,'[1]Pt1-AvionicsComponentCosts'!$A:$A,0),MATCH("END MARKER",'[1]Pt1-AvionicsComponentCosts'!$11:$11,0)) -> 919730 | Q189: 0.65 | R189: 0.65 | S189: 0.459865
B190: 623 | C190: =INDEX('[1]Pt1-AvionicsComponentCosts'!$A:$B,MATCH(B190,'[1]Pt1-AvionicsComponentCosts'!$A:$A,0),2) -> Regional | D190: De Havilland Canada | E190: 1 | F190: De Havilland Canada DHC-8 | G190: De Havilland Canada DHC-8-300 | H190: DHC-8-300 | I190: DHC-8-300 | J190: =MATCH("*"&F190&"*",Sheet1!C:C,0) ->  | K190: =MATCH("*"&H190&"*",Sheet1!C:C,0) ->  | L190: =MATCH("*"&I190&"*",Sheet1!B:B,0) ->  | M190: 17 | O190: https://www.modernairliners.com/bombardier-dhc-dash-8 | P190: =INDEX('[1]Pt1-AvionicsComponentCosts'!$A:$NE,MATCH(B190,'[1]Pt1-AvionicsComponentCosts'!$A:$A,0),MATCH("END MARKER",'[1]Pt1-AvionicsComponentCosts'!$11:$11,0)) -> 919730 | Q190: 0.65 | R190: 0.65 | S190: 0.3516614706
B191: 21 | C191: =INDEX('[1]Pt1-AvionicsComponentCosts'!$A:$B,MATCH(B191,'[1]Pt1-AvionicsComponentCosts'!$A:$A,0),2) -> Regional | D191: De Havilland Canada | E191: 1 | F191: De Havilland Canada DHC-8 | G191: De Havilland Canada DHC-8-400 | H191: DHC-8-400 | I191: DHC-8-400 | J191: =MATCH("*"&F191&"*",Sheet1!C:C,0) ->  | K191: =MATCH("*"&H191&"*",Sheet1!C:C,0) ->  | L191: =MATCH("*"&I191&"*",Sheet1!B:B,0) ->  | M191: 27 | O191: https://www.modernairliners.com/bombardier-dhc-dash-8 | P191: =INDEX('[1]Pt1-AvionicsComponentCosts'!$A:$NE,MATCH(B191,'[1]Pt1-AvionicsComponentCosts'!$A:$A,0),MATCH("END MARKER",'[1]Pt1-AvionicsComponentCosts'!$11:$11,0)) -> 919730 | Q191: 0.65 | R191: 0.65 | S191: 0.2214164815
B192: 624 | C192: =INDEX('[1]Pt1-AvionicsComponentCosts'!$A:$B,MATCH(B192,'[1]Pt1-AvionicsComponentCosts'!$A:$A,0),2) -> Regional | D192: Dornier | E192: 1 | F192: Dornier Do 328-100 | G192: Dornier Do 328-100 | H192: Do 328-100 | I192: Do 328-100 | J192: =MATCH("*"&F192&"*",Sheet1!C:C,0) ->  | K192: =MATCH("*"&H192&"*",Sheet1!C:C,0) ->  | L192: =MATCH("*"&I192&"*",Sheet1!B:B,0) ->  | P192: =INDEX('[1]Pt1-AvionicsComponentCosts'!$A:$NE,MATCH(B192,'[1]Pt1-AvionicsComponentCosts'!$A:$A,0),MATCH("END MARKER",'[1]Pt1-AvionicsComponentCosts'!$11:$11,0)) -> 919730 | Q192: 0.65 | R192: 0.65
B193: 224 | C193: =INDEX('[1]Pt1-AvionicsComponentCosts'!$A:$B,MATCH(B193,'[1]Pt1-AvionicsComponentCosts'!$A:$A,0),2) -> Turbine GA | D193: Dornier | E193: 1 | F193: Dornier Do 228 | G193: Dornier Do 228 | H193: Do 228 | I193: Do 228 | J193: =MATCH("*"&F193&"*",Sheet1!C:C,0) ->  | K193: =MATCH("*"&H193&"*",Sheet1!C:C,0) ->  | L193: =MATCH("*"&I193&"*",Sheet1!B:B,0) ->  | P193: =INDEX('[1]Pt1-AvionicsComponentCosts'!$A:$NE,MATCH(B193,'[1]Pt1-AvionicsComponentCosts'!$A:$A,0),MATCH("END MARKER",'[1]Pt1-AvionicsComponentCosts'!$11:$11,0)) -> 228066 | Q193: 1 | R193: 1
B194: 154 | C194: =INDEX('[1]Pt1-AvionicsComponentCosts'!$A:$B,MATCH(B194,'[1]Pt1-AvionicsComponentCosts'!$A:$A,0),2) -> Military Transport / Special Mission | D194: EADS | E194: 1 | F194: EADS CASA C-295 | G194: EADS CASA C-295 | H194: CASA C-295 | I194: CASA C-295 | J194: =MATCH("*"&F194&"*",Sheet1!C:C,0) ->  | K194: =MATCH("*"&H194&"*",Sheet1!C:C,0) ->  | L194: =MATCH("*"&I194&"*",Sheet1!B:B,0) ->  | P194: =INDEX('[1]Pt1-AvionicsComponentCosts'!$A:$NE,MATCH(B194,'[1]Pt1-AvionicsComponentCosts'!$A:$A,0),MATCH("END MARKER",'[1]Pt1-AvionicsComponentCosts'!$11:$11,0)) -> 3025995 | Q194: 1 | R194: 1
B195: 70 | C195: =INDEX('[1]Pt1-AvionicsComponentCosts'!$A:$B,MATCH(B195,'[1]Pt1-AvionicsComponentCosts'!$A:$A,0),2) -> Business Jet | D195: Eclipse | E195: 1 | F195: Eclipse 550 | G195: Eclipse 550 | H195: =TRIM(SUBSTITUTE(G195,D195,"")) -> 550 | I195: =TRIM(SUBSTITUTE(SUBSTITUTE(SUBSTITUTE(SUBSTITUTE(SUBSTITUTE(H195,"Family",""),"737 Classic:",""),"737 MAX:",""),"787 Dreamliner:",""),"777:","")) -> 550 | J195: =MATCH("*"&F195&"*",Sheet1!C:C,0) ->  | K195: =MATCH("*"&H195&"*",Sheet1!C:C,0) ->  | L195: =MATCH("*"&I195&"*",Sheet1!B:B,0) ->  | P195: =INDEX('[1]Pt1-AvionicsComponentCosts'!$A:$NE,MATCH(B195,'[1]Pt1-AvionicsComponentCosts'!$A:$A,0),MATCH("END MARKER",'[1]Pt1-AvionicsComponentCosts'!$11:$11,0)) -> 206293 | Q195: 0.75 | R195: 0.75 | S195: =IFERROR(P195/(M195*100000)*R195,"") -> 
B196: 74 | C196: =INDEX('[1]Pt1-AvionicsComponentCosts'!$A:$B,MATCH(B196,'[1]Pt1-AvionicsComponentCosts'!$A:$A,0),2) -> Business Jet | D196: Embraer | E196: 1 | F196: Legacy 600/650 | G196: Embraer Legacy 600/650 | H196: Legacy 600/650 | I196: Legacy 600/650 | J196: =MATCH("*"&F196&"*",Sheet1!C:C,0) ->  | K196: =MATCH("*"&H196&"*",Sheet1!C:C,0) ->  | L196: =MATCH("*"&I196&"*",Sheet1!B:B,0) ->  | P196: =INDEX('[1]Pt1-AvionicsComponentCosts'!$A:$NE,MATCH(B196,'[1]Pt1-AvionicsComponentCosts'!$A:$A,0),MATCH("END MARKER",'[1]Pt1-AvionicsComponentCosts'!$11:$11,0)) -> 971537 | Q196: 0.75 | R196: 0.75
B197: 652 | C197: =INDEX('[1]Pt1-AvionicsComponentCosts'!$A:$B,MATCH(B197,'[1]Pt1-AvionicsComponentCosts'!$A:$A,0),2) -> Business Jet | D197: Embraer | E197: 1 | F197: Legacy 700 | G197: Embraer legacy 700 | H197: legacy 700 | I197: legacy 700 | J197: =MATCH("*"&F197&"*",Sheet1!C:C,0) ->  | K197: =MATCH("*"&H197&"*",Sheet1!C:C,0) ->  | L197: =MATCH("*"&I197&"*",Sheet1!B:B,0) ->  | P197: =INDEX('[1]Pt1-AvionicsComponentCosts'!$A:$NE,MATCH(B197,'[1]Pt1-AvionicsComponentCosts'!$A:$A,0),MATCH("END MARKER",'[1]Pt1-AvionicsComponentCosts'!$11:$11,0)) -> 971537 | Q197: 0.75 | R197: 0.75
B198: 73 | C198: =INDEX('[1]Pt1-AvionicsComponentCosts'!$A:$B,MATCH(B198,'[1]Pt1-AvionicsComponentCosts'!$A:$A,0),2) -> Business Jet | D198: Embraer | E198: 1 | F198: Lineage 1000 | G198: Embraer Lineage 1000 | H198: Lineage 1000 | I198: Lineage 1000 | J198: =MATCH("*"&F198&"*",Sheet1!C:C,0) ->  | K198: =MATCH("*"&H198&"*",Sheet1!C:C,0) ->  | L198: =MATCH("*"&I198&"*",Sheet1!B:B,0) ->  | M198: 53 | O198: https://www.jetfinder.com/most-expensive-private-jets/ | P198: =INDEX('[1]Pt1-AvionicsComponentCosts'!$A:$NE,MATCH(B198,'[1]Pt1-AvionicsComponentCosts'!$A:$A,0),MATCH("END MARKER",'[1]Pt1-AvionicsComponentCosts'!$11:$11,0)) -> 975297 | Q198: 0.75 | R198: 0.75 | S198: 0.1380137264
B199: 56 | C199: =INDEX('[1]Pt1-AvionicsComponentCosts'!$A:$B,MATCH(B199,'[1]Pt1-AvionicsComponentCosts'!$A:$A,0),2) -> Business Jet | D199: Embraer | E199: 1 | F199: Phenom 300 | G199: Embraer Phenom 300 | H199: Phenom 300 | I199: Phenom 300 | J199: =MATCH("*"&F199&"*",Sheet1!C:C,0) ->  | K199: =MATCH("*"&H199&"*",Sheet1!C:C,0) ->  | L199: =MATCH("*"&I199&"*",Sheet1!B:B,0) ->  | M199: 12 | O199: https://privatejetcardcomparisons.com/aircraft/embraer/phenom-300/ | P199: =INDEX('[1]Pt1-AvionicsComponentCosts'!$A:$NE,MATCH(B199,'[1]Pt1-AvionicsComponentCosts'!$A:$A,0),MATCH("END MARKER",'[1]Pt1-AvionicsComponentCosts'!$11:$11,0)) -> 452749 | Q199: 0.75 | R199: 0.75 | S199: 0.282968125
B200: 641 | C200: =INDEX('[1]Pt1-AvionicsComponentCosts'!$A:$B,MATCH(B200,'[1]Pt1-AvionicsComponentCosts'!$A:$A,0),2) -> Business Jet | D200: Embraer | E200: 1 | F200: Phenom 300X | G200: Embraer Phenom 300X | H200: Phenom 300X | I200: Phenom 300X | J200: =MATCH("*"&F200&"*",Sheet1!C:C,0) ->  | K200: =MATCH("*"&H200&"*",Sheet1!C:C,0) ->  | L200: =MATCH("*"&I200&"*",Sheet1!B:B,0) ->  | P200: =INDEX('[1]Pt1-AvionicsComponentCosts'!$A:$NE,MATCH(B200,'[1]Pt1-AvionicsComponentCosts'!$A:$A,0),MATCH("END MARKER",'[1]Pt1-AvionicsComponentCosts'!$11:$11,0)) -> 452749 | Q200: 0.75 | R200: 0.75
... 133 more rows

Sheet 2024 Data Sheet
D1: MFGR | F1: aircraft_level_3 | G1: aircraft_level_4 | M1: Price ($M) | O1: Source | P1: Avionics Price | Q1: AC value factor | R1: AV value factor | S1: Avionics Percentage
B2: 165 | C2: =INDEX('[1]Pt1-AvionicsComponentCosts'!$A:$B,MATCH(B2,'[1]Pt1-AvionicsComponentCosts'!$A:$A,0),2) -> Fighters and Jet Trainers | D2: Aermacchi | E2: 1 | F2: M-345 | G2: Aermacchi M-345 | H2: =TRIM(SUBSTITUTE(G2,D2,"")) -> M-345 | I2: =TRIM(SUBSTITUTE(SUBSTITUTE(SUBSTITUTE(SUBSTITUTE(SUBSTITUTE(H2,"Family",""),"737 Classic:",""),"737 MAX:",""),"787 Dreamliner:",""),"777:","")) -> M-345 | J2: =MATCH("*"&F2&"*",Sheet1!C:C,0) ->  | K2: =MATCH("*"&H2&"*",Sheet1!C:C,0) ->  | L2: =MATCH("*"&I2&"*",Sheet1!B:B,0) ->  | M2: =338/13 -> 26 | O2: https://www.defensenews.com/digital-show-dailies/paris-air-show/2019/06/13/italy-buys-13-jet-trainers-inks-naval-industry-deal/ | P2: =INDEX('[2]Pt1-AvionicsComponentCosts'!$A:$NE,MATCH(B2,'[2]Pt1-AvionicsComponentCosts'!$A:$A,0),MATCH("END MARKER",'[2]Pt1-AvionicsComponentCosts'!$11:$11,0)) -> 1295662.923 | Q2: 1 | R2: 1 | S2: =IFERROR(P2/(M2*100000)*R2,"") -> 0.4983318936
B3: 166 | C3: =INDEX('[1]Pt1-AvionicsComponentCosts'!$A:$B,MATCH(B3,'[1]Pt1-AvionicsComponentCosts'!$A:$A,0),2) -> Fighters and Jet Trainers | D3: Aermacchi | E3: 1 | F3: M-346 | G3: Aermacchi M-346 | H3: =TRIM(SUBSTITUTE(G3,D3,"")) -> M-346 | I3: =TRIM(SUBSTITUTE(SUBSTITUTE(SUBSTITUTE(SUBSTITUTE(SUBSTITUTE(H3,"Family",""),"737 Classic:",""),"737 MAX:",""),"787 Dreamliner:",""),"777:","")) -> M-346 | J3: =MATCH("*"&F3&"*",Sheet1!C:C,0) ->  | K3: =MATCH("*"&H3&"*",Sheet1!C:C,0) ->  | L3: =MATCH("*"&I3&"*",Sheet1!B:B,0) ->  | M3: 25 | O3: https://www.defensenews.com/breaking-news/2017/01/26/trainer-price-wars-raytheon-wanted-millions-less-per-plane-than-leonardo/ | P3: =INDEX('[2]Pt1-AvionicsComponentCosts'!$A:$NE,MATCH(B3,'[2]Pt1-AvionicsComponentCosts'!$A:$A,0),MATCH("END MARKER",'[2]Pt1-AvionicsComponentCosts'!$11:$11,0)) -> 1297945.546 | Q3: 1 | R3: 1 | S3: =IFERROR(P3/(M3*100000)*R3,"") -> 0.5191782185
B4: 578 | C4: =INDEX('[1]Pt1-AvionicsComponentCosts'!$A:$B,MATCH(B4,'[1]Pt1-AvionicsComponentCosts'!$A:$A,0),2) -> Fighters and Jet Trainers | D4: Aero Vodochody | E4: 1 | F4: Aero L-39NG | G4: Aero Vodochody L-39NG | H4: L-39NG | I4: L-39NG | J4: =MATCH("*"&F4&"*",Sheet1!C:C,0) ->  | K4: =MATCH("*"&H4&"*",Sheet1!C:C,0) ->  | L4: =MATCH("*"&I4&"*",Sheet1!B:B,0) ->  | M4: 18.5 | O4: https://trends.aeroexpo.online/project-79261.html | P4: =INDEX('[2]Pt1-AvionicsComponentCosts'!$A:$NE,MATCH(B4,'[2]Pt1-AvionicsComponentCosts'!$A:$A,0),MATCH("END MARKER",'[2]Pt1-AvionicsComponentCosts'!$11:$11,0)) -> 1295662.923 | Q4: 1 | R4: 1 | S4: 0.700358337
B5: 675 | C5: =INDEX('[1]Pt1-AvionicsComponentCosts'!$A:$B,MATCH(B5,'[1]Pt1-AvionicsComponentCosts'!$A:$A,0),2) -> Fighters and Jet Trainers | D5: AIDC | E5: 1 | F5: AIDC T-5 | G5: AIDC T-5 | H5: T-5 | I5: T-5 | J5: =MATCH("*"&F5&"*",Sheet1!C:C,0) ->  | K5: =MATCH("*"&H5&"*",Sheet1!C:C,0) ->  | L5: =MATCH("*"&I5&"*",Sheet1!B:B,0) ->  | M5: =(2200000000/66)/1000000 -> 33.33333333 | O5: https://www.janes.com/osint-insights/defence-news/defence/aidc-completes-27-t-5a-deliveries-to-rocaf | P5: =INDEX('[2]Pt1-AvionicsComponentCosts'!$A:$NE,MATCH(B5,'[2]Pt1-AvionicsComponentCosts'!$A:$A,0),MATCH("END MARKER",'[2]Pt1-AvionicsComponentCosts'!$11:$11,0)) -> 1297945.546 | Q5: 1 | R5: 1 | S5: 0.3893836639
B6: 544 | C6: =INDEX('[1]Pt1-AvionicsComponentCosts'!$A:$B,MATCH(B6,'[1]Pt1-AvionicsComponentCosts'!$A:$A,0),2) -> Turbine GA | D6: Air | E6: 1 | F6: Air Tractor | G6: Air Tractor | H6: Tractor | I6: Tractor | J6: =MATCH("*"&F6&"*",Sheet1!C:C,0) ->  | K6: =MATCH("*"&H6&"*",Sheet1!C:C,0) ->  | L6: =MATCH("*"&I6&"*",Sheet1!B:B,0) ->  | M6: x | P6: =INDEX('[2]Pt1-AvionicsComponentCosts'!$A:$NE,MATCH(B6,'[2]Pt1-AvionicsComponentCosts'!$A:$A,0),MATCH("END MARKER",'[2]Pt1-AvionicsComponentCosts'!$11:$11,0)) -> 220626.488 | Q6: 1 | R6: 1
B7: 674 | C7: =INDEX('[1]Pt1-AvionicsComponentCosts'!$A:$B,MATCH(B7,'[1]Pt1-AvionicsComponentCosts'!$A:$A,0),2) -> Business Jet | D7: Airbus | E7: 1 | F7: ACJ | G7: Airbus ACJ TwoTwenty | H7: ACJ TwoTwenty | I7: ACJ TwoTwenty | J7: =MATCH("*"&F7&"*",Sheet1!C:C,0) ->  | K7: =MATCH("*"&H7&"*",Sheet1!C:C,0) ->  | L7: =MATCH("*"&I7&"*",Sheet1!B:B,0) ->  | M7: 100 | O7: https://bjtonline.com/business-jet-news/airbus-acj-twotwenty | P7: =INDEX('[2]Pt1-AvionicsComponentCosts'!$A:$NE,MATCH(B7,'[2]Pt1-AvionicsComponentCosts'!$A:$A,0),MATCH("END MARKER",'[2]Pt1-AvionicsComponentCosts'!$11:$11,0)) -> 1568058 | Q7: 0.75 | R7: 0.75 | S7: 0.11760435
B8: 296 | C8: =INDEX('[1]Pt1-AvionicsComponentCosts'!$A:$B,MATCH(B8,'[1]Pt1-AvionicsComponentCosts'!$A:$A,0),2) -> Business Jet | D8: Airbus | E8: 1 | F8: ACJ | G8: Airbus ACJ320 Family | H8: ACJ320 Family | I8: ACJ320 | J8: =MATCH("*"&F8&"*",Sheet1!C:C,0) ->  | K8: =MATCH("*"&H8&"*",Sheet1!C:C,0) ->  | L8: =MATCH("*"&I8&"*",Sheet1!B:B,0) ->  | M8: 85 | O8: https://www.bjtonline.com/aircraft/airbus-acj320 | P8: =INDEX('[2]Pt1-AvionicsComponentCosts'!$A:$NE,MATCH(B8,'[2]Pt1-AvionicsComponentCosts'!$A:$A,0),MATCH("END MARKER",'[2]Pt1-AvionicsComponentCosts'!$11:$11,0)) -> 1395799 | Q8: 0.75 | R8: 0.75 | S8: 0.1231587353
B9: 528 | C9: =INDEX('[1]Pt1-AvionicsComponentCosts'!$A:$B,MATCH(B9,'[1]Pt1-AvionicsComponentCosts'!$A:$A,0),2) -> Business Jet | D9: Airbus | E9: 1 | F9: ACJ | G9: Airbus ACJ320neo Family | H9: ACJ320neo Family | I9: ACJ320neo | J9: =MATCH("*"&F9&"*",Sheet1!C:C,0) ->  | K9: =MATCH("*"&H9&"*",Sheet1!C:C,0) ->  | L9: =MATCH("*"&I9&"*",Sheet1!B:B,0) ->  | M9: 110 | O9: https://finance.yahoo.com/news/5-priciest-private-jets-2023-185110930.html | P9: =INDEX('[2]Pt1-AvionicsComponentCosts'!$A:$NE,MATCH(B9,'[2]Pt1-AvionicsComponentCosts'!$A:$A,0),MATCH("END MARKER",'[2]Pt1-AvionicsComponentCosts'!$11:$11,0)) -> 1395799 | Q9: 0.75 | R9: 0.75 | S9: 0.09516811364
B10: 678 | C10: =INDEX('[1]Pt1-AvionicsComponentCosts'!$A:$B,MATCH(B10,'[1]Pt1-AvionicsComponentCosts'!$A:$A,0),2) -> Business Jet | D10: Airbus | E10: 1 | F10: Wide body VIP | G10: Airbus ACJ330-200 | H10: ACJ330-200 | I10: ACJ330-200 | J10: =MATCH("*"&F10&"*",Sheet1!C:C,0) ->  | K10: =MATCH("*"&H10&"*",Sheet1!C:C,0) ->  | L10: =MATCH("*"&I10&"*",Sheet1!B:B,0) ->  | M10: 390 | O10: https://www.businessairnews.com/hb_aircraftpage.html?recnum=ACJ330 | P10: =INDEX('[2]Pt1-AvionicsComponentCosts'!$A:$NE,MATCH(B10,'[2]Pt1-AvionicsComponentCosts'!$A:$A,0),MATCH("END MARKER",'[2]Pt1-AvionicsComponentCosts'!$11:$11,0)) -> 1757582 | Q10: 0.75 | R10: 0.75 | S10: 0.03379965385
B11: 565 | C11: =INDEX('[1]Pt1-AvionicsComponentCosts'!$A:$B,MATCH(B11,'[1]Pt1-AvionicsComponentCosts'!$A:$A,0),2) -> Freighter | D11: Airbus | E11: 1 | F11: A330 | G11: Airbus A330-743L Beluga XL | H11: A330-743L Beluga XL | I11: A330-743L Beluga XL | J11: =MATCH("*"&F11&"*",Sheet1!C:C,0) -> 11 | K11: =MATCH("*"&H11&"*",Sheet1!C:C,0) ->  | L11: =MATCH("*"&I11&"*",Sheet1!B:B,0) ->  | M11: x | P11: =INDEX('[2]Pt1-AvionicsComponentCosts'!$A:$NE,MATCH(B11,'[2]Pt1-AvionicsComponentCosts'!$A:$A,0),MATCH("END MARKER",'[2]Pt1-AvionicsComponentCosts'!$11:$11,0)) -> 1973043.421 | Q11: 0.5 | R11: 0.5
B12: 644 | C12: =INDEX('[1]Pt1-AvionicsComponentCosts'!$A:$B,MATCH(B12,'[1]Pt1-AvionicsComponentCosts'!$A:$A,0),2) -> Freighter | D12: Airbus | E12: 1 | F12: A350 | G12: Airbus A350F | H12: A350F | I12: A350F | J12: =MATCH("*"&F12&"*",Sheet1!C:C,0) -> 17 | K12: =MATCH("*"&H12&"*",Sheet1!C:C,0) ->  | L12: =MATCH("*"&I12&"*",Sheet1!B:B,0) ->  | M12: 172 | O12: https://aircargoeye.com/airline/aircraft/airbus/a350f/ | P12: =INDEX('[2]Pt1-AvionicsComponentCosts'!$A:$NE,MATCH(B12,'[2]Pt1-AvionicsComponentCosts'!$A:$A,0),MATCH("END MARKER",'[2]Pt1-AvionicsComponentCosts'!$11:$11,0)) -> 1976043.421 | Q12: 0.5 | R12: 0.5 | S12: 0.0574431227
B13: 632 | C13: =INDEX('[1]Pt1-AvionicsComponentCosts'!$A:$B,MATCH(B13,'[1]Pt1-AvionicsComponentCosts'!$A:$A,0),2) -> Freighter | D13: Airbus | E13: 1 | F13: A300 | G13: A300-600F/RF | H13: A300-600F/RF | I13: A300-600F/RF | J13: =MATCH("*"&F13&"*",Sheet1!C:C,0) ->  | K13: =MATCH("*"&H13&"*",Sheet1!C:C,0) ->  | L13: =MATCH("*"&I13&"*",Sheet1!B:B,0) ->  | N13: OOP | P13: =INDEX('[2]Pt1-AvionicsComponentCosts'!$A:$NE,MATCH(B13,'[2]Pt1-AvionicsComponentCosts'!$A:$A,0),MATCH("END MARKER",'[2]Pt1-AvionicsComponentCosts'!$11:$11,0)) -> 1933675.075 | Q13: 0.5 | R13: 0.5 | S13: =IFERROR(P13/(M13*100000)*R13,"") -> 
B14: 566 | C14: =INDEX('[1]Pt1-AvionicsComponentCosts'!$A:$B,MATCH(B14,'[1]Pt1-AvionicsComponentCosts'!$A:$A,0),2) -> Freighter | D14: Airbus | E14: 1 | F14: A300 | G14: Airbus A300-600ST Beluga | H14: A300-600ST Beluga | I14: A300-600ST Beluga | J14: =MATCH("*"&F14&"*",Sheet1!C:C,0) ->  | K14: =MATCH("*"&H14&"*",Sheet1!C:C,0) ->  | L14: =MATCH("*"&I14&"*",Sheet1!B:B,0) ->  | M14: x | P14: =INDEX('[2]Pt1-AvionicsComponentCosts'!$A:$NE,MATCH(B14,'[2]Pt1-AvionicsComponentCosts'!$A:$A,0),MATCH("END MARKER",'[2]Pt1-AvionicsComponentCosts'!$11:$11,0)) -> 1763098.43 | Q14: 0.5 | R14: 0.5
B15: 560 | C15: =INDEX('[1]Pt1-AvionicsComponentCosts'!$A:$B,MATCH(B15,'[1]Pt1-AvionicsComponentCosts'!$A:$A,0),2) -> Freighter | D15: Airbus | E15: 1 | F15: A330 | G15: Airbus A330-200F | H15: A330-200F | I15: A330-200F | J15: =MATCH("*"&F15&"*",Sheet1!C:C,0) -> 11 | K15: =MATCH("*"&H15&"*",Sheet1!C:C,0) ->  | L15: =MATCH("*"&I15&"*",Sheet1!B:B,0) -> 12 | M15: =INDEX(Sheet1!$A:$K,MATCH($I15,Sheet1!$B:$B,0),MATCH(M$1,Sheet1!$A$1:$K$1,0)) -> 234.7 | O15: =INDEX(Sheet1!$A:$K,MATCH($I15,Sheet1!$B:$B,0),MATCH(O$1,Sheet1!$A$1:$K$1,0)) -> http://www.axonaviation.com/commercial-aircraft/aircraft-data/aircraft-pricing | P15: =INDEX('[2]Pt1-AvionicsComponentCosts'!$A:$NE,MATCH(B15,'[2]Pt1-AvionicsComponentCosts'!$A:$A,0),MATCH("END MARKER",'[2]Pt1-AvionicsComponentCosts'!$11:$11,0)) -> 1973040.421 | Q15: 0.5 | R15: 0.5 | S15: 0.04203324288
B16: 562 | C16: =INDEX('[1]Pt1-AvionicsComponentCosts'!$A:$B,MATCH(B16,'[1]Pt1-AvionicsComponentCosts'!$A:$A,0),2) -> Freighter | D16: Airbus | E16: 1 | F16: A330 | G16: Airbus A330-300P2F | H16: A330-300P2F | I16: A330-300P2F | J16: =MATCH("*"&F16&"*",Sheet1!C:C,0) -> 11 | K16: =MATCH("*"&H16&"*",Sheet1!C:C,0) ->  | L16: =MATCH("*"&I16&"*",Sheet1!B:B,0) ->  | M16: 27 | N16: used | O16: https://www.iba.aero/news/sustained-demand-for-passenger-to-freighter-aircraft-conversions-says-iba/ | P16: =INDEX('[2]Pt1-AvionicsComponentCosts'!$A:$NE,MATCH(B16,'[2]Pt1-AvionicsComponentCosts'!$A:$A,0),MATCH("END MARKER",'[2]Pt1-AvionicsComponentCosts'!$11:$11,0)) -> 1973043.421 | Q16: 0.5 | R16: 0.5 | S16: 0.3653784113
B17: 669 | C17: =INDEX('[1]Pt1-AvionicsComponentCosts'!$A:$B,MATCH(B17,'[1]Pt1-AvionicsComponentCosts'!$A:$A,0),2) -> Freighter | D17: Airbus | E17: 1 | F17: A340 | G17: Airbus A340-600NGF | H17: A340-600NGF | I17: A340-600NGF | J17: =MATCH("*"&F17&"*",Sheet1!C:C,0) ->  | K17: =MATCH("*"&H17&"*",Sheet1!C:C,0) ->  | L17: =MATCH("*"&I17&"*",Sheet1!B:B,0) ->  | M17: x | P17: =INDEX('[2]Pt1-AvionicsComponentCosts'!$A:$NE,MATCH(B17,'[2]Pt1-AvionicsComponentCosts'!$A:$A,0),MATCH("END MARKER",'[2]Pt1-AvionicsComponentCosts'!$11:$11,0)) -> 1973043.421 | Q17: 0.5 | R17: 0.5
B18: 665 | C18: =INDEX('[1]Pt1-AvionicsComponentCosts'!$A:$B,MATCH(B18,'[1]Pt1-AvionicsComponentCosts'!$A:$A,0),2) -> Freighter | D18: Airbus | E18: 1 | F18: A320ceo | G18: A320-200P2F | H18: A320-200P2F | I18: A320-200P2F | J18: =MATCH("*"&F18&"*",Sheet1!C:C,0) ->  | K18: =MATCH("*"&H18&"*",Sheet1!C:C,0) ->  | L18: =MATCH("*"&I18&"*",Sheet1!B:B,0) ->  | M18: 23.3 | N18: used | O18: https://www.airliners.net/forum/viewtopic.php?t=1439571&start=300 | P18: =INDEX('[2]Pt1-AvionicsComponentCosts'!$A:$NE,MATCH(B18,'[2]Pt1-AvionicsComponentCosts'!$A:$A,0),MATCH("END MARKER",'[2]Pt1-AvionicsComponentCosts'!$11:$11,0)) -> 1395800 | Q18: 0.5 | R18: 0.5 | S18: 0.299527897
B19: 666 | C19: =INDEX('[1]Pt1-AvionicsComponentCosts'!$A:$B,MATCH(B19,'[1]Pt1-AvionicsComponentCosts'!$A:$A,0),2) -> Freighter | D19: Airbus | E19: 1 | F19: A320ceo | G19: A321P2F | H19: A321P2F | I19: A321P2F | J19: =MATCH("*"&F19&"*",Sheet1!C:C,0) ->  | K19: =MATCH("*"&H19&"*",Sheet1!C:C,0) ->  | L19: =MATCH("*"&I19&"*",Sheet1!B:B,0) ->  | M19: 101 | O19: https://www.avdelphi.com/aircraft_type.html?id=12714&recache=1721917906 | P19: =INDEX('[2]Pt1-AvionicsComponentCosts'!$A:$NE,MATCH(B19,'[2]Pt1-AvionicsComponentCosts'!$A:$A,0),MATCH("END MARKER",'[2]Pt1-AvionicsComponentCosts'!$11:$11,0)) -> 1395800 | Q19: 0.5 | R19: 0.5 | S19: 0.0690990099
B20: 104 | C20: =INDEX('[1]Pt1-AvionicsComponentCosts'!$A:$B,MATCH(B20,'[1]Pt1-AvionicsComponentCosts'!$A:$A,0),2) -> Helicopter | D20: Airbus | E20: 1 | F20: Tiger | G20: Airbus Tiger | H20: Tiger | I20: Tiger | J20: =MATCH("*"&F20&"*",Sheet1!C:C,0) ->  | K20: =MATCH("*"&H20&"*",Sheet1!C:C,0) ->  | L20: =MATCH("*"&I20&"*",Sheet1!B:B,0) ->  | M20: 73 | O20: https://simpleflying.com/most-expensive-military-helicopters-guide/ | P20: =INDEX('[2]Pt1-AvionicsComponentCosts'!$A:$NE,MATCH(B20,'[2]Pt1-AvionicsComponentCosts'!$A:$A,0),MATCH("END MARKER",'[2]Pt1-AvionicsComponentCosts'!$11:$11,0)) -> 1494251.806 | Q20: 0.99 | R20: 0.99 | S20: 0.202645108
B21: 117 | C21: =INDEX('[1]Pt1-AvionicsComponentCosts'!$A:$B,MATCH(B21,'[1]Pt1-AvionicsComponentCosts'!$A:$A,0),2) -> Helicopter | D21: Airbus | E21: 1 | F21: Airbus UH-72 Lakota | G21: Airbus UH-72 Lakota | H21: UH-72 Lakota | I21: UH-72 Lakota | J21: =MATCH("*"&F21&"*",Sheet1!C:C,0) ->  | K21: =MATCH("*"&H21&"*",Sheet1!C:C,0) ->  | L21: =MATCH("*"&I21&"*",Sheet1!B:B,0) ->  | M21: =122.6/15 -> 8.173333333 | O21: https://verticalmag.com/news/us-army-airbus-lakota-training-helicopters/ | P21: =INDEX('[2]Pt1-AvionicsComponentCosts'!$A:$NE,MATCH(B21,'[2]Pt1-AvionicsComponentCosts'!$A:$A,0),MATCH("END MARKER",'[2]Pt1-AvionicsComponentCosts'!$11:$11,0)) -> 1468717.616 | Q21: 0.99 | R21: 0.99 | S21: 1.778993197
B22: 112 | C22: =INDEX('[1]Pt1-AvionicsComponentCosts'!$A:$B,MATCH(B22,'[1]Pt1-AvionicsComponentCosts'!$A:$A,0),2) -> Helicopter | D22: Airbus | E22: 1 | F22: H120 Colibri | G22: Airbus H120 Colibri | H22: H120 Colibri | I22: H120 Colibri | J22: =MATCH("*"&F22&"*",Sheet1!C:C,0) ->  | K22: =MATCH("*"&H22&"*",Sheet1!C:C,0) ->  | L22: =MATCH("*"&I22&"*",Sheet1!B:B,0) ->  | M22: 2 | O22: https://bjtonline.com/aircraft/airbus-helicopters-h120 | P22: =INDEX('[2]Pt1-AvionicsComponentCosts'!$A:$NE,MATCH(B22,'[2]Pt1-AvionicsComponentCosts'!$A:$A,0),MATCH("END MARKER",'[2]Pt1-AvionicsComponentCosts'!$11:$11,0)) -> 283419.8976 | Q22: 0.99 | R22: 0.99 | S22: 1.402928493
B23: 107 | C23: =INDEX('[1]Pt1-AvionicsComponentCosts'!$A:$B,MATCH(B23,'[1]Pt1-AvionicsComponentCosts'!$A:$A,0),2) -> Helicopter | D23: Airbus | E23: 1 | F23: H125 | G23: Airbus H125 | H23: H125 | I23: H125 | J23: =MATCH("*"&F23&"*",Sheet1!C:C,0) ->  | K23: =MATCH("*"&H23&"*",Sheet1!C:C,0) ->  | L23: =MATCH("*"&I23&"*",Sheet1!B:B,0) ->  | M23: 2.9 | O23: https://www.bjtonline.com/aircraft/airbus-helicopters-h125 | P23: =INDEX('[2]Pt1-AvionicsComponentCosts'!$A:$NE,MATCH(B23,'[2]Pt1-AvionicsComponentCosts'!$A:$A,0),MATCH("END MARKER",'[2]Pt1-AvionicsComponentCosts'!$11:$11,0)) -> 283565.2896 | Q23: 0.99 | R23: 0.99 | S23: 0.96803323
B24: 108 | C24: =INDEX('[1]Pt1-AvionicsComponentCosts'!$A:$B,MATCH(B24,'[1]Pt1-AvionicsComponentCosts'!$A:$A,0),2) -> Helicopter | D24: Airbus | E24: 1 | F24: H130 | G24: Airbus H130 | H24: H130 | I24: H130 | J24: =MATCH("*"&F24&"*",Sheet1!C:C,0) ->  | K24: =MATCH("*"&H24&"*",Sheet1!C:C,0) ->  | L24: =MATCH("*"&I24&"*",Sheet1!B:B,0) ->  | M24: 3.3 | O24: https://www.bjtonline.com/aircraft/airbus-helicopters-h130 | P24: =INDEX('[2]Pt1-AvionicsComponentCosts'!$A:$NE,MATCH(B24,'[2]Pt1-AvionicsComponentCosts'!$A:$A,0),MATCH("END MARKER",'[2]Pt1-AvionicsComponentCosts'!$11:$11,0)) -> 282554.256 | Q24: 0.99 | R24: 0.99 | S24: 0.847662768
B25: 483 | C25: =INDEX('[1]Pt1-AvionicsComponentCosts'!$A:$B,MATCH(B25,'[1]Pt1-AvionicsComponentCosts'!$A:$A,0),2) -> Helicopter | D25: Airbus | E25: 1 | F25: H135 | G25: Airbus H135 | H25: H135 | I25: H135 | J25: =MATCH("*"&F25&"*",Sheet1!C:C,0) ->  | K25: =MATCH("*"&H25&"*",Sheet1!C:C,0) ->  | L25: =MATCH("*"&I25&"*",Sheet1!B:B,0) ->  | M25: 5.7 | O25: https://www.bjtonline.com/aircraft/airbus-helicopters-h135-p3 | P25: =INDEX('[2]Pt1-AvionicsComponentCosts'!$A:$NE,MATCH(B25,'[2]Pt1-AvionicsComponentCosts'!$A:$A,0),MATCH("END MARKER",'[2]Pt1-AvionicsComponentCosts'!$11:$11,0)) -> 283419.8976 | Q25: 0.99 | R25: 0.99 | S25: 0.4922556116
B26: 113 | C26: =INDEX('[1]Pt1-AvionicsComponentCosts'!$A:$B,MATCH(B26,'[1]Pt1-AvionicsComponentCosts'!$A:$A,0),2) -> Helicopter | D26: Airbus | E26: 1 | F26: H145 | G26: Airbus H145/Kawasaki BK117 | H26: H145/Kawasaki BK117 | I26: H145/Kawasaki BK117 | J26: =MATCH("*"&F26&"*",Sheet1!C:C,0) ->  | K26: =MATCH("*"&H26&"*",Sheet1!C:C,0) ->  | L26: =MATCH("*"&I26&"*",Sheet1!B:B,0) ->  | M26: 9.7 | O26: https://www.bjtonline.com/aircraft/airbus-helicopters-h145 | P26: =INDEX('[2]Pt1-AvionicsComponentCosts'!$A:$NE,MATCH(B26,'[2]Pt1-AvionicsComponentCosts'!$A:$A,0),MATCH("END MARKER",'[2]Pt1-AvionicsComponentCosts'!$11:$11,0)) -> 316830.2384 | Q26: 0.99 | R26: 0.99 | S26: 0.3233628206
B27: 109 | C27: =INDEX('[1]Pt1-AvionicsComponentCosts'!$A:$B,MATCH(B27,'[1]Pt1-AvionicsComponentCosts'!$A:$A,0),2) -> Helicopter | D27: Airbus | E27: 1 | F27: H155 | G27: Airbus H155 | H27: H155 | I27: H155 | J27: =MATCH("*"&F27&"*",Sheet1!C:C,0) ->  | K27: =MATCH("*"&H27&"*",Sheet1!C:C,0) ->  | L27: =MATCH("*"&I27&"*",Sheet1!B:B,0) ->  | M27: 14 | O27: https://www.bjtonline.com/aircraft/airbus-helicopters-h155 | P27: =INDEX('[2]Pt1-AvionicsComponentCosts'!$A:$NE,MATCH(B27,'[2]Pt1-AvionicsComponentCosts'!$A:$A,0),MATCH("END MARKER",'[2]Pt1-AvionicsComponentCosts'!$11:$11,0)) -> 500428.6704 | Q27: 0.99 | R27: 0.99 | S27: 0.3538745598
B28: 110 | C28: =INDEX('[1]Pt1-AvionicsComponentCosts'!$A:$B,MATCH(B28,'[1]Pt1-AvionicsComponentCosts'!$A:$A,0),2) -> Helicopter | D28: Airbus | E28: 1 | F28: H160 | G28: Airbus H160 | H28: H160 | I28: H160 | J28: =MATCH("*"&F28&"*",Sheet1!C:C,0) ->  | K28: =MATCH("*"&H28&"*",Sheet1!C:C,0) ->  | L28: =MATCH("*"&I28&"*",Sheet1!B:B,0) ->  | M28: 14 | O28: https://www.businessinsider.com/airbus-luxury-helicopter-seat-10-people-for-around-14-million-2020-9 | P28: =INDEX('[2]Pt1-AvionicsComponentCosts'!$A:$NE,MATCH(B28,'[2]Pt1-AvionicsComponentCosts'!$A:$A,0),MATCH("END MARKER",'[2]Pt1-AvionicsComponentCosts'!$11:$11,0)) -> 498551.9952 | Q28: 0.99 | R28: 0.99 | S28: 0.3525474823
B29: 102 | C29: =INDEX('[1]Pt1-AvionicsComponentCosts'!$A:$B,MATCH(B29,'[1]Pt1-AvionicsComponentCosts'!$A:$A,0),2) -> Helicopter | D29: Airbus | E29: 1 | F29: H175 | G29: Airbus H175 | H29: H175 | I29: H175 | J29: =MATCH("*"&F29&"*",Sheet1!C:C,0) ->  | K29: =MATCH("*"&H29&"*",Sheet1!C:C,0) ->  | L29: =MATCH("*"&I29&"*",Sheet1!B:B,0) ->  | M29: 17 | O29: https://www.bjtonline.com/aircraft/airbus-helicopters-h175 | P29: =INDEX('[2]Pt1-AvionicsComponentCosts'!$A:$NE,MATCH(B29,'[2]Pt1-AvionicsComponentCosts'!$A:$A,0),MATCH("END MARKER",'[2]Pt1-AvionicsComponentCosts'!$11:$11,0)) -> 710208.904 | Q29: 0.99 | R29: 0.99 | S29: 0.4135922441
B30: 105 | C30: =INDEX('[1]Pt1-AvionicsComponentCosts'!$A:$B,MATCH(B30,'[1]Pt1-AvionicsComponentCosts'!$A:$A,0),2) -> Helicopter | D30: Airbus | E30: 1 | F30: H215 / H225 | G30: Airbus H215 / H225 | H30: H215 / H225 | I30: H215 / H225 | J30: =MATCH("*"&F30&"*",Sheet1!C:C,0) ->  | K30: =MATCH("*"&H30&"*",Sheet1!C:C,0) ->  | L30: =MATCH("*"&I30&"*",Sheet1!B:B,0) ->  | M30: 18 | O30: https://www.bjtonline.com/aircraft/airbus-helicopters-h215-l1 | P30: =INDEX('[2]Pt1-AvionicsComponentCosts'!$A:$NE,MATCH(B30,'[2]Pt1-AvionicsComponentCosts'!$A:$A,0),MATCH("END MARKER",'[2]Pt1-AvionicsComponentCosts'!$11:$11,0)) -> 717124.0336 | Q30: 0.99 | R30: 0.99 | S30: 0.3944182185
B31: 106 | C31: =INDEX('[1]Pt1-AvionicsComponentCosts'!$A:$B,MATCH(B31,'[1]Pt1-AvionicsComponentCosts'!$A:$A,0),2) -> Helicopter | D31: Airbus | E31: 1 | F31: H355 | G31: Airbus H355 | H31: H355 | I31: H355 | J31: =MATCH("*"&F31&"*",Sheet1!C:C,0) ->  | K31: =MATCH("*"&H31&"*",Sheet1!C:C,0) ->  | L31: =MATCH("*"&I31&"*",Sheet1!B:B,0) ->  | M31: 1.9 | O31: https://www.bjtonline.com/aircraft/airbus-helicopters-as355f2-twinstar | P31: =INDEX('[2]Pt1-AvionicsComponentCosts'!$A:$NE,MATCH(B31,'[2]Pt1-AvionicsComponentCosts'!$A:$A,0),MATCH("END MARKER",'[2]Pt1-AvionicsComponentCosts'!$11:$11,0)) -> 323609.9792 | Q31: 0.99 | R31: 0.99 | S31: 1.686178313
B32: 645 | C32: =INDEX('[1]Pt1-AvionicsComponentCosts'!$A:$B,MATCH(B32,'[1]Pt1-AvionicsComponentCosts'!$A:$A,0),2) -> Helicopter | D32: Airbus | E32: 1 | F32: X6 | G32: Airbus X6 | H32: X6 | I32: X6 | J32: =MATCH("*"&F32&"*",Sheet1!C:C,0) ->  | K32: =MATCH("*"&H32&"*",Sheet1!C:C,0) ->  | L32: =MATCH("*"&I32&"*",Sheet1!B:B,0) ->  | M32: x | N32: concept | P32: =INDEX('[2]Pt1-AvionicsComponentCosts'!$A:$NE,MATCH(B32,'[2]Pt1-AvionicsComponentCosts'!$A:$A,0),MATCH("END MARKER",'[2]Pt1-AvionicsComponentCosts'!$11:$11,0)) -> 1521020.983 | Q32: 0.99 | R32: 0.99
B33: 221 | C33: =INDEX('[1]Pt1-AvionicsComponentCosts'!$A:$B,MATCH(B33,'[1]Pt1-AvionicsComponentCosts'!$A:$A,0),2) -> Large Commercial Aircraft | D33: Airbus | E33: 1 | F33: A220 | G33: Airbus A220-100 | H33: A220-100 | I33: A220-100 | J33: =MATCH("*"&F33&"*",Sheet1!C:C,0) -> 3 | K33: =MATCH("*"&H33&"*",Sheet1!C:C,0) ->  | L33: =MATCH("*"&I33&"*",Sheet1!B:B,0) -> 3 | M33: =INDEX(Sheet1!$A:$K,MATCH($I33,Sheet1!$B:$B,0),MATCH(M$1,Sheet1!$A$1:$K$1,0)) -> 81 | O33: =INDEX(Sheet1!$A:$K,MATCH($I33,Sheet1!$B:$B,0),MATCH(O$1,Sheet1!$A$1:$K$1,0)) -> https://simpleflying.com/how-much-do-airbus-aircraft-cost/ | P33: =INDEX('[2]Pt1-AvionicsComponentCosts'!$A:$NE,MATCH(B33,'[2]Pt1-AvionicsComponentCosts'!$A:$A,0),MATCH("END MARKER",'[2]Pt1-AvionicsComponentCosts'!$11:$11,0)) -> 1568058 | Q33: =50% -> 0.5 | R33: =50% -> 0.5 | S33: 0.0967937037
B34: 222 | C34: =INDEX('[1]Pt1-AvionicsComponentCosts'!$A:$B,MATCH(B34,'[1]Pt1-AvionicsComponentCosts'!$A:$A,0),2) -> Large Commercial Aircraft | D34: Airbus | E34: 1 | F34: A220 | G34: Airbus A220-300 | H34: A220-300 | I34: A220-300 | J34: =MATCH("*"&F34&"*",Sheet1!C:C,0) -> 3 | K34: =MATCH("*"&H34&"*",Sheet1!C:C,0) ->  | L34: =MATCH("*"&I34&"*",Sheet1!B:B,0) -> 4 | M34: =INDEX(Sheet1!$A:$K,MATCH($I34,Sheet1!$B:$B,0),MATCH(M$1,Sheet1!$A$1:$K$1,0)) -> 91.5 | O34: =INDEX(Sheet1!$A:$K,MATCH($I34,Sheet1!$B:$B,0),MATCH(O$1,Sheet1!$A$1:$K$1,0)) -> https://simpleflying.com/how-much-do-airbus-aircraft-cost/ | P34: =INDEX('[2]Pt1-AvionicsComponentCosts'!$A:$NE,MATCH(B34,'[2]Pt1-AvionicsComponentCosts'!$A:$A,0),MATCH("END MARKER",'[2]Pt1-AvionicsComponentCosts'!$11:$11,0)) -> 1568058 | Q34: =50% -> 0.5 | R34: =50% -> 0.5 | S34: 0.08568622951
B35: 653 | C35: =INDEX('[1]Pt1-AvionicsComponentCosts'!$A:$B,MATCH(B35,'[1]Pt1-AvionicsComponentCosts'!$A:$A,0),2) -> Large Commercial Aircraft | D35: Airbus | E35: 1 | F35: A220 | G35: Airbus A220-500 | H35: A220-500 | I35: A220-500 | J35: =MATCH("*"&F35&"*",Sheet1!C:C,0) -> 3 | K35: =MATCH("*"&H35&"*",Sheet1!C:C,0) ->  | L35: =MATCH("*"&I35&"*",Sheet1!B:B,0) ->  | M35: x | N35: concept | P35: =INDEX('[2]Pt1-AvionicsComponentCosts'!$A:$NE,MATCH(B35,'[2]Pt1-AvionicsComponentCosts'!$A:$A,0),MATCH("END MARKER",'[2]Pt1-AvionicsComponentCosts'!$11:$11,0)) -> 1669320.549 | Q35: =50% -> 0.5 | R35: =50% -> 0.5
B36: 634 | C36: =INDEX('[1]Pt1-AvionicsComponentCosts'!$A:$B,MATCH(B36,'[1]Pt1-AvionicsComponentCosts'!$A:$A,0),2) -> Large Commercial Aircraft | D36: Airbus | E36: 1 | F36: A320ceo | G36: A319-100 | H36: A319-100 | I36: A319-100 | J36: =MATCH("*"&F36&"*",Sheet1!C:C,0) ->  | K36: =MATCH("*"&H36&"*",Sheet1!C:C,0) ->  | L36: =MATCH("*"&I36&"*",Sheet1!B:B,0) ->  | M36: 89 | P36: =INDEX('[2]Pt1-AvionicsComponentCosts'!$A:$NE,MATCH(B36,'[2]Pt1-AvionicsComponentCosts'!$A:$A,0),MATCH("END MARKER",'[2]Pt1-AvionicsComponentCosts'!$11:$11,0)) -> 1450795 | Q36: =50% -> 0.5 | R36: =50% -> 0.5 | S36: 0.08150533708
B37: 633 | C37: =INDEX('[1]Pt1-AvionicsComponentCosts'!$A:$B,MATCH(B37,'[1]Pt1-AvionicsComponentCosts'!$A:$A,0),2) -> Large Commercial Aircraft | D37: Airbus | E37: 1 | F37: A320ceo | G37: A320-200 | H37: A320-200 | I37: A320-200 | J37: =MATCH("*"&F37&"*",Sheet1!C:C,0) ->  | K37: =MATCH("*"&H37&"*",Sheet1!C:C,0) ->  | L37: =MATCH("*"&I37&"*",Sheet1!B:B,0) ->  | M37: 98 | P37: =INDEX('[2]Pt1-AvionicsComponentCosts'!$A:$NE,MATCH(B37,'[2]Pt1-AvionicsComponentCosts'!$A:$A,0),MATCH("END MARKER",'[2]Pt1-AvionicsComponentCosts'!$11:$11,0)) -> 1450796 | Q37: =50% -> 0.5 | R37: =50% -> 0.5 | S37: 0.07402020408
B38: 206 | C38: =INDEX('[1]Pt1-AvionicsComponentCosts'!$A:$B,MATCH(B38,'[1]Pt1-AvionicsComponentCosts'!$A:$A,0),2) -> Large Commercial Aircraft | D38: Airbus | E38: 1 | F38: A320ceo | G38: Airbus A319ceo | H38: A319ceo | I38: A319ceo | J38: =MATCH("*"&F38&"*",Sheet1!C:C,0) ->  | K38: =MATCH("*"&H38&"*",Sheet1!C:C,0) ->  | L38: =MATCH("*"&I38&"*",Sheet1!B:B,0) ->  | M38: 92.3 | O38: https://simpleflying.com/how-much-do-airbus-aircraft-cost/ | P38: =INDEX('[2]Pt1-AvionicsComponentCosts'!$A:$NE,MATCH(B38,'[2]Pt1-AvionicsComponentCosts'!$A:$A,0),MATCH("END MARKER",'[2]Pt1-AvionicsComponentCosts'!$11:$11,0)) -> 1450795 | Q38: =50% -> 0.5 | R38: =50% -> 0.5 | S38: 0.07859127844
B39: 207 | C39: =INDEX('[1]Pt1-AvionicsComponentCosts'!$A:$B,MATCH(B39,'[1]Pt1-AvionicsComponentCosts'!$A:$A,0),2) -> Large Commercial Aircraft | D39: Airbus | E39: 1 | F39: A320ceo | G39: Airbus A320ceo | H39: A320ceo | I39: A320ceo | J39: =MATCH("*"&F39&"*",Sheet1!C:C,0) ->  | K39: =MATCH("*"&H39&"*",Sheet1!C:C,0) ->  | L39: =MATCH("*"&I39&"*",Sheet1!B:B,0) ->  | M39: 101 | O39: https://simpleflying.com/how-much-do-airbus-aircraft-cost/ | P39: =INDEX('[2]Pt1-AvionicsComponentCosts'!$A:$NE,MATCH(B39,'[2]Pt1-AvionicsComponentCosts'!$A:$A,0),MATCH("END MARKER",'[2]Pt1-AvionicsComponentCosts'!$11:$11,0)) -> 1450795 | Q39: =50% -> 0.5 | R39: =50% -> 0.5 | S39: 0.07182153465
B40: 208 | C40: =INDEX('[1]Pt1-AvionicsComponentCosts'!$A:$B,MATCH(B40,'[1]Pt1-AvionicsComponentCosts'!$A:$A,0),2) -> Large Commercial Aircraft | D40: Airbus | E40: 1 | F40: A320ceo | G40: Airbus A321ceo | H40: A321ceo | I40: A321ceo | J40: =MATCH("*"&F40&"*",Sheet1!C:C,0) ->  | K40: =MATCH("*"&H40&"*",Sheet1!C:C,0) ->  | L40: =MATCH("*"&I40&"*",Sheet1!B:B,0) ->  | M40: 118.3 | O40: https://simpleflying.com/how-much-do-airbus-aircraft-cost/ | P40: =INDEX('[2]Pt1-AvionicsComponentCosts'!$A:$NE,MATCH(B40,'[2]Pt1-AvionicsComponentCosts'!$A:$A,0),MATCH("END MARKER",'[2]Pt1-AvionicsComponentCosts'!$11:$11,0)) -> 1450795 | Q40: =50% -> 0.5 | R40: =50% -> 0.5 | S40: 0.06131846999
B41: 513 | C41: =INDEX('[1]Pt1-AvionicsComponentCosts'!$A:$B,MATCH(B41,'[1]Pt1-AvionicsComponentCosts'!$A:$A,0),2) -> Large Commercial Aircraft | D41: Airbus | E41: 1 | F41: A320neo | G41: Airbus A319neo | H41: A319neo | I41: A319neo | J41: =MATCH("*"&F41&"*",Sheet1!C:C,0) ->  | K41: =MATCH("*"&H41&"*",Sheet1!C:C,0) ->  | L41: =MATCH("*"&I41&"*",Sheet1!B:B,0) -> 7 | M41: =INDEX(Sheet1!$A:$K,MATCH($I41,Sheet1!$B:$B,0),MATCH(M$1,Sheet1!$A$1:$K$1,0)) -> 101.5 | O41: =INDEX(Sheet1!$A:$K,MATCH($I41,Sheet1!$B:$B,0),MATCH(O$1,Sheet1!$A$1:$K$1,0)) -> https://simpleflying.com/how-much-do-airbus-aircraft-cost/ | P41: =INDEX('[2]Pt1-AvionicsComponentCosts'!$A:$NE,MATCH(B41,'[2]Pt1-AvionicsComponentCosts'!$A:$A,0),MATCH("END MARKER",'[2]Pt1-AvionicsComponentCosts'!$11:$11,0)) -> 1450795 | Q41: =50% -> 0.5 | R41: =50% -> 0.5 | S41: 0.07146773399
B42: 514 | C42: =INDEX('[1]Pt1-AvionicsComponentCosts'!$A:$B,MATCH(B42,'[1]Pt1-AvionicsComponentCosts'!$A:$A,0),2) -> Large Commercial Aircraft | D42: Airbus | E42: 1 | F42: A320neo | G42: Airbus A320neo | H42: A320neo | I42: A320neo | J42: =MATCH("*"&F42&"*",Sheet1!C:C,0) ->  | K42: =MATCH("*"&H42&"*",Sheet1!C:C,0) ->  | L42: =MATCH("*"&I42&"*",Sheet1!B:B,0) ->  | M42: 110.6 | O42: https://simpleflying.com/how-much-do-airbus-aircraft-cost/ | P42: =INDEX('[2]Pt1-AvionicsComponentCosts'!$A:$NE,MATCH(B42,'[2]Pt1-AvionicsComponentCosts'!$A:$A,0),MATCH("END MARKER",'[2]Pt1-AvionicsComponentCosts'!$11:$11,0)) -> 1450795 | Q42: =50% -> 0.5 | R42: =50% -> 0.5 | S42: 0.0655874774
B43: 660 | C43: =INDEX('[1]Pt1-AvionicsComponentCosts'!$A:$B,MATCH(B43,'[1]Pt1-AvionicsComponentCosts'!$A:$A,0),2) -> Large Commercial Aircraft | D43: Airbus | E43: 1 | F43: A320neo | G43: Airbus A321 LR | H43: A321 LR | I43: A321 LR | J43: =MATCH("*"&F43&"*",Sheet1!C:C,0) ->  | K43: =MATCH("*"&H43&"*",Sheet1!C:C,0) ->  | L43: =MATCH("*"&I43&"*",Sheet1!B:B,0) ->  | M43: 129.5 | N43: guess | O43: https://www.forbes.com/sites/michaelgoldstein/2019/12/04/united-airlines-to-buy-50-ultra-long-range-airbus-a321xlr-aircraft-in-estimated-6-billion-deal/ | P43: =INDEX('[2]Pt1-AvionicsComponentCosts'!$A:$NE,MATCH(B43,'[2]Pt1-AvionicsComponentCosts'!$A:$A,0),MATCH("END MARKER",'[2]Pt1-AvionicsComponentCosts'!$11:$11,0)) -> 1505278.549 | Q43: =50% -> 0.5 | R43: =50% -> 0.5 | S43: 0.05811886289
B44: 662 | C44: =INDEX('[1]Pt1-AvionicsComponentCosts'!$A:$B,MATCH(B44,'[1]Pt1-AvionicsComponentCosts'!$A:$A,0),2) -> Large Commercial Aircraft | D44: Airbus | E44: 1 | F44: A320neo | G44: Airbus A321 XLR | H44: A321 XLR | I44: A321 XLR | J44: =MATCH("*"&F44&"*",Sheet1!C:C,0) ->  | K44: =MATCH("*"&H44&"*",Sheet1!C:C,0) ->  | L44: =MATCH("*"&I44&"*",Sheet1!B:B,0) ->  | M44: 129.5 | N44: guess | O44: https://www.forbes.com/sites/michaelgoldstein/2019/12/04/united-airlines-to-buy-50-ultra-long-range-airbus-a321xlr-aircraft-in-estimated-6-billion-deal/ | P44: =INDEX('[2]Pt1-AvionicsComponentCosts'!$A:$NE,MATCH(B44,'[2]Pt1-AvionicsComponentCosts'!$A:$A,0),MATCH("END MARKER",'[2]Pt1-AvionicsComponentCosts'!$11:$11,0)) -> 1505278.549 | Q44: =50% -> 0.5 | R44: =50% -> 0.5 | S44: 0.05811886289
B45: 515 | C45: =INDEX('[1]Pt1-AvionicsComponentCosts'!$A:$B,MATCH(B45,'[1]Pt1-AvionicsComponentCosts'!$A:$A,0),2) -> Large Commercial Aircraft | D45: Airbus | E45: 1 | F45: A320neo | G45: Airbus A321neo | H45: A321neo | I45: A321neo | J45: =MATCH("*"&F45&"*",Sheet1!C:C,0) ->  | K45: =MATCH("*"&H45&"*",Sheet1!C:C,0) ->  | L45: =MATCH("*"&I45&"*",Sheet1!B:B,0) -> 10 | M45: =INDEX(Sheet1!$A:$K,MATCH($I45,Sheet1!$B:$B,0),MATCH(M$1,Sheet1!$A$1:$K$1,0)) -> 129.5 | O45: =INDEX(Sheet1!$A:$K,MATCH($I45,Sheet1!$B:$B,0),MATCH(O$1,Sheet1!$A$1:$K$1,0)) -> https://simpleflying.com/how-much-do-airbus-aircraft-cost/ | P45: =INDEX('[2]Pt1-AvionicsComponentCosts'!$A:$NE,MATCH(B45,'[2]Pt1-AvionicsComponentCosts'!$A:$A,0),MATCH("END MARKER",'[2]Pt1-AvionicsComponentCosts'!$11:$11,0)) -> 1450795 | Q45: =50% -> 0.5 | R45: =50% -> 0.5 | S45: 0.05601525097
B46: 654 | C46: =INDEX('[1]Pt1-AvionicsComponentCosts'!$A:$B,MATCH(B46,'[1]Pt1-AvionicsComponentCosts'!$A:$A,0),2) -> Large Commercial Aircraft | D46: Airbus | E46: 1 | F46: A320neo | G46: Airbus A322X | H46: A322X | I46: A322X | J46: =MATCH("*"&F46&"*",Sheet1!C:C,0) ->  | K46: =MATCH("*"&H46&"*",Sheet1!C:C,0) ->  | L46: =MATCH("*"&I46&"*",Sheet1!B:B,0) ->  | M46: x | N46: concept | P46: =INDEX('[2]Pt1-AvionicsComponentCosts'!$A:$NE,MATCH(B46,'[2]Pt1-AvionicsComponentCosts'!$A:$A,0),MATCH("END MARKER",'[2]Pt1-AvionicsComponentCosts'!$11:$11,0)) -> 1669320.549 | Q46: =50% -> 0.5 | R46: =50% -> 0.5
B47: 212 | C47: =INDEX('[1]Pt1-AvionicsComponentCosts'!$A:$B,MATCH(B47,'[1]Pt1-AvionicsComponentCosts'!$A:$A,0),2) -> Large Commercial Aircraft | D47: Airbus | E47: 1 | F47: A330 | G47: Airbus A330-200 | H47: A330-200 | I47: A330-200 | J47: =MATCH("*"&F47&"*",Sheet1!C:C,0) -> 11 | K47: =MATCH("*"&H47&"*",Sheet1!C:C,0) ->  | L47: =MATCH("*"&I47&"*",Sheet1!B:B,0) -> 11 | M47: =INDEX(Sheet1!$A:$K,MATCH($I47,Sheet1!$B:$B,0),MATCH(M$1,Sheet1!$A$1:$K$1,0)) -> 231.5 | O47: =INDEX(Sheet1!$A:$K,MATCH($I47,Sheet1!$B:$B,0),MATCH(O$1,Sheet1!$A$1:$K$1,0)) -> http://www.axonaviation.com/commercial-aircraft/aircraft-data/aircraft-pricing | P47: =INDEX('[2]Pt1-AvionicsComponentCosts'!$A:$NE,MATCH(B47,'[2]Pt1-AvionicsComponentCosts'!$A:$A,0),MATCH("END MARKER",'[2]Pt1-AvionicsComponentCosts'!$11:$11,0)) -> 1959843.16 | Q47: =50% -> 0.5 | R47: =50% -> 0.5 | S47: 0.04232922592
B48: 213 | C48: =INDEX('[1]Pt1-AvionicsComponentCosts'!$A:$B,MATCH(B48,'[1]Pt1-AvionicsComponentCosts'!$A:$A,0),2) -> Large Commercial Aircraft | D48: Airbus | E48: 1 | F48: A330 | G48: Airbus A330-300 | H48: A330-300 | I48: A330-300 | J48: =MATCH("*"&F48&"*",Sheet1!C:C,0) -> 11 | K48: =MATCH("*"&H48&"*",Sheet1!C:C,0) ->  | L48: =MATCH("*"&I48&"*",Sheet1!B:B,0) -> 13 | M48: =INDEX(Sheet1!$A:$K,MATCH($I48,Sheet1!$B:$B,0),MATCH(M$1,Sheet1!$A$1:$K$1,0)) -> 256.4 | O48: =INDEX(Sheet1!$A:$K,MATCH($I48,Sheet1!$B:$B,0),MATCH(O$1,Sheet1!$A$1:$K$1,0)) -> http://www.axonaviation.com/commercial-aircraft/aircraft-data/aircraft-pricing | P48: =INDEX('[2]Pt1-AvionicsComponentCosts'!$A:$NE,MATCH(B48,'[2]Pt1-AvionicsComponentCosts'!$A:$A,0),MATCH("END MARKER",'[2]Pt1-AvionicsComponentCosts'!$11:$11,0)) -> 1959843.16 | Q48: =50% -> 0.5 | R48: =50% -> 0.5 | S48: 0.03821847036
B49: 214 | C49: =INDEX('[1]Pt1-AvionicsComponentCosts'!$A:$B,MATCH(B49,'[1]Pt1-AvionicsComponentCosts'!$A:$A,0),2) -> Large Commercial Aircraft | D49: Airbus | E49: 1 | F49: A330 | G49: Airbus A330-800neo | H49: A330-800neo | I49: A330-800neo | J49: =MATCH("*"&F49&"*",Sheet1!C:C,0) -> 11 | K49: =MATCH("*"&H49&"*",Sheet1!C:C,0) ->  | L49: =MATCH("*"&I49&"*",Sheet1!B:B,0) -> 14 | M49: =INDEX(Sheet1!$A:$K,MATCH($I49,Sheet1!$B:$B,0),MATCH(M$1,Sheet1!$A$1:$K$1,0)) -> 259.9 | O49: =INDEX(Sheet1!$A:$K,MATCH($I49,Sheet1!$B:$B,0),MATCH(O$1,Sheet1!$A$1:$K$1,0)) -> https://simpleflying.com/how-much-do-airbus-aircraft-cost/ | P49: =INDEX('[2]Pt1-AvionicsComponentCosts'!$A:$NE,MATCH(B49,'[2]Pt1-AvionicsComponentCosts'!$A:$A,0),MATCH("END MARKER",'[2]Pt1-AvionicsComponentCosts'!$11:$11,0)) -> 1980343.16 | Q49: =50% -> 0.5 | R49: =50% -> 0.5 | S49: 0.03809817545
B50: 215 | C50: =INDEX('[1]Pt1-AvionicsComponentCosts'!$A:$B,MATCH(B50,'[1]Pt1-AvionicsComponentCosts'!$A:$A,0),2) -> Large Commercial Aircraft | D50: Airbus | E50: 1 | F50: A330 | G50: Airbus A330-900neo | H50: A330-900neo | I50: A330-900neo | J50: =MATCH("*"&F50&"*",Sheet1!C:C,0) -> 11 | K50: =MATCH("*"&H50&"*",Sheet1!C:C,0) ->  | L50: =MATCH("*"&I50&"*",Sheet1!B:B,0) -> 15 | M50: =INDEX(Sheet1!$A:$K,MATCH($I50,Sheet1!$B:$B,0),MATCH(M$1,Sheet1!$A$1:$K$1,0)) -> 296.4 | O50: =INDEX(Sheet1!$A:$K,MATCH($I50,Sheet1!$B:$B,0),MATCH(O$1,Sheet1!$A$1:$K$1,0)) -> https://simpleflying.com/how-much-do-airbus-aircraft-cost/ | P50: =INDEX('[2]Pt1-AvionicsComponentCosts'!$A:$NE,MATCH(B50,'[2]Pt1-AvionicsComponentCosts'!$A:$A,0),MATCH("END MARKER",'[2]Pt1-AvionicsComponentCosts'!$11:$11,0)) -> 1980343.16 | Q50: =50% -> 0.5 | R50: =50% -> 0.5 | S50: 0.03340659852
B51: 304 | C51: =INDEX('[1]Pt1-AvionicsComponentCosts'!$A:$B,MATCH(B51,'[1]Pt1-AvionicsComponentCosts'!$A:$A,0),2) -> Large Commercial Aircraft | D51: Airbus | E51: 1 | F51: A340 | G51: Airbus A340-200/300 | H51: A340-200/300 | I51: A340-200/300 | J51: =MATCH("*"&F51&"*",Sheet1!C:C,0) ->  | K51: =MATCH("*"&H51&"*",Sheet1!C:C,0) ->  | L51: =MATCH("*"&I51&"*",Sheet1!B:B,0) ->  | M51: x | N51: OOP | P51: =INDEX('[2]Pt1-AvionicsComponentCosts'!$A:$NE,MATCH(B51,'[2]Pt1-AvionicsComponentCosts'!$A:$A,0),MATCH("END MARKER",'[2]Pt1-AvionicsComponentCosts'!$11:$11,0)) -> 2013760.16 | Q51: =50% -> 0.5 | R51: =50% -> 0.5
B52: 5 | C52: =INDEX('[1]Pt1-AvionicsComponentCosts'!$A:$B,MATCH(B52,'[1]Pt1-AvionicsComponentCosts'!$A:$A,0),2) -> Large Commercial Aircraft | D52: Airbus | E52: 1 | F52: A340 | G52: Airbus A340-500/600 | H52: A340-500/600 | I52: A340-500/600 | J52: =MATCH("*"&F52&"*",Sheet1!C:C,0) ->  | K52: =MATCH("*"&H52&"*",Sheet1!C:C,0) ->  | L52: =MATCH("*"&I52&"*",Sheet1!B:B,0) ->  | M52: x | N52: OOP | P52: =INDEX('[2]Pt1-AvionicsComponentCosts'!$A:$NE,MATCH(B52,'[2]Pt1-AvionicsComponentCosts'!$A:$A,0),MATCH("END MARKER",'[2]Pt1-AvionicsComponentCosts'!$11:$11,0)) -> 2025780.723 | Q52: =50% -> 0.5 | R52: =50% -> 0.5
B53: 6 | C53: =INDEX('[1]Pt1-AvionicsComponentCosts'!$A:$B,MATCH(B53,'[1]Pt1-AvionicsComponentCosts'!$A:$A,0),2) -> Large Commercial Aircraft | D53: Airbus | E53: 1 | F53: A350 | G53: Airbus A350 XWB - A350-900 | H53: A350 XWB - A350-900 | I53: A350 XWB - A350-900 | J53: =MATCH("*"&F53&"*",Sheet1!C:C,0) -> 17 | K53: =MATCH("*"&H53&"*",Sheet1!C:C,0) ->  | L53: =MATCH("*"&I53&"*",Sheet1!B:B,0) ->  | M53: 308.1 | O53: http://www.axonaviation.com/commercial-aircraft/aircraft-data/aircraft-pricing | P53: =INDEX('[2]Pt1-AvionicsComponentCosts'!$A:$NE,MATCH(B53,'[2]Pt1-AvionicsComponentCosts'!$A:$A,0),MATCH("END MARKER",'[2]Pt1-AvionicsComponentCosts'!$11:$11,0)) -> 2635778.515 | Q53: =50% -> 0.5 | R53: =50% -> 0.5 | S53: 0.04277472436
B54: 7 | C54: =INDEX('[1]Pt1-AvionicsComponentCosts'!$A:$B,MATCH(B54,'[1]Pt1-AvionicsComponentCosts'!$A:$A,0),2) -> Large Commercial Aircraft | D54: Airbus | E54: 1 | F54: A350 | G54: Airbus A350-1000 | H54: A350-1000 | I54: A350-1000 | J54: =MATCH("*"&F54&"*",Sheet1!C:C,0) -> 17 | K54: =MATCH("*"&H54&"*",Sheet1!C:C,0) ->  | L54: =MATCH("*"&I54&"*",Sheet1!B:B,0) -> 18 | M54: =INDEX(Sheet1!$A:$K,MATCH($I54,Sheet1!$B:$B,0),MATCH(M$1,Sheet1!$A$1:$K$1,0)) -> 355.7 | O54: =INDEX(Sheet1!$A:$K,MATCH($I54,Sheet1!$B:$B,0),MATCH(O$1,Sheet1!$A$1:$K$1,0)) -> http://www.axonaviation.com/commercial-aircraft/aircraft-data/aircraft-pricing | P54: =INDEX('[2]Pt1-AvionicsComponentCosts'!$A:$NE,MATCH(B54,'[2]Pt1-AvionicsComponentCosts'!$A:$A,0),MATCH("END MARKER",'[2]Pt1-AvionicsComponentCosts'!$11:$11,0)) -> 2635778.515 | Q54: =50% -> 0.5 | R54: =50% -> 0.5 | S54: 0.03705058357
B55: 657 | C55: =INDEX('[1]Pt1-AvionicsComponentCosts'!$A:$B,MATCH(B55,'[1]Pt1-AvionicsComponentCosts'!$A:$A,0),2) -> Large Commercial Aircraft | D55: Airbus | E55: 1 | F55: A350 | G55: Airbus A350-1000neo | H55: A350-1000neo | I55: A350-1000neo | J55: =MATCH("*"&F55&"*",Sheet1!C:C,0) -> 17 | K55: =MATCH("*"&H55&"*",Sheet1!C:C,0) ->  | L55: =MATCH("*"&I55&"*",Sheet1!B:B,0) ->  | M55: 355 | O55: http://www.axonaviation.com/commercial-aircraft/aircraft-data/aircraft-pricing | P55: =INDEX('[2]Pt1-AvionicsComponentCosts'!$A:$NE,MATCH(B55,'[2]Pt1-AvionicsComponentCosts'!$A:$A,0),MATCH("END MARKER",'[2]Pt1-AvionicsComponentCosts'!$11:$11,0)) -> 2635778.515 | Q55: =50% -> 0.5 | R55: =50% -> 0.5 | S55: 0.03712364106
B56: 656 | C56: =INDEX('[1]Pt1-AvionicsComponentCosts'!$A:$B,MATCH(B56,'[1]Pt1-AvionicsComponentCosts'!$A:$A,0),2) -> Large Commercial Aircraft | D56: Airbus | E56: 1 | F56: A350 | G56: Airbus A350-900neo | H56: A350-900neo | I56: A350-900neo | J56: =MATCH("*"&F56&"*",Sheet1!C:C,0) -> 17 | K56: =MATCH("*"&H56&"*",Sheet1!C:C,0) ->  | L56: =MATCH("*"&I56&"*",Sheet1!B:B,0) ->  | M56: 308.1 | O56: http://www.axonaviation.com/commercial-aircraft/aircraft-data/aircraft-pricing | P56: =INDEX('[2]Pt1-AvionicsComponentCosts'!$A:$NE,MATCH(B56,'[2]Pt1-AvionicsComponentCosts'!$A:$A,0),MATCH("END MARKER",'[2]Pt1-AvionicsComponentCosts'!$11:$11,0)) -> 2635778.515 | Q56: =50% -> 0.5 | R56: =50% -> 0.5 | S56: 0.04277472436
B57: 305 | C57: =INDEX('[1]Pt1-AvionicsComponentCosts'!$A:$B,MATCH(B57,'[1]Pt1-AvionicsComponentCosts'!$A:$A,0),2) -> Large Commercial Aircraft | D57: Airbus | E57: 1 | F57: Airbus A300 | G57: Airbus A300 | H57: A300 | I57: A300 | J57: =MATCH("*"&F57&"*",Sheet1!C:C,0) ->  | K57: =MATCH("*"&H57&"*",Sheet1!C:C,0) ->  | L57: =MATCH("*"&I57&"*",Sheet1!B:B,0) ->  | M57: x | N57: OOP | P57: =INDEX('[2]Pt1-AvionicsComponentCosts'!$A:$NE,MATCH(B57,'[2]Pt1-AvionicsComponentCosts'!$A:$A,0),MATCH("END MARKER",'[2]Pt1-AvionicsComponentCosts'!$11:$11,0)) -> 1936102.331 | Q57: =50% -> 0.5 | R57: =50% -> 0.5
B58: 216 | C58: =INDEX('[1]Pt1-AvionicsComponentCosts'!$A:$B,MATCH(B58,'[1]Pt1-AvionicsComponentCosts'!$A:$A,0),2) -> Large Commercial Aircraft | D58: Airbus | E58: 1 | F58: A380 | G58: Airbus A380 | H58: A380 | I58: A380 | J58: =MATCH("*"&F58&"*",Sheet1!C:C,0) -> 19 | K58: =MATCH("*"&H58&"*",Sheet1!C:C,0) -> 19 | L58: =MATCH("*"&I58&"*",Sheet1!B:B,0) -> 19 | M58: =INDEX(Sheet1!$A:$K,MATCH($I58,Sheet1!$B:$B,0),MATCH(M$1,Sheet1!$A$1:$K$1,0)) -> 350 | O58: =INDEX(Sheet1!$A:$K,MATCH($I58,Sheet1!$B:$B,0),MATCH(O$1,Sheet1!$A$1:$K$1,0)) -> http://www.axonaviation.com/commercial-aircraft/aircraft-data/aircraft-pricing | P58: =INDEX('[2]Pt1-AvionicsComponentCosts'!$A:$NE,MATCH(B58,'[2]Pt1-AvionicsComponentCosts'!$A:$A,0),MATCH("END MARKER",'[2]Pt1-AvionicsComponentCosts'!$11:$11,0)) -> 2888053.291 | Q58: =50% -> 0.5 | R58: =50% -> 0.5 | S58: 0.04125790416
B59: 551 | C59: =INDEX('[1]Pt1-AvionicsComponentCosts'!$A:$B,MATCH(B59,'[1]Pt1-AvionicsComponentCosts'!$A:$A,0),2) -> Military Transport / Special Mission | D59: Airbus | E59: 1 | F59: A330 MRTT | G59: Airbus A330 MRTT | H59: A330 MRTT | I59: A330 MRTT | J59: =MATCH("*"&F59&"*",Sheet1!C:C,0) ->  | K59: =MATCH("*"&H59&"*",Sheet1!C:C,0) ->  | L59: =MATCH("*"&I59&"*",Sheet1!B:B,0) ->  | M59: 340 | O59: https://simpleflying.com/how-much-do-military-transport-aircraft-cost/ | P59: =INDEX('[2]Pt1-AvionicsComponentCosts'!$A:$NE,MATCH(B59,'[2]Pt1-AvionicsComponentCosts'!$A:$A,0),MATCH("END MARKER",'[2]Pt1-AvionicsComponentCosts'!$11:$11,0)) -> 3430118.173 | Q59: 1 | R59: 1 | S59: 0.1008858286
B60: 150 | C60: =INDEX('[1]Pt1-AvionicsComponentCosts'!$A:$B,MATCH(B60,'[1]Pt1-AvionicsComponentCosts'!$A:$A,0),2) -> Military Transport / Special Mission | D60: Airbus | E60: 1 | F60: A400M Atlas | G60: Airbus A400M Atlas | H60: A400M Atlas | I60: A400M Atlas | J60: =MATCH("*"&F60&"*",Sheet1!C:C,0) ->  | K60: =MATCH("*"&H60&"*",Sheet1!C:C,0) ->  | L60: =MATCH("*"&I60&"*",Sheet1!B:B,0) ->  | M60: 190 | O60: https://weaponsystems.net/system/673-Airbus+A400M+Atlas | P60: =INDEX('[2]Pt1-AvionicsComponentCosts'!$A:$NE,MATCH(B60,'[2]Pt1-AvionicsComponentCosts'!$A:$A,0),MATCH("END MARKER",'[2]Pt1-AvionicsComponentCosts'!$11:$11,0)) -> 3582115.832 | Q60: 1 | R60: 1 | S60: 0.1885324122
B61: 155 | C61: =INDEX('[1]Pt1-AvionicsComponentCosts'!$A:$B,MATCH(B61,'[1]Pt1-AvionicsComponentCosts'!$A:$A,0),2) -> Military Transport / Special Mission | D61: Alenia | E61: 1 | F61: Alenia C-27J | G61: Alenia C-27J | H61: C-27J | I61: C-27J | J61: =MATCH("*"&F61&"*",Sheet1!C:C,0) ->  | K61: =MATCH("*"&H61&"*",Sheet1!C:C,0) ->  | L61: =MATCH("*"&I61&"*",Sheet1!B:B,0) ->  | M61: 40 | O61: https://simpleflying.com/how-much-do-military-transport-aircraft-cost/ | P61: =INDEX('[2]Pt1-AvionicsComponentCosts'!$A:$NE,MATCH(B61,'[2]Pt1-AvionicsComponentCosts'!$A:$A,0),MATCH("END MARKER",'[2]Pt1-AvionicsComponentCosts'!$11:$11,0)) -> 3357528.809 | Q61: 1 | R61: 1 | S61: 0.8393822023
B62: 668 | C62: =INDEX('[1]Pt1-AvionicsComponentCosts'!$A:$B,MATCH(B62,'[1]Pt1-AvionicsComponentCosts'!$A:$A,0),2) -> Freighter | D62: ATR | E62: 1 | F62: ATR 42/72 | G62: ATR 72-600F | H62: 72-600F | I62: 72-600F | J62: =MATCH("*"&F62&"*",Sheet1!C:C,0) ->  | K62: =MATCH("*"&H62&"*",Sheet1!C:C,0) ->  | L62: =MATCH("*"&I62&"*",Sheet1!B:B,0) ->  | M62: 26 | O62: https://www.paramountbusinessjets.com/private-jet-charter/aircraft/atr-72-600 | P62: =INDEX('[2]Pt1-AvionicsComponentCosts'!$A:$NE,MATCH(B62,'[2]Pt1-AvionicsComponentCosts'!$A:$A,0),MATCH("END MARKER",'[2]Pt1-AvionicsComponentCosts'!$11:$11,0)) -> 734855.5136 | Q62: 0.5 | R62: 0.5 | S62: 0.141318368
B63: 667 | C63: =INDEX('[1]Pt1-AvionicsComponentCosts'!$A:$B,MATCH(B63,'[1]Pt1-AvionicsComponentCosts'!$A:$A,0),2) -> Freighter | D63: ATR | E63: 1 | F63: ATR 42/72 | G63: ATR 72/42 Freighter Conversion | H63: 72/42 Freighter Conversion | I63: 72/42 Freighter Conversion | J63: =MATCH("*"&F63&"*",Sheet1!C:C,0) ->  | K63: =MATCH("*"&H63&"*",Sheet1!C:C,0) ->  | L63: =MATCH("*"&I63&"*",Sheet1!B:B,0) ->  | M63: x | P63: =INDEX('[2]Pt1-AvionicsComponentCosts'!$A:$NE,MATCH(B63,'[2]Pt1-AvionicsComponentCosts'!$A:$A,0),MATCH("END MARKER",'[2]Pt1-AvionicsComponentCosts'!$11:$11,0)) -> 734855.5136 | Q63: 0.5 | R63: 0.5
B64: 191 | C64: =INDEX('[1]Pt1-AvionicsComponentCosts'!$A:$B,MATCH(B64,'[1]Pt1-AvionicsComponentCosts'!$A:$A,0),2) -> Regional | D64: ATR | E64: 1 | F64: ATR 42/72 | G64: ATR 42 | H64: 42 | I64: 42 | J64: =MATCH("*"&F64&"*",Sheet1!C:C,0) ->  | K64: =MATCH("*"&H64&"*",Sheet1!C:C,0) ->  | L64: =MATCH("*"&I64&"*",Sheet1!B:B,0) ->  | M64: x | P64: =INDEX('[2]Pt1-AvionicsComponentCosts'!$A:$NE,MATCH(B64,'[2]Pt1-AvionicsComponentCosts'!$A:$A,0),MATCH("END MARKER",'[2]Pt1-AvionicsComponentCosts'!$11:$11,0)) -> 1116294.045 | Q64: 0.65 | R64: 0.65
B65: 26 | C65: =INDEX('[1]Pt1-AvionicsComponentCosts'!$A:$B,MATCH(B65,'[1]Pt1-AvionicsComponentCosts'!$A:$A,0),2) -> Regional | D65: ATR | E65: 1 | F65: ATR 42/72 | G65: ATR 72 | H65: 72 | I65: 72 | J65: =MATCH("*"&F65&"*",Sheet1!C:C,0) ->  | K65: =MATCH("*"&H65&"*",Sheet1!C:C,0) ->  | L65: =MATCH("*"&I65&"*",Sheet1!B:B,0) ->  | M65: x | P65: =INDEX('[2]Pt1-AvionicsComponentCosts'!$A:$NE,MATCH(B65,'[2]Pt1-AvionicsComponentCosts'!$A:$A,0),MATCH("END MARKER",'[2]Pt1-AvionicsComponentCosts'!$11:$11,0)) -> 1116294.045 | Q65: 0.65 | R65: 0.65
B66: 647 | C66: =INDEX('[1]Pt1-AvionicsComponentCosts'!$A:$B,MATCH(B66,'[1]Pt1-AvionicsComponentCosts'!$A:$A,0),2) -> Regional | D66: ATR | E66: 1 | F66: ATR 42/72X | G66: ATR 42/72X | H66: 42/72X | I66: 42/72X | J66: =MATCH("*"&F66&"*",Sheet1!C:C,0) ->  | K66: =MATCH("*"&H66&"*",Sheet1!C:C,0) ->  | L66: =MATCH("*"&I66&"*",Sheet1!B:B,0) ->  | M66: x | P66: =INDEX('[2]Pt1-AvionicsComponentCosts'!$A:$NE,MATCH(B66,'[2]Pt1-AvionicsComponentCosts'!$A:$A,0),MATCH("END MARKER",'[2]Pt1-AvionicsComponentCosts'!$11:$11,0)) -> 1116294.045 | Q66: 0.65 | R66: 0.65
B67: 616 | C67: =INDEX('[1]Pt1-AvionicsComponentCosts'!$A:$B,MATCH(B67,'[1]Pt1-AvionicsComponentCosts'!$A:$A,0),2) -> Regional | D67: AVIC | E67: 1 | F67: AVIC MA700 | G67: AVIC MA700 | H67: =TRIM(SUBSTITUTE(G67,D67,"")) -> MA700 | I67: =TRIM(SUBSTITUTE(SUBSTITUTE(SUBSTITUTE(SUBSTITUTE(SUBSTITUTE(H67,"Family",""),"737 Classic:",""),"737 MAX:",""),"787 Dreamliner:",""),"777:","")) -> MA700 | J67: =MATCH("*"&F67&"*",Sheet1!C:C,0) ->  | K67: =MATCH("*"&H67&"*",Sheet1!C:C,0) ->  | L67: =MATCH("*"&I67&"*",Sheet1!B:B,0) ->  | M67: 25 | O67: https://aerocorner.com/aircraft/xian-ma700/ | P67: =INDEX('[2]Pt1-AvionicsComponentCosts'!$A:$NE,MATCH(B67,'[2]Pt1-AvionicsComponentCosts'!$A:$A,0),MATCH("END MARKER",'[2]Pt1-AvionicsComponentCosts'!$11:$11,0)) -> 1040302.445 | Q67: 0.65 | R67: 0.65 | S67: =IFERROR(P67/(M67*100000)*R67,"") -> 0.2704786356
B68: 548 | C68: =INDEX('[1]Pt1-AvionicsComponentCosts'!$A:$B,MATCH(B68,'[1]Pt1-AvionicsComponentCosts'!$A:$A,0),2) -> Turbine GA | D68: Ayres | E68: 1 | F68: Ayres Thrush 510 | G68: Ayres Thrush 510 | H68: Thrush 510 | I68: Thrush 510 | J68: =MATCH("*"&F68&"*",Sheet1!C:C,0) ->  | K68: =MATCH("*"&H68&"*",Sheet1!C:C,0) ->  | L68: =MATCH("*"&I68&"*",Sheet1!B:B,0) ->  | N68: 0.869 | O68: https://www.flyingmag.com/aircraft-turboprops-thrush-510g/ | P68: =INDEX('[2]Pt1-AvionicsComponentCosts'!$A:$NE,MATCH(B68,'[2]Pt1-AvionicsComponentCosts'!$A:$A,0),MATCH("END MARKER",'[2]Pt1-AvionicsComponentCosts'!$11:$11,0)) -> 220626.488 | Q68: 1 | R68: 1 | S68: =IFERROR(P68/(M68*100000)*R68,"") -> 
B69: 549 | C69: =INDEX('[1]Pt1-AvionicsComponentCosts'!$A:$B,MATCH(B69,'[1]Pt1-AvionicsComponentCosts'!$A:$A,0),2) -> Turbine GA | D69: Ayres | E69: 1 | F69: Ayres Thrush SR2 | G69: Ayres Thrush SR2 | H69: Thrush SR2 | I69: Thrush SR2 | J69: =MATCH("*"&F69&"*",Sheet1!C:C,0) ->  | K69: =MATCH("*"&H69&"*",Sheet1!C:C,0) ->  | L69: =MATCH("*"&I69&"*",Sheet1!B:B,0) ->  | N69: 0.8 | O69: https://janes.migavia.com/usa/thrush/thrush-turbo-thrush-s2r.html | P69: =INDEX('[2]Pt1-AvionicsComponentCosts'!$A:$NE,MATCH(B69,'[2]Pt1-AvionicsComponentCosts'!$A:$A,0),MATCH("END MARKER",'[2]Pt1-AvionicsComponentCosts'!$11:$11,0)) -> 220626.488 | Q69: 1 | R69: 1 | S69: =IFERROR(P69/(M69*100000)*R69,"") -> 
B70: 167 | C70: =INDEX('[1]Pt1-AvionicsComponentCosts'!$A:$B,MATCH(B70,'[1]Pt1-AvionicsComponentCosts'!$A:$A,0),2) -> Fighters and Jet Trainers | D70: BAE | E70: 1 | F70: Hawk | G70: BAE Systems Hawk | H70: Systems Hawk | I70: Systems Hawk | J70: =MATCH("*"&F70&"*",Sheet1!C:C,0) ->  | K70: =MATCH("*"&H70&"*",Sheet1!C:C,0) ->  | L70: =MATCH("*"&I70&"*",Sheet1!B:B,0) ->  | M70: x | P70: =INDEX('[2]Pt1-AvionicsComponentCosts'!$A:$NE,MATCH(B70,'[2]Pt1-AvionicsComponentCosts'!$A:$A,0),MATCH("END MARKER",'[2]Pt1-AvionicsComponentCosts'!$11:$11,0)) -> 1295662.923 | Q70: 1 | R70: 1
B71: 643 | C71: =INDEX('[1]Pt1-AvionicsComponentCosts'!$A:$B,MATCH(B71,'[1]Pt1-AvionicsComponentCosts'!$A:$A,0),2) -> Fighters and Jet Trainers | D71: BAES/Leonardo | E71: 1 | F71: BAES/Leonardo Tempest | G71: BAES/Leonardo Tempest | H71: Tempest | I71: Tempest | J71: =MATCH("*"&F71&"*",Sheet1!C:C,0) ->  | K71: =MATCH("*"&H71&"*",Sheet1!C:C,0) ->  | L71: =MATCH("*"&I71&"*",Sheet1!B:B,0) ->  | M71: x | P71: =INDEX('[2]Pt1-AvionicsComponentCosts'!$A:$NE,MATCH(B71,'[2]Pt1-AvionicsComponentCosts'!$A:$A,0),MATCH("END MARKER",'[2]Pt1-AvionicsComponentCosts'!$11:$11,0)) -> 3075967.308 | Q71: 1 | R71: 1
B72: 901 | C72: =INDEX('[1]Pt1-AvionicsComponentCosts'!$A:$B,MATCH(B72,'[1]Pt1-AvionicsComponentCosts'!$A:$A,0),2) -> UAV | D72: Bayraktar | E72: 1 | F72: Bayraktar TB-2 | G72: Bayraktar TB-2 | H72: TB-2 | I72: TB-2 | J72: =MATCH("*"&F72&"*",Sheet1!C:C,0) ->  | K72: =MATCH("*"&H72&"*",Sheet1!C:C,0) ->  | L72: =MATCH("*"&I72&"*",Sheet1!B:B,0) ->  | M72: 2 | O72: https://www.defensenews.com/unmanned/2023/06/14/kuwait-to-buy-turkish-made-tb2-drones-in-367-million-deal/ | P72: =INDEX('[2]Pt1-AvionicsComponentCosts'!$A:$NE,MATCH(B72,'[2]Pt1-AvionicsComponentCosts'!$A:$A,0),MATCH("END MARKER",'[2]Pt1-AvionicsComponentCosts'!$11:$11,0)) -> 914017 | Q72: 1 | R72: 1 | S72: 4.570085
B73: 80 | C73: =INDEX('[1]Pt1-AvionicsComponentCosts'!$A:$B,MATCH(B73,'[1]Pt1-AvionicsComponentCosts'!$A:$A,0),2) -> Turbine GA | D73: Beechcraft | E73: 1 | F73: Beechcraft King Air | G73: Beechcraft King Air | H73: King Air | I73: King Air | J73: =MATCH("*"&F73&"*",Sheet1!C:C,0) ->  | K73: =MATCH("*"&H73&"*",Sheet1!C:C,0) ->  | L73: =MATCH("*"&I73&"*",Sheet1!B:B,0) ->  | M73: 8 | N73: 350i | O73: https://www.sherpareport.com/aircraft/costs-king-air-350.html | P73: =INDEX('[2]Pt1-AvionicsComponentCosts'!$A:$NE,MATCH(B73,'[2]Pt1-AvionicsComponentCosts'!$A:$A,0),MATCH("END MARKER",'[2]Pt1-AvionicsComponentCosts'!$11:$11,0)) -> 227116.5632 | Q73: 1 | R73: 1 | S73: 0.283895704
B74: 31 | C74: =INDEX('[1]Pt1-AvionicsComponentCosts'!$A:$B,MATCH(B74,'[1]Pt1-AvionicsComponentCosts'!$A:$A,0),2) -> Turbine GA | D74: Beechcraft | E74: 1 | F74: Other light aircraft | G74: Beechcraft Premier I | H74: Premier I | I74: Premier I | J74: =MATCH("*"&F74&"*",Sheet1!C:C,0) ->  | K74: =MATCH("*"&H74&"*",Sheet1!C:C,0) ->  | L74: =MATCH("*"&I74&"*",Sheet1!B:B,0) ->  | N74: used | O74: https://www.libertyjet.com/private_jets_for_sale/Beechcraft%20Corp./Premier%20I | P74: =INDEX('[2]Pt1-AvionicsComponentCosts'!$A:$NE,MATCH(B74,'[2]Pt1-AvionicsComponentCosts'!$A:$A,0),MATCH("END MARKER",'[2]Pt1-AvionicsComponentCosts'!$11:$11,0)) -> 239259.032 | Q74: 1 | R74: 1
B75: 169 | C75: =INDEX('[1]Pt1-AvionicsComponentCosts'!$A:$B,MATCH(B75,'[1]Pt1-AvionicsComponentCosts'!$A:$A,0),2) -> Turboprop Trainers / Light Attack | D75: Beechcraft | E75: 1 | F75: Beechcraft T-6 Texan II | G75: Beechcraft T-6 Texan II | H75: T-6 Texan II | I75: T-6 Texan II | J75: =MATCH("*"&F75&"*",Sheet1!C:C,0) ->  | K75: =MATCH("*"&H75&"*",Sheet1!C:C,0) ->  | L75: =MATCH("*"&I75&"*",Sheet1!B:B,0) ->  | M75: 4.272 | O75: https://www.af.mil/About-Us/Fact-Sheets/Display/Article/104548/t-6a-texan-ii/ | P75: =INDEX('[2]Pt1-AvionicsComponentCosts'!$A:$NE,MATCH(B75,'[2]Pt1-AvionicsComponentCosts'!$A:$A,0),MATCH("END MARKER",'[2]Pt1-AvionicsComponentCosts'!$11:$11,0)) -> 503373.1683 | Q75: 1 | R75: 1 | S75: 1.178307978
B76: 92 | C76: =INDEX('[1]Pt1-AvionicsComponentCosts'!$A:$B,MATCH(B76,'[1]Pt1-AvionicsComponentCosts'!$A:$A,0),2) -> Helicopter | D76: Bell | E76: 1 | F76: AH-1 | G76: Bell AH-1Z Viper | H76: AH-1Z Viper | I76: AH-1Z Viper | J76: =MATCH("*"&F76&"*",Sheet1!C:C,0) ->  | K76: =MATCH("*"&H76&"*",Sheet1!C:C,0) ->  | L76: =MATCH("*"&I76&"*",Sheet1!B:B,0) ->  | M76: 31 | O76: https://warriorlodge.com/pages/bell-ah-1z-viper | P76: =INDEX('[2]Pt1-AvionicsComponentCosts'!$A:$NE,MATCH(B76,'[2]Pt1-AvionicsComponentCosts'!$A:$A,0),MATCH("END MARKER",'[2]Pt1-AvionicsComponentCosts'!$11:$11,0)) -> 1494251.806 | Q76: 0.99 | R76: 0.99 | S76: 0.4771965446
B77: 132 | C77: =INDEX('[1]Pt1-AvionicsComponentCosts'!$A:$B,MATCH(B77,'[1]Pt1-AvionicsComponentCosts'!$A:$A,0),2) -> Helicopter | D77: Bell | E77: 1 | F77: Future Attack Reconnaissance Aircraft | G77: Bell V-280 Valor | H77: V-280 Valor | I77: V-280 Valor | J77: =MATCH("*"&F77&"*",Sheet1!C:C,0) ->  | K77: =MATCH("*"&H77&"*",Sheet1!C:C,0) ->  | L77: =MATCH("*"&I77&"*",Sheet1!B:B,0) ->  | M77: 43 | O77: https://simpleflying.com/bell-v280-valor-complete-guide/ | P77: =INDEX('[2]Pt1-AvionicsComponentCosts'!$A:$NE,MATCH(B77,'[2]Pt1-AvionicsComponentCosts'!$A:$A,0),MATCH("END MARKER",'[2]Pt1-AvionicsComponentCosts'!$11:$11,0)) -> 1534523.154 | Q77: 0.99 | R77: 0.99 | S77: 0.3532971912
B78: 646 | C78: =INDEX('[1]Pt1-AvionicsComponentCosts'!$A:$B,MATCH(B78,'[1]Pt1-AvionicsComponentCosts'!$A:$A,0),2) -> Helicopter | D78: Bell | E78: 1 | F78: 412X | G78: Bell 412X | H78: 412X | I78: 412X | J78: =MATCH("*"&F78&"*",Sheet1!C:C,0) ->  | K78: =MATCH("*"&H78&"*",Sheet1!C:C,0) ->  | L78: =MATCH("*"&I78&"*",Sheet1!B:B,0) ->  | M78: x | P78: =INDEX('[2]Pt1-AvionicsComponentCosts'!$A:$NE,MATCH(B78,'[2]Pt1-AvionicsComponentCosts'!$A:$A,0),MATCH("END MARKER",'[2]Pt1-AvionicsComponentCosts'!$11:$11,0)) -> 466010.6512 | Q78: 0.99 | R78: 0.99
B79: 90 | C79: =INDEX('[1]Pt1-AvionicsComponentCosts'!$A:$B,MATCH(B79,'[1]Pt1-AvionicsComponentCosts'!$A:$A,0),2) -> Helicopter | D79: Bell | E79: 1 | F79: Bell 407 | G79: Bell 407 | H79: 407 | I79: 407 | J79: =MATCH("*"&F79&"*",Sheet1!C:C,0) ->  | K79: =MATCH("*"&H79&"*",Sheet1!C:C,0) ->  | L79: =MATCH("*"&I79&"*",Sheet1!B:B,0) ->  | M79: 3.75 | O79: https://www.businessairnews.com/hb_aircraftpage.html?recnum=B407 | P79: =INDEX('[2]Pt1-AvionicsComponentCosts'!$A:$NE,MATCH(B79,'[2]Pt1-AvionicsComponentCosts'!$A:$A,0),MATCH("END MARKER",'[2]Pt1-AvionicsComponentCosts'!$11:$11,0)) -> 281981.4992 | Q79: 0.99 | R79: 0.99 | S79: 0.7444311579
B80: 91 | C80: =INDEX('[1]Pt1-AvionicsComponentCosts'!$A:$B,MATCH(B80,'[1]Pt1-AvionicsComponentCosts'!$A:$A,0),2) -> Helicopter | D80: Bell | E80: 1 | F80: Bell 429 GlobalRanger | G80: Bell 429 GlobalRanger | H80: 429 GlobalRanger | I80: 429 GlobalRanger | J80: =MATCH("*"&F80&"*",Sheet1!C:C,0) ->  | K80: =MATCH("*"&H80&"*",Sheet1!C:C,0) ->  | L80: =MATCH("*"&I80&"*",Sheet1!B:B,0) ->  | M80: 7.5 | O80: https://www.fairlifts.com/helicopters/guide-to-2023-helicopter-prices/ | P80: =INDEX('[2]Pt1-AvionicsComponentCosts'!$A:$NE,MATCH(B80,'[2]Pt1-AvionicsComponentCosts'!$A:$A,0),MATCH("END MARKER",'[2]Pt1-AvionicsComponentCosts'!$11:$11,0)) -> 466010.6512 | Q80: 0.99 | R80: 0.99 | S80: 0.6151340596
B81: 89 | C81: =INDEX('[1]Pt1-AvionicsComponentCosts'!$A:$B,MATCH(B81,'[1]Pt1-AvionicsComponentCosts'!$A:$A,0),2) -> Helicopter | D81: Bell | E81: 1 | F81: Bell 505 Jet Ranger X | G81: Bell 505 Jet Ranger X | H81: 505 Jet Ranger X | I81: 505 Jet Ranger X | J81: =MATCH("*"&F81&"*",Sheet1!C:C,0) ->  | K81: =MATCH("*"&H81&"*",Sheet1!C:C,0) ->  | L81: =MATCH("*"&I81&"*",Sheet1!B:B,0) ->  | M81: 1.3 | O81: https://www.fairlifts.com/helicopters/guide-to-2023-helicopter-prices/ | P81: =INDEX('[2]Pt1-AvionicsComponentCosts'!$A:$NE,MATCH(B81,'[2]Pt1-AvionicsComponentCosts'!$A:$A,0),MATCH("END MARKER",'[2]Pt1-AvionicsComponentCosts'!$11:$11,0)) -> 497690.6912 | Q81: 0.99 | R81: 0.99 | S81: 3.790106033
B82: 93 | C82: =INDEX('[1]Pt1-AvionicsComponentCosts'!$A:$B,MATCH(B82,'[1]Pt1-AvionicsComponentCosts'!$A:$A,0),2) -> Helicopter | D82: Bell | E82: 1 | F82: Bell 525 Relentless | G82: Bell 525 Relentless | H82: 525 Relentless | I82: 525 Relentless | J82: =MATCH("*"&F82&"*",Sheet1!C:C,0) ->  | K82: =MATCH("*"&H82&"*",Sheet1!C:C,0) ->  | L82: =MATCH("*"&I82&"*",Sheet1!B:B,0) ->  | M82: 17 | O82: https://www.businessairnews.com/hb_aircraftpage.html?recnum=B525 | P82: =INDEX('[2]Pt1-AvionicsComponentCosts'!$A:$NE,MATCH(B82,'[2]Pt1-AvionicsComponentCosts'!$A:$A,0),MATCH("END MARKER",'[2]Pt1-AvionicsComponentCosts'!$11:$11,0)) -> 497690.6912 | Q82: 0.99 | R82: 0.99 | S82: 0.2898316378
B83: 182 | C83: =INDEX('[1]Pt1-AvionicsComponentCosts'!$A:$B,MATCH(B83,'[1]Pt1-AvionicsComponentCosts'!$A:$A,0),2) -> Helicopter | D83: Bell | E83: 1 | F83: OH-58 | G83: Bell OH-58D Kiowa | H83: OH-58D Kiowa | I83: OH-58D Kiowa | J83: =MATCH("*"&F83&"*",Sheet1!C:C,0) ->  | K83: =MATCH("*"&H83&"*",Sheet1!C:C,0) ->  | L83: =MATCH("*"&I83&"*",Sheet1!B:B,0) ->  | P83: =INDEX('[2]Pt1-AvionicsComponentCosts'!$A:$NE,MATCH(B83,'[2]Pt1-AvionicsComponentCosts'!$A:$A,0),MATCH("END MARKER",'[2]Pt1-AvionicsComponentCosts'!$11:$11,0)) -> 1466701.005 | Q83: 0.99 | R83: 0.99
B84: 94 | C84: =INDEX('[1]Pt1-AvionicsComponentCosts'!$A:$B,MATCH(B84,'[1]Pt1-AvionicsComponentCosts'!$A:$A,0),2) -> Helicopter | D84: Bell | E84: 1 | F84: UH-1 | G84: Bell UH-1 Iroquois/412 | H84: UH-1 Iroquois/412 | I84: UH-1 Iroquois/412 | J84: =MATCH("*"&F84&"*",Sheet1!C:C,0) ->  | K84: =MATCH("*"&H84&"*",Sheet1!C:C,0) ->  | L84: =MATCH("*"&I84&"*",Sheet1!B:B,0) ->  | P84: =INDEX('[2]Pt1-AvionicsComponentCosts'!$A:$NE,MATCH(B84,'[2]Pt1-AvionicsComponentCosts'!$A:$A,0),MATCH("END MARKER",'[2]Pt1-AvionicsComponentCosts'!$11:$11,0)) -> 518990.7552 | Q84: 0.99 | R84: 0.99
B85: 95 | C85: =INDEX('[1]Pt1-AvionicsComponentCosts'!$A:$B,MATCH(B85,'[1]Pt1-AvionicsComponentCosts'!$A:$A,0),2) -> Helicopter | D85: Bell | E85: 1 | F85: UH-1 | G85: Bell UH-1Y Venom | H85: UH-1Y Venom | I85: UH-1Y Venom | J85: =MATCH("*"&F85&"*",Sheet1!C:C,0) ->  | K85: =MATCH("*"&H85&"*",Sheet1!C:C,0) ->  | L85: =MATCH("*"&I85&"*",Sheet1!B:B,0) ->  | P85: =INDEX('[2]Pt1-AvionicsComponentCosts'!$A:$NE,MATCH(B85,'[2]Pt1-AvionicsComponentCosts'!$A:$A,0),MATCH("END MARKER",'[2]Pt1-AvionicsComponentCosts'!$11:$11,0)) -> 1488001.069 | Q85: 0.99 | R85: 0.99
B86: 97 | C86: =INDEX('[1]Pt1-AvionicsComponentCosts'!$A:$B,MATCH(B86,'[1]Pt1-AvionicsComponentCosts'!$A:$A,0),2) -> Helicopter | D86: Bell Boeing | E86: 1 | F86: V-22 | G86: Bell Boeing V-22 Osprey | H86: V-22 Osprey | I86: V-22 Osprey | J86: =MATCH("*"&F86&"*",Sheet1!C:C,0) ->  | K86: =MATCH("*"&H86&"*",Sheet1!C:C,0) ->  | L86: =MATCH("*"&I86&"*",Sheet1!B:B,0) ->  | P86: =INDEX('[2]Pt1-AvionicsComponentCosts'!$A:$NE,MATCH(B86,'[2]Pt1-AvionicsComponentCosts'!$A:$A,0),MATCH("END MARKER",'[2]Pt1-AvionicsComponentCosts'!$11:$11,0)) -> 1534523.154 | Q86: 0.99 | R86: 0.99
B87: 529 | C87: =INDEX('[1]Pt1-AvionicsComponentCosts'!$A:$B,MATCH(B87,'[1]Pt1-AvionicsComponentCosts'!$A:$A,0),2) -> Business Jet | D87: Boeing | E87: 1 | F87: BBJ | G87: Boeing BBJ MAX | H87: BBJ MAX | I87: BBJ MAX | J87: =MATCH("*"&F87&"*",Sheet1!C:C,0) ->  | K87: =MATCH("*"&H87&"*",Sheet1!C:C,0) ->  | L87: =MATCH("*"&I87&"*",Sheet1!B:B,0) ->  | M87: =AVERAGE(101.5,110.5,118.5) -> 110.1666667 | P87: =INDEX('[2]Pt1-AvionicsComponentCosts'!$A:$NE,MATCH(B87,'[2]Pt1-AvionicsComponentCosts'!$A:$A,0),MATCH("END MARKER",'[2]Pt1-AvionicsComponentCosts'!$11:$11,0)) -> 1384049 | Q87: 0.75 | R87: 0.75 | S87: 0.09422421331
B88: 297 | C88: =INDEX('[1]Pt1-AvionicsComponentCosts'!$A:$B,MATCH(B88,'[1]Pt1-AvionicsComponentCosts'!$A:$A,0),2) -> Business Jet | D88: Boeing | E88: 1 | F88: BBJ | G88: Boeing BBJ/BBJ2/BBJ3 | H88: BBJ/BBJ2/BBJ3 | I88: BBJ/BBJ2/BBJ3 | J88: =MATCH("*"&F88&"*",Sheet1!C:C,0) ->  | K88: =MATCH("*"&H88&"*",Sheet1!C:C,0) ->  | L88: =MATCH("*"&I88&"*",Sheet1!B:B,0) ->  | M88: 71 | O88: https://www.bjtonline.com/business-jet-news/boeings-bbj-3 | P88: =INDEX('[2]Pt1-AvionicsComponentCosts'!$A:$NE,MATCH(B88,'[2]Pt1-AvionicsComponentCosts'!$A:$A,0),MATCH("END MARKER",'[2]Pt1-AvionicsComponentCosts'!$11:$11,0)) -> 1384049 | Q88: 0.75 | R88: 0.75 | S88: 0.1462023592
B89: 594 | C89: =INDEX('[1]Pt1-AvionicsComponentCosts'!$A:$B,MATCH(B89,'[1]Pt1-AvionicsComponentCosts'!$A:$A,0),2) -> Business Jet | D89: Boeing | E89: 1 | F89: Boeing 747 | G89: Boeing 747-8 VIP | H89: 747-8 VIP | I89: 747-8 VIP | J89: =MATCH("*"&F89&"*",Sheet1!C:C,0) ->  | K89: =MATCH("*"&H89&"*",Sheet1!C:C,0) ->  | L89: =MATCH("*"&I89&"*",Sheet1!B:B,0) ->  | M89: 418.4 | O89: https://finance.yahoo.com/news/5-priciest-private-jets-2023-185110930.html | P89: =INDEX('[2]Pt1-AvionicsComponentCosts'!$A:$NE,MATCH(B89,'[2]Pt1-AvionicsComponentCosts'!$A:$A,0),MATCH("END MARKER",'[2]Pt1-AvionicsComponentCosts'!$11:$11,0)) -> 2680254.221 | Q89: 0.75 | R89: 0.75 | S89: 0.04804470998
B90: 298 | C90: =INDEX('[1]Pt1-AvionicsComponentCosts'!$A:$B,MATCH(B90,'[1]Pt1-AvionicsComponentCosts'!$A:$A,0),2) -> Business Jet | D90: Boeing | E90: 1 | F90: Wide body VIP | G90: Boeing BBJ 777 | H90: BBJ 777 | I90: BBJ 777 | J90: =MATCH("*"&F90&"*",Sheet1!C:C,0) ->  | K90: =MATCH("*"&H90&"*",Sheet1!C:C,0) ->  | L90: =MATCH("*"&I90&"*",Sheet1!B:B,0) ->  | M90: 400 | O90: https://www.lunajets.com/en/news/new-boeing-business-jet-777x-can-fly-across-the-globe-non-stop | P90: =INDEX('[2]Pt1-AvionicsComponentCosts'!$A:$NE,MATCH(B90,'[2]Pt1-AvionicsComponentCosts'!$A:$A,0),MATCH("END MARKER",'[2]Pt1-AvionicsComponentCosts'!$11:$11,0)) -> 2623560.654 | Q90: 0.75 | R90: 0.75 | S90: 0.04919176227
B91: 553 | C91: =INDEX('[1]Pt1-AvionicsComponentCosts'!$A:$B,MATCH(B91,'[1]Pt1-AvionicsComponentCosts'!$A:$A,0),2) -> Business Jet | D91: Boeing | E91: 1 | F91: Wide body VIP | G91: Boeing BBJ 777X | H91: BBJ 777X | I91: BBJ 777X | J91: =MATCH("*"&F91&"*",Sheet1!C:C,0) ->  | K91: =MATCH("*"&H91&"*",Sheet1!C:C,0) ->  | L91: =MATCH("*"&I91&"*",Sheet1!B:B,0) ->  | M91: 400 | O91: https://www.lunajets.com/en/news/new-boeing-business-jet-777x-can-fly-across-the-globe-non-stop | P91: =INDEX('[2]Pt1-AvionicsComponentCosts'!$A:$NE,MATCH(B91,'[2]Pt1-AvionicsComponentCosts'!$A:$A,0),MATCH("END MARKER",'[2]Pt1-AvionicsComponentCosts'!$11:$11,0)) -> 1973033.925 | Q91: 0.75 | R91: 0.75 | S91: 0.03699438609
B92: 554 | C92: =INDEX('[1]Pt1-AvionicsComponentCosts'!$A:$B,MATCH(B92,'[1]Pt1-AvionicsComponentCosts'!$A:$A,0),2) -> Business Jet | D92: Boeing | E92: 1 | F92: Wide body VIP | G92: Boeing BBJ 787 | H92: BBJ 787 | I92: BBJ 787 | J92: =MATCH("*"&F92&"*",Sheet1!C:C,0) ->  | K92: =MATCH("*"&H92&"*",Sheet1!C:C,0) ->  | L92: =MATCH("*"&I92&"*",Sheet1!B:B,0) ->  | M92: 200 | O92: https://finance.yahoo.com/news/5-priciest-private-jets-2023-185110930.html | P92: =INDEX('[2]Pt1-AvionicsComponentCosts'!$A:$NE,MATCH(B92,'[2]Pt1-AvionicsComponentCosts'!$A:$A,0),MATCH("END MARKER",'[2]Pt1-AvionicsComponentCosts'!$11:$11,0)) -> 2656018.859 | Q92: 0.75 | R92: 0.75 | S92: 0.09960070722
B93: 179 | C93: =INDEX('[1]Pt1-AvionicsComponentCosts'!$A:$B,MATCH(B93,'[1]Pt1-AvionicsComponentCosts'!$A:$A,0),2) -> Fighters and Jet Trainers | D93: Boeing | E93: 1 | F93: Boeing/Saab T-X program | G93: Boeing T-7 | H93: T-7 | I93: T-7 | J93: =MATCH("*"&F93&"*",Sheet1!C:C,0) ->  | K93: =MATCH("*"&H93&"*",Sheet1!C:C,0) ->  | L93: =MATCH("*"&I93&"*",Sheet1!B:B,0) ->  | P93: =INDEX('[2]Pt1-AvionicsComponentCosts'!$A:$NE,MATCH(B93,'[2]Pt1-AvionicsComponentCosts'!$A:$A,0),MATCH("END MARKER",'[2]Pt1-AvionicsComponentCosts'!$11:$11,0)) -> 2971242.205 | Q93: 1 | R93: 1
B94: 637 | C94: =INDEX('[1]Pt1-AvionicsComponentCosts'!$A:$B,MATCH(B94,'[1]Pt1-AvionicsComponentCosts'!$A:$A,0),2) -> Fighters and Jet Trainers | D94: Boeing | E94: 1 | F94: F-18 | G94: F-18 A/D | H94: F-18 A/D | I94: F-18 A/D | J94: =MATCH("*"&F94&"*",Sheet1!C:C,0) ->  | K94: =MATCH("*"&H94&"*",Sheet1!C:C,0) ->  | L94: =MATCH("*"&I94&"*",Sheet1!B:B,0) ->  | P94: =INDEX('[2]Pt1-AvionicsComponentCosts'!$A:$NE,MATCH(B94,'[2]Pt1-AvionicsComponentCosts'!$A:$A,0),MATCH("END MARKER",'[2]Pt1-AvionicsComponentCosts'!$11:$11,0)) -> 3018848.019 | Q94: 1 | R94: 1
B95: 140 | C95: =INDEX('[1]Pt1-AvionicsComponentCosts'!$A:$B,MATCH(B95,'[1]Pt1-AvionicsComponentCosts'!$A:$A,0),2) -> Fighters and Jet Trainers | D95: Boeing | E95: 1 | F95: F-18 | G95: F-18 Super Hornet | H95: F-18 Super Hornet | I95: F-18 Super Hornet | J95: =MATCH("*"&F95&"*",Sheet1!C:C,0) ->  | K95: =MATCH("*"&H95&"*",Sheet1!C:C,0) ->  | L95: =MATCH("*"&I95&"*",Sheet1!B:B,0) ->  | P95: =INDEX('[2]Pt1-AvionicsComponentCosts'!$A:$NE,MATCH(B95,'[2]Pt1-AvionicsComponentCosts'!$A:$A,0),MATCH("END MARKER",'[2]Pt1-AvionicsComponentCosts'!$11:$11,0)) -> 3018848.019 | Q95: 1 | R95: 1
B96: 592 | C96: =INDEX('[1]Pt1-AvionicsComponentCosts'!$A:$B,MATCH(B96,'[1]Pt1-AvionicsComponentCosts'!$A:$A,0),2) -> Freighter | D96: Boeing | E96: 1 | F96: Boeing 747 | G96: Boeing 747-400CF | H96: 747-400CF | I96: 747-400CF | J96: =MATCH("*"&F96&"*",Sheet1!C:C,0) ->  | K96: =MATCH("*"&H96&"*",Sheet1!C:C,0) ->  | L96: =MATCH("*"&I96&"*",Sheet1!B:B,0) ->  | P96: =INDEX('[2]Pt1-AvionicsComponentCosts'!$A:$NE,MATCH(B96,'[2]Pt1-AvionicsComponentCosts'!$A:$A,0),MATCH("END MARKER",'[2]Pt1-AvionicsComponentCosts'!$11:$11,0)) -> 2020230.288 | Q96: 0.5 | R96: 0.5
B97: 629 | C97: =INDEX('[1]Pt1-AvionicsComponentCosts'!$A:$B,MATCH(B97,'[1]Pt1-AvionicsComponentCosts'!$A:$A,0),2) -> Freighter | D97: Boeing | E97: 1 | F97: Boeing 747 | G97: Boeing 747-400F/ERF | H97: 747-400F/ERF | I97: 747-400F/ERF | J97: =MATCH("*"&F97&"*",Sheet1!C:C,0) ->  | K97: =MATCH("*"&H97&"*",Sheet1!C:C,0) ->  | L97: =MATCH("*"&I97&"*",Sheet1!B:B,0) ->  | P97: =INDEX('[2]Pt1-AvionicsComponentCosts'!$A:$NE,MATCH(B97,'[2]Pt1-AvionicsComponentCosts'!$A:$A,0),MATCH("END MARKER",'[2]Pt1-AvionicsComponentCosts'!$11:$11,0)) -> 2020230.288 | Q97: 0.5 | R97: 0.5
B98: 567 | C98: =INDEX('[1]Pt1-AvionicsComponentCosts'!$A:$B,MATCH(B98,'[1]Pt1-AvionicsComponentCosts'!$A:$A,0),2) -> Freighter | D98: Boeing | E98: 1 | F98: Boeing 747 | G98: Boeing 747-8F | H98: 747-8F | I98: 747-8F | J98: =MATCH("*"&F98&"*",Sheet1!C:C,0) ->  | K98: =MATCH("*"&H98&"*",Sheet1!C:C,0) ->  | L98: =MATCH("*"&I98&"*",Sheet1!B:B,0) ->  | M98: 419.2 | O98: https://www.statista.com/statistics/273941/prices-of-boeing-aircraft-by-type/ | P98: =INDEX('[2]Pt1-AvionicsComponentCosts'!$A:$NE,MATCH(B98,'[2]Pt1-AvionicsComponentCosts'!$A:$A,0),MATCH("END MARKER",'[2]Pt1-AvionicsComponentCosts'!$11:$11,0)) -> 2627684.386 | Q98: 0.5 | R98: 0.5 | S98: 0.03134165536
B99: 664 | C99: =INDEX('[1]Pt1-AvionicsComponentCosts'!$A:$B,MATCH(B99,'[1]Pt1-AvionicsComponentCosts'!$A:$A,0),2) -> Freighter | D99: Boeing | E99: 1 | F99: Boeing 777 | G99: Boeing 777-300 ERSF | H99: 777-300 ERSF | I99: 777-300 ERSF | J99: =MATCH("*"&F99&"*",Sheet1!C:C,0) ->  | K99: =MATCH("*"&H99&"*",Sheet1!C:C,0) ->  | L99: =MATCH("*"&I99&"*",Sheet1!B:B,0) ->  | M99: 352.3 | O99: https://www.statista.com/statistics/273941/prices-of-boeing-aircraft-by-type/ | P99: =INDEX('[2]Pt1-AvionicsComponentCosts'!$A:$NE,MATCH(B99,'[2]Pt1-AvionicsComponentCosts'!$A:$A,0),MATCH("END MARKER",'[2]Pt1-AvionicsComponentCosts'!$11:$11,0)) -> 2677445.048 | Q99: 0.5 | R99: 0.5 | S99: 0.03799950395
B100: 568 | C100: =INDEX('[1]Pt1-AvionicsComponentCosts'!$A:$B,MATCH(B100,'[1]Pt1-AvionicsComponentCosts'!$A:$A,0),2) -> Freighter | D100: Boeing | E100: 1 | F100: Boeing 777 | G100: Boeing 777F | H100: 777F | I100: 777F | J100: =MATCH("*"&F100&"*",Sheet1!C:C,0) ->  | K100: =MATCH("*"&H100&"*",Sheet1!C:C,0) ->  | L100: =MATCH("*"&I100&"*",Sheet1!B:B,0) -> 33 | M100: =INDEX(Sheet1!$A:$K,MATCH($I100,Sheet1!$B:$B,0),MATCH(M$1,Sheet1!$A$1:$K$1,0)) -> 352.3 | O100: =INDEX(Sheet1!$A:$K,MATCH($I100,Sheet1!$B:$B,0),MATCH(O$1,Sheet1!$A$1:$K$1,0)) -> http://www.axonaviation.com/commercial-aircraft/aircraft-data/aircraft-pricing | P100: =INDEX('[2]Pt1-AvionicsComponentCosts'!$A:$NE,MATCH(B100,'[2]Pt1-AvionicsComponentCosts'!$A:$A,0),MATCH("END MARKER",'[2]Pt1-AvionicsComponentCosts'!$11:$11,0)) -> 2677445.048 | Q100: 0.5 | R100: 0.5 | S100: 0.03799950395
B101: 659 | C101: =INDEX('[1]Pt1-AvionicsComponentCosts'!$A:$B,MATCH(B101,'[1]Pt1-AvionicsComponentCosts'!$A:$A,0),2) -> Freighter | D101: Boeing | E101: 1 | F101: Boeing 777X | G101: Boeing 777XF: 777-9 | H101: 777XF: 777-9 | I101: 777XF: 777-9 | J101: =MATCH("*"&F101&"*",Sheet1!C:C,0) ->  | K101: =MATCH("*"&H101&"*",Sheet1!C:C,0) ->  | L101: =MATCH("*"&I101&"*",Sheet1!B:B,0) ->  | M101: 442.2 | O101: https://www.statista.com/statistics/273941/prices-of-boeing-aircraft-by-type/ | P101: =INDEX('[2]Pt1-AvionicsComponentCosts'!$A:$NE,MATCH(B101,'[2]Pt1-AvionicsComponentCosts'!$A:$A,0),MATCH("END MARKER",'[2]Pt1-AvionicsComponentCosts'!$11:$11,0)) -> 1976043.421 | Q101: 0.5 | R101: 0.5 | S101: 0.02234332226
B102: 570 | C102: =INDEX('[1]Pt1-AvionicsComponentCosts'!$A:$B,MATCH(B102,'[1]Pt1-AvionicsComponentCosts'!$A:$A,0),2) -> Freighter | D102: Boeing | E102: 1 | F102: Boeing 767 | G102: Boeing 767-300BCF | H102: 767-300BCF | I102: 767-300BCF | J102: =MATCH("*"&F102&"*",Sheet1!C:C,0) ->  | K102: =MATCH("*"&H102&"*",Sheet1!C:C,0) ->  | L102: =MATCH("*"&I102&"*",Sheet1!B:B,0) ->  | P102: =INDEX('[2]Pt1-AvionicsComponentCosts'!$A:$NE,MATCH(B102,'[2]Pt1-AvionicsComponentCosts'!$A:$A,0),MATCH("END MARKER",'[2]Pt1-AvionicsComponentCosts'!$11:$11,0)) -> 1938483.077 | Q102: 0.5 | R102: 0.5
B103: 569 | C103: =INDEX('[1]Pt1-AvionicsComponentCosts'!$A:$B,MATCH(B103,'[1]Pt1-AvionicsComponentCosts'!$A:$A,0),2) -> Freighter | D103: Boeing | E103: 1 | F103: Boeing 767 | G103: Boeing 767-300F | H103: 767-300F | I103: 767-300F | J103: =MATCH("*"&F103&"*",Sheet1!C:C,0) ->  | K103: =MATCH("*"&H103&"*",Sheet1!C:C,0) ->  | L103: =MATCH("*"&I103&"*",Sheet1!B:B,0) ->  | M103: 220.3 | O103: https://www.statista.com/statistics/273941/prices-of-boeing-aircraft-by-type/ | P103: =INDEX('[2]Pt1-AvionicsComponentCosts'!$A:$NE,MATCH(B103,'[2]Pt1-AvionicsComponentCosts'!$A:$A,0),MATCH("END MARKER",'[2]Pt1-AvionicsComponentCosts'!$11:$11,0)) -> 1938483.077 | Q103: 0.5 | R103: 0.5 | S103: 0.04399643842
B104: 573 | C104: =INDEX('[1]Pt1-AvionicsComponentCosts'!$A:$B,MATCH(B104,'[1]Pt1-AvionicsComponentCosts'!$A:$A,0),2) -> Freighter | D104: Boeing | E104: 1 | F104: Boeing 737 | G104: Boeing 737-300SF | H104: 737-300SF | I104: 737-300SF | J104: =MATCH("*"&F104&"*",Sheet1!C:C,0) ->  | K104: =MATCH("*"&H104&"*",Sheet1!C:C,0) ->  | L104: =MATCH("*"&I104&"*",Sheet1!B:B,0) ->  | P104: =INDEX('[2]Pt1-AvionicsComponentCosts'!$A:$NE,MATCH(B104,'[2]Pt1-AvionicsComponentCosts'!$A:$A,0),MATCH("END MARKER",'[2]Pt1-AvionicsComponentCosts'!$11:$11,0)) -> 1395800 | Q104: 0.5 | R104: 0.5
B105: 572 | C105: =INDEX('[1]Pt1-AvionicsComponentCosts'!$A:$B,MATCH(B105,'[1]Pt1-AvionicsComponentCosts'!$A:$A,0),2) -> Freighter | D105: Boeing | E105: 1 | F105: Boeing 737 | G105: Boeing 737-400SF | H105: 737-400SF | I105: 737-400SF | J105: =MATCH("*"&F105&"*",Sheet1!C:C,0) ->  | K105: =MATCH("*"&H105&"*",Sheet1!C:C,0) ->  | L105: =MATCH("*"&I105&"*",Sheet1!B:B,0) ->  | P105: =INDEX('[2]Pt1-AvionicsComponentCosts'!$A:$NE,MATCH(B105,'[2]Pt1-AvionicsComponentCosts'!$A:$A,0),MATCH("END MARKER",'[2]Pt1-AvionicsComponentCosts'!$11:$11,0)) -> 1395800 | Q105: 0.5 | R105: 0.5
B106: 591 | C106: =INDEX('[1]Pt1-AvionicsComponentCosts'!$A:$B,MATCH(B106,'[1]Pt1-AvionicsComponentCosts'!$A:$A,0),2) -> Freighter | D106: Boeing | E106: 1 | F106: Boeing 737 | G106: Boeing 737-700C | H106: 737-700C | I106: 737-700C | J106: =MATCH("*"&F106&"*",Sheet1!C:C,0) ->  | K106: =MATCH("*"&H106&"*",Sheet1!C:C,0) ->  | L106: =MATCH("*"&I106&"*",Sheet1!B:B,0) ->  | M106: 89.1 | O106: https://www.statista.com/statistics/273941/prices-of-boeing-aircraft-by-type/ | P106: =INDEX('[2]Pt1-AvionicsComponentCosts'!$A:$NE,MATCH(B106,'[2]Pt1-AvionicsComponentCosts'!$A:$A,0),MATCH("END MARKER",'[2]Pt1-AvionicsComponentCosts'!$11:$11,0)) -> 1395800 | Q106: 0.5 | R106: 0.5 | S106: 0.07832772166
B107: 571 | C107: =INDEX('[1]Pt1-AvionicsComponentCosts'!$A:$B,MATCH(B107,'[1]Pt1-AvionicsComponentCosts'!$A:$A,0),2) -> Freighter | D107: Boeing | E107: 1 | F107: Boeing 737NG | G107: Boeing 737-700/-800CF | H107: 737-700/-800CF | I107: 737-700/-800CF | J107: =MATCH("*"&F107&"*",Sheet1!C:C,0) ->  | K107: =MATCH("*"&H107&"*",Sheet1!C:C,0) ->  | L107: =MATCH("*"&I107&"*",Sheet1!B:B,0) ->  | M107: 89.1 | O107: https://www.statista.com/statistics/273941/prices-of-boeing-aircraft-by-type/ | P107: =INDEX('[2]Pt1-AvionicsComponentCosts'!$A:$NE,MATCH(B107,'[2]Pt1-AvionicsComponentCosts'!$A:$A,0),MATCH("END MARKER",'[2]Pt1-AvionicsComponentCosts'!$11:$11,0)) -> 1395800 | Q107: 0.5 | R107: 0.5 | S107: 0.07832772166
B108: 596 | C108: =INDEX('[1]Pt1-AvionicsComponentCosts'!$A:$B,MATCH(B108,'[1]Pt1-AvionicsComponentCosts'!$A:$A,0),2) -> Freighter | D108: Boeing | E108: 1 | F108: Boeing 757 | G108: Boeing 757-200 PF/SF | H108: 757-200 PF/SF | I108: 757-200 PF/SF | J108: =MATCH("*"&F108&"*",Sheet1!C:C,0) ->  | K108: =MATCH("*"&H108&"*",Sheet1!C:C,0) ->  | L108: =MATCH("*"&I108&"*",Sheet1!B:B,0) ->  | P108: =INDEX('[2]Pt1-AvionicsComponentCosts'!$A:$NE,MATCH(B108,'[2]Pt1-AvionicsComponentCosts'!$A:$A,0),MATCH("END MARKER",'[2]Pt1-AvionicsComponentCosts'!$11:$11,0)) -> 1395800 | Q108: 0.5 | R108: 0.5
B109: 98 | C109: =INDEX('[1]Pt1-AvionicsComponentCosts'!$A:$B,MATCH(B109,'[1]Pt1-AvionicsComponentCosts'!$A:$A,0),2) -> Helicopter | D109: Boeing | E109: 1 | F109: AH-64 | G109: Boeing AH-64 Apache | H109: AH-64 Apache | I109: AH-64 Apache | J109: =MATCH("*"&F109&"*",Sheet1!C:C,0) ->  | K109: =MATCH("*"&H109&"*",Sheet1!C:C,0) ->  | L109: =MATCH("*"&I109&"*",Sheet1!B:B,0) ->  | P109: =INDEX('[2]Pt1-AvionicsComponentCosts'!$A:$NE,MATCH(B109,'[2]Pt1-AvionicsComponentCosts'!$A:$A,0),MATCH("END MARKER",'[2]Pt1-AvionicsComponentCosts'!$11:$11,0)) -> 1650480.806 | Q109: 0.99 | R109: 0.99
B110: 99 | C110: =INDEX('[1]Pt1-AvionicsComponentCosts'!$A:$B,MATCH(B110,'[1]Pt1-AvionicsComponentCosts'!$A:$A,0),2) -> Helicopter | D110: Boeing | E110: 1 | F110: AH-64 | G110: Boeing AH-64 Apache (reman) | H110: AH-64 Apache (reman) | I110: AH-64 Apache (reman) | J110: =MATCH("*"&F110&"*",Sheet1!C:C,0) ->  | K110: =MATCH("*"&H110&"*",Sheet1!C:C,0) ->  | L110: =MATCH("*"&I110&"*",Sheet1!B:B,0) ->  | P110: =INDEX('[2]Pt1-AvionicsComponentCosts'!$A:$NE,MATCH(B110,'[2]Pt1-AvionicsComponentCosts'!$A:$A,0),MATCH("END MARKER",'[2]Pt1-AvionicsComponentCosts'!$11:$11,0)) -> 1650480.806 | Q110: 0.99 | R110: 0.99
B111: 100 | C111: =INDEX('[1]Pt1-AvionicsComponentCosts'!$A:$B,MATCH(B111,'[1]Pt1-AvionicsComponentCosts'!$A:$A,0),2) -> Helicopter | D111: Boeing | E111: 1 | F111: CH-47 | G111: Boeing CH-47 Chinook | H111: CH-47 Chinook | I111: CH-47 Chinook | J111: =MATCH("*"&F111&"*",Sheet1!C:C,0) ->  | K111: =MATCH("*"&H111&"*",Sheet1!C:C,0) ->  | L111: =MATCH("*"&I111&"*",Sheet1!B:B,0) ->  | P111: =INDEX('[2]Pt1-AvionicsComponentCosts'!$A:$NE,MATCH(B111,'[2]Pt1-AvionicsComponentCosts'!$A:$A,0),MATCH("END MARKER",'[2]Pt1-AvionicsComponentCosts'!$11:$11,0)) -> 1647883.882 | Q111: 0.99 | R111: 0.99
B112: 101 | C112: =INDEX('[1]Pt1-AvionicsComponentCosts'!$A:$B,MATCH(B112,'[1]Pt1-AvionicsComponentCosts'!$A:$A,0),2) -> Helicopter | D112: Boeing | E112: 1 | F112: CH-47 | G112: Boeing CH-47 Chinook (reman) | H112: CH-47 Chinook (reman) | I112: CH-47 Chinook (reman) | J112: =MATCH("*"&F112&"*",Sheet1!C:C,0) ->  | K112: =MATCH("*"&H112&"*",Sheet1!C:C,0) ->  | L112: =MATCH("*"&I112&"*",Sheet1!B:B,0) ->  | P112: =INDEX('[2]Pt1-AvionicsComponentCosts'!$A:$NE,MATCH(B112,'[2]Pt1-AvionicsComponentCosts'!$A:$A,0),MATCH("END MARKER",'[2]Pt1-AvionicsComponentCosts'!$11:$11,0)) -> 1647883.882 | Q112: 0.99 | R112: 0.99
B113: 299 | C113: =INDEX('[1]Pt1-AvionicsComponentCosts'!$A:$B,MATCH(B113,'[1]Pt1-AvionicsComponentCosts'!$A:$A,0),2) -> Large Commercial Aircraft | D113: Boeing | E113: 1 | F113: Boeing 717 | G113: Boeing 717 | H113: 717 | I113: 717 | J113: =MATCH("*"&F113&"*",Sheet1!C:C,0) ->  | K113: =MATCH("*"&H113&"*",Sheet1!C:C,0) ->  | L113: =MATCH("*"&I113&"*",Sheet1!B:B,0) ->  | P113: =INDEX('[2]Pt1-AvionicsComponentCosts'!$A:$NE,MATCH(B113,'[2]Pt1-AvionicsComponentCosts'!$A:$A,0),MATCH("END MARKER",'[2]Pt1-AvionicsComponentCosts'!$11:$11,0)) -> 1412649.821 | Q113: =50% -> 0.5 | R113: =50% -> 0.5
B114: 534 | C114: =INDEX('[1]Pt1-AvionicsComponentCosts'!$A:$B,MATCH(B114,'[1]Pt1-AvionicsComponentCosts'!$A:$A,0),2) -> Large Commercial Aircraft | D114: Boeing | E114: 1 | F114: Boeing 737 Classic | G114: Boeing 737 Classic: 737-300 | H114: =TRIM(SUBSTITUTE(G114,D114,"")) -> 737 Classic: 737-300 | I114: 737-300 | J114: =MATCH("*"&F114&"*",Sheet1!C:C,0) ->  | K114: =MATCH("*"&H114&"*",Sheet1!C:C,0) ->  | L114: =MATCH("*"&I114&"*",Sheet1!B:B,0) ->  | N114: OOP | P114: =INDEX('[2]Pt1-AvionicsComponentCosts'!$A:$NE,MATCH(B114,'[2]Pt1-AvionicsComponentCosts'!$A:$A,0),MATCH("END MARKER",'[2]Pt1-AvionicsComponentCosts'!$11:$11,0)) -> 1450795 | Q114: =50% -> 0.5 | R114: =50% -> 0.5
B115: 535 | C115: =INDEX('[1]Pt1-AvionicsComponentCosts'!$A:$B,MATCH(B115,'[1]Pt1-AvionicsComponentCosts'!$A:$A,0),2) -> Large Commercial Aircraft | D115: Boeing | E115: 1 | F115: Boeing 737 Classic | G115: Boeing 737 Classic: 737-400 | H115: 737 Classic: 737-400 | I115: 737-400 | J115: =MATCH("*"&F115&"*",Sheet1!C:C,0) ->  | K115: =MATCH("*"&H115&"*",Sheet1!C:C,0) ->  | L115: =MATCH("*"&I115&"*",Sheet1!B:B,0) ->  | N115: OOP | P115: =INDEX('[2]Pt1-AvionicsComponentCosts'!$A:$NE,MATCH(B115,'[2]Pt1-AvionicsComponentCosts'!$A:$A,0),MATCH("END MARKER",'[2]Pt1-AvionicsComponentCosts'!$11:$11,0)) -> 1450795 | Q115: =50% -> 0.5 | R115: =50% -> 0.5
B116: 536 | C116: =INDEX('[1]Pt1-AvionicsComponentCosts'!$A:$B,MATCH(B116,'[1]Pt1-AvionicsComponentCosts'!$A:$A,0),2) -> Large Commercial Aircraft | D116: Boeing | E116: 1 | F116: Boeing 737 Classic | G116: Boeing 737 Classic: 737-500 | H116: 737 Classic: 737-500 | I116: 737-500 | J116: =MATCH("*"&F116&"*",Sheet1!C:C,0) ->  | K116: =MATCH("*"&H116&"*",Sheet1!C:C,0) ->  | L116: =MATCH("*"&I116&"*",Sheet1!B:B,0) ->  | N116: OOP | P116: =INDEX('[2]Pt1-AvionicsComponentCosts'!$A:$NE,MATCH(B116,'[2]Pt1-AvionicsComponentCosts'!$A:$A,0),MATCH("END MARKER",'[2]Pt1-AvionicsComponentCosts'!$11:$11,0)) -> 1450795 | Q116: =50% -> 0.5 | R116: =50% -> 0.5
B117: 309 | C117: =INDEX('[1]Pt1-AvionicsComponentCosts'!$A:$B,MATCH(B117,'[1]Pt1-AvionicsComponentCosts'!$A:$A,0),2) -> Large Commercial Aircraft | D117: Boeing | E117: 1 | F117: Boeing 737MAX | G117: Boeing 737 MAX: 737 MAX 10 | H117: 737 MAX: 737 MAX 10 | I117: 737 MAX 10 | J117: =MATCH("*"&F117&"*",Sheet1!C:C,0) ->  | K117: =MATCH("*"&H117&"*",Sheet1!C:C,0) ->  | L117: =MATCH("*"&I117&"*",Sheet1!B:B,0) ->  | M117: 134.9 | O117: https://www.statista.com/statistics/273941/prices-of-boeing-aircraft-by-type/ | P117: =INDEX('[2]Pt1-AvionicsComponentCosts'!$A:$NE,MATCH(B117,'[2]Pt1-AvionicsComponentCosts'!$A:$A,0),MATCH("END MARKER",'[2]Pt1-AvionicsComponentCosts'!$11:$11,0)) -> 1450795 | Q117: =50% -> 0.5 | R117: =50% -> 0.5 | S117: 0.05377297999
B118: 195 | C118: =INDEX('[1]Pt1-AvionicsComponentCosts'!$A:$B,MATCH(B118,'[1]Pt1-AvionicsComponentCosts'!$A:$A,0),2) -> Large Commercial Aircraft | D118: Boeing | E118: 1 | F118: Boeing 737MAX | G118: Boeing 737 MAX: 737 MAX 7 | H118: 737 MAX: 737 MAX 7 | I118: 737-MAX 7 | J118: =MATCH("*"&F118&"*",Sheet1!C:C,0) ->  | K118: =MATCH("*"&H118&"*",Sheet1!C:C,0) ->  | L118: =MATCH("*"&I118&"*",Sheet1!B:B,0) -> 2 | M118: =INDEX(Sheet1!$A:$K,MATCH($I118,Sheet1!$B:$B,0),MATCH(M$1,Sheet1!$A$1:$K$1,0)) -> 99.7 | O118: =INDEX(Sheet1!$A:$K,MATCH($I118,Sheet1!$B:$B,0),MATCH(O$1,Sheet1!$A$1:$K$1,0)) -> http://www.axonaviation.com/commercial-aircraft/aircraft-data/aircraft-pricing | P118: =INDEX('[2]Pt1-AvionicsComponentCosts'!$A:$NE,MATCH(B118,'[2]Pt1-AvionicsComponentCosts'!$A:$A,0),MATCH("END MARKER",'[2]Pt1-AvionicsComponentCosts'!$11:$11,0)) -> 1450795 | Q118: =50% -> 0.5 | R118: =50% -> 0.5 | S118: 0.07275802407
B119: 196 | C119: =INDEX('[1]Pt1-AvionicsComponentCosts'!$A:$B,MATCH(B119,'[1]Pt1-AvionicsComponentCosts'!$A:$A,0),2) -> Large Commercial Aircraft | D119: Boeing | E119: 1 | F119: Boeing 737MAX | G119: Boeing 737 MAX: 737 MAX 8 | H119: 737 MAX: 737 MAX 8 | I119: 737 MAX 8 | J119: =MATCH("*"&F119&"*",Sheet1!C:C,0) ->  | K119: =MATCH("*"&H119&"*",Sheet1!C:C,0) ->  | L119: =MATCH("*"&I119&"*",Sheet1!B:B,0) ->  | M119: 121.6 | O119: https://www.statista.com/statistics/273941/prices-of-boeing-aircraft-by-type/ | P119: =INDEX('[2]Pt1-AvionicsComponentCosts'!$A:$NE,MATCH(B119,'[2]Pt1-AvionicsComponentCosts'!$A:$A,0),MATCH("END MARKER",'[2]Pt1-AvionicsComponentCosts'!$11:$11,0)) -> 1450795 | Q119: =50% -> 0.5 | R119: =50% -> 0.5 | S119: 0.05965439967
B120: 197 | C120: =INDEX('[1]Pt1-AvionicsComponentCosts'!$A:$B,MATCH(B120,'[1]Pt1-AvionicsComponentCosts'!$A:$A,0),2) -> Large Commercial Aircraft | D120: Boeing | E120: 1 | F120: Boeing 737MAX | G120: Boeing 737 MAX: 737 MAX 9 | H120: 737 MAX: 737 MAX 9 | I120: 737 MAX 9 | J120: =MATCH("*"&F120&"*",Sheet1!C:C,0) ->  | K120: =MATCH("*"&H120&"*",Sheet1!C:C,0) ->  | L120: =MATCH("*"&I120&"*",Sheet1!B:B,0) ->  | M120: 128.9 | O120: https://www.statista.com/statistics/273941/prices-of-boeing-aircraft-by-type/ | P120: =INDEX('[2]Pt1-AvionicsComponentCosts'!$A:$NE,MATCH(B120,'[2]Pt1-AvionicsComponentCosts'!$A:$A,0),MATCH("END MARKER",'[2]Pt1-AvionicsComponentCosts'!$11:$11,0)) -> 1450795 | Q120: =50% -> 0.5 | R120: =50% -> 0.5 | S120: 0.05627598914
B121: 300 | C121: =INDEX('[1]Pt1-AvionicsComponentCosts'!$A:$B,MATCH(B121,'[1]Pt1-AvionicsComponentCosts'!$A:$A,0),2) -> Large Commercial Aircraft | D121: Boeing | E121: 1 | F121: Boeing 737NG | G121: Boeing 737-600 | H121: 737-600 | I121: 737-600 | J121: =MATCH("*"&F121&"*",Sheet1!C:C,0) ->  | K121: =MATCH("*"&H121&"*",Sheet1!C:C,0) ->  | L121: =MATCH("*"&I121&"*",Sheet1!B:B,0) ->  | P121: =INDEX('[2]Pt1-AvionicsComponentCosts'!$A:$NE,MATCH(B121,'[2]Pt1-AvionicsComponentCosts'!$A:$A,0),MATCH("END MARKER",'[2]Pt1-AvionicsComponentCosts'!$11:$11,0)) -> 1450795 | Q121: =50% -> 0.5 | R121: =50% -> 0.5
B122: 192 | C122: =INDEX('[1]Pt1-AvionicsComponentCosts'!$A:$B,MATCH(B122,'[1]Pt1-AvionicsComponentCosts'!$A:$A,0),2) -> Large Commercial Aircraft | D122: Boeing | E122: 1 | F122: Boeing 737NG | G122: Boeing 737-700 | H122: 737-700 | I122: 737-700 | J122: =MATCH("*"&F122&"*",Sheet1!C:C,0) ->  | K122: =MATCH("*"&H122&"*",Sheet1!C:C,0) ->  | L122: =MATCH("*"&I122&"*",Sheet1!B:B,0) -> 20 | M122: =INDEX(Sheet1!$A:$K,MATCH($I122,Sheet1!$B:$B,0),MATCH(M$1,Sheet1!$A$1:$K$1,0)) -> 89.1 | O122: =INDEX(Sheet1!$A:$K,MATCH($I122,Sheet1!$B:$B,0),MATCH(O$1,Sheet1!$A$1:$K$1,0)) -> http://www.axonaviation.com/commercial-aircraft/aircraft-data/aircraft-pricing | P122: =INDEX('[2]Pt1-AvionicsComponentCosts'!$A:$NE,MATCH(B122,'[2]Pt1-AvionicsComponentCosts'!$A:$A,0),MATCH("END MARKER",'[2]Pt1-AvionicsComponentCosts'!$11:$11,0)) -> 1450795 | Q122: =50% -> 0.5 | R122: =50% -> 0.5 | S122: 0.08141386083
B123: 193 | C123: =INDEX('[1]Pt1-AvionicsComponentCosts'!$A:$B,MATCH(B123,'[1]Pt1-AvionicsComponentCosts'!$A:$A,0),2) -> Large Commercial Aircraft | D123: Boeing | E123: 1 | F123: Boeing 737NG | G123: Boeing 737-800 | H123: 737-800 | I123: 737-800 | J123: =MATCH("*"&F123&"*",Sheet1!C:C,0) ->  | K123: =MATCH("*"&H123&"*",Sheet1!C:C,0) ->  | L123: =MATCH("*"&I123&"*",Sheet1!B:B,0) -> 21 | M123: =INDEX(Sheet1!$A:$K,MATCH($I123,Sheet1!$B:$B,0),MATCH(M$1,Sheet1!$A$1:$K$1,0)) -> 106.1 | O123: =INDEX(Sheet1!$A:$K,MATCH($I123,Sheet1!$B:$B,0),MATCH(O$1,Sheet1!$A$1:$K$1,0)) -> http://www.axonaviation.com/commercial-aircraft/aircraft-data/aircraft-pricing | P123: =INDEX('[2]Pt1-AvionicsComponentCosts'!$A:$NE,MATCH(B123,'[2]Pt1-AvionicsComponentCosts'!$A:$A,0),MATCH("END MARKER",'[2]Pt1-AvionicsComponentCosts'!$11:$11,0)) -> 1450795 | Q123: =50% -> 0.5 | R123: =50% -> 0.5 | S123: 0.06836922714
B124: 194 | C124: =INDEX('[1]Pt1-AvionicsComponentCosts'!$A:$B,MATCH(B124,'[1]Pt1-AvionicsComponentCosts'!$A:$A,0),2) -> Large Commercial Aircraft | D124: Boeing | E124: 1 | F124: Boeing 737NG | G124: Boeing 737-900 | H124: 737-900 | I124: 737-900 | J124: =MATCH("*"&F124&"*",Sheet1!C:C,0) ->  | K124: =MATCH("*"&H124&"*",Sheet1!C:C,0) ->  | L124: =MATCH("*"&I124&"*",Sheet1!B:B,0) -> 22 | M124: 112.6 | O124: https://www.statista.com/statistics/273941/prices-of-boeing-aircraft-by-type/ | P124: =INDEX('[2]Pt1-AvionicsComponentCosts'!$A:$NE,MATCH(B124,'[2]Pt1-AvionicsComponentCosts'!$A:$A,0),MATCH("END MARKER",'[2]Pt1-AvionicsComponentCosts'!$11:$11,0)) -> 1450795 | Q124: =50% -> 0.5 | R124: =50% -> 0.5 | S124: 0.06442251332
B125: 522 | C125: =INDEX('[1]Pt1-AvionicsComponentCosts'!$A:$B,MATCH(B125,'[1]Pt1-AvionicsComponentCosts'!$A:$A,0),2) -> Large Commercial Aircraft | D125: Boeing | E125: 1 | F125: Boeing 757 | G125: Boeing 757 | H125: 757 | I125: 757 | J125: =MATCH("*"&F125&"*",Sheet1!C:C,0) ->  | K125: =MATCH("*"&H125&"*",Sheet1!C:C,0) -> 26 | L125: =MATCH("*"&I125&"*",Sheet1!B:B,0) -> 26 | P125: =INDEX('[2]Pt1-AvionicsComponentCosts'!$A:$NE,MATCH(B125,'[2]Pt1-AvionicsComponentCosts'!$A:$A,0),MATCH("END MARKER",'[2]Pt1-AvionicsComponentCosts'!$11:$11,0)) -> 1450796 | Q125: =50% -> 0.5 | R125: =50% -> 0.5
B126: 612 | C126: =INDEX('[1]Pt1-AvionicsComponentCosts'!$A:$B,MATCH(B126,'[1]Pt1-AvionicsComponentCosts'!$A:$A,0),2) -> Large Commercial Aircraft | D126: Boeing | E126: 1 | F126: Boeing New Single Aisle (NSA) | G126: Boeing New Single Aisle (NSA) | H126: New Single Aisle (NSA) | I126: New Single Aisle (NSA) | J126: =MATCH("*"&F126&"*",Sheet1!C:C,0) ->  | K126: =MATCH("*"&H126&"*",Sheet1!C:C,0) ->  | L126: =MATCH("*"&I126&"*",Sheet1!B:B,0) ->  | P126: =INDEX('[2]Pt1-AvionicsComponentCosts'!$A:$NE,MATCH(B126,'[2]Pt1-AvionicsComponentCosts'!$A:$A,0),MATCH("END MARKER",'[2]Pt1-AvionicsComponentCosts'!$11:$11,0)) -> 1625971.112 | Q126: =50% -> 0.5 | R126: =50% -> 0.5
B127: 12 | C127: =INDEX('[1]Pt1-AvionicsComponentCosts'!$A:$B,MATCH(B127,'[1]Pt1-AvionicsComponentCosts'!$A:$A,0),2) -> Large Commercial Aircraft | D127: Boeing | E127: 1 | F127: Boeing 767 | G127: Boeing 767 | H127: 767 | I127: 767 | J127: =MATCH("*"&F127&"*",Sheet1!C:C,0) ->  | K127: =MATCH("*"&H127&"*",Sheet1!C:C,0) -> 28 | L127: =MATCH("*"&I127&"*",Sheet1!B:B,0) -> 28 | P127: =INDEX('[2]Pt1-AvionicsComponentCosts'!$A:$NE,MATCH(B127,'[2]Pt1-AvionicsComponentCosts'!$A:$A,0),MATCH("END MARKER",'[2]Pt1-AvionicsComponentCosts'!$11:$11,0)) -> 1940910.333 | Q127: =50% -> 0.5 | R127: =50% -> 0.5
B128: 539 | C128: =INDEX('[1]Pt1-AvionicsComponentCosts'!$A:$B,MATCH(B128,'[1]Pt1-AvionicsComponentCosts'!$A:$A,0),2) -> Large Commercial Aircraft | D128: Boeing | E128: 1 | F128: Boeing 777 | G128: Boeing 777: 777-200ER | H128: 777: 777-200ER | I128: 777-200ER | J128: =MATCH("*"&F128&"*",Sheet1!C:C,0) ->  | K128: =MATCH("*"&H128&"*",Sheet1!C:C,0) ->  | L128: =MATCH("*"&I128&"*",Sheet1!B:B,0) -> 30 | M128: =INDEX(Sheet1!$A:$K,MATCH($I128,Sheet1!$B:$B,0),MATCH(M$1,Sheet1!$A$1:$K$1,0)) -> 306.6 | O128: =INDEX(Sheet1!$A:$K,MATCH($I128,Sheet1!$B:$B,0),MATCH(O$1,Sheet1!$A$1:$K$1,0)) -> http://www.axonaviation.com/commercial-aircraft/aircraft-data/aircraft-pricing | P128: =INDEX('[2]Pt1-AvionicsComponentCosts'!$A:$NE,MATCH(B128,'[2]Pt1-AvionicsComponentCosts'!$A:$A,0),MATCH("END MARKER",'[2]Pt1-AvionicsComponentCosts'!$11:$11,0)) -> 1988363.723 | Q128: =50% -> 0.5 | R128: =50% -> 0.5 | S128: 0.03242602288
B129: 201 | C129: =INDEX('[1]Pt1-AvionicsComponentCosts'!$A:$B,MATCH(B129,'[1]Pt1-AvionicsComponentCosts'!$A:$A,0),2) -> Large Commercial Aircraft | D129: Boeing | E129: 1 | F129: Boeing 777 | G129: Boeing 777: 777-200LR | H129: 777: 777-200LR | I129: 777-200LR | J129: =MATCH("*"&F129&"*",Sheet1!C:C,0) ->  | K129: =MATCH("*"&H129&"*",Sheet1!C:C,0) ->  | L129: =MATCH("*"&I129&"*",Sheet1!B:B,0) -> 31 | M129: =INDEX(Sheet1!$A:$K,MATCH($I129,Sheet1!$B:$B,0),MATCH(M$1,Sheet1!$A$1:$K$1,0)) -> 346.9 | O129: =INDEX(Sheet1!$A:$K,MATCH($I129,Sheet1!$B:$B,0),MATCH(O$1,Sheet1!$A$1:$K$1,0)) -> http://www.axonaviation.com/commercial-aircraft/aircraft-data/aircraft-pricing | P129: =INDEX('[2]Pt1-AvionicsComponentCosts'!$A:$NE,MATCH(B129,'[2]Pt1-AvionicsComponentCosts'!$A:$A,0),MATCH("END MARKER",'[2]Pt1-AvionicsComponentCosts'!$11:$11,0)) -> 2608129.43 | Q129: =50% -> 0.5 | R129: =50% -> 0.5 | S129: 0.03759194913
B130: 303 | C130: =INDEX('[1]Pt1-AvionicsComponentCosts'!$A:$B,MATCH(B130,'[1]Pt1-AvionicsComponentCosts'!$A:$A,0),2) -> Large Commercial Aircraft | D130: Boeing | E130: 1 | F130: Boeing 777 | G130: Boeing 777: 777-300 | H130: 777: 777-300 | I130: 777-300 | J130: =MATCH("*"&F130&"*",Sheet1!C:C,0) ->  | K130: =MATCH("*"&H130&"*",Sheet1!C:C,0) ->  | L130: =MATCH("*"&I130&"*",Sheet1!B:B,0) -> 32 | M130: 217.9 | O130: https://www.statista.com/statistics/273941/prices-of-boeing-aircraft-by-type/ | P130: =INDEX('[2]Pt1-AvionicsComponentCosts'!$A:$NE,MATCH(B130,'[2]Pt1-AvionicsComponentCosts'!$A:$A,0),MATCH("END MARKER",'[2]Pt1-AvionicsComponentCosts'!$11:$11,0)) -> 1988363.723 | Q130: =50% -> 0.5 | R130: =50% -> 0.5 | S130: 0.04562560173
B131: 202 | C131: =INDEX('[1]Pt1-AvionicsComponentCosts'!$A:$B,MATCH(B131,'[1]Pt1-AvionicsComponentCosts'!$A:$A,0),2) -> Large Commercial Aircraft | D131: Boeing | E131: 1 | F131: Boeing 777 | G131: Boeing 777: 777-300ER | H131: =TRIM(SUBSTITUTE(G131,D131,"")) -> 777: 777-300ER | I131: =TRIM(SUBSTITUTE(SUBSTITUTE(SUBSTITUTE(SUBSTITUTE(SUBSTITUTE(H131,"Family",""),"737 Classic:",""),"737 MAX:",""),"787 Dreamliner:",""),"777:","")) -> 777-300ER | J131: =MATCH("*"&F131&"*",Sheet1!C:C,0) ->  | K131: =MATCH("*"&H131&"*",Sheet1!C:C,0) ->  | L131: =MATCH("*"&I131&"*",Sheet1!B:B,0) -> 32 | M131: =INDEX(Sheet1!$A:$K,MATCH($I131,Sheet1!$B:$B,0),MATCH(M$1,Sheet1!$A$1:$K$1,0)) -> 375.5 | O131: =INDEX(Sheet1!$A:$K,MATCH($I131,Sheet1!$B:$B,0),MATCH(O$1,Sheet1!$A$1:$K$1,0)) -> http://www.axonaviation.com/commercial-aircraft/aircraft-data/aircraft-pricing | P131: =INDEX('[2]Pt1-AvionicsComponentCosts'!$A:$NE,MATCH(B131,'[2]Pt1-AvionicsComponentCosts'!$A:$A,0),MATCH("END MARKER",'[2]Pt1-AvionicsComponentCosts'!$11:$11,0)) -> 2608129.43 | Q131: =50% -> 0.5 | R131: =50% -> 0.5 | S131: =IFERROR(P131/(M131*100000)*R131,"") -> 0.03472875407
B132: 203 | C132: =INDEX('[1]Pt1-AvionicsComponentCosts'!$A:$B,MATCH(B132,'[1]Pt1-AvionicsComponentCosts'!$A:$A,0),2) -> Large Commercial Aircraft | D132: Boeing | E132: 1 | F132: Boeing 777X | G132: Boeing 777X: 777-8 | H132: 777X: 777-8 | I132: 777X: 777-8 | J132: =MATCH("*"&F132&"*",Sheet1!C:C,0) ->  | K132: =MATCH("*"&H132&"*",Sheet1!C:C,0) ->  | L132: =MATCH("*"&I132&"*",Sheet1!B:B,0) ->  | M132: 410.2 | O132: https://www.statista.com/statistics/273941/prices-of-boeing-aircraft-by-type/ | P132: =INDEX('[2]Pt1-AvionicsComponentCosts'!$A:$NE,MATCH(B132,'[2]Pt1-AvionicsComponentCosts'!$A:$A,0),MATCH("END MARKER",'[2]Pt1-AvionicsComponentCosts'!$11:$11,0)) -> 2530676.045 | Q132: =50% -> 0.5 | R132: =50% -> 0.5 | S132: 0.03084685574
B133: 204 | C133: =INDEX('[1]Pt1-AvionicsComponentCosts'!$A:$B,MATCH(B133,'[1]Pt1-AvionicsComponentCosts'!$A:$A,0),2) -> Large Commercial Aircraft | D133: Boeing | E133: 1 | F133: Boeing 777X | G133: Boeing 777X: 777-9 | H133: 777X: 777-9 | I133: 777X: 777-9 | J133: =MATCH("*"&F133&"*",Sheet1!C:C,0) ->  | K133: =MATCH("*"&H133&"*",Sheet1!C:C,0) ->  | L133: =MATCH("*"&I133&"*",Sheet1!B:B,0) ->  | M133: 442.2 | O133: https://www.statista.com/statistics/273941/prices-of-boeing-aircraft-by-type/ | P133: =INDEX('[2]Pt1-AvionicsComponentCosts'!$A:$NE,MATCH(B133,'[2]Pt1-AvionicsComponentCosts'!$A:$A,0),MATCH("END MARKER",'[2]Pt1-AvionicsComponentCosts'!$11:$11,0)) -> 2505129.552 | Q133: =50% -> 0.5 | R133: =50% -> 0.5 | S133: 0.02832575251
B134: 200 | C134: =INDEX('[1]Pt1-AvionicsComponentCosts'!$A:$B,MATCH(B134,'[1]Pt1-AvionicsComponentCosts'!$A:$A,0),2) -> Large Commercial Aircraft | D134: Boeing | E134: 1 | F134: Boeing 787 | G134: Boeing 787 Dreamliner: 787-10 | H134: 787 Dreamliner: 787-10 | I134: 787-10 | J134: =MATCH("*"&F134&"*",Sheet1!C:C,0) ->  | K134: =MATCH("*"&H134&"*",Sheet1!C:C,0) ->  | L134: =MATCH("*"&I134&"*",Sheet1!B:B,0) -> 36 | M134: =INDEX(Sheet1!$A:$K,MATCH($I134,Sheet1!$B:$B,0),MATCH(M$1,Sheet1!$A$1:$K$1,0)) -> 338.4 | O134: =INDEX(Sheet1!$A:$K,MATCH($I134,Sheet1!$B:$B,0),MATCH(O$1,Sheet1!$A$1:$K$1,0)) -> http://www.axonaviation.com/commercial-aircraft/aircraft-data/aircraft-pricing | P134: =INDEX('[2]Pt1-AvionicsComponentCosts'!$A:$NE,MATCH(B134,'[2]Pt1-AvionicsComponentCosts'!$A:$A,0),MATCH("END MARKER",'[2]Pt1-AvionicsComponentCosts'!$11:$11,0)) -> 2640587.635 | Q134: =50% -> 0.5 | R134: =50% -> 0.5 | S134: 0.03901577475
B135: 198 | C135: =INDEX('[1]Pt1-AvionicsComponentCosts'!$A:$B,MATCH(B135,'[1]Pt1-AvionicsComponentCosts'!$A:$A,0),2) -> Large Commercial Aircraft | D135: Boeing | E135: 1 | F135: Boeing 787 | G135: Boeing 787 Dreamliner: 787-8 | H135: 787 Dreamliner: 787-8 | I135: 787-8 | J135: =MATCH("*"&F135&"*",Sheet1!C:C,0) ->  | K135: =MATCH("*"&H135&"*",Sheet1!C:C,0) ->  | L135: =MATCH("*"&I135&"*",Sheet1!B:B,0) -> 34 | M135: =INDEX(Sheet1!$A:$K,MATCH($I135,Sheet1!$B:$B,0),MATCH(M$1,Sheet1!$A$1:$K$1,0)) -> 248.3 | O135: =INDEX(Sheet1!$A:$K,MATCH($I135,Sheet1!$B:$B,0),MATCH(O$1,Sheet1!$A$1:$K$1,0)) -> http://www.axonaviation.com/commercial-aircraft/aircraft-data/aircraft-pricing | P135: =INDEX('[2]Pt1-AvionicsComponentCosts'!$A:$NE,MATCH(B135,'[2]Pt1-AvionicsComponentCosts'!$A:$A,0),MATCH("END MARKER",'[2]Pt1-AvionicsComponentCosts'!$11:$11,0)) -> 2640587.635 | Q135: =50% -> 0.5 | R135: =50% -> 0.5 | S135: 0.05317333136
B136: 199 | C136: =INDEX('[1]Pt1-AvionicsComponentCosts'!$A:$B,MATCH(B136,'[1]Pt1-AvionicsComponentCosts'!$A:$A,0),2) -> Large Commercial Aircraft | D136: Boeing | E136: 1 | F136: Boeing 787 | G136: Boeing 787 Dreamliner: 787-9 | H136: 787 Dreamliner: 787-9 | I136: 787-9 | J136: =MATCH("*"&F136&"*",Sheet1!C:C,0) ->  | K136: =MATCH("*"&H136&"*",Sheet1!C:C,0) ->  | L136: =MATCH("*"&I136&"*",Sheet1!B:B,0) -> 35 | M136: =INDEX(Sheet1!$A:$K,MATCH($I136,Sheet1!$B:$B,0),MATCH(M$1,Sheet1!$A$1:$K$1,0)) -> 292.5 | O136: =INDEX(Sheet1!$A:$K,MATCH($I136,Sheet1!$B:$B,0),MATCH(O$1,Sheet1!$A$1:$K$1,0)) -> http://www.axonaviation.com/commercial-aircraft/aircraft-data/aircraft-pricing | P136: =INDEX('[2]Pt1-AvionicsComponentCosts'!$A:$NE,MATCH(B136,'[2]Pt1-AvionicsComponentCosts'!$A:$A,0),MATCH("END MARKER",'[2]Pt1-AvionicsComponentCosts'!$11:$11,0)) -> 2640587.635 | Q136: =50% -> 0.5 | R136: =50% -> 0.5 | S136: 0.04513825017
B137: 530 | C137: =INDEX('[1]Pt1-AvionicsComponentCosts'!$A:$B,MATCH(B137,'[1]Pt1-AvionicsComponentCosts'!$A:$A,0),2) -> Large Commercial Aircraft | D137: Boeing | E137: 1 | F137: Boeing 747 | G137: Boeing 747-400 | H137: 747-400 | I137: 747-400 | J137: =MATCH("*"&F137&"*",Sheet1!C:C,0) ->  | K137: =MATCH("*"&H137&"*",Sheet1!C:C,0) ->  | L137: =MATCH("*"&I137&"*",Sheet1!B:B,0) -> 23 | M137: =INDEX(Sheet1!$A:$K,MATCH($I137,Sheet1!$B:$B,0),MATCH(M$1,Sheet1!$A$1:$K$1,0)) -> 0 | N137: OOP | O137: =INDEX(Sheet1!$A:$K,MATCH($I137,Sheet1!$B:$B,0),MATCH(O$1,Sheet1!$A$1:$K$1,0)) -> http://www.axonaviation.com/commercial-aircraft/aircraft-data/aircraft-pricing | P137: =INDEX('[2]Pt1-AvionicsComponentCosts'!$A:$NE,MATCH(B137,'[2]Pt1-AvionicsComponentCosts'!$A:$A,0),MATCH("END MARKER",'[2]Pt1-AvionicsComponentCosts'!$11:$11,0)) -> 2070474.29 | Q137: =50% -> 0.5 | R137: =50% -> 0.5
B138: 16 | C138: =INDEX('[1]Pt1-AvionicsComponentCosts'!$A:$B,MATCH(B138,'[1]Pt1-AvionicsComponentCosts'!$A:$A,0),2) -> Large Commercial Aircraft | D138: Boeing | E138: 1 | F138: Boeing 747 | G138: Boeing 747-8I | H138: 747-8I | I138: 747-8I | J138: =MATCH("*"&F138&"*",Sheet1!C:C,0) ->  | K138: =MATCH("*"&H138&"*",Sheet1!C:C,0) ->  | L138: =MATCH("*"&I138&"*",Sheet1!B:B,0) -> 25 | M138: =INDEX(Sheet1!$A:$K,MATCH($I138,Sheet1!$B:$B,0),MATCH(M$1,Sheet1!$A$1:$K$1,0)) -> 418.4 | O138: =INDEX(Sheet1!$A:$K,MATCH($I138,Sheet1!$B:$B,0),MATCH(O$1,Sheet1!$A$1:$K$1,0)) -> http://www.axonaviation.com/commercial-aircraft/aircraft-data/aircraft-pricing | P138: =INDEX('[2]Pt1-AvionicsComponentCosts'!$A:$NE,MATCH(B138,'[2]Pt1-AvionicsComponentCosts'!$A:$A,0),MATCH("END MARKER",'[2]Pt1-AvionicsComponentCosts'!$11:$11,0)) -> 2730133.997 | Q138: =50% -> 0.5 | R138: =50% -> 0.5 | S138: 0.03262588428
B139: 636 | C139: =INDEX('[1]Pt1-AvionicsComponentCosts'!$A:$B,MATCH(B139,'[1]Pt1-AvionicsComponentCosts'!$A:$A,0),2) -> Military Transport / Special Mission | D139: Boeing | E139: 1 | F139: B-52 Stratofortress | G139: Boeing B-52 Stratofortress | H139: B-52 Stratofortress | I139: B-52 Stratofortress | J139: =MATCH("*"&F139&"*",Sheet1!C:C,0) ->  | K139: =MATCH("*"&H139&"*",Sheet1!C:C,0) ->  | L139: =MATCH("*"&I139&"*",Sheet1!B:B,0) ->  | P139: =INDEX('[2]Pt1-AvionicsComponentCosts'!$A:$NE,MATCH(B139,'[2]Pt1-AvionicsComponentCosts'!$A:$A,0),MATCH("END MARKER",'[2]Pt1-AvionicsComponentCosts'!$11:$11,0)) -> 3079069.417 | Q139: 1 | R139: 1
B140: 676 | C140: =INDEX('[1]Pt1-AvionicsComponentCosts'!$A:$B,MATCH(B140,'[1]Pt1-AvionicsComponentCosts'!$A:$A,0),2) -> Military Transport / Special Mission | D140: Boeing | E140: 1 | F140: B-52 Stratofortress | G140: Boeing B-52 Stratofortress re-engine | H140: B-52 Stratofortress re-engine | I140: B-52 Stratofortress re-engine | J140: =MATCH("*"&F140&"*",Sheet1!C:C,0) ->  | K140: =MATCH("*"&H140&"*",Sheet1!C:C,0) ->  | L140: =MATCH("*"&I140&"*",Sheet1!B:B,0) ->  | P140: =INDEX('[2]Pt1-AvionicsComponentCosts'!$A:$NE,MATCH(B140,'[2]Pt1-AvionicsComponentCosts'!$A:$A,0),MATCH("END MARKER",'[2]Pt1-AvionicsComponentCosts'!$11:$11,0)) -> 3079069.417 | Q140: 1 | R140: 1
B141: 157 | C141: =INDEX('[1]Pt1-AvionicsComponentCosts'!$A:$B,MATCH(B141,'[1]Pt1-AvionicsComponentCosts'!$A:$A,0),2) -> Military Transport / Special Mission | D141: Boeing | E141: 1 | F141: Boeing KC-46 Pegasus | G141: Boeing KC-46 Pegasus | H141: KC-46 Pegasus | I141: KC-46 Pegasus | J141: =MATCH("*"&F141&"*",Sheet1!C:C,0) ->  | K141: =MATCH("*"&H141&"*",Sheet1!C:C,0) ->  | L141: =MATCH("*"&I141&"*",Sheet1!B:B,0) ->  | M141: 220 | O141: https://simpleflying.com/how-much-do-military-transport-aircraft-cost/ | P141: =INDEX('[2]Pt1-AvionicsComponentCosts'!$A:$NE,MATCH(B141,'[2]Pt1-AvionicsComponentCosts'!$A:$A,0),MATCH("END MARKER",'[2]Pt1-AvionicsComponentCosts'!$11:$11,0)) -> 3443006.913 | Q141: 1 | R141: 1 | S141: 0.1565003142
B142: 156 | C142: =INDEX('[1]Pt1-AvionicsComponentCosts'!$A:$B,MATCH(B142,'[1]Pt1-AvionicsComponentCosts'!$A:$A,0),2) -> Military Transport / Special Mission | D142: Boeing | E142: 1 | F142: Boeing P-8 Poseidon | G142: Boeing P-8 Poseidon | H142: P-8 Poseidon | I142: P-8 Poseidon | J142: =MATCH("*"&F142&"*",Sheet1!C:C,0) ->  | K142: =MATCH("*"&H142&"*",Sheet1!C:C,0) ->  | L142: =MATCH("*"&I142&"*",Sheet1!B:B,0) ->  | P142: =INDEX('[2]Pt1-AvionicsComponentCosts'!$A:$NE,MATCH(B142,'[2]Pt1-AvionicsComponentCosts'!$A:$A,0),MATCH("END MARKER",'[2]Pt1-AvionicsComponentCosts'!$11:$11,0)) -> 3079069.417 | Q142: 1 | R142: 1
B143: 158 | C143: =INDEX('[1]Pt1-AvionicsComponentCosts'!$A:$B,MATCH(B143,'[1]Pt1-AvionicsComponentCosts'!$A:$A,0),2) -> Military Transport / Special Mission | D143: Boeing | E143: 1 | F143: C-17 | G143: Boeing C-17 Globemaster III | H143: C-17 Globemaster III | I143: C-17 Globemaster III | J143: =MATCH("*"&F143&"*",Sheet1!C:C,0) ->  | K143: =MATCH("*"&H143&"*",Sheet1!C:C,0) ->  | L143: =MATCH("*"&I143&"*",Sheet1!B:B,0) ->  | P143: =INDEX('[2]Pt1-AvionicsComponentCosts'!$A:$NE,MATCH(B143,'[2]Pt1-AvionicsComponentCosts'!$A:$A,0),MATCH("END MARKER",'[2]Pt1-AvionicsComponentCosts'!$11:$11,0)) -> 3438674.321 | Q143: 1 | R143: 1
B144: 574 | C144: =INDEX('[1]Pt1-AvionicsComponentCosts'!$A:$B,MATCH(B144,'[1]Pt1-AvionicsComponentCosts'!$A:$A,0),2) -> Military Transport / Special Mission | D144: Boeing | E144: 1 | F144: Boeing C-40 Clipper | G144: Boeing C-40 Clipper | H144: C-40 Clipper | I144: C-40 Clipper | J144: =MATCH("*"&F144&"*",Sheet1!C:C,0) ->  | K144: =MATCH("*"&H144&"*",Sheet1!C:C,0) ->  | L144: =MATCH("*"&I144&"*",Sheet1!B:B,0) ->  | P144: =INDEX('[2]Pt1-AvionicsComponentCosts'!$A:$NE,MATCH(B144,'[2]Pt1-AvionicsComponentCosts'!$A:$A,0),MATCH("END MARKER",'[2]Pt1-AvionicsComponentCosts'!$11:$11,0)) -> 3079069.417 | Q144: 1 | R144: 1
B145: 620 | C145: =INDEX('[1]Pt1-AvionicsComponentCosts'!$A:$B,MATCH(B145,'[1]Pt1-AvionicsComponentCosts'!$A:$A,0),2) -> Military Transport / Special Mission | D145: Boeing | E145: 1 | F145: Boeing KC-135 Stratotanker | G145: Boeing KC-135 Stratotanker | H145: KC-135 Stratotanker | I145: KC-135 Stratotanker | J145: =MATCH("*"&F145&"*",Sheet1!C:C,0) ->  | K145: =MATCH("*"&H145&"*",Sheet1!C:C,0) ->  | L145: =MATCH("*"&I145&"*",Sheet1!B:B,0) ->  | P145: =INDEX('[2]Pt1-AvionicsComponentCosts'!$A:$NE,MATCH(B145,'[2]Pt1-AvionicsComponentCosts'!$A:$A,0),MATCH("END MARKER",'[2]Pt1-AvionicsComponentCosts'!$11:$11,0)) -> 3438674.321 | Q145: 1 | R145: 1
B146: 582 | C146: =INDEX('[1]Pt1-AvionicsComponentCosts'!$A:$B,MATCH(B146,'[1]Pt1-AvionicsComponentCosts'!$A:$A,0),2) -> Helicopter | D146: Boeing/Leonardo | E146: 1 | F146: MH139 | G146: Boeing/Leonardo MH139 | H146: MH139 | I146: MH139 | J146: =MATCH("*"&F146&"*",Sheet1!C:C,0) ->  | K146: =MATCH("*"&H146&"*",Sheet1!C:C,0) ->  | L146: =MATCH("*"&I146&"*",Sheet1!B:B,0) ->  | P146: =INDEX('[2]Pt1-AvionicsComponentCosts'!$A:$NE,MATCH(B146,'[2]Pt1-AvionicsComponentCosts'!$A:$A,0),MATCH("END MARKER",'[2]Pt1-AvionicsComponentCosts'!$11:$11,0)) -> 1306683.903 | Q146: 0.99 | R146: 0.99
B147: 35 | C147: =INDEX('[1]Pt1-AvionicsComponentCosts'!$A:$B,MATCH(B147,'[1]Pt1-AvionicsComponentCosts'!$A:$A,0),2) -> Business Jet | D147: Bombardier | E147: 1 | F147: Challenger 600 series | G147: Bombardier Challenger 600 series | H147: Challenger 600 series | I147: Challenger 600 series | J147: =MATCH("*"&F147&"*",Sheet1!C:C,0) ->  | K147: =MATCH("*"&H147&"*",Sheet1!C:C,0) ->  | L147: =MATCH("*"&I147&"*",Sheet1!B:B,0) ->  | M147: =INDEX('Bombardier Prices'!A:D,MATCH(I147,'Bombardier Prices'!D:D,0),2) -> 31.9 | O147: https://www.wijet.com/bombardier-private-jet-price-list/#google_vignette | P147: =INDEX('[2]Pt1-AvionicsComponentCosts'!$A:$NE,MATCH(B147,'[2]Pt1-AvionicsComponentCosts'!$A:$A,0),MATCH("END MARKER",'[2]Pt1-AvionicsComponentCosts'!$11:$11,0)) -> 1152968 | Q147: 0.75 | R147: 0.75 | S147: 0.2710739812
B148: 635 | C148: =INDEX('[1]Pt1-AvionicsComponentCosts'!$A:$B,MATCH(B148,'[1]Pt1-AvionicsComponentCosts'!$A:$A,0),2) -> Business Jet | D148: Bombardier | E148: 1 | F148: Challenger 600 series | G148: Bombardier Challenger 6XX series | H148: Challenger 6XX series | I148: Challenger 6XX series | J148: =MATCH("*"&F148&"*",Sheet1!C:C,0) ->  | K148: =MATCH("*"&H148&"*",Sheet1!C:C,0) ->  | L148: =MATCH("*"&I148&"*",Sheet1!B:B,0) ->  | M148: =INDEX('Bombardier Prices'!A:D,MATCH(I148,'Bombardier Prices'!D:D,0),2) -> 31.9 | O148: https://www.wijet.com/bombardier-private-jet-price-list/#google_vignette | P148: =INDEX('[2]Pt1-AvionicsComponentCosts'!$A:$NE,MATCH(B148,'[2]Pt1-AvionicsComponentCosts'!$A:$A,0),MATCH("END MARKER",'[2]Pt1-AvionicsComponentCosts'!$11:$11,0)) -> 1162915.454 | Q148: 0.75 | R148: 0.75 | S148: 0.2734127244
B149: 72 | C149: =INDEX('[1]Pt1-AvionicsComponentCosts'!$A:$B,MATCH(B149,'[1]Pt1-AvionicsComponentCosts'!$A:$A,0),2) -> Business Jet | D149: Bombardier | E149: 1 | F149: Challenger 850 | G149: Bombardier Challenger 850 | H149: Challenger 850 | I149: Challenger 850 | J149: =MATCH("*"&F149&"*",Sheet1!C:C,0) ->  | K149: =MATCH("*"&H149&"*",Sheet1!C:C,0) ->  | L149: =MATCH("*"&I149&"*",Sheet1!B:B,0) ->  | M149: =INDEX('Bombardier Prices'!A:D,MATCH(I149,'Bombardier Prices'!D:D,0),2) -> 39.9 | O149: https://www.wijet.com/bombardier-private-jet-price-list/#google_vignette | P149: =INDEX('[2]Pt1-AvionicsComponentCosts'!$A:$NE,MATCH(B149,'[2]Pt1-AvionicsComponentCosts'!$A:$A,0),MATCH("END MARKER",'[2]Pt1-AvionicsComponentCosts'!$11:$11,0)) -> 1152968 | Q149: 0.75 | R149: 0.75 | S149: 0.2167233083
B150: 38 | C150: =INDEX('[1]Pt1-AvionicsComponentCosts'!$A:$B,MATCH(B150,'[1]Pt1-AvionicsComponentCosts'!$A:$A,0),2) -> Business Jet | D150: Bombardier | E150: 1 | F150: Global 7000 | G150: Bombardier Global 7500/8000 | H150: Global 7500/8000 | I150: Global 7500/8000 | J150: =MATCH("*"&F150&"*",Sheet1!C:C,0) ->  | K150: =MATCH("*"&H150&"*",Sheet1!C:C,0) ->  | L150: =MATCH("*"&I150&"*",Sheet1!B:B,0) ->  | M150: 80 | O150: https://infogram.com/bca-table-2023-jets-ultra-long-range-1ho16vorwrqkx4n | P150: =INDEX('[2]Pt1-AvionicsComponentCosts'!$A:$NE,MATCH(B150,'[2]Pt1-AvionicsComponentCosts'!$A:$A,0),MATCH("END MARKER",'[2]Pt1-AvionicsComponentCosts'!$11:$11,0)) -> 1234971 | Q150: 0.75 | R150: 0.75 | S150: 0.1157785313
B151: 36 | C151: =INDEX('[1]Pt1-AvionicsComponentCosts'!$A:$B,MATCH(B151,'[1]Pt1-AvionicsComponentCosts'!$A:$A,0),2) -> Business Jet | D151: Bombardier | E151: 1 | F151: Global Express - 5000/6000 | G151: Bombardier Global 5000 | H151: Global 5000 | I151: Global 5000 | J151: =MATCH("*"&F151&"*",Sheet1!C:C,0) ->  | K151: =MATCH("*"&H151&"*",Sheet1!C:C,0) ->  | L151: =MATCH("*"&I151&"*",Sheet1!B:B,0) ->  | M151: =INDEX('Bombardier Prices'!A:D,MATCH(I151,'Bombardier Prices'!D:D,0),2) -> 46 | O151: https://www.wijet.com/bombardier-private-jet-price-list/#google_vignette | P151: =INDEX('[2]Pt1-AvionicsComponentCosts'!$A:$NE,MATCH(B151,'[2]Pt1-AvionicsComponentCosts'!$A:$A,0),MATCH("END MARKER",'[2]Pt1-AvionicsComponentCosts'!$11:$11,0)) -> 1234971 | Q151: 0.75 | R151: 0.75 | S151: 0.2013539674
B152: 576 | C152: =INDEX('[1]Pt1-AvionicsComponentCosts'!$A:$B,MATCH(B152,'[1]Pt1-AvionicsComponentCosts'!$A:$A,0),2) -> Business Jet | D152: Bombardier | E152: 1 | F152: Global Express - 5000/6000 | G152: Bombardier Global 5500 | H152: Global 5500 | I152: Global 5500 | J152: =MATCH("*"&F152&"*",Sheet1!C:C,0) ->  | K152: =MATCH("*"&H152&"*",Sheet1!C:C,0) ->  | L152: =MATCH("*"&I152&"*",Sheet1!B:B,0) ->  | M152: =INDEX('Bombardier Prices'!A:D,MATCH(I152,'Bombardier Prices'!D:D,0),2) -> 46 | O152: https://www.wijet.com/bombardier-private-jet-price-list/#google_vignette | P152: =INDEX('[2]Pt1-AvionicsComponentCosts'!$A:$NE,MATCH(B152,'[2]Pt1-AvionicsComponentCosts'!$A:$A,0),MATCH("END MARKER",'[2]Pt1-AvionicsComponentCosts'!$11:$11,0)) -> 1234971 | Q152: 0.75 | R152: 0.75 | S152: 0.2013539674
B153: 37 | C153: =INDEX('[1]Pt1-AvionicsComponentCosts'!$A:$B,MATCH(B153,'[1]Pt1-AvionicsComponentCosts'!$A:$A,0),2) -> Business Jet | D153: Bombardier | E153: 1 | F153: Global Express - 5000/6000 | G153: Bombardier Global 6000 | H153: Global 6000 | I153: Global 6000 | J153: =MATCH("*"&F153&"*",Sheet1!C:C,0) ->  | K153: =MATCH("*"&H153&"*",Sheet1!C:C,0) ->  | L153: =MATCH("*"&I153&"*",Sheet1!B:B,0) ->  | M153: =INDEX('Bombardier Prices'!A:D,MATCH(I153,'Bombardier Prices'!D:D,0),2) -> 55.8 | O153: https://www.wijet.com/bombardier-private-jet-price-list/#google_vignette | P153: =INDEX('[2]Pt1-AvionicsComponentCosts'!$A:$NE,MATCH(B153,'[2]Pt1-AvionicsComponentCosts'!$A:$A,0),MATCH("END MARKER",'[2]Pt1-AvionicsComponentCosts'!$11:$11,0)) -> 1234971 | Q153: 0.75 | R153: 0.75 | S153: 0.1659907258
B154: 577 | C154: =INDEX('[1]Pt1-AvionicsComponentCosts'!$A:$B,MATCH(B154,'[1]Pt1-AvionicsComponentCosts'!$A:$A,0),2) -> Business Jet | D154: Bombardier | E154: 1 | F154: Global Express - 5000/6000 | G154: Bombardier Global 6500 | H154: Global 6500 | I154: Global 6500 | J154: =MATCH("*"&F154&"*",Sheet1!C:C,0) ->  | K154: =MATCH("*"&H154&"*",Sheet1!C:C,0) ->  | L154: =MATCH("*"&I154&"*",Sheet1!B:B,0) ->  | M154: 58 | O154: https://infogram.com/bca-table-2023-jets-ultra-long-range-1ho16vorwrqkx4n | P154: =INDEX('[2]Pt1-AvionicsComponentCosts'!$A:$NE,MATCH(B154,'[2]Pt1-AvionicsComponentCosts'!$A:$A,0),MATCH("END MARKER",'[2]Pt1-AvionicsComponentCosts'!$11:$11,0)) -> 1234971 | Q154: 0.75 | R154: 0.75 | S154: 0.1596945259
B155: 34 | C155: =INDEX('[1]Pt1-AvionicsComponentCosts'!$A:$B,MATCH(B155,'[1]Pt1-AvionicsComponentCosts'!$A:$A,0),2) -> Business Jet | D155: Bombardier | E155: 1 | F155: Bombardier Challenger 300/350 | G155: Bombardier Challenger 300/350 | H155: Challenger 300/350 | I155: Challenger 300/350 | J155: =MATCH("*"&F155&"*",Sheet1!C:C,0) ->  | K155: =MATCH("*"&H155&"*",Sheet1!C:C,0) ->  | L155: =MATCH("*"&I155&"*",Sheet1!B:B,0) ->  | M155: =INDEX('Bombardier Prices'!A:D,MATCH(I155,'Bombardier Prices'!D:D,0),2) -> 14 | O155: https://www.wijet.com/bombardier-private-jet-price-list/#google_vignette | P155: =INDEX('[2]Pt1-AvionicsComponentCosts'!$A:$NE,MATCH(B155,'[2]Pt1-AvionicsComponentCosts'!$A:$A,0),MATCH("END MARKER",'[2]Pt1-AvionicsComponentCosts'!$11:$11,0)) -> 750683.2208 | Q155: 0.75 | R155: 0.75 | S155: 0.4021517254
B156: 649 | C156: =INDEX('[1]Pt1-AvionicsComponentCosts'!$A:$B,MATCH(B156,'[1]Pt1-AvionicsComponentCosts'!$A:$A,0),2) -> Business Jet | D156: Bombardier | E156: 1 | F156: Bombardier Challenger 3500 | G156: Bombardier Challenger 3500 | H156: Challenger 3500 | I156: Challenger 3500 | J156: =MATCH("*"&F156&"*",Sheet1!C:C,0) ->  | K156: =MATCH("*"&H156&"*",Sheet1!C:C,0) ->  | L156: =MATCH("*"&I156&"*",Sheet1!B:B,0) ->  | M156: =INDEX('Bombardier Prices'!A:D,MATCH(I156,'Bombardier Prices'!D:D,0),2) -> 14.9 | O156: https://www.wijet.com/bombardier-private-jet-price-list/#google_vignette | P156: =INDEX('[2]Pt1-AvionicsComponentCosts'!$A:$NE,MATCH(B156,'[2]Pt1-AvionicsComponentCosts'!$A:$A,0),MATCH("END MARKER",'[2]Pt1-AvionicsComponentCosts'!$11:$11,0)) -> 750683.2208 | Q156: 0.75 | R156: 0.75 | S156: 0.3778606816
B157: 618 | C157: =INDEX('[1]Pt1-AvionicsComponentCosts'!$A:$B,MATCH(B157,'[1]Pt1-AvionicsComponentCosts'!$A:$A,0),2) -> Regional | D157: Bombardier | E157: 1 | F157: Bombardier CRJ | G157: Bombardier CRJ200 | H157: CRJ200 | I157: CRJ200 | J157: =MATCH("*"&F157&"*",Sheet1!C:C,0) ->  | K157: =MATCH("*"&H157&"*",Sheet1!C:C,0) ->  | L157: =MATCH("*"&I157&"*",Sheet1!B:B,0) -> 38 | P157: =INDEX('[2]Pt1-AvionicsComponentCosts'!$A:$NE,MATCH(B157,'[2]Pt1-AvionicsComponentCosts'!$A:$A,0),MATCH("END MARKER",'[2]Pt1-AvionicsComponentCosts'!$11:$11,0)) -> 1047576 | Q157: 0.65 | R157: 0.65
B158: 220 | C158: =INDEX('[1]Pt1-AvionicsComponentCosts'!$A:$B,MATCH(B158,'[1]Pt1-AvionicsComponentCosts'!$A:$A,0),2) -> Regional | D158: Bombardier | E158: 1 | F158: Bombardier CRJ | G158: Bombardier CRJ700-1000 | H158: CRJ700-1000 | I158: CRJ700-1000 | J158: =MATCH("*"&F158&"*",Sheet1!C:C,0) ->  | K158: =MATCH("*"&H158&"*",Sheet1!C:C,0) ->  | L158: =MATCH("*"&I158&"*",Sheet1!B:B,0) ->  | P158: =INDEX('[2]Pt1-AvionicsComponentCosts'!$A:$NE,MATCH(B158,'[2]Pt1-AvionicsComponentCosts'!$A:$A,0),MATCH("END MARKER",'[2]Pt1-AvionicsComponentCosts'!$11:$11,0)) -> 1047576 | Q158: 0.65 | R158: 0.65
B159: 218 | C159: =INDEX('[1]Pt1-AvionicsComponentCosts'!$A:$B,MATCH(B159,'[1]Pt1-AvionicsComponentCosts'!$A:$A,0),2) -> Regional | D159: Bombardier | E159: 1 | F159: Bombardier CRJ | G159: Bombardier CRJ700-700 | H159: CRJ700-700 | I159: CRJ700-700 | J159: =MATCH("*"&F159&"*",Sheet1!C:C,0) ->  | K159: =MATCH("*"&H159&"*",Sheet1!C:C,0) ->  | L159: =MATCH("*"&I159&"*",Sheet1!B:B,0) ->  | P159: =INDEX('[2]Pt1-AvionicsComponentCosts'!$A:$NE,MATCH(B159,'[2]Pt1-AvionicsComponentCosts'!$A:$A,0),MATCH("END MARKER",'[2]Pt1-AvionicsComponentCosts'!$11:$11,0)) -> 1047576 | Q159: 0.65 | R159: 0.65
B160: 219 | C160: =INDEX('[1]Pt1-AvionicsComponentCosts'!$A:$B,MATCH(B160,'[1]Pt1-AvionicsComponentCosts'!$A:$A,0),2) -> Regional | D160: Bombardier | E160: 1 | F160: Bombardier CRJ | G160: Bombardier CRJ700-900 | H160: CRJ700-900 | I160: CRJ700-900 | J160: =MATCH("*"&F160&"*",Sheet1!C:C,0) ->  | K160: =MATCH("*"&H160&"*",Sheet1!C:C,0) ->  | L160: =MATCH("*"&I160&"*",Sheet1!B:B,0) ->  | P160: =INDEX('[2]Pt1-AvionicsComponentCosts'!$A:$NE,MATCH(B160,'[2]Pt1-AvionicsComponentCosts'!$A:$A,0),MATCH("END MARKER",'[2]Pt1-AvionicsComponentCosts'!$11:$11,0)) -> 1047576 | Q160: 0.65 | R160: 0.65
B161: 226 | C161: =INDEX('[1]Pt1-AvionicsComponentCosts'!$A:$B,MATCH(B161,'[1]Pt1-AvionicsComponentCosts'!$A:$A,0),2) -> Turbine GA | D161: Canadair | E161: 1 | F161: Canadair CL-415 | G161: Canadair CL-415 | H161: CL-415 | I161: CL-415 | J161: =MATCH("*"&F161&"*",Sheet1!C:C,0) ->  | K161: =MATCH("*"&H161&"*",Sheet1!C:C,0) ->  | L161: =MATCH("*"&I161&"*",Sheet1!B:B,0) ->  | M161: 36.9 | N161: in 2014 | O161: https://en.wikipedia.org/wiki/Canadair_CL-415 | P161: =INDEX('[2]Pt1-AvionicsComponentCosts'!$A:$NE,MATCH(B161,'[2]Pt1-AvionicsComponentCosts'!$A:$A,0),MATCH("END MARKER",'[2]Pt1-AvionicsComponentCosts'!$11:$11,0)) -> 1018270.482 | Q161: 1 | R161: 1 | S161: 0.2759540601
B162: 152 | C162: =INDEX('[1]Pt1-AvionicsComponentCosts'!$A:$B,MATCH(B162,'[1]Pt1-AvionicsComponentCosts'!$A:$A,0),2) -> Military Transport / Special Mission | D162: CASA | E162: 1 | F162: CASA C-212 Aviocar | G162: CASA C-212 Aviocar | H162: C-212 Aviocar | I162: C-212 Aviocar | J162: =MATCH("*"&F162&"*",Sheet1!C:C,0) ->  | K162: =MATCH("*"&H162&"*",Sheet1!C:C,0) ->  | L162: =MATCH("*"&I162&"*",Sheet1!B:B,0) ->  | P162: =INDEX('[2]Pt1-AvionicsComponentCosts'!$A:$NE,MATCH(B162,'[2]Pt1-AvionicsComponentCosts'!$A:$A,0),MATCH("END MARKER",'[2]Pt1-AvionicsComponentCosts'!$11:$11,0)) -> 3311485.4 | Q162: 1 | R162: 1
B163: 153 | C163: =INDEX('[1]Pt1-AvionicsComponentCosts'!$A:$B,MATCH(B163,'[1]Pt1-AvionicsComponentCosts'!$A:$A,0),2) -> Military Transport / Special Mission | D163: CASA/IPTN | E163: 1 | F163: CASA/IPTN CN-235 | G163: CASA/IPTN CN-235 | H163: CN-235 | I163: CN-235 | J163: =MATCH("*"&F163&"*",Sheet1!C:C,0) ->  | K163: =MATCH("*"&H163&"*",Sheet1!C:C,0) ->  | L163: =MATCH("*"&I163&"*",Sheet1!B:B,0) ->  | P163: =INDEX('[2]Pt1-AvionicsComponentCosts'!$A:$NE,MATCH(B163,'[2]Pt1-AvionicsComponentCosts'!$A:$A,0),MATCH("END MARKER",'[2]Pt1-AvionicsComponentCosts'!$11:$11,0)) -> 3356205.742 | Q163: 1 | R163: 1
B164: 48 | C164: =INDEX('[1]Pt1-AvionicsComponentCosts'!$A:$B,MATCH(B164,'[1]Pt1-AvionicsComponentCosts'!$A:$A,0),2) -> Business Jet | D164: Cessna | E164: 1 | F164: Citation Hemisphere | G164: Cessna Citation Hemisphere | H164: Citation Hemisphere | I164: Citation Hemisphere | J164: =MATCH("*"&F164&"*",Sheet1!C:C,0) ->  | K164: =MATCH("*"&H164&"*",Sheet1!C:C,0) ->  | L164: =MATCH("*"&I164&"*",Sheet1!B:B,0) ->  | P164: =INDEX('[2]Pt1-AvionicsComponentCosts'!$A:$NE,MATCH(B164,'[2]Pt1-AvionicsComponentCosts'!$A:$A,0),MATCH("END MARKER",'[2]Pt1-AvionicsComponentCosts'!$11:$11,0)) -> 1152968 | Q164: 0.75 | R164: 0.75
B165: 47 | C165: =INDEX('[1]Pt1-AvionicsComponentCosts'!$A:$B,MATCH(B165,'[1]Pt1-AvionicsComponentCosts'!$A:$A,0),2) -> Business Jet | D165: Cessna | E165: 1 | F165: Citation Longitude | G165: Cessna Citation Longitude | H165: Citation Longitude | I165: Citation Longitude | J165: =MATCH("*"&F165&"*",Sheet1!C:C,0) ->  | K165: =MATCH("*"&H165&"*",Sheet1!C:C,0) ->  | L165: =MATCH("*"&I165&"*",Sheet1!B:B,0) ->  | M165: 29.9 | O165: https://aviationweek.com/business-aviation/aircraft-propulsion/20twenty-longitude-cessnas-super-mid-flagship | P165: =INDEX('[2]Pt1-AvionicsComponentCosts'!$A:$NE,MATCH(B165,'[2]Pt1-AvionicsComponentCosts'!$A:$A,0),MATCH("END MARKER",'[2]Pt1-AvionicsComponentCosts'!$11:$11,0)) -> 1152968 | Q165: 0.75 | R165: 0.75 | S165: 0.2892060201
B166: 42 | C166: =INDEX('[1]Pt1-AvionicsComponentCosts'!$A:$B,MATCH(B166,'[1]Pt1-AvionicsComponentCosts'!$A:$A,0),2) -> Business Jet | D166: Cessna | E166: 1 | F166: Citation CJ3 | G166: Cessna Citation CJ3 | H166: Citation CJ3 | I166: Citation CJ3 | J166: =MATCH("*"&F166&"*",Sheet1!C:C,0) ->  | K166: =MATCH("*"&H166&"*",Sheet1!C:C,0) ->  | L166: =MATCH("*"&I166&"*",Sheet1!B:B,0) ->  | P166: =INDEX('[2]Pt1-AvionicsComponentCosts'!$A:$NE,MATCH(B166,'[2]Pt1-AvionicsComponentCosts'!$A:$A,0),MATCH("END MARKER",'[2]Pt1-AvionicsComponentCosts'!$11:$11,0)) -> 491403.8048 | Q166: 0.75 | R166: 0.75
B167: 43 | C167: =INDEX('[1]Pt1-AvionicsComponentCosts'!$A:$B,MATCH(B167,'[1]Pt1-AvionicsComponentCosts'!$A:$A,0),2) -> Business Jet | D167: Cessna | E167: 1 | F167: Citation CJ4 | G167: Cessna Citation CJ4 | H167: Citation CJ4 | I167: Citation CJ4 | J167: =MATCH("*"&F167&"*",Sheet1!C:C,0) ->  | K167: =MATCH("*"&H167&"*",Sheet1!C:C,0) ->  | L167: =MATCH("*"&I167&"*",Sheet1!B:B,0) ->  | M167: 9.2 | O167: https://www.bjtonline.com/aircraft/cessna-citation-cj4 | P167: =INDEX('[2]Pt1-AvionicsComponentCosts'!$A:$NE,MATCH(B167,'[2]Pt1-AvionicsComponentCosts'!$A:$A,0),MATCH("END MARKER",'[2]Pt1-AvionicsComponentCosts'!$11:$11,0)) -> 491403.8048 | Q167: 0.75 | R167: 0.75 | S167: 0.4006009278
B168: 39 | C168: =INDEX('[1]Pt1-AvionicsComponentCosts'!$A:$B,MATCH(B168,'[1]Pt1-AvionicsComponentCosts'!$A:$A,0),2) -> Business Jet | D168: Cessna | E168: 1 | F168: Citation V | G168: Cessna Citation Encore | H168: Citation Encore | I168: Citation Encore | J168: =MATCH("*"&F168&"*",Sheet1!C:C,0) ->  | K168: =MATCH("*"&H168&"*",Sheet1!C:C,0) ->  | L168: =MATCH("*"&I168&"*",Sheet1!B:B,0) ->  | P168: =INDEX('[2]Pt1-AvionicsComponentCosts'!$A:$NE,MATCH(B168,'[2]Pt1-AvionicsComponentCosts'!$A:$A,0),MATCH("END MARKER",'[2]Pt1-AvionicsComponentCosts'!$11:$11,0)) -> 491403.8048 | Q168: 0.75 | R168: 0.75
B169: 46 | C169: =INDEX('[1]Pt1-AvionicsComponentCosts'!$A:$B,MATCH(B169,'[1]Pt1-AvionicsComponentCosts'!$A:$A,0),2) -> Business Jet | D169: Cessna | E169: 1 | F169: Citation Latitude | G169: Cessna Citation Latitude | H169: Citation Latitude | I169: Citation Latitude | J169: =MATCH("*"&F169&"*",Sheet1!C:C,0) ->  | K169: =MATCH("*"&H169&"*",Sheet1!C:C,0) ->  | L169: =MATCH("*"&I169&"*",Sheet1!B:B,0) ->  | M169: 20 | O169: https://www.avbuyer.com/articles/private-jet-price-guides/cessna-citation-latitude-price-guide-112581#price-guide-full-dtl | P169: =INDEX('[2]Pt1-AvionicsComponentCosts'!$A:$NE,MATCH(B169,'[2]Pt1-AvionicsComponentCosts'!$A:$A,0),MATCH("END MARKER",'[2]Pt1-AvionicsComponentCosts'!$11:$11,0)) -> 743469.5408 | Q169: 0.75 | R169: 0.75 | S169: 0.2788010778
B170: 45 | C170: =INDEX('[1]Pt1-AvionicsComponentCosts'!$A:$B,MATCH(B170,'[1]Pt1-AvionicsComponentCosts'!$A:$A,0),2) -> Business Jet | D170: Cessna | E170: 1 | F170: Citation Sovereign | G170: Cessna Citation Sovereign | H170: Citation Sovereign | I170: Citation Sovereign | J170: =MATCH("*"&F170&"*",Sheet1!C:C,0) ->  | K170: =MATCH("*"&H170&"*",Sheet1!C:C,0) ->  | L170: =MATCH("*"&I170&"*",Sheet1!B:B,0) ->  | P170: =INDEX('[2]Pt1-AvionicsComponentCosts'!$A:$NE,MATCH(B170,'[2]Pt1-AvionicsComponentCosts'!$A:$A,0),MATCH("END MARKER",'[2]Pt1-AvionicsComponentCosts'!$11:$11,0)) -> 743469.5408 | Q170: 0.75 | R170: 0.75
B171: 49 | C171: =INDEX('[1]Pt1-AvionicsComponentCosts'!$A:$B,MATCH(B171,'[1]Pt1-AvionicsComponentCosts'!$A:$A,0),2) -> Business Jet | D171: Cessna | E171: 1 | F171: Citation X | G171: Cessna Citation X | H171: Citation X | I171: Citation X | J171: =MATCH("*"&F171&"*",Sheet1!C:C,0) ->  | K171: =MATCH("*"&H171&"*",Sheet1!C:C,0) ->  | L171: =MATCH("*"&I171&"*",Sheet1!B:B,0) ->  | P171: =INDEX('[2]Pt1-AvionicsComponentCosts'!$A:$NE,MATCH(B171,'[2]Pt1-AvionicsComponentCosts'!$A:$A,0),MATCH("END MARKER",'[2]Pt1-AvionicsComponentCosts'!$11:$11,0)) -> 743469.5408 | Q171: 0.75 | R171: 0.75
B172: 40 | C172: =INDEX('[1]Pt1-AvionicsComponentCosts'!$A:$B,MATCH(B172,'[1]Pt1-AvionicsComponentCosts'!$A:$A,0),2) -> Business Jet | D172: Cessna | E172: 1 | F172: Citation XLS | G172: Cessna Citation XLS | H172: Citation XLS | I172: Citation XLS | J172: =MATCH("*"&F172&"*",Sheet1!C:C,0) ->  | K172: =MATCH("*"&H172&"*",Sheet1!C:C,0) ->  | L172: =MATCH("*"&I172&"*",Sheet1!B:B,0) ->  | P172: =INDEX('[2]Pt1-AvionicsComponentCosts'!$A:$NE,MATCH(B172,'[2]Pt1-AvionicsComponentCosts'!$A:$A,0),MATCH("END MARKER",'[2]Pt1-AvionicsComponentCosts'!$11:$11,0)) -> 743469.5408 | Q172: 0.75 | R172: 0.75
B173: 41 | C173: =INDEX('[1]Pt1-AvionicsComponentCosts'!$A:$B,MATCH(B173,'[1]Pt1-AvionicsComponentCosts'!$A:$A,0),2) -> Business Jet | D173: Cessna | E173: 1 | F173: Citation M2 | G173: Cessna Citation M2 | H173: Citation M2 | I173: Citation M2 | J173: =MATCH("*"&F173&"*",Sheet1!C:C,0) ->  | K173: =MATCH("*"&H173&"*",Sheet1!C:C,0) ->  | L173: =MATCH("*"&I173&"*",Sheet1!B:B,0) ->  | M173: 4.7 | O173: https://www.bjtonline.com/aircraft/cessna-citation-m2 | P173: =INDEX('[2]Pt1-AvionicsComponentCosts'!$A:$NE,MATCH(B173,'[2]Pt1-AvionicsComponentCosts'!$A:$A,0),MATCH("END MARKER",'[2]Pt1-AvionicsComponentCosts'!$11:$11,0)) -> 226255.336 | Q173: 0.75 | R173: 0.75 | S173: 0.3610457489
B174: 44 | C174: =INDEX('[1]Pt1-AvionicsComponentCosts'!$A:$B,MATCH(B174,'[1]Pt1-AvionicsComponentCosts'!$A:$A,0),2) -> Business Jet | D174: Cessna | E174: 1 | F174: Citation Mustang | G174: Cessna Citation Mustang | H174: Citation Mustang | I174: Citation Mustang | J174: =MATCH("*"&F174&"*",Sheet1!C:C,0) ->  | K174: =MATCH("*"&H174&"*",Sheet1!C:C,0) ->  | L174: =MATCH("*"&I174&"*",Sheet1!B:B,0) ->  | P174: =INDEX('[2]Pt1-AvionicsComponentCosts'!$A:$NE,MATCH(B174,'[2]Pt1-AvionicsComponentCosts'!$A:$A,0),MATCH("END MARKER",'[2]Pt1-AvionicsComponentCosts'!$11:$11,0)) -> 226255.336 | Q174: 0.75 | R174: 0.75
B175: 82 | C175: =INDEX('[1]Pt1-AvionicsComponentCosts'!$A:$B,MATCH(B175,'[1]Pt1-AvionicsComponentCosts'!$A:$A,0),2) -> Turbine GA | D175: Cessna | E175: 1 | F175: Cessna 208 Caravan | G175: Cessna 208 Caravan | H175: 208 Caravan | I175: 208 Caravan | J175: =MATCH("*"&F175&"*",Sheet1!C:C,0) ->  | K175: =MATCH("*"&H175&"*",Sheet1!C:C,0) ->  | L175: =MATCH("*"&I175&"*",Sheet1!B:B,0) ->  | M175: 2.6 | O175: https://www.bjtonline.com/aircraft/cessna-208b-grand-caravan-ex | P175: =INDEX('[2]Pt1-AvionicsComponentCosts'!$A:$NE,MATCH(B175,'[2]Pt1-AvionicsComponentCosts'!$A:$A,0),MATCH("END MARKER",'[2]Pt1-AvionicsComponentCosts'!$11:$11,0)) -> 224112.5408 | Q175: 1 | R175: 1 | S175: 0.8619713108
B176: 308 | C176: =INDEX('[1]Pt1-AvionicsComponentCosts'!$A:$B,MATCH(B176,'[1]Pt1-AvionicsComponentCosts'!$A:$A,0),2) -> Turbine GA | D176: Cessna | E176: 1 | F176: Cessna 408 SkyCourier | G176: Cessna 408 SkyCourier | H176: 408 SkyCourier | I176: 408 SkyCourier | J176: =MATCH("*"&F176&"*",Sheet1!C:C,0) ->  | K176: =MATCH("*"&H176&"*",Sheet1!C:C,0) ->  | L176: =MATCH("*"&I176&"*",Sheet1!B:B,0) ->  | M176: 5.5 | O176: https://www.bjtonline.com/business-jet-news/cessna-408-skycourier | P176: =INDEX('[2]Pt1-AvionicsComponentCosts'!$A:$NE,MATCH(B176,'[2]Pt1-AvionicsComponentCosts'!$A:$A,0),MATCH("END MARKER",'[2]Pt1-AvionicsComponentCosts'!$11:$11,0)) -> 227116.5632 | Q176: 1 | R176: 1 | S176: 0.4129392058
B177: 81 | C177: =INDEX('[1]Pt1-AvionicsComponentCosts'!$A:$B,MATCH(B177,'[1]Pt1-AvionicsComponentCosts'!$A:$A,0),2) -> Turbine GA | D177: Cessna | E177: 1 | F177: Cessna Denali | G177: Cessna Denali | H177: Denali | I177: Denali | J177: =MATCH("*"&F177&"*",Sheet1!C:C,0) ->  | K177: =MATCH("*"&H177&"*",Sheet1!C:C,0) ->  | L177: =MATCH("*"&I177&"*",Sheet1!B:B,0) ->  | M177: 6.4 | O177: https://www.aircharteradvisors.com/beechcraft-denali/ | P177: =INDEX('[2]Pt1-AvionicsComponentCosts'!$A:$NE,MATCH(B177,'[2]Pt1-AvionicsComponentCosts'!$A:$A,0),MATCH("END MARKER",'[2]Pt1-AvionicsComponentCosts'!$11:$11,0)) -> 239259.032 | Q177: 1 | R177: 1 | S177: 0.3738422375
B178: 550 | C178: =INDEX('[1]Pt1-AvionicsComponentCosts'!$A:$B,MATCH(B178,'[1]Pt1-AvionicsComponentCosts'!$A:$A,0),2) -> Business Jet | D178: Cirrus | E178: 1 | F178: Cirrus Vision Jet SF50 | G178: Cirrus Vision Jet SF50 | H178: Vision Jet SF50 | I178: Vision Jet SF50 | J178: =MATCH("*"&F178&"*",Sheet1!C:C,0) ->  | K178: =MATCH("*"&H178&"*",Sheet1!C:C,0) ->  | L178: =MATCH("*"&I178&"*",Sheet1!B:B,0) ->  | P178: =INDEX('[2]Pt1-AvionicsComponentCosts'!$A:$NE,MATCH(B178,'[2]Pt1-AvionicsComponentCosts'!$A:$A,0),MATCH("END MARKER",'[2]Pt1-AvionicsComponentCosts'!$11:$11,0)) -> 226255.336 | Q178: 0.75 | R178: 0.75
B179: 18 | C179: =INDEX('[1]Pt1-AvionicsComponentCosts'!$A:$B,MATCH(B179,'[1]Pt1-AvionicsComponentCosts'!$A:$A,0),2) -> Large Commercial Aircraft | D179: Comac | E179: 1 | F179: Comac C919 | G179: Comac C919 | H179: C919 | I179: C919 | J179: =MATCH("*"&F179&"*",Sheet1!C:C,0) ->  | K179: =MATCH("*"&H179&"*",Sheet1!C:C,0) ->  | L179: =MATCH("*"&I179&"*",Sheet1!B:B,0) ->  | P179: =INDEX('[2]Pt1-AvionicsComponentCosts'!$A:$NE,MATCH(B179,'[2]Pt1-AvionicsComponentCosts'!$A:$A,0),MATCH("END MARKER",'[2]Pt1-AvionicsComponentCosts'!$11:$11,0)) -> 1564558 | Q179: =50% -> 0.5 | R179: =50% -> 0.5
B180: 27 | C180: =INDEX('[1]Pt1-AvionicsComponentCosts'!$A:$B,MATCH(B180,'[1]Pt1-AvionicsComponentCosts'!$A:$A,0),2) -> Regional | D180: Comac | E180: 1 | F180: Comac ARJ21 | G180: Comac ARJ21 | H180: ARJ21 | I180: ARJ21 | J180: =MATCH("*"&F180&"*",Sheet1!C:C,0) ->  | K180: =MATCH("*"&H180&"*",Sheet1!C:C,0) ->  | L180: =MATCH("*"&I180&"*",Sheet1!B:B,0) ->  | P180: =INDEX('[2]Pt1-AvionicsComponentCosts'!$A:$NE,MATCH(B180,'[2]Pt1-AvionicsComponentCosts'!$A:$A,0),MATCH("END MARKER",'[2]Pt1-AvionicsComponentCosts'!$11:$11,0)) -> 1105909 | Q180: 0.65 | R180: 0.65
B181: 587 | C181: =INDEX('[1]Pt1-AvionicsComponentCosts'!$A:$B,MATCH(B181,'[1]Pt1-AvionicsComponentCosts'!$A:$A,0),2) -> Business Jet | D181: Dassault | E181: 1 | F181: Falcon 10X | G181: Dassault Falcon 10X | H181: Falcon 10X | I181: Falcon 10X | J181: =MATCH("*"&F181&"*",Sheet1!C:C,0) ->  | K181: =MATCH("*"&H181&"*",Sheet1!C:C,0) ->  | L181: =MATCH("*"&I181&"*",Sheet1!B:B,0) ->  | P181: =INDEX('[2]Pt1-AvionicsComponentCosts'!$A:$NE,MATCH(B181,'[2]Pt1-AvionicsComponentCosts'!$A:$A,0),MATCH("END MARKER",'[2]Pt1-AvionicsComponentCosts'!$11:$11,0)) -> 1244918.454 | Q181: 0.75 | R181: 0.75
B182: 51 | C182: =INDEX('[1]Pt1-AvionicsComponentCosts'!$A:$B,MATCH(B182,'[1]Pt1-AvionicsComponentCosts'!$A:$A,0),2) -> Business Jet | D182: Dassault | E182: 1 | F182: Falcon 6X | G182: Dassault Falcon 6X | H182: Falcon 6X | I182: Falcon 6X | J182: =MATCH("*"&F182&"*",Sheet1!C:C,0) ->  | K182: =MATCH("*"&H182&"*",Sheet1!C:C,0) ->  | L182: =MATCH("*"&I182&"*",Sheet1!B:B,0) ->  | P182: =INDEX('[2]Pt1-AvionicsComponentCosts'!$A:$NE,MATCH(B182,'[2]Pt1-AvionicsComponentCosts'!$A:$A,0),MATCH("END MARKER",'[2]Pt1-AvionicsComponentCosts'!$11:$11,0)) -> 1234971 | Q182: 0.75 | R182: 0.75
B183: 54 | C183: =INDEX('[1]Pt1-AvionicsComponentCosts'!$A:$B,MATCH(B183,'[1]Pt1-AvionicsComponentCosts'!$A:$A,0),2) -> Business Jet | D183: Dassault | E183: 1 | F183: Falcon 7X/8X | G183: Dassault Falcon 7X/8X | H183: Falcon 7X/8X | I183: Falcon 7X/8X | J183: =MATCH("*"&F183&"*",Sheet1!C:C,0) ->  | K183: =MATCH("*"&H183&"*",Sheet1!C:C,0) ->  | L183: =MATCH("*"&I183&"*",Sheet1!B:B,0) ->  | M183: 63.8 | O183: https://infogram.com/bca-table-2023-jets-ultra-long-range-1ho16vorwrqkx4n | P183: =INDEX('[2]Pt1-AvionicsComponentCosts'!$A:$NE,MATCH(B183,'[2]Pt1-AvionicsComponentCosts'!$A:$A,0),MATCH("END MARKER",'[2]Pt1-AvionicsComponentCosts'!$11:$11,0)) -> 1234971 | Q183: 0.75 | R183: 0.75 | S183: 0.1451768417
B184: 50 | C184: =INDEX('[1]Pt1-AvionicsComponentCosts'!$A:$B,MATCH(B184,'[1]Pt1-AvionicsComponentCosts'!$A:$A,0),2) -> Business Jet | D184: Dassault | E184: 1 | F184: Falcon 900 | G184: Dassault Falcon 900 | H184: Falcon 900 | I184: Falcon 900 | J184: =MATCH("*"&F184&"*",Sheet1!C:C,0) ->  | K184: =MATCH("*"&H184&"*",Sheet1!C:C,0) ->  | L184: =MATCH("*"&I184&"*",Sheet1!B:B,0) ->  | P184: =INDEX('[2]Pt1-AvionicsComponentCosts'!$A:$NE,MATCH(B184,'[2]Pt1-AvionicsComponentCosts'!$A:$A,0),MATCH("END MARKER",'[2]Pt1-AvionicsComponentCosts'!$11:$11,0)) -> 1234971 | Q184: 0.75 | R184: 0.75
B185: 53 | C185: =INDEX('[1]Pt1-AvionicsComponentCosts'!$A:$B,MATCH(B185,'[1]Pt1-AvionicsComponentCosts'!$A:$A,0),2) -> Business Jet | D185: Dassault | E185: 1 | F185: Falcon 2000 | G185: Dassault Falcon 2000 | H185: Falcon 2000 | I185: Falcon 2000 | J185: =MATCH("*"&F185&"*",Sheet1!C:C,0) ->  | K185: =MATCH("*"&H185&"*",Sheet1!C:C,0) ->  | L185: =MATCH("*"&I185&"*",Sheet1!B:B,0) ->  | P185: =INDEX('[2]Pt1-AvionicsComponentCosts'!$A:$NE,MATCH(B185,'[2]Pt1-AvionicsComponentCosts'!$A:$A,0),MATCH("END MARKER",'[2]Pt1-AvionicsComponentCosts'!$11:$11,0)) -> 832686.2208 | Q185: 0.75 | R185: 0.75
B186: 640 | C186: =INDEX('[1]Pt1-AvionicsComponentCosts'!$A:$B,MATCH(B186,'[1]Pt1-AvionicsComponentCosts'!$A:$A,0),2) -> Business Jet | D186: Dassault | E186: 1 | F186: Falcon 2X | G186: Dassault Falcon 2X | H186: Falcon 2X | I186: Falcon 2X | J186: =MATCH("*"&F186&"*",Sheet1!C:C,0) ->  | K186: =MATCH("*"&H186&"*",Sheet1!C:C,0) ->  | L186: =MATCH("*"&I186&"*",Sheet1!B:B,0) ->  | P186: =INDEX('[2]Pt1-AvionicsComponentCosts'!$A:$NE,MATCH(B186,'[2]Pt1-AvionicsComponentCosts'!$A:$A,0),MATCH("END MARKER",'[2]Pt1-AvionicsComponentCosts'!$11:$11,0)) -> 750683.2208 | Q186: 0.75 | R186: 0.75
B187: 141 | C187: =INDEX('[1]Pt1-AvionicsComponentCosts'!$A:$B,MATCH(B187,'[1]Pt1-AvionicsComponentCosts'!$A:$A,0),2) -> Fighters and Jet Trainers | D187: Dassault | E187: 1 | F187: Dassault Rafale | G187: Dassault Rafale | H187: Rafale | I187: Rafale | J187: =MATCH("*"&F187&"*",Sheet1!C:C,0) ->  | K187: =MATCH("*"&H187&"*",Sheet1!C:C,0) ->  | L187: =MATCH("*"&I187&"*",Sheet1!B:B,0) ->  | P187: =INDEX('[2]Pt1-AvionicsComponentCosts'!$A:$NE,MATCH(B187,'[2]Pt1-AvionicsComponentCosts'!$A:$A,0),MATCH("END MARKER",'[2]Pt1-AvionicsComponentCosts'!$11:$11,0)) -> 3000575.6 | Q187: 1 | R187: 1
B188: 621 | C188: =INDEX('[1]Pt1-AvionicsComponentCosts'!$A:$B,MATCH(B188,'[1]Pt1-AvionicsComponentCosts'!$A:$A,0),2) -> Regional | D188: De Havilland Canada | E188: 1 | F188: De Havilland Canada DHC-8 | G188: De Havilland Canada DHC-8-100 | H188: DHC-8-100 | I188: DHC-8-100 | J188: =MATCH("*"&F188&"*",Sheet1!C:C,0) ->  | K188: =MATCH("*"&H188&"*",Sheet1!C:C,0) ->  | L188: =MATCH("*"&I188&"*",Sheet1!B:B,0) ->  | M188: 12.5 | O188: https://www.modernairliners.com/bombardier-dhc-dash-8 | P188: =INDEX('[2]Pt1-AvionicsComponentCosts'!$A:$NE,MATCH(B188,'[2]Pt1-AvionicsComponentCosts'!$A:$A,0),MATCH("END MARKER",'[2]Pt1-AvionicsComponentCosts'!$11:$11,0)) -> 1040302.445 | Q188: 0.65 | R188: 0.65 | S188: 0.5409572713
B189: 622 | C189: =INDEX('[1]Pt1-AvionicsComponentCosts'!$A:$B,MATCH(B189,'[1]Pt1-AvionicsComponentCosts'!$A:$A,0),2) -> Regional | D189: De Havilland Canada | E189: 1 | F189: De Havilland Canada DHC-8 | G189: De Havilland Canada DHC-8-200 | H189: DHC-8-200 | I189: DHC-8-200 | J189: =MATCH("*"&F189&"*",Sheet1!C:C,0) ->  | K189: =MATCH("*"&H189&"*",Sheet1!C:C,0) ->  | L189: =MATCH("*"&I189&"*",Sheet1!B:B,0) ->  | M189: 13 | O189: https://www.modernairliners.com/bombardier-dhc-dash-8 | P189: =INDEX('[2]Pt1-AvionicsComponentCosts'!$A:$NE,MATCH(B189,'[2]Pt1-AvionicsComponentCosts'!$A:$A,0),MATCH("END MARKER",'[2]Pt1-AvionicsComponentCosts'!$11:$11,0)) -> 1040302.445 | Q189: 0.65 | R189: 0.65 | S189: 0.5201512224
B190: 623 | C190: =INDEX('[1]Pt1-AvionicsComponentCosts'!$A:$B,MATCH(B190,'[1]Pt1-AvionicsComponentCosts'!$A:$A,0),2) -> Regional | D190: De Havilland Canada | E190: 1 | F190: De Havilland Canada DHC-8 | G190: De Havilland Canada DHC-8-300 | H190: DHC-8-300 | I190: DHC-8-300 | J190: =MATCH("*"&F190&"*",Sheet1!C:C,0) ->  | K190: =MATCH("*"&H190&"*",Sheet1!C:C,0) ->  | L190: =MATCH("*"&I190&"*",Sheet1!B:B,0) ->  | M190: 17 | O190: https://www.modernairliners.com/bombardier-dhc-dash-8 | P190: =INDEX('[2]Pt1-AvionicsComponentCosts'!$A:$NE,MATCH(B190,'[2]Pt1-AvionicsComponentCosts'!$A:$A,0),MATCH("END MARKER",'[2]Pt1-AvionicsComponentCosts'!$11:$11,0)) -> 1040302.445 | Q190: 0.65 | R190: 0.65 | S190: 0.3977626995
B191: 21 | C191: =INDEX('[1]Pt1-AvionicsComponentCosts'!$A:$B,MATCH(B191,'[1]Pt1-AvionicsComponentCosts'!$A:$A,0),2) -> Regional | D191: De Havilland Canada | E191: 1 | F191: De Havilland Canada DHC-8 | G191: De Havilland Canada DHC-8-400 | H191: DHC-8-400 | I191: DHC-8-400 | J191: =MATCH("*"&F191&"*",Sheet1!C:C,0) ->  | K191: =MATCH("*"&H191&"*",Sheet1!C:C,0) ->  | L191: =MATCH("*"&I191&"*",Sheet1!B:B,0) ->  | M191: 27 | O191: https://www.modernairliners.com/bombardier-dhc-dash-8 | P191: =INDEX('[2]Pt1-AvionicsComponentCosts'!$A:$NE,MATCH(B191,'[2]Pt1-AvionicsComponentCosts'!$A:$A,0),MATCH("END MARKER",'[2]Pt1-AvionicsComponentCosts'!$11:$11,0)) -> 1040302.445 | Q191: 0.65 | R191: 0.65 | S191: 0.2504431812
B192: 624 | C192: =INDEX('[1]Pt1-AvionicsComponentCosts'!$A:$B,MATCH(B192,'[1]Pt1-AvionicsComponentCosts'!$A:$A,0),2) -> Regional | D192: Dornier | E192: 1 | F192: Dornier Do 328-100 | G192: Dornier Do 328-100 | H192: Do 328-100 | I192: Do 328-100 | J192: =MATCH("*"&F192&"*",Sheet1!C:C,0) ->  | K192: =MATCH("*"&H192&"*",Sheet1!C:C,0) ->  | L192: =MATCH("*"&I192&"*",Sheet1!B:B,0) ->  | P192: =INDEX('[2]Pt1-AvionicsComponentCosts'!$A:$NE,MATCH(B192,'[2]Pt1-AvionicsComponentCosts'!$A:$A,0),MATCH("END MARKER",'[2]Pt1-AvionicsComponentCosts'!$11:$11,0)) -> 1040302.445 | Q192: 0.65 | R192: 0.65
B193: 224 | C193: =INDEX('[1]Pt1-AvionicsComponentCosts'!$A:$B,MATCH(B193,'[1]Pt1-AvionicsComponentCosts'!$A:$A,0),2) -> Turbine GA | D193: Dornier | E193: 1 | F193: Dornier Do 228 | G193: Dornier Do 228 | H193: Do 228 | I193: Do 228 | J193: =MATCH("*"&F193&"*",Sheet1!C:C,0) ->  | K193: =MATCH("*"&H193&"*",Sheet1!C:C,0) ->  | L193: =MATCH("*"&I193&"*",Sheet1!B:B,0) ->  | P193: =INDEX('[2]Pt1-AvionicsComponentCosts'!$A:$NE,MATCH(B193,'[2]Pt1-AvionicsComponentCosts'!$A:$A,0),MATCH("END MARKER",'[2]Pt1-AvionicsComponentCosts'!$11:$11,0)) -> 239259.032 | Q193: 1 | R193: 1
B194: 154 | C194: =INDEX('[1]Pt1-AvionicsComponentCosts'!$A:$B,MATCH(B194,'[1]Pt1-AvionicsComponentCosts'!$A:$A,0),2) -> Military Transport / Special Mission | D194: EADS | E194: 1 | F194: EADS CASA C-295 | G194: EADS CASA C-295 | H194: CASA C-295 | I194: CASA C-295 | J194: =MATCH("*"&F194&"*",Sheet1!C:C,0) ->  | K194: =MATCH("*"&H194&"*",Sheet1!C:C,0) ->  | L194: =MATCH("*"&I194&"*",Sheet1!B:B,0) ->  | P194: =INDEX('[2]Pt1-AvionicsComponentCosts'!$A:$NE,MATCH(B194,'[2]Pt1-AvionicsComponentCosts'!$A:$A,0),MATCH("END MARKER",'[2]Pt1-AvionicsComponentCosts'!$11:$11,0)) -> 3357528.809 | Q194: 1 | R194: 1
B195: 70 | C195: =INDEX('[1]Pt1-AvionicsComponentCosts'!$A:$B,MATCH(B195,'[1]Pt1-AvionicsComponentCosts'!$A:$A,0),2) -> Business Jet | D195: Eclipse | E195: 1 | F195: Eclipse 550 | G195: Eclipse 550 | H195: =TRIM(SUBSTITUTE(G195,D195,"")) -> 550 | I195: =TRIM(SUBSTITUTE(SUBSTITUTE(SUBSTITUTE(SUBSTITUTE(SUBSTITUTE(H195,"Family",""),"737 Classic:",""),"737 MAX:",""),"787 Dreamliner:",""),"777:","")) -> 550 | J195: =MATCH("*"&F195&"*",Sheet1!C:C,0) ->  | K195: =MATCH("*"&H195&"*",Sheet1!C:C,0) ->  | L195: =MATCH("*"&I195&"*",Sheet1!B:B,0) ->  | P195: =INDEX('[2]Pt1-AvionicsComponentCosts'!$A:$NE,MATCH(B195,'[2]Pt1-AvionicsComponentCosts'!$A:$A,0),MATCH("END MARKER",'[2]Pt1-AvionicsComponentCosts'!$11:$11,0)) -> 226255.336 | Q195: 0.75 | R195: 0.75 | S195: =IFERROR(P195/(M195*100000)*R195,"") -> 
B196: 74 | C196: =INDEX('[1]Pt1-AvionicsComponentCosts'!$A:$B,MATCH(B196,'[1]Pt1-AvionicsComponentCosts'!$A:$A,0),2) -> Business Jet | D196: Embraer | E196: 1 | F196: Legacy 600/650 | G196: Embraer Legacy 600/650 | H196: Legacy 600/650 | I196: Legacy 600/650 | J196: =MATCH("*"&F196&"*",Sheet1!C:C,0) ->  | K196: =MATCH("*"&H196&"*",Sheet1!C:C,0) ->  | L196: =MATCH("*"&I196&"*",Sheet1!B:B,0) ->  | P196: =INDEX('[2]Pt1-AvionicsComponentCosts'!$A:$NE,MATCH(B196,'[2]Pt1-AvionicsComponentCosts'!$A:$A,0),MATCH("END MARKER",'[2]Pt1-AvionicsComponentCosts'!$11:$11,0)) -> 1152968 | Q196: 0.75 | R196: 0.75
B197: 652 | C197: =INDEX('[1]Pt1-AvionicsComponentCosts'!$A:$B,MATCH(B197,'[1]Pt1-AvionicsComponentCosts'!$A:$A,0),2) -> Business Jet | D197: Embraer | E197: 1 | F197: Legacy 700 | G197: Embraer legacy 700 | H197: legacy 700 | I197: legacy 700 | J197: =MATCH("*"&F197&"*",Sheet1!C:C,0) ->  | K197: =MATCH("*"&H197&"*",Sheet1!C:C,0) ->  | L197: =MATCH("*"&I197&"*",Sheet1!B:B,0) ->  | P197: =INDEX('[2]Pt1-AvionicsComponentCosts'!$A:$NE,MATCH(B197,'[2]Pt1-AvionicsComponentCosts'!$A:$A,0),MATCH("END MARKER",'[2]Pt1-AvionicsComponentCosts'!$11:$11,0)) -> 1152968 | Q197: 0.75 | R197: 0.75
B198: 73 | C198: =INDEX('[1]Pt1-AvionicsComponentCosts'!$A:$B,MATCH(B198,'[1]Pt1-AvionicsComponentCosts'!$A:$A,0),2) -> Business Jet | D198: Embraer | E198: 1 | F198: Lineage 1000 | G198: Embraer Lineage 1000 | H198: Lineage 1000 | I198: Lineage 1000 | J198: =MATCH("*"&F198&"*",Sheet1!C:C,0) ->  | K198: =MATCH("*"&H198&"*",Sheet1!C:C,0) ->  | L198: =MATCH("*"&I198&"*",Sheet1!B:B,0) ->  | M198: 53 | O198: https://www.jetfinder.com/most-expensive-private-jets/ | P198: =INDEX('[2]Pt1-AvionicsComponentCosts'!$A:$NE,MATCH(B198,'[2]Pt1-AvionicsComponentCosts'!$A:$A,0),MATCH("END MARKER",'[2]Pt1-AvionicsComponentCosts'!$11:$11,0)) -> 1157418 | Q198: 0.75 | R198: 0.75 | S198: 0.163785566
B199: 56 | C199: =INDEX('[1]Pt1-AvionicsComponentCosts'!$A:$B,MATCH(B199,'[1]Pt1-AvionicsComponentCosts'!$A:$A,0),2) -> Business Jet | D199: Embraer | E199: 1 | F199: Phenom 300 | G199: Embraer Phenom 300 | H199: Phenom 300 | I199: Phenom 300 | J199: =MATCH("*"&F199&"*",Sheet1!C:C,0) ->  | K199: =MATCH("*"&H199&"*",Sheet1!C:C,0) ->  | L199: =MATCH("*"&I199&"*",Sheet1!B:B,0) ->  | M199: 12 | O199: https://privatejetcardcomparisons.com/aircraft/embraer/phenom-300/ | P199: =INDEX('[2]Pt1-AvionicsComponentCosts'!$A:$NE,MATCH(B199,'[2]Pt1-AvionicsComponentCosts'!$A:$A,0),MATCH("END MARKER",'[2]Pt1-AvionicsComponentCosts'!$11:$11,0)) -> 491403.8048 | Q199: 0.75 | R199: 0.75 | S199: 0.307127378
B200: 641 | C200: =INDEX('[1]Pt1-AvionicsComponentCosts'!$A:$B,MATCH(B200,'[1]Pt1-AvionicsComponentCosts'!$A:$A,0),2) -> Business Jet | D200: Embraer | E200: 1 | F200: Phenom 300X | G200: Embraer Phenom 300X | H200: Phenom 300X | I200: Phenom 300X | J200: =MATCH("*"&F200&"*",Sheet1!C:C,0) ->  | K200: =MATCH("*"&H200&"*",Sheet1!C:C,0) ->  | L200: =MATCH("*"&I200&"*",Sheet1!B:B,0) ->  | P200: =INDEX('[2]Pt1-AvionicsComponentCosts'!$A:$NE,MATCH(B200,'[2]Pt1-AvionicsComponentCosts'!$A:$A,0),MATCH("END MARKER",'[2]Pt1-AvionicsComponentCosts'!$11:$11,0)) -> 491403.8048 | Q200: 0.75 | R200: 0.75
... 133 more rows

Sheet Summary
A1: 2020 Data
B2: AC Value Factor | C2: Average Avionics Cost | D2: Average | E2: High | F2: High Item | G2: Low | H2: Low Item
A3: Fighters and Jet Trainers | B3: =INDEX('2020 Data Sheet'!$A:$S,MATCH($A3,'2020 Data Sheet'!C:C,0),MATCH(B$2,'2020 Data Sheet'!$1:$1,0)) -> 1 | C3: =AVERAGEIF('2020 Data Sheet'!$C:$C,Summary!$A3,'2020 Data Sheet'!$P:$P) -> 2168883.385 | D3: =AVERAGEIF('2020 Data Sheet'!C:C,A3,'2020 Data Sheet'!S:S) -> 0.471041741 | E3: =_xlfn.MAXIFS('2020 Data Sheet'!S:S,'2020 Data Sheet'!C:C,A3) -> 0.6262145946 | F3: =INDEX('2020 Data Sheet'!$A:$S,MATCH(Summary!E3,'2020 Data Sheet'!$S:$S,0),6) -> Aero L-39NG | G3: =_xlfn.MINIFS('2020 Data Sheet'!S:S,'2020 Data Sheet'!C:C,A3) -> 0.3481614 | H3: =INDEX('2020 Data Sheet'!$A:$S,MATCH(Summary!G3,'2020 Data Sheet'!$S:$S,0),6) -> AIDC T-5
A4: Turbine GA | B4: =INDEX('2020 Data Sheet'!$A:$S,MATCH($A4,'2020 Data Sheet'!C:C,0),MATCH(B$2,'2020 Data Sheet'!$1:$1,0)) -> 1 | C4: =AVERAGEIF('2020 Data Sheet'!$C:$C,Summary!$A4,'2020 Data Sheet'!$P:$P) -> 246230.7391 | D4: =AVERAGEIF('2020 Data Sheet'!C:C,A4,'2020 Data Sheet'!S:S) -> 0.4626560695 | E4: =_xlfn.MAXIFS('2020 Data Sheet'!S:S,'2020 Data Sheet'!C:C,A4) -> 0.8250884615 | F4: =INDEX('2020 Data Sheet'!$A:$S,MATCH(Summary!E4,'2020 Data Sheet'!$S:$S,0),6) -> Cessna 208 Caravan | G4: =_xlfn.MINIFS('2020 Data Sheet'!S:S,'2020 Data Sheet'!C:C,A4) -> 0.2448799458 | H4: =INDEX('2020 Data Sheet'!$A:$S,MATCH(Summary!G4,'2020 Data Sheet'!$S:$S,0),6) -> Canadair CL-415
A5: Business Jet | B5: =INDEX('2020 Data Sheet'!$A:$S,MATCH($A5,'2020 Data Sheet'!C:C,0),MATCH(B$2,'2020 Data Sheet'!$1:$1,0)) -> 0.75 | C5: =AVERAGEIF('2020 Data Sheet'!$C:$C,Summary!$A5,'2020 Data Sheet'!$P:$P) -> 889565 | D5: =AVERAGEIF('2020 Data Sheet'!C:C,A5,'2020 Data Sheet'!S:S) -> 0.176621792 | E5: =_xlfn.MAXIFS('2020 Data Sheet'!S:S,'2020 Data Sheet'!C:C,A5) -> 0.4575875 | F5: =INDEX('2020 Data Sheet'!$A:$S,MATCH(Summary!E5,'2020 Data Sheet'!$S:$S,0),6) -> G100 | G5: =_xlfn.MINIFS('2020 Data Sheet'!S:S,'2020 Data Sheet'!C:C,A5) -> 0.033114375 | H5: =INDEX('2020 Data Sheet'!$A:$S,MATCH(Summary!G5,'2020 Data Sheet'!$S:$S,0),6) -> Wide body VIP
A6: Freighter | B6: =INDEX('2020 Data Sheet'!$A:$S,MATCH($A6,'2020 Data Sheet'!C:C,0),MATCH(B$2,'2020 Data Sheet'!$1:$1,0)) -> 0.5 | C6: =AVERAGEIF('2020 Data Sheet'!$C:$C,Summary!$A6,'2020 Data Sheet'!$P:$P) -> 1534532.407 | D6: =AVERAGEIF('2020 Data Sheet'!C:C,A6,'2020 Data Sheet'!S:S) -> 0.08805363827 | E6: =_xlfn.MAXIFS('2020 Data Sheet'!S:S,'2020 Data Sheet'!C:C,A6) -> 0.3275538889 | F6: =INDEX('2020 Data Sheet'!$A:$S,MATCH(Summary!E6,'2020 Data Sheet'!$S:$S,0),6) -> A330 | G6: =_xlfn.MINIFS('2020 Data Sheet'!S:S,'2020 Data Sheet'!C:C,A6) -> 0.01999989824 | H6: =INDEX('2020 Data Sheet'!$A:$S,MATCH(Summary!G6,'2020 Data Sheet'!$S:$S,0),6) -> Boeing 777X
A7: Helicopter | B7: =INDEX('2020 Data Sheet'!$A:$S,MATCH($A7,'2020 Data Sheet'!C:C,0),MATCH(B$2,'2020 Data Sheet'!$1:$1,0)) -> 0.99 | C7: =AVERAGEIF('2020 Data Sheet'!$C:$C,Summary!$A7,'2020 Data Sheet'!$P:$P) -> 932854.371 | D7: =AVERAGEIF('2020 Data Sheet'!C:C,A7,'2020 Data Sheet'!S:S) -> 0.6507769976 | E7: =_xlfn.MAXIFS('2020 Data Sheet'!S:S,'2020 Data Sheet'!C:C,A7) -> 3.519358615 | F7: =INDEX('2020 Data Sheet'!$A:$S,MATCH(Summary!E7,'2020 Data Sheet'!$S:$S,0),6) -> Bell 505 Jet Ranger X | G7: =_xlfn.MINIFS('2020 Data Sheet'!S:S,'2020 Data Sheet'!C:C,A7) -> 0.1161681048 | H7: =INDEX('2020 Data Sheet'!$A:$S,MATCH(Summary!G7,'2020 Data Sheet'!$S:$S,0),6) -> Sikorsky CH-53K King Stallion
A8: Large Commercial Aircraft | B8: =INDEX('2020 Data Sheet'!$A:$S,MATCH($A8,'2020 Data Sheet'!C:C,0),MATCH(B$2,'2020 Data Sheet'!$1:$1,0)) -> 0.5 | C8: =AVERAGEIF('2020 Data Sheet'!$C:$C,Summary!$A8,'2020 Data Sheet'!$P:$P) -> 1618284.037 | D8: =AVERAGEIF('2020 Data Sheet'!C:C,A8,'2020 Data Sheet'!S:S) -> 0.04625494791 | E8: =_xlfn.MAXIFS('2020 Data Sheet'!S:S,'2020 Data Sheet'!C:C,A8) -> 0.08447296296 | F8: =INDEX('2020 Data Sheet'!$A:$S,MATCH(Summary!E8,'2020 Data Sheet'!$S:$S,0),6) -> A220 | G8: =_xlfn.MINIFS('2020 Data Sheet'!S:S,'2020 Data Sheet'!C:C,A8) -> 0.02556575079 | H8: =INDEX('2020 Data Sheet'!$A:$S,MATCH(Summary!G8,'2020 Data Sheet'!$S:$S,0),6) -> Boeing 777X
A9: Military Transport / Special Mission | B9: =INDEX('2020 Data Sheet'!$A:$S,MATCH($A9,'2020 Data Sheet'!C:C,0),MATCH(B$2,'2020 Data Sheet'!$1:$1,0)) -> 1 | C9: =AVERAGEIF('2020 Data Sheet'!$C:$C,Summary!$A9,'2020 Data Sheet'!$P:$P) -> 2980996.955 | D9: =AVERAGEIF('2020 Data Sheet'!C:C,A9,'2020 Data Sheet'!S:S) -> 0.2897286919 | E9: =_xlfn.MAXIFS('2020 Data Sheet'!S:S,'2020 Data Sheet'!C:C,A9) -> 0.75649875 | F9: =INDEX('2020 Data Sheet'!$A:$S,MATCH(Summary!E9,'2020 Data Sheet'!$S:$S,0),6) -> Alenia C-27J | G9: =_xlfn.MINIFS('2020 Data Sheet'!S:S,'2020 Data Sheet'!C:C,A9) -> 0.09131344118 | H9: =INDEX('2020 Data Sheet'!$A:$S,MATCH(Summary!G9,'2020 Data Sheet'!$S:$S,0),6) -> A330 MRTT
A10: Regional | B10: =INDEX('2020 Data Sheet'!$A:$S,MATCH($A10,'2020 Data Sheet'!C:C,0),MATCH(B$2,'2020 Data Sheet'!$1:$1,0)) -> 0.65 | C10: =AVERAGEIF('2020 Data Sheet'!$C:$C,Summary!$A10,'2020 Data Sheet'!$P:$P) -> 955126.8 | D10: =AVERAGEIF('2020 Data Sheet'!C:C,A10,'2020 Data Sheet'!S:S) -> 0.2114722634 | E10: =_xlfn.MAXIFS('2020 Data Sheet'!S:S,'2020 Data Sheet'!C:C,A10) -> 0.4782596 | F10: =INDEX('2020 Data Sheet'!$A:$S,MATCH(Summary!E10,'2020 Data Sheet'!$S:$S,0),6) -> De Havilland Canada DHC-8 | G10: =_xlfn.MINIFS('2020 Data Sheet'!S:S,'2020 Data Sheet'!C:C,A10) -> 0.087248125 | H10: =INDEX('2020 Data Sheet'!$A:$S,MATCH(Summary!G10,'2020 Data Sheet'!$S:$S,0),6) -> Embraer E170/190
